Workbook

Sheet Interface
C4: Localisation | H4: Occupation
O5: Température de consigne
D7: Station météo | E7: Cayenne | I7: Densité d'occupants (m²/pers) | J7: 10 | O7: Secteurs | P7: Pas encore de consensus
D9: Secteur | E9: Enseignement | I9: Valeur d'ajustement occupation | J9: 0 | O9: Valeurs d'ajutement occupation | R9: Mettre une valeur par défaut et le programmiste choisit ?
O11: Taux de percement
C12: Géométrie | H12: Protection solaire
O13: Ventilation naturelle | Q13: 5-15-50
D15: Surface utile totale (m²) | E15: 3000 | I15: Facteur solaire des murs | J15: LEKOL LOJIK | O15: Consommation des équipements spécifiques | R15: valeurs en kW, prendre le planning et appliquer un coef (0.6)
D17: Nombre de niveaux | E17: 2 | I17: Facteur solaire des baies | J17: LEKOL LOJIK | O17: Résultats finaux | P17: Retirer tout (image)
D19: Rapport Longueur / Largeur | E19: 3.5 | I19: Facteur solaire de la toiture | J19: LEKOL LOJIK
D21: Taux de percement / plancher | E21: 0.2
H22: Equipements
D23: Orientation façades principales | E23: Est / Ouest
I25: Brasseurs d'air | J25: Performant | L25: =Conso(BanqueConso,I25,J25,$E$9) -> 7
C26: Climatisation
I27: Ventilation | J27: Niveau de base | L27: =Conso(BanqueConso,I27,J27,$E$9) -> 5
D29: Surface climatisée (%) | E29: 0.15 | F29: =Surface*SurfaceClimatisée -> 450 | I29: Eau chaude sanitaire | J29: Performant | L29: =Conso(BanqueConso,I29,J29,$E$9) -> 3
D31: Température de consigne (°C) | E31: 26 | I31: Eclairage intérieur | J31: Performant | L31: =Conso(BanqueConso,I31,J31,$E$9) -> 8
D33: Fonctionnement du climatiseur | E33: 7-18h, L-V | I33: Eclairage extérieur | J33: Performant | L33: =Conso(BanqueConso,I33,J33,$E$9) -> 3
C35: Installation | D35: Centralisée DRV - Performant | I35: Bureautique | J35: Niveau de base | L35: =Conso(BanqueConso,I35,J35,$E$9) -> 20
I37: Froid alimentaire | J37: Niveau de base | L37: =Conso(BanqueConso,I37,J37,$E$9) -> 10
C38: Ventilation
I39: Chaud alimentaire | J39: Niveau de base | L39: =Conso(BanqueConso,I39,J39,$E$9) -> 6
D41: VMC (m3/pers.h) | Planning | E41: 18 | F41: Permanent | I41: Autres | J41: Sans objet | L41: =Conso(BanqueConso,I41,J41,$E$9) -> 0
D43: Potentiel de ventilation naturelle | E43: Décharge (15 vol/h) | I43: Equip. spé. avec apports (W/m²) | L43: =Calculs!M125 -> 0
I45: Equip. spé. sans apports (W/m²) | L45: =Calculs!M132 -> 0
D49: Climatisation | E49: Ventilation naturelle
D50: Besoin (kWh/m²) | E50: Horaires ≥ 30°C | F50: % de temps ≥ 30°C | H50: Climatisation
H51: =Calculs!BB153 -> 118.9124559 | I51: Besoin (kWh/m²clim.an)
C52: Janvier | D52: =Calculs!K152 -> 13.89026684 | E52: =Calculs!K169 -> 15h-20h | F52: =Calculs!L169 -> 0.25 | H52: =IF(OR(Surface=0,D35=""),"",H51/Calculs!BB158) -> 30.25762237 | I52: Consommation (kWh/m²clim.an)
C53: Février | D53: =Calculs!K153 -> 6.193268989 | E53: =Calculs!K170 -> 15h-19h | F53: =Calculs!L170 -> 0.2083333333 | H53: =H52*F29/1000 -> 13.61593007 | I53: Consommation (MWh/an)
C54: Mars | D54: =Calculs!K154 -> 13.37148411 | E54: =Calculs!K171 -> 15h-19h | F54: =Calculs!L171 -> 0.2083333333
C55: Avril | D55: =Calculs!K155 -> 7.366912807 | E55: =Calculs!K172 -> 14h-20h | F55: =Calculs!L172 -> 0.2916666667 | H55: Consommation
C56: Mai | D56: =Calculs!K156 -> 16.09942685 | E56: =Calculs!K173 -> 14h-21h | F56: =Calculs!L173 -> 0.3333333333 | H56: =IF(D35="","",Calculs!BB159*(1000/Surface)) -> 66.53864336 | I56: Consommation surf. (kWh/m².an)
C57: Juin | D57: =Calculs!K157 -> 13.56890277 | E57: =Calculs!K174 -> 15h-20h | F57: =Calculs!L174 -> 0.25
C58: Juillet | D58: =Calculs!K158 -> 0 | E58: =Calculs!K175 -> 14h-21h | F58: =Calculs!L175 -> 0.3333333333 | H58: Ventilation naturelle
C59: Août | D59: =Calculs!K159 -> 0 | E59: =Calculs!K176 -> 13h-22h | F59: =Calculs!L176 -> 0.4166666667 | H59: =SUM(Calculs!J169:J180) -> 2836 | I59: Nombre d'heures annuel ≥ 30°C
C60: Septembre | D60: =Calculs!K160 -> 16.58872152 | E60: =Calculs!K177 -> 13h-22h | F60: =Calculs!L177 -> 0.4166666667 | H60: =H59/8760 -> 0.3237442922 | I60: ="Pourcentage de temps ≥ 30°C (%)" -> Pourcentage de temps ≥ 30°C (%)
C61: Octobre | D61: =Calculs!K161 -> 13.50660755 | E61: =Calculs!K178 -> 12h-22h | F61: =Calculs!L178 -> 0.4583333333 | H61: =AVERAGE(Calculs!I169:I180) -> 0.7644170815 | I61: Surchauffe moyenne (°C)
C62: Novembre | D62: =Calculs!K162 -> 11.10483268 | E62: =Calculs!K179 -> 13h-21h | F62: =Calculs!L179 -> 0.375
C63: Décembre | D63: =Calculs!K163 -> 7.222031812 | E63: =Calculs!K180 -> 14h-21h | F63: =Calculs!L180 -> 0.3333333333

Sheet Hypothèses (hidden)
B2: =Interface!E7 -> Cayenne | D2: Station météo
B3: Logement individuel | D3: Secteur
B5: =Interface!E15 -> 3000 | D5: Surface SHON totale (m²)
B6: =Interface!E19 -> 3.5 | D6: Rapport Longueur/Largeur | P6: 5.85 | Q6: Etanchéité par défaut des fenêtres (m3/h/m²)
B7: =Interface!E17 -> 2 | D7: Nombre de niveaux | O7: Logement | P7: 1 | Q7: Etanchéité par défaut des murs (m3/h/m²)
B8: =Interface!E23 -> Est / Ouest | D8: Orientation des plus grandes façades | O8: Commerces | P8: 2.5
B9: =Interface!E21 -> 0.2 | D9: Taux de percement ramené au plancher (%) | O9: Bureaux | P9: 1.2
O10: Enseignement | P10: 1.2
B11: =Interface!J15 -> LEKOL LOJIK | D11: Facteur solaire murs | O11: Santé | P11: 1.2
B12: =Interface!J17 -> LEKOL LOJIK | D12: Facteur solaire vitrage | O12: Hôtellerie | P12: 1.2
B13: =Interface!J19 -> LEKOL LOJIK | D13: Facteur solaire toiture | W13: Guyane | Y13: Facteurs solaire murs | AD13: Facteurs solaires baies | AI13: Conductance
O14: Valeurs d'occupation par défaut en fonction du secteur | Y14: =Données1!O5 -> Base | Z14: =Données1!O6 -> RTAA DOM 2016 | AA14: =Données1!O7 -> Ecodom | AB14: =Données1!O8 -> NF Habitat HQE | AC14: =Données1!O9 -> LEKOL LOJIK | AD14: =Y14 -> Base | AE14: =Z14 -> RTAA DOM 2016 | AF14: Ecodom | AG14: NF Habitat HQE | AH14: LEKOL LOJIK | AI14: =AD14 -> Base | AJ14: =AE14 -> RTAA DOM 2016 | AK14: =AF14 -> Ecodom | AL14: =AG14 -> NF Habitat HQE | AM14: =AH14 -> LEKOL LOJIK
B15: =Interface!J9 -> 0 | D15: Valeur d'ajustement occupation | J15: 30 | K15: Température de référence (°C) | P15: Logement | Q15: Commerces | R15: Bureaux | S15: Enseignement | T15: Santé | U15: Hôtellerie | X15: Nord | Y15: 0.12 | Z15: 0.09 | AA15: 0.054 | AB15: 0.07 | AC15: 0.08 | AD15: 0.9 | AE15: 0.7 | AF15: 0.7 | AG15: 0.5 | AH15: 0.6 | AI15: 2 | AJ15: 1.8 | AK15: 1.6 | AL15: 1.5 | AM15: 1.8 | AN15: Murs
C16: =Interface!J7 -> 10 | D16: Densité d'occupants (m²/personne) | O16: Janvier | P16: 1 | Q16: 1 | R16: 1 | S16: 1 | T16: 1 | U16: 1 | X16: Est | Y16: 0.12 | Z16: 0.09 | AA16: 0.054 | AB16: 0.07 | AC16: 0.06 | AD16: 0.8 | AE16: 0.6 | AF16: 0.6 | AG16: 0.4 | AH16: 0.4 | AI16: 0.5 | AJ16: 0.45 | AK16: 0.4 | AL16: 0.375 | AM16: 0.45 | AN16: Toitures
J17: Valeurs par défaut | O17: Février | P17: 1 | Q17: 1 | R17: 1 | S17: 0.5 | T17: 1 | U17: 1 | X17: Sud | Y17: 0.12 | Z17: 0.09 | AA17: 0.054 | AB17: 0.07 | AC17: 0.08 | AD17: 0.9 | AE17: 0.7 | AF17: 0.7 | AG17: 0.5 | AH17: 0.6 | AI17: 5 | AJ17: 5 | AK17: 5 | AL17: 5 | AM17: 5 | AN17: Vitrages
O18: Mars | P18: 1 | Q18: 1 | R18: 1 | S18: 1 | T18: 1 | U18: 1 | X18: Ouest | Y18: 0.12 | Z18: 0.09 | AA18: 0.054 | AB18: 0.07 | AC18: 0.06 | AD18: 0.8 | AE18: 0.6 | AF18: 0.6 | AG18: 0.4 | AH18: 0.4 | AI18: 0.7 | AJ18: 0.7 | AK18: 0.7 | AL18: 0.7 | AM18: 0.7 | AN18: So
J19: Moyen | K19: Niveau d'inertie | O19: Avril | P19: 1 | Q19: 1 | R19: 1 | S19: 0.5 | T19: 1 | U19: 1 | X19: Nord-Est | Y19: 0.12 | Z19: 0.09 | AA19: 0.054 | AB19: 0.07 | AC19: 0.07 | AD19: 0.8 | AE19: 0.6 | AF19: 0.6 | AG19: 0.4 | AH19: 0.5
J20: 2 | K20: Umurs de base (Sans He et Hi) | O20: Mai | P20: 1 | Q20: 1 | R20: 1 | S20: 1 | T20: 1 | U20: 1 | X20: Nord-Ouest | Y20: 0.12 | Z20: 0.09 | AA20: 0.054 | AB20: 0.07 | AC20: 0.07 | AD20: 0.8 | AE20: 0.6 | AF20: 0.6 | AG20: 0.4 | AH20: 0.5
B21: =Interface!E31 -> 26 | D21: Température de consigne (°C) | J21: 0.5 | K21: Utoiture de base (Sans He et Hi) | O21: Juin | P21: 1 | Q21: 1 | R21: 1 | S21: 1 | T21: 1 | U21: 1 | X21: Sud-Ouest | Y21: 0.12 | Z21: 0.09 | AA21: 0.054 | AB21: 0.07 | AC21: 0.07 | AD21: 0.8 | AE21: 0.6 | AF21: 0.6 | AG21: 0.4 | AH21: 0.5
B22: =Interface!E29 -> 0.15 | D22: Surface climatisée (%) | J22: 0.5 | K22: Pourcentage d'amélioration Umurs / Fs | O22: Juillet | P22: 1 | Q22: 1 | R22: 1 | S22: 0 | T22: 1 | U22: 1 | X22: Sud-Est | Y22: 0.12 | Z22: 0.09 | AA22: 0.054 | AB22: 0.07 | AC22: 0.07 | AD22: 0.8 | AE22: 0.6 | AF22: 0.6 | AG22: 0.4 | AH22: 0.5
B23: =Interface!E33 -> 7-18h, L-V | D23: Planning de fonctionnement Climatiseur | J23: 0.5 | K23: Pourcentage d'amélioration Utoiture / Fs | O23: Août | P23: 1 | Q23: 0.5 | R23: 1 | S23: 0 | T23: 1 | U23: 1 | X23: Toiture | Y23: 0.05 | Z23: 0.03 | AA23: 0.018 | AB23: 0.01 | AC23: 0.015
J24: SV | K24: Type de vitrage | O24: Septembre | P24: 1 | Q24: 1 | R24: 1 | S24: 1 | T24: 1 | U24: 1
B25: =Interface!E41 -> 18 | D25: VMC : Renouvellement d'air contrôlé (m3/pers.h) | J25: 5 | K25: Uw | O25: Octobre | P25: 1 | Q25: 1 | R25: 1 | S25: =3/4 -> 0.75 | T25: 1 | U25: 1
B26: =Interface!F41 -> Permanent | D26: Planning de la VMC | J26: 0.7 | K26: SHGC | O26: Novembre | P26: 1 | Q26: 1 | R26: 1 | S26: 0.75 | T26: 1 | U26: 1
J27: 0.87 | K27: Facteur solaire du vitrage | O27: Décembre | P27: 1 | Q27: 1 | R27: 1 | S27: 0.5 | T27: 1 | U27: 1
B28: Base (5 vol/h) | D28: Potentiel de ventilation naturelle | J28: 4 | K28: Vitesse du vent considérée (m/s)
J29: 0.9 | K29: Coefficient de modulation du vent | O29: Secteur | P29: Planning associé | Q29: Par déf (h/sem)
J30: 120 | K30: Métabolisme (W) | O30: Logement | P30: 18h-8h L-V, Permanent le week-end | Q30: =5*(6+8)+24*2 -> 118
J31: =Hypothèses!J15 -> 30 | K31: Seuil de température d'inconfort | O31: Commerces | P31: 9h-20h, L-S | Q31: =(20-9)*6 -> 66
J32: 0 | K32: Epaisseur de dalle par défaut (m) | O32: Bureaux | P32: 8h-18h, L-V | Q32: 50
J33: 2.7 | K33: Hauteur sous plafond par défaut (m) | O33: Enseignement | P33: 8h-17h, L-V | Q33: 45
J34: 0 | K34: Epaisseur des murs (m) | O34: Santé | P34: 18h-8h L-V, Permanent le week-end | Q34: 118
J35: 0.87 | K35: Clair de jour des percements (%) | O35: Hôtellerie | P35: 18h-9h, L-D | Q35: 105
J36: 1 | K36: Coefficient de réduction des équipements spé
J37: =1.5*0.55 -> 0.825 | K37: Coefficient SEER Centralisée eau glacée | O37: Type de climatiseur | S37: Initial | T37: Final
J38: 0.6 | K38: Coefficient SEER Centralisée VRV | O38: Centralisée EG - Niveau de base | S38: =Données1!AR28 -> 3 | T38: =S38*Hypothèses!$J$37 -> 2.475
J39: 0.65 | K39: Coefficient SEER Climatisation Individuelle | O39: Centralisée EG - Performant | S39: =Données1!AR29 -> 3.25 | T39: =S39*Hypothèses!$J$37 -> 2.68125
O40: Centralisée EG - Très Performant | S40: =Données1!AR30 -> 3.6 | T40: =S40*Hypothèses!$J$37 -> 2.97
J41: Solener | K41: Mot de passe | O41: Centralisée DRV - Niveau de base | S41: =Données1!AS28 -> 5.75 | T41: =Hypothèses!$J$38*S41 -> 3.45
J42: FALSE | K42: Verrouillage | O42: Centralisée DRV - Performant | S42: =Données1!AS29 -> 6.55 | T42: =Hypothèses!$J$38*S42 -> 3.93
O43: Centralisée DRV - Très Performant | S43: =Données1!AS30 -> 7.5 | T43: =Hypothèses!$J$38*S43 -> 4.5
O44: Individuelle - Niveau de base | S44: =Données1!AT28 -> 6.3 | T44: =S44*Hypothèses!$J$39 -> 4.095
O45: Individuelle - Performant | S45: =Données1!AT29 -> 7.75 | T45: =S45*Hypothèses!$J$39 -> 5.0375
O46: Individuelle - Très Performant | S46: =Données1!AT30 -> 9.25 | T46: =S46*Hypothèses!$J$39 -> 6.0125
O47: SEER final | T47: =IF(Interface!D35="","",VLOOKUP(Interface!D35,Hypothèses!O38:T46,6,FALSE)) -> 3.93
O49: Typologie | P49: Logement | S49: Commerces | V49: Bureaux | Y49: Enseignement | AB49: Santé | AE49: Hôtellerie
O50: Niveau de consommation | P50: Niveau de base | Q50: Performant | R50: Très performant | S50: Niveau de base | T50: Performant | U50: Très performant | V50: Niveau de base | W50: Performant | X50: Très performant | Y50: Niveau de base | Z50: Performant | AA50: Très performant | AB50: Niveau de base | AC50: Performant | AD50: Très performant | AE50: Niveau de base | AF50: Performant | AG50: Très performant
O51: Climatisation | P51: 40 | Q51: 25 | R51: 5 | S51: 70 | T51: 40 | U51: 10 | V51: 80 | W51: 40 | X51: 10 | Y51: 40 | Z51: 25 | AA51: 10 | AB51: 100 | AC51: 45 | AD51: 15 | AE51: 40 | AF51: 25 | AG51: 10
O52: Brasseurs d'air | P52: 10 | Q52: 5 | R52: 2 | S52: 10 | T52: 5 | U52: 2 | V52: 8 | W52: 4 | X52: 2 | Y52: 15 | Z52: 7 | AA52: 3 | AB52: 8 | AC52: 4 | AD52: 2 | AE52: 12 | AF52: 6 | AG52: 2
O53: Ventilation | P53: 3 | Q53: 2 | R53: 1 | S53: 3 | T53: 2 | U53: 1 | V53: 3 | W53: 2 | X53: 1 | Y53: 5 | Z53: 3 | AA53: 1 | AB53: 5 | AC53: 3 | AD53: 1 | AE53: 3 | AF53: 2 | AG53: 1
O54: Eau chaude sanitaire | P54: 6 | Q54: 3 | R54: 1 | S54: 6 | T54: 3 | U54: 1 | V54: 6 | W54: 3 | X54: 1 | Y54: 6 | Z54: 3 | AA54: 1 | AB54: 10 | AC54: 5 | AD54: 2 | AE54: 10 | AF54: 5 | AG54: 2
O55: Eclairage intérieur | P55: 8 | Q55: 5 | R55: 3 | S55: 40 | T55: 20 | U55: 10 | V55: 15 | W55: 8 | X55: 4 | Y55: 15 | Z55: 8 | AA55: 4 | AB55: 19 | AC55: 12 | AD55: 5 | AE55: 8 | AF55: 5 | AG55: 3
O56: Eclairage extérieur | P56: 5 | Q56: 3 | R56: 1 | S56: 5 | T56: 3 | U56: 1 | V56: 5 | W56: 3 | X56: 1 | Y56: 5 | Z56: 3 | AA56: 1 | AB56: 5 | AC56: 3 | AD56: 1 | AE56: 5 | AF56: 3 | AG56: 1
O57: Bureautique | P57: 12 | Q57: 9 | R57: 5 | S57: 20 | T57: 12 | U57: 5 | V57: 40 | W57: 20 | X57: 10 | Y57: 20 | Z57: 12 | AA57: 5 | AB57: 15 | AC57: 11 | AD57: 6 | AE57: 9 | AF57: 6 | AG57: 3
O58: Froid alimentaire | P58: 45 | Q58: 25 | R58: 15 | S58: 35 | T58: 20 | U58: 7 | V58: 10 | W58: 5 | X58: 1 | Y58: 10 | Z58: 5 | AA58: 1 | AB58: 7 | AC58: 3 | AD58: 1 | AE58: 19 | AF58: 9 | AG58: 2
O59: Chaud alimentaire | P59: 7 | Q59: 5 | R59: 3 | S59: 6 | T59: 3 | U59: 1 | V59: 6 | W59: 3 | X59: 1 | Y59: 6 | Z59: 3 | AA59: 1 | AB59: 10 | AC59: 6 | AD59: 3 | AE59: 20 | AF59: 12 | AG59: 5
O60: Autres | P60: 12 | Q60: 9 | R60: 6 | S60: 10 | T60: 6 | U60: 2 | V60: 10 | W60: 6 | X60: 2 | Y60: 10 | Z60: 6 | AA60: 2 | AB60: 10 | AC60: 6 | AD60: 2 | AE60: 10 | AF60: 6 | AG60: 2
O61: Consommation (kWh/m² par an) | P61: =SUM(P51:P60) -> 148 | Q61: =SUM(Q51:Q60) -> 91 | R61: 42 | S61: 205 | T61: 114 | U61: 40 | V61: 183 | W61: 94 | X61: 33 | Y61: 132 | Z61: 75 | AA61: 29 | AB61: 189 | AC61: 98 | AD61: 38 | AE61: 136 | AF61: 79 | AG61: 31
O62: En kWh/m2 (pour 70 m²) | P62: =P61*70 -> 10360 | Q62: =Q61*70 -> 6370 | R62: 2940

Sheet Calculs (hidden)
A2: Surface par niveau (m²) | B2: =Surface/NombreNiveaux -> 1500 | E2: Surface de toiture (m²) | F2: =B4*B5 -> 1500 | H2: Nord | I2: =IF(Station=Données1!$J$5,HLOOKUP(FsMur,Hypothèses!$Y$14:$AC$23,J2,FALSE),IF(Station=Données1!$J$6,HLOOKUP(FsMur,Hypothèses!$Y$26:$AC$35,J2,FALSE))) -> 0.08 | J2: 2 | K2: Murs | L2: =IF(Station=Données1!$J$5,HLOOKUP(FsMur,Hypothèses!$AI$14:$AM$18,M2,FALSE),IF(Station=Données1!$J$6,HLOOKUP(FsMur,Hypothèses!$AI$26:$AM$30,M2,FALSE))) -> 1.8 | M2: 2
A3: Hauteur du bâtiment (m) | B3: =(Hypothèses!J32+Hypothèses!J33)*NombreNiveaux -> 5.4 | E3: Volume total (m3) | F3: =Surface*Hypothèses!J33 -> 8100 | H3: Est | I3: =IF(Station=Données1!$J$5,HLOOKUP(FsMur,Hypothèses!$Y$14:$AC$23,J3,FALSE),IF(Station=Données1!$J$6,HLOOKUP(FsMur,Hypothèses!$Y$26:$AC$35,J3,FALSE))) -> 0.06 | J3: 3 | K3: Toiture | L3: =IF(Station=Données1!$J$5,HLOOKUP(FsToiture,Hypothèses!$AI$14:$AM$18,M3,FALSE),IF(Station=Données1!$J$6,HLOOKUP(FsToiture,Hypothèses!$AI$26:$AM$30,M3,FALSE))) -> 0.45 | M3: 3
A4: Largeur du bâtiment ext (m) | B4: =SQRT(B2/RapportForme)+Hypothèses!J34 -> 20.70196678 | E4: Volume par niveau (m3) | F4: =B2*Hypothèses!J33 -> 4050 | H4: Sud | I4: =IF(Station=Données1!$J$5,HLOOKUP(FsMur,Hypothèses!$Y$14:$AC$23,J4,FALSE),IF(Station=Données1!$J$6,HLOOKUP(FsMur,Hypothèses!$Y$26:$AC$35,J4,FALSE))) -> 0.08 | J4: 4 | K4: Vitrages | L4: =IF(Station=Données1!$J$5,HLOOKUP(FsBaie,Hypothèses!$AI$14:$AM$18,M4,FALSE),IF(Station=Données1!$J$6,HLOOKUP(FsBaie,Hypothèses!$AI$26:$AM$30,M4,FALSE))) -> 5 | M4: 4
A5: Longueur ext du bâtiment (m) | B5: =SQRT(B2*RapportForme)+Hypothèses!J34 -> 72.45688373 | E5: Surface totale de vitrage (m²) | F5: =TauxPercement*Surface*Hypothèses!J35 -> 522 | H5: Ouest | I5: =IF(Station=Données1!$J$5,HLOOKUP(FsMur,Hypothèses!$Y$14:$AC$23,J5,FALSE),IF(Station=Données1!$J$6,HLOOKUP(FsMur,Hypothèses!$Y$26:$AC$35,J5,FALSE))) -> 0.06 | J5: 5 | K5: So | L5: =IF(Station=Données1!$J$5,HLOOKUP(FsBaie,Hypothèses!$AI$14:$AM$18,M5,FALSE),IF(Station=Données1!$J$6,HLOOKUP(FsBaie,Hypothèses!$AI$26:$AM$30,M5,FALSE))) -> 0.7 | M5: 5
H6: Nord-Est | I6: =IF(Station=Données1!$J$5,HLOOKUP(FsMur,Hypothèses!$Y$14:$AC$23,J6,FALSE),IF(Station=Données1!$J$6,HLOOKUP(FsMur,Hypothèses!$Y$26:$AC$35,J6,FALSE))) -> 0.07 | J6: 6
A7: Orientation | B7: =IF(Orientation="Nord / Sud","Nord",IF(Orientation="Nord-Est / Sud-Ouest","Nord-Est",IF(Orientation="Est / Ouest","Est","Nord-Ouest"))) -> Est | C7: =IF(Orientation="Nord / Sud","Est",IF(Orientation="Nord-Est / Sud-Ouest","Sud-Est",IF(Orientation="Est / Ouest","Sud","Nord-Est"))) -> Sud | D7: =IF(Orientation="Nord / Sud","Sud",IF(Orientation="Nord-Est / Sud-Ouest","Sud-Ouest",IF(Orientation="Est / Ouest","Ouest","Sud-Est"))) -> Ouest | E7: =IF(Orientation="Nord / Sud","Ouest",IF(Orientation="Nord-Est / Sud-Ouest","Nord-Ouest",IF(Orientation="Est / Ouest","Nord","Sud-Ouest"))) -> Nord | H7: Nord-Ouest | I7: =IF(Station=Données1!$J$5,HLOOKUP(FsMur,Hypothèses!$Y$14:$AC$23,J7,FALSE),IF(Station=Données1!$J$6,HLOOKUP(FsMur,Hypothèses!$Y$26:$AC$35,J7,FALSE))) -> 0.07 | J7: 7
A8: Surface totale ext (m²) | B8: =Calculs!$B$5*Calculs!$B$3 -> 391.2671721 | C8: =Calculs!$B$4*Calculs!$B$3 -> 111.7906206 | D8: =Calculs!$B$5*Calculs!$B$3 -> 391.2671721 | E8: =Calculs!$B$4*Calculs!$B$3 -> 111.7906206 | F8: =SUM(B8:E8) -> 1006.115586 | H8: Sud-Ouest | I8: =IF(Station=Données1!$J$5,HLOOKUP(FsMur,Hypothèses!$Y$14:$AC$23,J8,FALSE),IF(Station=Données1!$J$6,HLOOKUP(FsMur,Hypothèses!$Y$26:$AC$35,J8,FALSE))) -> 0.07 | J8: 8
A9: Surface totale int (m²) | B9: =Hypothèses!$J$33*Calculs!$B$5*NombreNiveaux -> 391.2671721 | C9: =Hypothèses!$J$33*Calculs!$B$4*NombreNiveaux -> 111.7906206 | D9: =Hypothèses!$J$33*Calculs!$B$5*NombreNiveaux -> 391.2671721 | E9: =Hypothèses!$J$33*Calculs!$B$4*NombreNiveaux -> 111.7906206 | F9: =SUM(B9:E9) -> 1006.115586 | H9: Sud-Est | I9: =IF(Station=Données1!$J$5,HLOOKUP(FsMur,Hypothèses!$Y$14:$AC$23,J9,FALSE),IF(Station=Données1!$J$6,HLOOKUP(FsMur,Hypothèses!$Y$26:$AC$35,J9,FALSE))) -> 0.07 | J9: 9
A10: Surface percement (m²) | B10: =Calculs!$F$5*(B8/$F$8) -> 203 | C10: =Calculs!$F$5*(C8/$F$8) -> 58 | D10: =Calculs!$F$5*(D8/$F$8) -> 203 | E10: =Calculs!$F$5*(E8/$F$8) -> 58 | F10: 522 | H10: Toiture | I10: =IF(Station=Données1!$J$5,HLOOKUP(FsToiture,Hypothèses!$Y$14:$AC$23,J10,FALSE),IF(Station=Données1!$J$6,HLOOKUP(FsToiture,Hypothèses!$Y$26:$AC$35,J10,FALSE))) -> 0.015 | J10: 10
A11: Surface châssis (m²) | B11: =B10*(1-Hypothèses!$J$35) -> 26.39 | C11: =C10*(1-Hypothèses!$J$35) -> 7.54 | D11: =D10*(1-Hypothèses!$J$35) -> 26.39 | E11: =E10*(1-Hypothèses!$J$35) -> 7.54 | F11: 67.86
A12: Surface vitrage (m²) | B12: =B10*Hypothèses!$J$35 -> 176.61 | C12: =C10*Hypothèses!$J$35 -> 50.46 | D12: =D10*Hypothèses!$J$35 -> 176.61 | E12: =E10*Hypothèses!$J$35 -> 50.46 | F12: 454.14 | H12: Nord | I12: =IF(Station=Données1!$J$5,HLOOKUP(FsBaie,Hypothèses!$AD$14:$AH$22,J12,FALSE),IF(Station=Données1!$J$6,HLOOKUP(FsBaie,Hypothèses!$AD$26:$AH$34,J12,FALSE))) -> 0.6 | J12: 2
A13: Surface opaque (m²) | B13: =B8-B10 -> 188.2671721 | C13: =C8-C10 -> 53.79062061 | D13: =D8-D10 -> 188.2671721 | E13: =E8-E10 -> 53.79062061 | F13: 484.1155855 | H13: Est | I13: =IF(Station=Données1!$J$5,HLOOKUP(FsBaie,Hypothèses!$AD$14:$AH$22,J13,FALSE),IF(Station=Données1!$J$6,HLOOKUP(FsBaie,Hypothèses!$AD$26:$AH$34,J13,FALSE))) -> 0.4 | J13: 3
A14: Surface vitrée (%) | B14: =B12/B8 -> 0.4513795498 | C14: =C12/C8 -> 0.4513795498 | D14: =D12/D8 -> 0.4513795498 | E14: =E12/E8 -> 0.4513795498 | H14: Sud | I14: =IF(Station=Données1!$J$5,HLOOKUP(FsBaie,Hypothèses!$AD$14:$AH$22,J14,FALSE),IF(Station=Données1!$J$6,HLOOKUP(FsBaie,Hypothèses!$AD$26:$AH$34,J14,FALSE))) -> 0.6 | J14: 4
H15: Ouest | I15: =IF(Station=Données1!$J$5,HLOOKUP(FsBaie,Hypothèses!$AD$14:$AH$22,J15,FALSE),IF(Station=Données1!$J$6,HLOOKUP(FsBaie,Hypothèses!$AD$26:$AH$34,J15,FALSE))) -> 0.4 | J15: 5
B16: Apports solaire vitrage | H16: Nord-Est | I16: =IF(Station=Données1!$J$5,HLOOKUP(FsBaie,Hypothèses!$AD$14:$AH$22,J16,FALSE),IF(Station=Données1!$J$6,HLOOKUP(FsBaie,Hypothèses!$AD$26:$AH$34,J16,FALSE))) -> 0.5 | J16: 6
H17: Nord-Ouest | I17: =IF(Station=Données1!$J$5,HLOOKUP(FsBaie,Hypothèses!$AD$14:$AH$22,J17,FALSE),IF(Station=Données1!$J$6,HLOOKUP(FsBaie,Hypothèses!$AD$26:$AH$34,J17,FALSE))) -> 0.5 | J17: 7
B18: Surface développée de paroi opaque (m²) | C18: =C44+2*C45 -> 3484.115586 | E18: Transmission vitrage | F18: =Hypothèses!J27 -> 0.87 | H18: Sud-Ouest | I18: =IF(Station=Données1!$J$5,HLOOKUP(FsBaie,Hypothèses!$AD$14:$AH$22,J18,FALSE),IF(Station=Données1!$J$6,HLOOKUP(FsBaie,Hypothèses!$AD$26:$AH$34,J18,FALSE))) -> 0.5 | J18: 8
H19: Sud-Est | I19: =IF(Station=Données1!$J$5,HLOOKUP(FsBaie,Hypothèses!$AD$14:$AH$22,J19,FALSE),IF(Station=Données1!$J$6,HLOOKUP(FsBaie,Hypothèses!$AD$26:$AH$34,J19,FALSE))) -> 0.5 | J19: 9
C20: 1 | D20: 2 | E20: 3 | F20: 4
C21: =Calculs!$B$7 -> Est | D21: =Calculs!$C$7 -> Sud | E21: =Calculs!$D$7 -> Ouest | F21: =Calculs!$E$7 -> Nord | G21: Total
B22: Surface vitrage (m²) | C22: =B10 -> 203 | D22: =C10 -> 58 | E22: 203 | F22: 58 | G22: =C43 -> 522
B23: Facteur solaire | C23: =VLOOKUP(C$21,$H$12:$I$19,2,FALSE) -> 0.4 | D23: =VLOOKUP(D$21,$H$12:$I$19,2,FALSE) -> 0.6 | E23: =VLOOKUP(E$21,$H$12:$I$19,2,FALSE) -> 0.4 | F23: 0.6 | I23: Ressort par les vitrages | J23: Atterit sur les PO | K23: Ressort par les PO | L23: Final
C24: =Calculs!$B$7 -> Est | D24: =Calculs!$C$7 -> Sud | E24: =Calculs!$D$7 -> Ouest | F24: =Calculs!$E$7 -> Nord | G24: Total (kWh)
B25: Janvier | C25: =(Données1!AS100*$C$23^4+Données1!AT100*$C$23^3+Données1!AU100*$C$23^2+Données1!AV100*$C$23+Données1!AW100)*Données1!AK31*C$22 -> 2700263.772 | D25: =(Données1!AX100*$D$23^4+Données1!AY100*$D$23^3+Données1!AZ100*$D$23^2+Données1!BA100*$D$23+Données1!BB100)*Données1!AL31*D$22 -> 1798786.802 | E25: =(Données1!BC100*$E$23^4+Données1!BD100*$E$23^3+Données1!BE100*$E$23^2+Données1!BF100*$E$23+Données1!BG100)*Données1!AM31*E$22 -> 2560604.182 | F25: =(Données1!BH100*$F$23^4+Données1!BI100*$F$23^3+Données1!BJ100*$F$23^2+Données1!BK100*$F$23+Données1!BL100)*Données1!AN31*F$22 -> 912976.0914 | G25: =SUM(C25:F25)/1000 -> 7972.630848 | I25: =G25*($G$22/$C$18)*Hypothèses!$J$27 -> 1039.199327 | J25: =G25-I25 -> 6933.43152 | K25: =J25*1*$C$47/8 -> 1352.648786 | L25: =G25-K25-I25 -> 5580.782734
B26: Février | C26: =(Données1!AS101*$C$23^4+Données1!AT101*$C$23^3+Données1!AU101*$C$23^2+Données1!AV101*$C$23+Données1!AW101)*Données1!AK32*C$22 -> 2550882.708 | D26: =(Données1!AX101*$D$23^4+Données1!AY101*$D$23^3+Données1!AZ101*$D$23^2+Données1!BA101*$D$23+Données1!BB101)*Données1!AL32*D$22 -> 1354579.563 | E26: =(Données1!BC101*$E$23^4+Données1!BD101*$E$23^3+Données1!BE101*$E$23^2+Données1!BF101*$E$23+Données1!BG101)*Données1!AM32*E$22 -> 2388178.128 | F26: =(Données1!BH101*$F$23^4+Données1!BI101*$F$23^3+Données1!BJ101*$F$23^2+Données1!BK101*$F$23+Données1!BL101)*Données1!AN32*F$22 -> 866509.2694 | G26: 7160.149669 | I26: =G26*$G$22/$C$18*Hypothèses!$J$27 -> 933.2957793 | J26: 6226.853889 | K26: 1214.801982 | L26: 5012.051907
B27: Mars | C27: =(Données1!AS102*$C$23^4+Données1!AT102*$C$23^3+Données1!AU102*$C$23^2+Données1!AV102*$C$23+Données1!AW102)*Données1!AK33*C$22 -> 2922942.83 | D27: =(Données1!AX102*$D$23^4+Données1!AY102*$D$23^3+Données1!AZ102*$D$23^2+Données1!BA102*$D$23+Données1!BB102)*Données1!AL33*D$22 -> 1027274.964 | E27: =(Données1!BC102*$E$23^4+Données1!BD102*$E$23^3+Données1!BE102*$E$23^2+Données1!BF102*$E$23+Données1!BG102)*Données1!AM33*E$22 -> 2915314.319 | F27: =(Données1!BH102*$F$23^4+Données1!BI102*$F$23^3+Données1!BJ102*$F$23^2+Données1!BK102*$F$23+Données1!BL102)*Données1!AN33*F$22 -> 934150.7255 | G27: 7799.682839 | I27: =G27*$G$22/$C$18*Hypothèses!$J$27 -> 1016.656273 | J27: 6783.026566 | K27: 1323.306161 | L27: 5459.720405
B28: Avril | C28: =(Données1!AS103*$C$23^4+Données1!AT103*$C$23^3+Données1!AU103*$C$23^2+Données1!AV103*$C$23+Données1!AW103)*Données1!AK34*C$22 -> 2761220.509 | D28: =(Données1!AX103*$D$23^4+Données1!AY103*$D$23^3+Données1!AZ103*$D$23^2+Données1!BA103*$D$23+Données1!BB103)*Données1!AL34*D$22 -> 969422.3385 | E28: =(Données1!BC103*$E$23^4+Données1!BD103*$E$23^3+Données1!BE103*$E$23^2+Données1!BF103*$E$23+Données1!BG103)*Données1!AM34*E$22 -> 2886994.976 | F28: =(Données1!BH103*$F$23^4+Données1!BI103*$F$23^3+Données1!BJ103*$F$23^2+Données1!BK103*$F$23+Données1!BL103)*Données1!AN34*F$22 -> 1106564.37 | G28: 7724.202194 | I28: =G28*$G$22/$C$18*Hypothèses!$J$27 -> 1006.817684 | J28: 6717.38451 | K28: 1310.499999 | L28: 5406.884511
B29: Mai | C29: =(Données1!AS104*$C$23^4+Données1!AT104*$C$23^3+Données1!AU104*$C$23^2+Données1!AV104*$C$23+Données1!AW104)*Données1!AK35*C$22 -> 2722950.516 | D29: =(Données1!AX104*$D$23^4+Données1!AY104*$D$23^3+Données1!AZ104*$D$23^2+Données1!BA104*$D$23+Données1!BB104)*Données1!AL35*D$22 -> 886483.748 | E29: =(Données1!BC104*$E$23^4+Données1!BD104*$E$23^3+Données1!BE104*$E$23^2+Données1!BF104*$E$23+Données1!BG104)*Données1!AM35*E$22 -> 2713542.162 | F29: =(Données1!BH104*$F$23^4+Données1!BI104*$F$23^3+Données1!BJ104*$F$23^2+Données1!BK104*$F$23+Données1!BL104)*Données1!AN35*F$22 -> 1500120.855 | G29: 7823.097281 | I29: =G29*$G$22/$C$18*Hypothèses!$J$27 -> 1019.708248 | J29: 6803.389033 | K29: 1327.278691 | L29: 5476.110342
B30: Juin | C30: =(Données1!AS105*$C$23^4+Données1!AT105*$C$23^3+Données1!AU105*$C$23^2+Données1!AV105*$C$23+Données1!AW105)*Données1!AK36*C$22 -> 2872858.093 | D30: =(Données1!AX105*$D$23^4+Données1!AY105*$D$23^3+Données1!AZ105*$D$23^2+Données1!BA105*$D$23+Données1!BB105)*Données1!AL36*D$22 -> 941594.2498 | E30: =(Données1!BC105*$E$23^4+Données1!BD105*$E$23^3+Données1!BE105*$E$23^2+Données1!BF105*$E$23+Données1!BG105)*Données1!AM36*E$22 -> 2718776.736 | F30: =(Données1!BH105*$F$23^4+Données1!BI105*$F$23^3+Données1!BJ105*$F$23^2+Données1!BK105*$F$23+Données1!BL105)*Données1!AN36*F$22 -> 1796568.995 | G30: 8329.798073 | I30: =G30*$G$22/$C$18*Hypothèses!$J$27 -> 1085.754592 | J30: 7244.043481 | K30: 1413.246325 | L30: 5830.797156
B31: Juillet | C31: =(Données1!AS106*$C$23^4+Données1!AT106*$C$23^3+Données1!AU106*$C$23^2+Données1!AV106*$C$23+Données1!AW106)*Données1!AK37*C$22 -> 3230061.207 | D31: =(Données1!AX106*$D$23^4+Données1!AY106*$D$23^3+Données1!AZ106*$D$23^2+Données1!BA106*$D$23+Données1!BB106)*Données1!AL37*D$22 -> 986393.398 | E31: =(Données1!BC106*$E$23^4+Données1!BD106*$E$23^3+Données1!BE106*$E$23^2+Données1!BF106*$E$23+Données1!BG106)*Données1!AM37*E$22 -> 3164435.07 | F31: =(Données1!BH106*$F$23^4+Données1!BI106*$F$23^3+Données1!BJ106*$F$23^2+Données1!BK106*$F$23+Données1!BL106)*Données1!AN37*F$22 -> 1904434.624 | G31: 9285.324299 | I31: =G31*$G$22/$C$18*Hypothèses!$J$27 -> 1210.303468 | J31: 8075.02083 | K31: 1575.362371 | L31: 6499.658459
B32: Août | C32: =(Données1!AS107*$C$23^4+Données1!AT107*$C$23^3+Données1!AU107*$C$23^2+Données1!AV107*$C$23+Données1!AW107)*Données1!AK38*C$22 -> 3661482.888 | D32: =(Données1!AX107*$D$23^4+Données1!AY107*$D$23^3+Données1!AZ107*$D$23^2+Données1!BA107*$D$23+Données1!BB107)*Données1!AL38*D$22 -> 1056778.031 | E32: =(Données1!BC107*$E$23^4+Données1!BD107*$E$23^3+Données1!BE107*$E$23^2+Données1!BF107*$E$23+Données1!BG107)*Données1!AM38*E$22 -> 3457104.96 | F32: =(Données1!BH107*$F$23^4+Données1!BI107*$F$23^3+Données1!BJ107*$F$23^2+Données1!BK107*$F$23+Données1!BL107)*Données1!AN38*F$22 -> 1539690.27 | G32: 9715.056149 | I32: =G32*$G$22/$C$18*Hypothèses!$J$27 -> 1266.317231 | J32: 8448.738918 | K32: 1648.271337 | L32: 6800.467581
B33: Septembre | C33: =(Données1!AS108*$C$23^4+Données1!AT108*$C$23^3+Données1!AU108*$C$23^2+Données1!AV108*$C$23+Données1!AW108)*Données1!AK39*C$22 -> 3815111.727 | D33: =(Données1!AX108*$D$23^4+Données1!AY108*$D$23^3+Données1!AZ108*$D$23^2+Données1!BA108*$D$23+Données1!BB108)*Données1!AL39*D$22 -> 1082046.477 | E33: =(Données1!BC108*$E$23^4+Données1!BD108*$E$23^3+Données1!BE108*$E$23^2+Données1!BF108*$E$23+Données1!BG108)*Données1!AM39*E$22 -> 3783764.91 | F33: =(Données1!BH108*$F$23^4+Données1!BI108*$F$23^3+Données1!BJ108*$F$23^2+Données1!BK108*$F$23+Données1!BL108)*Données1!AN39*F$22 -> 1049766.812 | G33: 9730.689926 | I33: =G33*$G$22/$C$18*Hypothèses!$J$27 -> 1268.355029 | J33: 8462.334898 | K33: 1650.923787 | L33: 6811.41111
B34: Octobre | C34: =(Données1!AS109*$C$23^4+Données1!AT109*$C$23^3+Données1!AU109*$C$23^2+Données1!AV109*$C$23+Données1!AW109)*Données1!AK40*C$22 -> 3699244.122 | D34: =(Données1!AX109*$D$23^4+Données1!AY109*$D$23^3+Données1!AZ109*$D$23^2+Données1!BA109*$D$23+Données1!BB109)*Données1!AL40*D$22 -> 1713604.377 | E34: =(Données1!BC109*$E$23^4+Données1!BD109*$E$23^3+Données1!BE109*$E$23^2+Données1!BF109*$E$23+Données1!BG109)*Données1!AM40*E$22 -> 4125352.942 | F34: =(Données1!BH109*$F$23^4+Données1!BI109*$F$23^3+Données1!BJ109*$F$23^2+Données1!BK109*$F$23+Données1!BL109)*Données1!AN40*F$22 -> 1055646.074 | G34: 10593.84752 | I34: =G34*$G$22/$C$18*Hypothèses!$J$27 -> 1380.864036 | J34: 9212.983479 | K34: 1797.368429 | L34: 7415.61505
B35: Novembre | C35: =(Données1!AS110*$C$23^4+Données1!AT110*$C$23^3+Données1!AU110*$C$23^2+Données1!AV110*$C$23+Données1!AW110)*Données1!AK41*C$22 -> 3280828.528 | D35: =(Données1!AX110*$D$23^4+Données1!AY110*$D$23^3+Données1!AZ110*$D$23^2+Données1!BA110*$D$23+Données1!BB110)*Données1!AL41*D$22 -> 2273770.802 | E35: =(Données1!BC110*$E$23^4+Données1!BD110*$E$23^3+Données1!BE110*$E$23^2+Données1!BF110*$E$23+Données1!BG110)*Données1!AM41*E$22 -> 3730753.872 | F35: =(Données1!BH110*$F$23^4+Données1!BI110*$F$23^3+Données1!BJ110*$F$23^2+Données1!BK110*$F$23+Données1!BL110)*Données1!AN41*F$22 -> 949376.5827 | G35: 10234.72979 | I35: =G35*$G$22/$C$18*Hypothèses!$J$27 -> 1334.054531 | J35: 8900.675254 | K35: 1736.439963 | L35: 7164.23529
B36: Décembre | C36: =(Données1!AS111*$C$23^4+Données1!AT111*$C$23^3+Données1!AU111*$C$23^2+Données1!AV111*$C$23+Données1!AW111)*Données1!AK42*C$22 -> 2914399.019 | D36: =(Données1!AX111*$D$23^4+Données1!AY111*$D$23^3+Données1!AZ111*$D$23^2+Données1!BA111*$D$23+Données1!BB111)*Données1!AL42*D$22 -> 2178474.523 | E36: =(Données1!BC111*$E$23^4+Données1!BD111*$E$23^3+Données1!BE111*$E$23^2+Données1!BF111*$E$23+Données1!BG111)*Données1!AM42*E$22 -> 2961307.373 | F36: =(Données1!BH111*$F$23^4+Données1!BI111*$F$23^3+Données1!BJ111*$F$23^2+Données1!BK111*$F$23+Données1!BL111)*Données1!AN42*F$22 -> 938917.5505 | G36: 8993.098465 | I36: =G36*$G$22/$C$18*Hypothèses!$J$27 -> 1172.213044 | J36: 7820.88542 | K36: 1525.782888 | L36: 6295.102533
G37: =SUM(G25:G36) -> 105362.307 | I37: =SUM(I25:I36) -> 13733.53924 | J37: =SUM(J25:J36) -> 91628.7678 | K37: =SUM(K25:K36) -> 17875.93072 | L37: =SUM(L25:L36) -> 73752.83708
B39: Apport conduction enveloppe | I39: 20 | K39: 21 | M39: 22 | O39: 23 | Q39: 24 | S39: 25 | U39: 26
I40: Climatisation | K40: Climatisation | M40: Climatisation | O40: Climatisation | Q40: Climatisation | S40: Climatisation | U40: Climatisation
I41: Brut | J41: Net | K41: Brut | L41: Net | M41: Brut | N41: Net | O41: Brut | P41: Net | Q41: Brut | R41: Net | S41: Brut | T41: Net | U41: Brut | V41: Net
H42: Janvier | I42: =$C$47*SUM($C$43:$C$45)*(Données1!F181-$I$39)*24*VMOIS(H42)/1000 -> 20853.22559 | J42: =I42*(1-(5.5/8)*($C$47/8)) -> 18056.2881 | K42: =$C$47*SUM($C$43:$C$45)*(Données1!F181-$K$39)*24*VMOIS(H42)/1000 -> 17943.17301 | L42: =K42*(1-(5.5/8)*($C$47/8)) -> 15536.54613 | M42: =$C$47*SUM($C$43:$C$45)*(Données1!F181-$M$39)*24*VMOIS(H42)/1000 -> 15033.12043 | N42: =M42*(1-(5.5/8)*($C$47/8)) -> 13016.80415 | O42: =$C$47*SUM($C$43:$C$45)*(Données1!F181-$O$39)*24*VMOIS(H42)/1000 -> 12123.06785 | P42: =O42*(1-(5.5/8)*($C$47/8)) -> 10497.06218 | Q42: =$C$47*SUM($C$43:$C$45)*(Données1!F181-$Q$39)*24*VMOIS(H42)/1000 -> 9213.015263 | R42: =Q42*(1-(5.5/8)*($C$47/8)) -> 7977.320205 | S42: =$C$47*SUM($C$43:$C$45)*(Données1!F181-$S$39)*24*VMOIS(H42)/1000 -> 6302.96268 | T42: =S42*(1-(5.5/8)*($C$47/8)) -> 5457.578231 | U42: =$C$47*SUM($C$43:$C$45)*(Données1!F181-$U$39)*24*VMOIS(H42)/1000 -> 3392.910098 | V42: =U42*(1-(5.5/8)*($C$47/8)) -> 2937.836257
B43: Surface vitrage (m²) | C43: =SUM(C22:F22) -> 522 | D43: Uw (avec Rse et Rsi) | F43: =Calculs!L4 -> 5 | H43: Février | I43: =$C$47*SUM($C$43:$C$45)*(Données1!F182-$I$39)*24*VMOIS(H43)/1000 -> 18665.35693 | J43: 16161.86717 | K43: =$C$47*SUM($C$43:$C$45)*(Données1!F182-$K$39)*24*VMOIS(H43)/1000 -> 16036.92234 | L43: 13885.9712 | M43: =$C$47*SUM($C$43:$C$45)*(Données1!F182-$M$39)*24*VMOIS(H43)/1000 -> 13408.48775 | N43: 11610.07522 | O43: =$C$47*SUM($C$43:$C$45)*(Données1!F182-$O$39)*24*VMOIS(H43)/1000 -> 10780.05315 | P43: 9334.179244 | Q43: =$C$47*SUM($C$43:$C$45)*(Données1!F182-$Q$39)*24*VMOIS(H43)/1000 -> 8151.618564 | R43: 7058.283268 | S43: =$C$47*SUM($C$43:$C$45)*(Données1!F182-$S$39)*24*VMOIS(H43)/1000 -> 5523.183973 | T43: 4782.387291 | U43: =$C$47*SUM($C$43:$C$45)*(Données1!F182-$U$39)*24*VMOIS(H43)/1000 -> 2894.749383 | V43: 2506.491315
B44: Surface murs opaques (m²) | C44: =Calculs!F13 -> 484.1155855 | D44: U_murs (sans Rse et Rsi) | F44: =Calculs!L2 -> 1.8 | H44: Mars | I44: =$C$47*SUM($C$43:$C$45)*(Données1!F183-$I$39)*24*VMOIS(H44)/1000 -> 20747.2766 | J44: 17964.54951 | K44: =$C$47*SUM($C$43:$C$45)*(Données1!F183-$K$39)*24*VMOIS(H44)/1000 -> 17837.22402 | L44: 15444.80754 | M44: =$C$47*SUM($C$43:$C$45)*(Données1!F183-$M$39)*24*VMOIS(H44)/1000 -> 14927.17144 | N44: 12925.06556 | O44: =$C$47*SUM($C$43:$C$45)*(Données1!F183-$O$39)*24*VMOIS(H44)/1000 -> 12017.11885 | P44: 10405.32359 | Q44: =$C$47*SUM($C$43:$C$45)*(Données1!F183-$Q$39)*24*VMOIS(H44)/1000 -> 9107.066272 | R44: 7885.581615 | S44: =$C$47*SUM($C$43:$C$45)*(Données1!F183-$S$39)*24*VMOIS(H44)/1000 -> 6197.013689 | T44: 5365.839641 | U44: =$C$47*SUM($C$43:$C$45)*(Données1!F183-$U$39)*24*VMOIS(H44)/1000 -> 3286.961107 | V44: 2846.097667
B45: Surface toit (m²) | C45: =F2 -> 1500 | D45: U_toit (sans Rse et Rsi) | F45: =Calculs!L3 -> 0.45 | H45: Avril | I45: =$C$47*SUM($C$43:$C$45)*(Données1!F184-$I$39)*24*VMOIS(H45)/1000 -> 20735.88476 | J45: 17954.6856 | K45: =$C$47*SUM($C$43:$C$45)*(Données1!F184-$K$39)*24*VMOIS(H45)/1000 -> 17919.70484 | L45: 15516.22563 | M45: =$C$47*SUM($C$43:$C$45)*(Données1!F184-$M$39)*24*VMOIS(H45)/1000 -> 15103.52493 | N45: 13077.76565 | O45: =$C$47*SUM($C$43:$C$45)*(Données1!F184-$O$39)*24*VMOIS(H45)/1000 -> 12287.34501 | P45: 10639.30568 | Q45: =$C$47*SUM($C$43:$C$45)*(Données1!F184-$Q$39)*24*VMOIS(H45)/1000 -> 9471.165089 | R45: 8200.845703 | S45: =$C$47*SUM($C$43:$C$45)*(Données1!F184-$S$39)*24*VMOIS(H45)/1000 -> 6654.98517 | T45: 5762.385728 | U45: =$C$47*SUM($C$43:$C$45)*(Données1!F184-$U$39)*24*VMOIS(H45)/1000 -> 3838.805252 | V45: 3323.925753
H46: Mai | I46: =$C$47*SUM($C$43:$C$45)*(Données1!F185-$I$39)*24*VMOIS(H46)/1000 -> 22883.36863 | J46: 19814.13834 | K46: =$C$47*SUM($C$43:$C$45)*(Données1!F185-$K$39)*24*VMOIS(H46)/1000 -> 19973.31604 | L46: 17294.39636 | M46: =$C$47*SUM($C$43:$C$45)*(Données1!F185-$M$39)*24*VMOIS(H46)/1000 -> 17063.26346 | N46: 14774.65439 | O46: =$C$47*SUM($C$43:$C$45)*(Données1!F185-$O$39)*24*VMOIS(H46)/1000 -> 14153.21088 | P46: 12254.91241 | Q46: =$C$47*SUM($C$43:$C$45)*(Données1!F185-$Q$39)*24*VMOIS(H46)/1000 -> 11243.1583 | R46: 9735.17044 | S46: =$C$47*SUM($C$43:$C$45)*(Données1!F185-$S$39)*24*VMOIS(H46)/1000 -> 8333.105714 | T46: 7215.428466 | U46: =$C$47*SUM($C$43:$C$45)*(Données1!F185-$U$39)*24*VMOIS(H46)/1000 -> 5423.053132 | V46: 4695.686492
B47: U bat moyen (W/m²,K) | C47: =(C43*F47+C44*F48+C45*F49)/SUM(C43:C45) -> 1.560726497 | D47: Uw (avec Rse et Rsi) | F47: =F43 -> 5 | H47: Juin | I47: =$C$47*SUM($C$43:$C$45)*(Données1!F186-$I$39)*24*VMOIS(H47)/1000 -> 19478.82223 | J47: 16866.2265 | K47: =$C$47*SUM($C$43:$C$45)*(Données1!F186-$K$39)*24*VMOIS(H47)/1000 -> 16662.64231 | L47: 14427.76652 | M47: =$C$47*SUM($C$43:$C$45)*(Données1!F186-$M$39)*24*VMOIS(H47)/1000 -> 13846.46239 | N47: 11989.30655 | O47: =$C$47*SUM($C$43:$C$45)*(Données1!F186-$O$39)*24*VMOIS(H47)/1000 -> 11030.28247 | P47: 9550.846573 | Q47: =$C$47*SUM($C$43:$C$45)*(Données1!F186-$Q$39)*24*VMOIS(H47)/1000 -> 8214.102556 | R47: 7112.386598 | S47: =$C$47*SUM($C$43:$C$45)*(Données1!F186-$S$39)*24*VMOIS(H47)/1000 -> 5397.922637 | T47: 4673.926624 | U47: =$C$47*SUM($C$43:$C$45)*(Données1!F186-$U$39)*24*VMOIS(H47)/1000 -> 2581.742719 | V47: 2235.466649
B48: U bat parois opaques (W/m²,K) | C48: =(Calculs!C44*Calculs!F48+Calculs!C45*Calculs!F49)/(Calculs!C44+Calculs!C45) -> 0.655889711 | D48: U_murs (avec Rse et Rsi) | F48: =1/(1/F44+1/F76+1/F75) -> 1.387446558 | H48: Juillet | I48: =$C$47*SUM($C$43:$C$45)*(Données1!F187-$I$39)*24*VMOIS(H48)/1000 -> 21396.7092 | J48: 18526.87701 | K48: =$C$47*SUM($C$43:$C$45)*(Données1!F187-$K$39)*24*VMOIS(H48)/1000 -> 18486.65662 | L48: 16007.13503 | M48: =$C$47*SUM($C$43:$C$45)*(Données1!F187-$M$39)*24*VMOIS(H48)/1000 -> 15576.60404 | N48: 13487.39306 | O48: =$C$47*SUM($C$43:$C$45)*(Données1!F187-$O$39)*24*VMOIS(H48)/1000 -> 12666.55146 | P48: 10967.65109 | Q48: =$C$47*SUM($C$43:$C$45)*(Données1!F187-$Q$39)*24*VMOIS(H48)/1000 -> 9756.498874 | R48: 8447.909113 | S48: =$C$47*SUM($C$43:$C$45)*(Données1!F187-$S$39)*24*VMOIS(H48)/1000 -> 6846.446291 | T48: 5928.167139 | U48: =$C$47*SUM($C$43:$C$45)*(Données1!F187-$U$39)*24*VMOIS(H48)/1000 -> 3936.393708 | V48: 3408.425165
D49: U_toit (avec Rse et Rsi) | F49: =1/(1/F45+1/F79+1/F78) -> 0.4197843301 | H49: Août | I49: =$C$47*SUM($C$43:$C$45)*(Données1!F188-$I$39)*24*VMOIS(H49)/1000 -> 23203.46463 | J49: 20091.30149 | K49: =$C$47*SUM($C$43:$C$45)*(Données1!F188-$K$39)*24*VMOIS(H49)/1000 -> 20293.41205 | L49: 17571.55951 | M49: =$C$47*SUM($C$43:$C$45)*(Données1!F188-$M$39)*24*VMOIS(H49)/1000 -> 17383.35947 | N49: 15051.81754 | O49: =$C$47*SUM($C$43:$C$45)*(Données1!F188-$O$39)*24*VMOIS(H49)/1000 -> 14473.30689 | P49: 12532.07556 | Q49: =$C$47*SUM($C$43:$C$45)*(Données1!F188-$Q$39)*24*VMOIS(H49)/1000 -> 11563.2543 | R49: 10012.33359 | S49: =$C$47*SUM($C$43:$C$45)*(Données1!F188-$S$39)*24*VMOIS(H49)/1000 -> 8653.20172 | T49: 7492.591616 | U49: =$C$47*SUM($C$43:$C$45)*(Données1!F188-$U$39)*24*VMOIS(H49)/1000 -> 5743.149137 | V49: 4972.849642
H50: Septembre | I50: =$C$47*SUM($C$43:$C$45)*(Données1!F189-$I$39)*24*VMOIS(H50)/1000 -> 22746.56878 | J50: 19695.68676 | K50: =$C$47*SUM($C$43:$C$45)*(Données1!F189-$K$39)*24*VMOIS(H50)/1000 -> 19930.38886 | L50: 17257.22678 | M50: =$C$47*SUM($C$43:$C$45)*(Données1!F189-$M$39)*24*VMOIS(H50)/1000 -> 17114.20894 | N50: 14818.76681 | O50: =$C$47*SUM($C$43:$C$45)*(Données1!F189-$O$39)*24*VMOIS(H50)/1000 -> 14298.02902 | P50: 12380.30683 | Q50: =$C$47*SUM($C$43:$C$45)*(Données1!F189-$Q$39)*24*VMOIS(H50)/1000 -> 11481.8491 | R50: 9941.846857 | S50: =$C$47*SUM($C$43:$C$45)*(Données1!F189-$S$39)*24*VMOIS(H50)/1000 -> 8665.669183 | T50: 7503.386882 | U50: =$C$47*SUM($C$43:$C$45)*(Données1!F189-$U$39)*24*VMOIS(H50)/1000 -> 5849.489265 | V50: 5064.926907
H51: Octobre | I51: =$C$47*SUM($C$43:$C$45)*(Données1!F190-$I$39)*24*VMOIS(H51)/1000 -> 24482.91971 | J51: 21199.14973 | K51: =$C$47*SUM($C$43:$C$45)*(Données1!F190-$K$39)*24*VMOIS(H51)/1000 -> 21572.86712 | L51: 18679.40776 | M51: =$C$47*SUM($C$43:$C$45)*(Données1!F190-$M$39)*24*VMOIS(H51)/1000 -> 18662.81454 | N51: 16159.66579 | O51: =$C$47*SUM($C$43:$C$45)*(Données1!F190-$O$39)*24*VMOIS(H51)/1000 -> 15752.76196 | P51: 13639.92381 | Q51: =$C$47*SUM($C$43:$C$45)*(Données1!F190-$Q$39)*24*VMOIS(H51)/1000 -> 12842.70938 | R51: 11120.18184 | S51: =$C$47*SUM($C$43:$C$45)*(Données1!F190-$S$39)*24*VMOIS(H51)/1000 -> 9932.656794 | T51: 8600.439864 | U51: =$C$47*SUM($C$43:$C$45)*(Données1!F190-$U$39)*24*VMOIS(H51)/1000 -> 7022.604212 | V51: 6080.69789
H52: Novembre | I52: =$C$47*SUM($C$43:$C$45)*(Données1!F191-$I$39)*24*VMOIS(H52)/1000 -> 21050.84711 | J52: 18227.40364 | K52: =$C$47*SUM($C$43:$C$45)*(Données1!F191-$K$39)*24*VMOIS(H52)/1000 -> 18234.66719 | L52: 15788.94367 | M52: =$C$47*SUM($C$43:$C$45)*(Données1!F191-$M$39)*24*VMOIS(H52)/1000 -> 15418.48727 | N52: 13350.48369 | O52: =$C$47*SUM($C$43:$C$45)*(Données1!F191-$O$39)*24*VMOIS(H52)/1000 -> 12602.30735 | P52: 10912.02372 | Q52: =$C$47*SUM($C$43:$C$45)*(Données1!F191-$Q$39)*24*VMOIS(H52)/1000 -> 9786.127433 | R52: 8473.563744 | S52: =$C$47*SUM($C$43:$C$45)*(Données1!F191-$S$39)*24*VMOIS(H52)/1000 -> 6969.947514 | T52: 6035.103769 | U52: =$C$47*SUM($C$43:$C$45)*(Données1!F191-$U$39)*24*VMOIS(H52)/1000 -> 4153.767596 | V52: 3596.643794
H53: Décembre | I53: =$C$47*SUM($C$43:$C$45)*(Données1!F192-$I$39)*24*VMOIS(H53)/1000 -> 21353.2931 | J53: 18489.28408 | K53: =$C$47*SUM($C$43:$C$45)*(Données1!F192-$K$39)*24*VMOIS(H53)/1000 -> 18443.24051 | L53: 15969.54211 | M53: =$C$47*SUM($C$43:$C$45)*(Données1!F192-$M$39)*24*VMOIS(H53)/1000 -> 15533.18793 | N53: 13449.80014 | O53: =$C$47*SUM($C$43:$C$45)*(Données1!F192-$O$39)*24*VMOIS(H53)/1000 -> 12623.13535 | P53: 10930.05816 | Q53: =$C$47*SUM($C$43:$C$45)*(Données1!F192-$Q$39)*24*VMOIS(H53)/1000 -> 9713.082766 | R53: 8410.316188 | S53: =$C$47*SUM($C$43:$C$45)*(Données1!F192-$S$39)*24*VMOIS(H53)/1000 -> 6803.030184 | T53: 5890.574214 | U53: =$C$47*SUM($C$43:$C$45)*(Données1!F192-$U$39)*24*VMOIS(H53)/1000 -> 3892.977601 | V53: 3370.83224
I54: =SUM(I42:I53) -> 257597.7373 | J54: 223047.4579 | K54: 223334.2149 | L54: 193379.5282 | M54: 189070.6926 | N54: 163711.5985 | O54: 154807.1702 | P54: 134043.6689 | Q54: 120543.6479 | R54: 104375.7392 | S54: 86280.12555 | T54: 74707.80947 | U54: 52016.60321 | V54: 45039.87977
B55: Apports renouvellement d'air
J57: 20 | O57: 21 | T57: 22 | Y57: 23 | AD57: 24 | AI57: 25 | AN57: 26
B58: Volume batiment (m3) | C58: =Calculs!F3 -> 8100 | I58: Pv sat int | J58: Etanchéité | L58: VMC (kWh) | N58: Pv sat int | O58: Etanchéité | Q58: VMC (kWh) | S58: Pv sat int | T58: Etanchéité | V58: VMC (kWh) | X58: Pv sat int | Y58: Etanchéité | AA58: VMC (kWh) | AC58: Pv sat int | AD58: Etanchéité | AF58: VMC (kWh) | AH58: Pv sat int | AI58: Etanchéité | AK58: VMC (kWh) | AM58: Pv sat int | AN58: Etanchéité | AP58: VMC (kWh)
I59: =EXP(23.3265-3802.7/(J57+273.18)-(472.68/(J57+273.18))^2) -> 2336.977937 | J59: SENSIBLE | K59: LATENT | L59: SENSIBLE | M59: LATENT | N59: =EXP(23.3265-3802.7/(O57+273.18)-(472.68/(O57+273.18))^2) -> 2485.790975 | O59: SENSIBLE | P59: LATENT | Q59: SENSIBLE | R59: LATENT | S59: =EXP(23.3265-3802.7/(T57+273.18)-(472.68/(T57+273.18))^2) -> 2642.817205 | T59: SENSIBLE | U59: LATENT | V59: SENSIBLE | W59: LATENT | X59: =EXP(23.3265-3802.7/(Y57+273.18)-(472.68/(Y57+273.18))^2) -> 2808.435991 | Y59: SENSIBLE | Z59: LATENT | AA59: SENSIBLE | AB59: LATENT | AC59: =EXP(23.3265-3802.7/(AD57+273.18)-(472.68/(AD57+273.18))^2) -> 2983.040487 | AD59: SENSIBLE | AE59: LATENT | AF59: SENSIBLE | AG59: LATENT | AH59: =EXP(23.3265-3802.7/(AI57+273.18)-(472.68/(AI57+273.18))^2) -> 3167.037975 | AI59: SENSIBLE | AJ59: LATENT | AK59: SENSIBLE | AL59: LATENT | AM59: =EXP(23.3265-3802.7/(AN57+273.18)-(472.68/(AN57+273.18))^2) -> 3360.850216 | AN59: SENSIBLE | AO59: LATENT | AP59: SENSIBLE | AQ59: LATENT
C60: De base | D60: ="+ ajustement" -> + ajustement | H60: Janvier | I60: =(0.622*I59*Données1!$BK248/100)/(101325-I59*Données1!$BK248/100) -> 0.01193455754 | J60: =0.279166*Données1!$AD214*$D$61*Données1!$AD214/(1.292*273.15/($J$57+273))*(Données1!$Z214-$J$57)*24*VMOIS($H60)/1000 -> 9282.907054 | K60: =0.680555*Données1!$AD214*$D$61*Données1!$AD214/(1.292*273.15/($J$57+273))*(Données1!$AC214-I60)*24*VMOIS($H60) -> 25162.56059 | L60: =0.279166*Données1!$Y214*$C$64*Données1!$Y214/(1.292*273.15/($J$57+273))*(Données1!$U214-$J$57)*$C$66*VMOIS($H60)/1000 -> 9223.806369 | M60: =0.680555*Données1!$Y214*$C$64*Données1!$Y214/(1.292*273.15/($J$57+273))*(Données1!$X214-I60)*$C$66*VMOIS($H60) -> 25002.36029 | N60: =(0.622*N59*Données1!$BL248/100)/(101325-N59*Données1!$BL248/100) -> 0.01242910221 | O60: =0.279166*Données1!$AD214*$D$61*Données1!$AD214/(1.292*273.15/($O$57+273))*(Données1!$Z214-$O$57)*24*VMOIS($H60)/1000 -> 8014.745112 | P60: =0.680555*Données1!$AD214*$D$61*Données1!$AD214/(1.292*273.15/($O$57+273))*(Données1!$AC214-N60)*24*VMOIS($H60) -> 23681.33667 | Q60: =0.279166*Données1!$Y214*$C$64*Données1!$Y214/(1.292*273.15/($O$57+273))*(Données1!$U214-$O$57)*$C$66*VMOIS($H60)/1000 -> 7963.718324 | R60: =0.680555*Données1!$Y214*$C$64*Données1!$Y214/(1.292*273.15/($O$57+273))*(Données1!X214-N60)*$C$66*VMOIS($H60) -> 23530.56674 | S60: =(0.622*S59*Données1!$BM248/100)/(101325-S59*Données1!$BM248/100) -> 0.01296655058 | T60: =0.279166*Données1!$AD214*$D$61*Données1!$AD214/(1.292*273.15/($T$57+273))*(Données1!$Z214-$T$57)*24*VMOIS($H60)/1000 -> 6737.740692 | U60: =0.680555*Données1!$AD214*$D$61*Données1!$AD214/(1.292*273.15/($T$57+273))*(Données1!$AC214-S60)*24*VMOIS($H60) -> 22053.03737 | V60: =0.279166*Données1!$Y214*$C$64*Données1!$Y214/(1.292*273.15/($T$57+273))*(Données1!$U214-$T$57)*$C$66*VMOIS($H60)/1000 -> 6694.844098 | W60: =0.680555*Données1!$Y214*$C$64*Données1!$Y214/(1.292*273.15/($T$57+273))*(Données1!X214-S60)*$C$66*VMOIS($H60) -> 21912.63419 | X60: =(0.622*X59*Données1!$BN248/100)/(101325-X59*Données1!$BN248/100) -> 0.01355217036 | Y60: =0.279166*Données1!$AD214*$D$61*Données1!$AD214/(1.292*273.15/($Y$57+273))*(Données1!$Z214-$Y$57)*24*VMOIS($H60)/1000 -> 5451.893794 | Z60: =0.680555*Données1!$AD214*$D$61*Données1!$AD214/(1.292*273.15/($Y$57+273))*(Données1!$AC214-X60)*24*VMOIS($H60) -> 20259.4697 | AA60: =0.279166*Données1!$Y214*$C$64*Données1!$Y214/(1.292*273.15/($Y$57+273))*(Données1!$U214-$Y$57)*$C$66*VMOIS($H60)/1000 -> 5417.183691 | AB60: =0.680555*Données1!$Y214*$C$64*Données1!$Y214/(1.292*273.15/($Y$57+273))*(Données1!X214-X60)*$C$66*VMOIS($H60) -> 20130.48547 | AC60: =(0.622*AC59*Données1!$BO248/100)/(101325-AC59*Données1!$BO248/100) -> 0.01419102988 | AD60: =0.279166*Données1!$AD214*$D$61*Données1!$AD214/(1.292*273.15/($AD$57+273))*(Données1!$Z214-$AD$57)*24*VMOIS($H60)/1000 -> 4157.204418 | AE60: =0.680555*Données1!$AD214*$D$61*Données1!$AD214/(1.292*273.15/($AD$57+273))*(Données1!$AC214-AC60)*24*VMOIS($H60) -> 18282.85175 | AF60: =0.279166*Données1!$Y214*$C$64*Données1!$Y214/(1.292*273.15/($AD$57+273))*(Données1!$U214-$AD$57)*$C$66*VMOIS($H60)/1000 -> 4130.737103 | AG60: =0.680555*Données1!$Y214*$C$64*Données1!$Y214/(1.292*273.15/($AD$57+273))*(Données1!X214-AC60)*$C$66*VMOIS($H60) -> 18166.45189 | AH60: =(0.622*AH59*Données1!$BP248/100)/(101325-AH59*Données1!$BP248/100) -> 0.01488863359 | AI60: =0.279166*Données1!$AD214*$D$61*Données1!$AD214/(1.292*273.15/($AI$57+273))*(Données1!$Z214-$AI$57)*24*VMOIS($H60)/1000 -> 2853.672565 | AJ60: =0.680555*Données1!$AD214*$D$61*Données1!$AD214/(1.292*273.15/($AI$57+273))*(Données1!$AC214-AH60)*24*VMOIS($H60) -> 16103.78234 | AK60: =0.279166*Données1!$Y214*$C$64*Données1!$Y214/(1.292*273.15/($AI$57+273))*(Données1!$U214-$AI$57)*$C$66*VMOIS($H60)/1000 -> 2835.504333 | AL60: =0.680555*Données1!$Y214*$C$64*Données1!$Y214/(1.292*273.15/($AI$57+273))*(Données1!X214-AH60)*$C$66*VMOIS($H60) -> 16001.25577 | AM60: =(0.622*AM59*Données1!$BQ248/100)/(101325-AM59*Données1!$BQ248/100) -> 0.01564898216 | AN60: =0.279166*Données1!$AD214*$D$61*Données1!$AD214/(1.292*273.15/($AN$57+273))*(Données1!$Z214-$AN$57)*24*VMOIS($H60)/1000 -> 1541.298234 | AO60: =0.680555*Données1!$AD214*$D$61*Données1!$AD214/(1.292*273.15/($AN$57+273))*(Données1!$AC214-AM60)*24*VMOIS($H60) -> 13707.46914 | AP60: =0.279166*Données1!$Y214*$C$64*Données1!$Y214/(1.292*273.15/($AN$57+273))*(Données1!$U214-$AN$57)*$C$66*VMOIS($H60)/1000 -> 1531.485383 | AQ60: =0.680555*Données1!$Y214*$C$64*Données1!$Y214/(1.292*273.15/($AN$57+273))*(Données1!X214-AM60)*$C$66*VMOIS($H60) -> 13620.19898
B61: Renouvellement étanchéité(m3/h) | C61: =MROUND(C43*Données1!Z230+(C44+C45)*Données1!Y230,0.1) -> 5434.6 | D61: =C61 -> 5434.6 | H61: Février | I61: =(0.622*I59*Données1!$BK249/100)/(101325-I59*Données1!$BK249/100) -> 0.01173406538 | J61: =0.279166*Données1!$AD215*$D$61*Données1!$AD215/(1.292*273.15/($J$57+273))*(Données1!$Z215-$J$57)*24*VMOIS($H61)/1000 -> 8312.545434 | K61: =0.680555*Données1!$AD215*$D$61*Données1!$AD215/(1.292*273.15/($J$57+273))*(Données1!$AC215-I61)*24*VMOIS($H61) -> 21765.65723 | L61: =0.279166*Données1!$Y215*$C$64*Données1!$Y215/(1.292*273.15/($J$57+273))*(Données1!$U215-$J$57)*$C$66*VMOIS($H61)/1000 -> 8259.622667 | M61: =0.680555*Données1!$Y215*$C$64*Données1!$Y215/(1.292*273.15/($J$57+273))*(Données1!$X215-I61)*$C$66*VMOIS($H61) -> 21627.0837 | N61: =(0.622*N59*Données1!$BK249/100)/(101325-N59*Données1!$BK249/100) -> 0.01249627349 | O61: =0.279166*Données1!$AD215*$D$61*Données1!$AD215/(1.292*273.15/($O$57+273))*(Données1!$Z215-$O$57)*24*VMOIS($H61)/1000 -> 7166.357491 | P61: =0.680555*Données1!$AD215*$D$61*Données1!$AD215/(1.292*273.15/($O$57+273))*(Données1!$AC215-N61)*24*VMOIS($H61) -> 19657.46971 | Q61: =0.279166*Données1!$Y215*$C$64*Données1!$Y215/(1.292*273.15/($O$57+273))*(Données1!$U215-$O$57)*$C$66*VMOIS($H61)/1000 -> 7120.73206 | R61: =0.680555*Données1!$Y215*$C$64*Données1!$Y215/(1.292*273.15/($O$57+273))*(Données1!X215-N61)*$C$66*VMOIS($H61) -> 19532.31819 | S61: =(0.622*S59*Données1!$BM249/100)/(101325-S59*Données1!$BM249/100) -> 0.01270842514 | T61: =0.279166*Données1!$AD215*$D$61*Données1!$AD215/(1.292*273.15/($T$57+273))*(Données1!$Z215-$T$57)*24*VMOIS($H61)/1000 -> 6012.179355 | U61: =0.680555*Données1!$AD215*$D$61*Données1!$AD215/(1.292*273.15/($T$57+273))*(Données1!$AC215-S61)*24*VMOIS($H61) -> 19114.79999 | V61: =0.279166*Données1!$Y215*$C$64*Données1!$Y215/(1.292*273.15/($T$57+273))*(Données1!$U215-$T$57)*$C$66*VMOIS($H61)/1000 -> 5973.902131 | W61: =0.680555*Données1!$Y215*$C$64*Données1!$Y215/(1.292*273.15/($T$57+273))*(Données1!X215-S61)*$C$66*VMOIS($H61) -> 18993.10344 | X61: =(0.622*X59*Données1!$BN249/100)/(101325-X59*Données1!$BN249/100) -> 0.01326175918 | Y61: =0.279166*Données1!$AD215*$D$61*Données1!$AD215/(1.292*273.15/($Y$57+273))*(Données1!$Z215-$Y$57)*24*VMOIS($H61)/1000 -> 4850.011026 | Z61: =0.680555*Données1!$AD215*$D$61*Données1!$AD215/(1.292*273.15/($Y$57+273))*(Données1!$AC215-X61)*24*VMOIS($H61) -> 17584.42548 | AA61: =0.279166*Données1!$Y215*$C$64*Données1!$Y215/(1.292*273.15/($Y$57+273))*(Données1!$U215-$Y$57)*$C$66*VMOIS($H61)/1000 -> 4819.132878 | AB61: =0.680555*Données1!$Y215*$C$64*Données1!$Y215/(1.292*273.15/($Y$57+273))*(Données1!X215-X61)*$C$66*VMOIS($H61) -> 17472.47224 | AC61: =(0.622*AC59*Données1!$BO249/100)/(101325-AC59*Données1!$BO249/100) -> 0.01386411001 | AD61: =0.279166*Données1!$AD215*$D$61*Données1!$AD215/(1.292*273.15/($AD$57+273))*(Données1!$Z215-$AD$57)*24*VMOIS($H61)/1000 -> 3679.852504 | AE61: =0.680555*Données1!$AD215*$D$61*Données1!$AD215/(1.292*273.15/($AD$57+273))*(Données1!$AC215-AC61)*24*VMOIS($H61) -> 15901.48814 | AF61: =0.279166*Données1!$Y215*$C$64*Données1!$Y215/(1.292*273.15/($AD$57+273))*(Données1!$U215-$AD$57)*$C$66*VMOIS($H61)/1000 -> 3656.424304 | AG61: =0.680555*Données1!$Y215*$C$64*Données1!$Y215/(1.292*273.15/($AD$57+273))*(Données1!X215-AC61)*$C$66*VMOIS($H61) -> 15800.24951 | AH61: =(0.622*AH59*Données1!$BP249/100)/(101325-AH59*Données1!$BP249/100) -> 0.01451874012 | AI61: =0.279166*Données1!$AD215*$D$61*Données1!$AD215/(1.292*273.15/($AI$57+273))*(Données1!$Z215-$AI$57)*24*VMOIS($H61)/1000 -> 2501.703788 | AJ61: =0.680555*Données1!$AD215*$D$61*Données1!$AD215/(1.292*273.15/($AI$57+273))*(Données1!$AC215-AH61)*24*VMOIS($H61) -> 14055.08698 | AK61: =0.279166*Données1!$Y215*$C$64*Données1!$Y215/(1.292*273.15/($AI$57+273))*(Données1!$U215-$AI$57)*$C$66*VMOIS($H61)/1000 -> 2485.776406 | AL61: =0.680555*Données1!$Y215*$C$64*Données1!$Y215/(1.292*273.15/($AI$57+273))*(Données1!X215-AH61)*$C$66*VMOIS($H61) -> 13965.60366 | AM61: =(0.622*AM59*Données1!$BQ249/100)/(101325-AM59*Données1!$BQ249/100) -> 0.01522723319 | AN61: =0.279166*Données1!$AD215*$D$61*Données1!$AD215/(1.292*273.15/($AN$57+273))*(Données1!$Z215-$AN$57)*24*VMOIS($H61)/1000 -> 1315.564879 | AO61: =0.680555*Données1!$AD215*$D$61*Données1!$AD215/(1.292*273.15/($AN$57+273))*(Données1!$AC215-AM61)*24*VMOIS($H61) -> 12039.08279 | AP61: =0.279166*Données1!$Y215*$C$64*Données1!$Y215/(1.292*273.15/($AN$57+273))*(Données1!$U215-$AN$57)*$C$66*VMOIS($H61)/1000 -> 1307.189186 | AQ61: =0.680555*Données1!$Y215*$C$64*Données1!$Y215/(1.292*273.15/($AN$57+273))*(Données1!X215-AM61)*$C$66*VMOIS($H61) -> 11962.4346
B62: Renouvellement étanchéité (vol/h) | C62: =MROUND(C61/C58,0.001) -> 0.671 | D62: =C62 -> 0.671 | H62: Mars | I62: =(0.622*I59*Données1!$BK250/100)/(101325-I59*Données1!$BK250/100) -> 0.01179254123 | J62: =0.279166*Données1!$AD216*$D$61*Données1!$AD216/(1.292*273.15/($J$57+273))*(Données1!$Z216-$J$57)*24*VMOIS($H62)/1000 -> 9237.984249 | K62: =0.680555*Données1!$AD216*$D$61*Données1!$AD216/(1.292*273.15/($J$57+273))*(Données1!$AC216-I62)*24*VMOIS($H62) -> 23907.91926 | L62: =0.279166*Données1!$Y216*$C$64*Données1!$Y216/(1.292*273.15/($J$57+273))*(Données1!$U216-$J$57)*$C$66*VMOIS($H62)/1000 -> 9179.16957 | M62: =0.680555*Données1!$Y216*$C$64*Données1!$Y216/(1.292*273.15/($J$57+273))*(Données1!$X216-I62)*$C$66*VMOIS($H62) -> 23755.70677 | N62: =(0.622*N59*Données1!$BK250/100)/(101325-N59*Données1!$BK250/100) -> 0.01255862302 | O62: =0.279166*Données1!$AD216*$D$61*Données1!$AD216/(1.292*273.15/($O$57+273))*(Données1!$Z216-$O$57)*24*VMOIS($H62)/1000 -> 7969.353606 | P62: =0.680555*Données1!$AD216*$D$61*Données1!$AD216/(1.292*273.15/($O$57+273))*(Données1!$AC216-N62)*24*VMOIS($H62) -> 21561.38303 | Q62: =0.279166*Données1!$Y216*$C$64*Données1!$Y216/(1.292*273.15/($O$57+273))*(Données1!$U216-$O$57)*$C$66*VMOIS($H62)/1000 -> 7918.615808 | R62: =0.680555*Données1!$Y216*$C$64*Données1!$Y216/(1.292*273.15/($O$57+273))*(Données1!X216-N62)*$C$66*VMOIS($H62) -> 21424.11003 | S62: =(0.622*S59*Données1!$BM250/100)/(101325-S59*Données1!$BM250/100) -> 0.01279257353 | T62: =0.279166*Données1!$AD216*$D$61*Données1!$AD216/(1.292*273.15/($T$57+273))*(Données1!$Z216-$T$57)*24*VMOIS($H62)/1000 -> 6691.878339 | U62: =0.680555*Données1!$AD216*$D$61*Données1!$AD216/(1.292*273.15/($T$57+273))*(Données1!$AC216-S62)*24*VMOIS($H62) -> 20890.68144 | V62: =0.279166*Données1!$Y216*$C$64*Données1!$Y216/(1.292*273.15/($T$57+273))*(Données1!$U216-$T$57)*$C$66*VMOIS($H62)/1000 -> 6649.273734 | W62: =0.680555*Données1!$Y216*$C$64*Données1!$Y216/(1.292*273.15/($T$57+273))*(Données1!X216-S62)*$C$66*VMOIS($H62) -> 20757.67854 | X62: =(0.622*X59*Données1!$BN250/100)/(101325-X59*Données1!$BN250/100) -> 0.013359298 | Y62: =0.279166*Données1!$AD216*$D$61*Données1!$AD216/(1.292*273.15/($Y$57+273))*(Données1!$Z216-$Y$57)*24*VMOIS($H62)/1000 -> 5405.55845 | Z62: =0.680555*Données1!$AD216*$D$61*Données1!$AD216/(1.292*273.15/($Y$57+273))*(Données1!$AC216-X62)*24*VMOIS($H62) -> 19153.01728 | AA62: =0.279166*Données1!$Y216*$C$64*Données1!$Y216/(1.292*273.15/($Y$57+273))*(Données1!$U216-$Y$57)*$C$66*VMOIS($H62)/1000 -> 5371.143346 | AB62: =0.680555*Données1!$Y216*$C$64*Données1!$Y216/(1.292*273.15/($Y$57+273))*(Données1!X216-X62)*$C$66*VMOIS($H62) -> 19031.07742 | AC62: =(0.622*AC59*Données1!$BO250/100)/(101325-AC59*Données1!$BO250/100) -> 0.01397552495 | AD62: =0.279166*Données1!$AD216*$D$61*Données1!$AD216/(1.292*273.15/($AD$57+273))*(Données1!$Z216-$AD$57)*24*VMOIS($H62)/1000 -> 4110.393937 | AE62: =0.680555*Données1!$AD216*$D$61*Données1!$AD216/(1.292*273.15/($AD$57+273))*(Données1!$AC216-AC62)*24*VMOIS($H62) -> 17244.63215 | AF62: =0.279166*Données1!$Y216*$C$64*Données1!$Y216/(1.292*273.15/($AD$57+273))*(Données1!$U216-$AD$57)*$C$66*VMOIS($H62)/1000 -> 4084.224646 | AG62: =0.680555*Données1!$Y216*$C$64*Données1!$Y216/(1.292*273.15/($AD$57+273))*(Données1!X216-AC62)*$C$66*VMOIS($H62) -> 17134.84224 | AH62: =(0.622*AH59*Données1!$BP250/100)/(101325-AH59*Données1!$BP250/100) -> 0.01464649885 | AI62: =0.279166*Données1!$AD216*$D$61*Données1!$AD216/(1.292*273.15/($AI$57+273))*(Données1!$Z216-$AI$57)*24*VMOIS($H62)/1000 -> 2806.384801 | AJ62: =0.680555*Données1!$AD216*$D$61*Données1!$AD216/(1.292*273.15/($AI$57+273))*(Données1!$AC216-AH62)*24*VMOIS($H62) -> 15147.07623 | AK62: =0.279166*Données1!$Y216*$C$64*Données1!$Y216/(1.292*273.15/($AI$57+273))*(Données1!$U216-$AI$57)*$C$66*VMOIS($H62)/1000 -> 2788.517633 | AL62: =0.680555*Données1!$Y216*$C$64*Données1!$Y216/(1.292*273.15/($AI$57+273))*(Données1!X216-AH62)*$C$66*VMOIS($H62) -> 15050.64064 | AM62: =(0.622*AM59*Données1!$BQ250/100)/(101325-AM59*Données1!$BQ250/100) -> 0.0153716006 | AN62: =0.279166*Données1!$AD216*$D$61*Données1!$AD216/(1.292*273.15/($AN$57+273))*(Données1!$Z216-$AN$57)*24*VMOIS($H62)/1000 -> 1493.531043 | AO62: =0.680555*Données1!$AD216*$D$61*Données1!$AD216/(1.292*273.15/($AN$57+273))*(Données1!$AC216-AM62)*24*VMOIS($H62) -> 12860.57453 | AP62: =0.279166*Données1!$Y216*$C$64*Données1!$Y216/(1.292*273.15/($AN$57+273))*(Données1!$U216-$AN$57)*$C$66*VMOIS($H62)/1000 -> 1484.022307 | AQ62: =0.680555*Données1!$Y216*$C$64*Données1!$Y216/(1.292*273.15/($AN$57+273))*(Données1!X216-AM62)*$C$66*VMOIS($H62) -> 12778.69622
H63: Avril | I63: =(0.622*I59*Données1!$BK251/100)/(101325-I59*Données1!$BK251/100) -> 0.0119155678 | J63: =0.279166*Données1!$AD217*$D$61*Données1!$AD217/(1.292*273.15/($J$57+273))*(Données1!$Z217-$J$57)*24*VMOIS($H63)/1000 -> 9218.555798 | K63: =0.680555*Données1!$AD217*$D$61*Données1!$AD217/(1.292*273.15/($J$57+273))*(Données1!$AC217-I63)*24*VMOIS($H63) -> 25673.48433 | L63: =0.279166*Données1!$Y217*$C$64*Données1!$Y217/(1.292*273.15/($J$57+273))*(Données1!$U217-$J$57)*$C$66*VMOIS($H63)/1000 -> 9159.864812 | M63: =0.680555*Données1!$Y217*$C$64*Données1!$Y217/(1.292*273.15/($J$57+273))*(Données1!$X217-I63)*$C$66*VMOIS($H63) -> 25510.03117 | N63: =(0.622*N59*Données1!$BK251/100)/(101325-N59*Données1!$BK251/100) -> 0.01268980181 | O63: =0.279166*Données1!$AD217*$D$61*Données1!$AD217/(1.292*273.15/($O$57+273))*(Données1!$Z217-$O$57)*24*VMOIS($H63)/1000 -> 7993.755861 | P63: =0.680555*Données1!$AD217*$D$61*Données1!$AD217/(1.292*273.15/($O$57+273))*(Données1!$AC217-N63)*24*VMOIS($H63) -> 23389.98799 | Q63: =0.279166*Données1!$Y217*$C$64*Données1!$Y217/(1.292*273.15/($O$57+273))*(Données1!$U217-$O$57)*$C$66*VMOIS($H63)/1000 -> 7942.862704 | R63: =0.680555*Données1!$Y217*$C$64*Données1!$Y217/(1.292*273.15/($O$57+273))*(Données1!X217-N63)*$C$66*VMOIS($H63) -> 23241.07297 | S63: =(0.622*S59*Données1!$BM251/100)/(101325-S59*Données1!$BM251/100) -> 0.01292202841 | T63: =0.279166*Données1!$AD217*$D$61*Données1!$AD217/(1.292*273.15/($T$57+273))*(Données1!$Z217-$T$57)*24*VMOIS($H63)/1000 -> 6760.40992 | U63: =0.680555*Données1!$AD217*$D$61*Données1!$AD217/(1.292*273.15/($T$57+273))*(Données1!$AC217-S63)*24*VMOIS($H63) -> 22755.92452 | V63: =0.279166*Données1!$Y217*$C$64*Données1!$Y217/(1.292*273.15/($T$57+273))*(Données1!$U217-$T$57)*$C$66*VMOIS($H63)/1000 -> 6717.369 | W63: =0.680555*Données1!$Y217*$C$64*Données1!$Y217/(1.292*273.15/($T$57+273))*(Données1!X217-S63)*$C$66*VMOIS($H63) -> 22611.04633 | X63: =(0.622*X59*Données1!$BN251/100)/(101325-X59*Données1!$BN251/100) -> 0.01349170389 | Y63: =0.279166*Données1!$AD217*$D$61*Données1!$AD217/(1.292*273.15/($Y$57+273))*(Données1!$Z217-$Y$57)*24*VMOIS($H63)/1000 -> 5518.517975 | Z63: =0.680555*Données1!$AD217*$D$61*Données1!$AD217/(1.292*273.15/($Y$57+273))*(Données1!$AC217-X63)*24*VMOIS($H63) -> 21076.5435 | AA63: =0.279166*Données1!$Y217*$C$64*Données1!$Y217/(1.292*273.15/($Y$57+273))*(Données1!$U217-$Y$57)*$C$66*VMOIS($H63)/1000 -> 5483.383701 | AB63: =0.680555*Données1!$Y217*$C$64*Données1!$Y217/(1.292*273.15/($Y$57+273))*(Données1!X217-X63)*$C$66*VMOIS($H63) -> 20942.35729 | AC63: =(0.622*AC59*Données1!$BO251/100)/(101325-AC59*Données1!$BO251/100) -> 0.01411201366 | AD63: =0.279166*Données1!$AD217*$D$61*Données1!$AD217/(1.292*273.15/($AD$57+273))*(Données1!$Z217-$AD$57)*24*VMOIS($H63)/1000 -> 4268.080025 | AE63: =0.680555*Données1!$AD217*$D$61*Données1!$AD217/(1.292*273.15/($AD$57+273))*(Données1!$AC217-AC63)*24*VMOIS($H63) -> 19228.64244 | AF63: =0.279166*Données1!$Y217*$C$64*Données1!$Y217/(1.292*273.15/($AD$57+273))*(Données1!$U217-$AD$57)*$C$66*VMOIS($H63)/1000 -> 4240.906808 | AG63: =0.680555*Données1!$Y217*$C$64*Données1!$Y217/(1.292*273.15/($AD$57+273))*(Données1!X217-AC63)*$C$66*VMOIS($H63) -> 19106.2211 | AH63: =(0.622*AH59*Données1!$BP251/100)/(101325-AH59*Données1!$BP251/100) -> 0.01478629069 | AI63: =0.279166*Données1!$AD217*$D$61*Données1!$AD217/(1.292*273.15/($AI$57+273))*(Données1!$Z217-$AI$57)*24*VMOIS($H63)/1000 -> 3009.096072 | AJ63: =0.680555*Données1!$AD217*$D$61*Données1!$AD217/(1.292*273.15/($AI$57+273))*(Données1!$AC217-AH63)*24*VMOIS($H63) -> 17200.29283 | AK63: =0.279166*Données1!$Y217*$C$64*Données1!$Y217/(1.292*273.15/($AI$57+273))*(Données1!$U217-$AI$57)*$C$66*VMOIS($H63)/1000 -> 2989.938319 | AL63: =0.680555*Données1!$Y217*$C$64*Données1!$Y217/(1.292*273.15/($AI$57+273))*(Données1!X217-AH63)*$C$66*VMOIS($H63) -> 17090.7852 | AM63: =(0.622*AM59*Données1!$BQ251/100)/(101325-AM59*Données1!$BQ251/100) -> 0.015517453 | AN63: =0.279166*Données1!$AD217*$D$61*Données1!$AD217/(1.292*273.15/($AN$57+273))*(Données1!$Z217-$AN$57)*24*VMOIS($H63)/1000 -> 1741.566115 | AO63: =0.680555*Données1!$AD217*$D$61*Données1!$AD217/(1.292*273.15/($AN$57+273))*(Données1!$AC217-AM63)*24*VMOIS($H63) -> 14980.71959 | AP63: =0.279166*Données1!$Y217*$C$64*Données1!$Y217/(1.292*273.15/($AN$57+273))*(Données1!$U217-$AN$57)*$C$66*VMOIS($H63)/1000 -> 1730.478236 | AQ63: =0.680555*Données1!$Y217*$C$64*Données1!$Y217/(1.292*273.15/($AN$57+273))*(Données1!X217-AM63)*$C$66*VMOIS($H63) -> 14885.34313
B64: Renouvellement VMC (m3/h) | C64: =IF(VMCPlan=Données1!$X$5,0,Surface/Hypothèses!C16*Hypothèses!B25) -> 5400 | H64: Mai | I64: =(0.622*I59*Données1!$BK252/100)/(101325-I59*Données1!$BK252/100) -> 0.0120532676 | J64: =0.279166*Données1!$AD218*$D$61*Données1!$AD218/(1.292*273.15/($J$57+273))*(Données1!$Z218-$J$57)*24*VMOIS($H64)/1000 -> 10139.44835 | K64: =0.680555*Données1!$AD218*$D$61*Données1!$AD218/(1.292*273.15/($J$57+273))*(Données1!$AC218-I64)*24*VMOIS($H64) -> 28600.40552 | L64: =0.279166*Données1!$Y218*$C$64*Données1!$Y218/(1.292*273.15/($J$57+273))*(Données1!$U218-$J$57)*$C$66*VMOIS($H64)/1000 -> 10074.8944 | M64: =0.680555*Données1!$Y218*$C$64*Données1!$Y218/(1.292*273.15/($J$57+273))*(Données1!$X218-I64)*$C$66*VMOIS($H64) -> 28418.31778 | N64: =(0.622*N59*Données1!$BK252/100)/(101325-N59*Données1!$BK252/100) -> 0.01283663007 | O64: =0.279166*Données1!$AD218*$D$61*Données1!$AD218/(1.292*273.15/($O$57+273))*(Données1!$Z218-$O$57)*24*VMOIS($H64)/1000 -> 8880.230828 | P64: =0.680555*Données1!$AD218*$D$61*Données1!$AD218/(1.292*273.15/($O$57+273))*(Données1!$AC218-N64)*24*VMOIS($H64) -> 26227.21332 | Q64: =0.279166*Données1!$Y218*$C$64*Données1!$Y218/(1.292*273.15/($O$57+273))*(Données1!$U218-$O$57)*$C$66*VMOIS($H64)/1000 -> 8823.693827 | R64: =0.680555*Données1!$Y218*$C$64*Données1!$Y218/(1.292*273.15/($O$57+273))*(Données1!X218-N64)*$C$66*VMOIS($H64) -> 26060.23478 | S64: =(0.622*S59*Données1!$BM252/100)/(101325-S59*Données1!$BM252/100) -> 0.01311867389 | T64: =0.279166*Données1!$AD218*$D$61*Données1!$AD218/(1.292*273.15/($T$57+273))*(Données1!$Z218-$T$57)*24*VMOIS($H64)/1000 -> 7612.211787 | U64: =0.680555*Données1!$AD218*$D$61*Données1!$AD218/(1.292*273.15/($T$57+273))*(Données1!$AC218-S64)*24*VMOIS($H64) -> 25423.80093 | V64: =0.279166*Données1!$Y218*$C$64*Données1!$Y218/(1.292*273.15/($T$57+273))*(Données1!$U218-$T$57)*$C$66*VMOIS($H64)/1000 -> 7563.747773 | W64: =0.680555*Données1!$Y218*$C$64*Données1!$Y218/(1.292*273.15/($T$57+273))*(Données1!X218-S64)*$C$66*VMOIS($H64) -> 25261.93741 | X64: =(0.622*X59*Données1!$BN252/100)/(101325-X59*Données1!$BN252/100) -> 0.01372054507 | Y64: =0.279166*Données1!$AD218*$D$61*Données1!$AD218/(1.292*273.15/($Y$57+273))*(Données1!$Z218-$Y$57)*24*VMOIS($H64)/1000 -> 6335.391228 | Z64: =0.680555*Données1!$AD218*$D$61*Données1!$AD218/(1.292*273.15/($Y$57+273))*(Données1!$AC218-X64)*24*VMOIS($H64) -> 23598.70669 | AA64: =0.279166*Données1!$Y218*$C$64*Données1!$Y218/(1.292*273.15/($Y$57+273))*(Données1!$U218-$Y$57)*$C$66*VMOIS($H64)/1000 -> 6295.056238 | AB64: =0.680555*Données1!$Y218*$C$64*Données1!$Y218/(1.292*273.15/($Y$57+273))*(Données1!X218-X64)*$C$66*VMOIS($H64) -> 23448.46283 | AC64: =(0.622*AC59*Données1!$BO252/100)/(101325-AC59*Données1!$BO252/100) -> 0.01437261672 | AD64: =0.279166*Données1!$AD218*$D$61*Données1!$AD218/(1.292*273.15/($AD$57+273))*(Données1!$Z218-$AD$57)*24*VMOIS($H64)/1000 -> 5049.769151 | AE64: =0.680555*Données1!$AD218*$D$61*Données1!$AD218/(1.292*273.15/($AD$57+273))*(Données1!$AC218-AC64)*24*VMOIS($H64) -> 21600.74534 | AF64: =0.279166*Données1!$Y218*$C$64*Données1!$Y218/(1.292*273.15/($AD$57+273))*(Données1!$U218-$AD$57)*$C$66*VMOIS($H64)/1000 -> 5017.619221 | AG64: =0.680555*Données1!$Y218*$C$64*Données1!$Y218/(1.292*273.15/($AD$57+273))*(Données1!X218-AC64)*$C$66*VMOIS($H64) -> 21463.22173 | AH64: =(0.622*AH59*Données1!$BP252/100)/(101325-AH59*Données1!$BP252/100) -> 0.01508130669 | AI64: =0.279166*Données1!$AD218*$D$61*Données1!$AD218/(1.292*273.15/($AI$57+273))*(Données1!$Z218-$AI$57)*24*VMOIS($H64)/1000 -> 3755.345556 | AJ64: =0.680555*Données1!$AD218*$D$61*Données1!$AD218/(1.292*273.15/($AI$57+273))*(Données1!$AC218-AH64)*24*VMOIS($H64) -> 19407.78328 | AK64: =0.279166*Données1!$Y218*$C$64*Données1!$Y218/(1.292*273.15/($AI$57+273))*(Données1!$U218-$AI$57)*$C$66*VMOIS($H64)/1000 -> 3731.436721 | AL64: =0.680555*Données1!$Y218*$C$64*Données1!$Y218/(1.292*273.15/($AI$57+273))*(Données1!X218-AH64)*$C$66*VMOIS($H64) -> 19284.22142 | AM64: =(0.622*AM59*Données1!$BQ252/100)/(101325-AM59*Données1!$BQ252/100) -> 0.01585127386 | AN64: =0.279166*Données1!$AD218*$D$61*Données1!$AD218/(1.292*273.15/($AN$57+273))*(Données1!$Z218-$AN$57)*24*VMOIS($H64)/1000 -> 2452.120443 | AO64: =0.680555*Données1!$AD218*$D$61*Données1!$AD218/(1.292*273.15/($AN$57+273))*(Données1!$AC218-AM64)*24*VMOIS($H64) -> 17003.05376 | AP64: =0.279166*Données1!$Y218*$C$64*Données1!$Y218/(1.292*273.15/($AN$57+273))*(Données1!$U218-$AN$57)*$C$66*VMOIS($H64)/1000 -> 2436.508739 | AQ64: =0.680555*Données1!$Y218*$C$64*Données1!$Y218/(1.292*273.15/($AN$57+273))*(Données1!X218-AM64)*$C$66*VMOIS($H64) -> 16894.80188
B65: Renouvellement VMC (vol/h) | C65: =C64/C58 -> 0.6666666667 | H65: Juin | I65: =(0.622*I59*Données1!$BK253/100)/(101325-I59*Données1!$BK253/100) -> 0.0119449126 | J65: =0.279166*Données1!$AD219*$D$61*Données1!$AD219/(1.292*273.15/($J$57+273))*(Données1!$Z219-$J$57)*24*VMOIS($H65)/1000 -> 8685.499263 | K65: =0.680555*Données1!$AD219*$D$61*Données1!$AD219/(1.292*273.15/($J$57+273))*(Données1!$AC219-I65)*24*VMOIS($H65) -> 25459.03804 | L65: =0.279166*Données1!$Y219*$C$64*Données1!$Y219/(1.292*273.15/($J$57+273))*(Données1!$U219-$J$57)*$C$66*VMOIS($H65)/1000 -> 8630.202043 | M65: =0.680555*Données1!$Y219*$C$64*Données1!$Y219/(1.292*273.15/($J$57+273))*(Données1!$X219-I65)*$C$66*VMOIS($H65) -> 25296.95018 | N65: =(0.622*N59*Données1!$BK253/100)/(101325-N59*Données1!$BK253/100) -> 0.01272109161 | O65: =0.279166*Données1!$AD219*$D$61*Données1!$AD219/(1.292*273.15/($O$57+273))*(Données1!$Z219-$O$57)*24*VMOIS($H65)/1000 -> 7455.137801 | P65: =0.680555*Données1!$AD219*$D$61*Données1!$AD219/(1.292*273.15/($O$57+273))*(Données1!$AC219-N65)*24*VMOIS($H65) -> 23161.77224 | Q65: =0.279166*Données1!$Y219*$C$64*Données1!$Y219/(1.292*273.15/($O$57+273))*(Données1!$U219-$O$57)*$C$66*VMOIS($H65)/1000 -> 7407.673817 | R65: =0.680555*Données1!$Y219*$C$64*Données1!$Y219/(1.292*273.15/($O$57+273))*(Données1!X219-N65)*$C$66*VMOIS($H65) -> 23014.31018 | S65: =(0.622*S59*Données1!$BM253/100)/(101325-S59*Données1!$BM253/100) -> 0.01295713217 | T65: =0.279166*Données1!$AD219*$D$61*Données1!$AD219/(1.292*273.15/($T$57+273))*(Données1!$Z219-$T$57)*24*VMOIS($H65)/1000 -> 6216.204878 | U65: =0.680555*Données1!$AD219*$D$61*Données1!$AD219/(1.292*273.15/($T$57+273))*(Données1!$AC219-S65)*24*VMOIS($H65) -> 22513.05172 | V65: =0.279166*Données1!$Y219*$C$64*Données1!$Y219/(1.292*273.15/($T$57+273))*(Données1!$U219-$T$57)*$C$66*VMOIS($H65)/1000 -> 6176.628701 | W65: =0.680555*Données1!$Y219*$C$64*Données1!$Y219/(1.292*273.15/($T$57+273))*(Données1!X219-S65)*$C$66*VMOIS($H65) -> 22369.71981 | X65: =(0.622*X59*Données1!$BN253/100)/(101325-X59*Données1!$BN253/100) -> 0.0135326081 | Y65: =0.279166*Données1!$AD219*$D$61*Données1!$AD219/(1.292*273.15/($Y$57+273))*(Données1!$Z219-$Y$57)*24*VMOIS($H65)/1000 -> 4968.700493 | Z65: =0.680555*Données1!$AD219*$D$61*Données1!$AD219/(1.292*273.15/($Y$57+273))*(Données1!$AC219-X65)*24*VMOIS($H65) -> 20809.6768 | AA65: =0.279166*Données1!$Y219*$C$64*Données1!$Y219/(1.292*273.15/($Y$57+273))*(Données1!$U219-$Y$57)*$C$66*VMOIS($H65)/1000 -> 4937.066695 | AB65: =0.680555*Données1!$Y219*$C$64*Données1!$Y219/(1.292*273.15/($Y$57+273))*(Données1!X219-X65)*$C$66*VMOIS($H65) -> 20677.18962 | AC65: =(0.622*AC59*Données1!$BO253/100)/(101325-AC59*Données1!$BO253/100) -> 0.01416147267 | AD65: =0.279166*Données1!$AD219*$D$61*Données1!$AD219/(1.292*273.15/($AD$57+273))*(Données1!$Z219-$AD$57)*24*VMOIS($H65)/1000 -> 3712.624647 | AE65: =0.680555*Données1!$AD219*$D$61*Données1!$AD219/(1.292*273.15/($AD$57+273))*(Données1!$AC219-AC65)*24*VMOIS($H65) -> 18928.61187 | AF65: =0.279166*Données1!$Y219*$C$64*Données1!$Y219/(1.292*273.15/($AD$57+273))*(Données1!$U219-$AD$57)*$C$66*VMOIS($H65)/1000 -> 3688.987799 | AG65: =0.680555*Données1!$Y219*$C$64*Données1!$Y219/(1.292*273.15/($AD$57+273))*(Données1!X219-AC65)*$C$66*VMOIS($H65) -> 18808.1007 | AH65: =(0.622*AH59*Données1!$BP253/100)/(101325-AH59*Données1!$BP253/100) -> 0.01484777086 | AI65: =0.279166*Données1!$AD219*$D$61*Données1!$AD219/(1.292*273.15/($AI$57+273))*(Données1!$Z219-$AI$57)*24*VMOIS($H65)/1000 -> 2447.97734 | AJ65: =0.680555*Données1!$AD219*$D$61*Données1!$AD219/(1.292*273.15/($AI$57+273))*(Données1!$AC219-AH65)*24*VMOIS($H65) -> 16855.58973 | AK65: =0.279166*Données1!$Y219*$C$64*Données1!$Y219/(1.292*273.15/($AI$57+273))*(Données1!$U219-$AI$57)*$C$66*VMOIS($H65)/1000 -> 2432.392013 | AL65: =0.680555*Données1!$Y219*$C$64*Données1!$Y219/(1.292*273.15/($AI$57+273))*(Données1!X219-AH65)*$C$66*VMOIS($H65) -> 16748.2767 | AM65: =(0.622*AM59*Données1!$BQ253/100)/(101325-AM59*Données1!$BQ253/100) -> 0.01559009984 | AN65: =0.279166*Données1!$AD219*$D$61*Données1!$AD219/(1.292*273.15/($AN$57+273))*(Données1!$Z219-$AN$57)*24*VMOIS($H65)/1000 -> 1174.758572 | AO65: =0.680555*Données1!$AD219*$D$61*Données1!$AD219/(1.292*273.15/($AN$57+273))*(Données1!$AC219-AM65)*24*VMOIS($H65) -> 14593.19255 | AP65: =0.279166*Données1!$Y219*$C$64*Données1!$Y219/(1.292*273.15/($AN$57+273))*(Données1!$U219-$AN$57)*$C$66*VMOIS($H65)/1000 -> 1167.279337 | AQ65: =0.680555*Données1!$Y219*$C$64*Données1!$Y219/(1.292*273.15/($AN$57+273))*(Données1!X219-AM65)*$C$66*VMOIS($H65) -> 14500.28332
B66: Temps renouv. Heure par jour VMC | C66: =IF(VMCPlan=Données1!$X$5,0,IF(VMCPlan="Permanent",24,IF(VMCPlan="Nuit",8,C106))) -> 24 | H66: Juillet | I66: =(0.622*I59*Données1!$BK254/100)/(101325-I59*Données1!$BK254/100) -> 0.01167833079 | J66: =0.279166*Données1!$AD220*$D$61*Données1!$AD220/(1.292*273.15/($J$57+273))*(Données1!$Z220-$J$57)*24*VMOIS($H66)/1000 -> 9512.999723 | K66: =0.680555*Données1!$AD220*$D$61*Données1!$AD220/(1.292*273.15/($J$57+273))*(Données1!$AC220-I66)*24*VMOIS($H66) -> 25152.51634 | L66: =0.279166*Données1!$Y220*$C$64*Données1!$Y220/(1.292*273.15/($J$57+273))*(Données1!$U220-$J$57)*$C$66*VMOIS($H66)/1000 -> 9452.434127 | M66: =0.680555*Données1!$Y220*$C$64*Données1!$Y220/(1.292*273.15/($J$57+273))*(Données1!$X220-I66)*$C$66*VMOIS($H66) -> 24992.37998 | N66: =(0.622*N59*Données1!$BK254/100)/(101325-N59*Données1!$BK254/100) -> 0.0124368475 | O66: =0.279166*Données1!$AD220*$D$61*Données1!$AD220/(1.292*273.15/($O$57+273))*(Données1!$Z220-$O$57)*24*VMOIS($H66)/1000 -> 8247.239076 | P66: =0.680555*Données1!$AD220*$D$61*Données1!$AD220/(1.292*273.15/($O$57+273))*(Données1!$AC220-N66)*24*VMOIS($H66) -> 22837.7771 | Q66: =0.279166*Données1!$Y220*$C$64*Données1!$Y220/(1.292*273.15/($O$57+273))*(Données1!$U220-$O$57)*$C$66*VMOIS($H66)/1000 -> 8194.732089 | R66: =0.680555*Données1!$Y220*$C$64*Données1!$Y220/(1.292*273.15/($O$57+273))*(Données1!X220-N66)*$C$66*VMOIS($H66) -> 22692.37779 | S66: =(0.622*S59*Données1!$BM254/100)/(101325-S59*Données1!$BM254/100) -> 0.01258397819 | T66: =0.279166*Données1!$AD220*$D$61*Données1!$AD220/(1.292*273.15/($T$57+273))*(Données1!$Z220-$T$57)*24*VMOIS($H66)/1000 -> 6972.646945 | U66: =0.680555*Données1!$AD220*$D$61*Données1!$AD220/(1.292*273.15/($T$57+273))*(Données1!$AC220-S66)*24*VMOIS($H66) -> 22448.22771 | V66: =0.279166*Données1!$Y220*$C$64*Données1!$Y220/(1.292*273.15/($T$57+273))*(Données1!$U220-$T$57)*$C$66*VMOIS($H66)/1000 -> 6928.254794 | W66: =0.680555*Données1!$Y220*$C$64*Données1!$Y220/(1.292*273.15/($T$57+273))*(Données1!X220-S66)*$C$66*VMOIS($H66) -> 22305.30852 | X66: =(0.622*X59*Données1!$BN254/100)/(101325-X59*Données1!$BN254/100) -> 0.01309656261 | Y66: =0.279166*Données1!$AD220*$D$61*Données1!$AD220/(1.292*273.15/($Y$57+273))*(Données1!$Z220-$Y$57)*24*VMOIS($H66)/1000 -> 5689.223329 | Z66: =0.680555*Données1!$AD220*$D$61*Données1!$AD220/(1.292*273.15/($Y$57+273))*(Données1!$AC220-X66)*24*VMOIS($H66) -> 20891.04007 | AA66: =0.279166*Données1!$Y220*$C$64*Données1!$Y220/(1.292*273.15/($Y$57+273))*(Données1!$U220-$Y$57)*$C$66*VMOIS($H66)/1000 -> 5653.00224 | AB66: =0.680555*Données1!$Y220*$C$64*Données1!$Y220/(1.292*273.15/($Y$57+273))*(Données1!X220-X66)*$C$66*VMOIS($H66) -> 20758.03488 | AC66: =(0.622*AC59*Données1!$BO254/100)/(101325-AC59*Données1!$BO254/100) -> 0.01365590873 | AD66: =0.279166*Données1!$AD220*$D$61*Données1!$AD220/(1.292*273.15/($AD$57+273))*(Données1!$Z220-$AD$57)*24*VMOIS($H66)/1000 -> 4396.968228 | AE66: =0.680555*Données1!$AD220*$D$61*Données1!$AD220/(1.292*273.15/($AD$57+273))*(Données1!$AC220-AC66)*24*VMOIS($H66) -> 19173.31328 | AF66: =0.279166*Données1!$Y220*$C$64*Données1!$Y220/(1.292*273.15/($AD$57+273))*(Données1!$U220-$AD$57)*$C$66*VMOIS($H66)/1000 -> 4368.974429 | AG66: =0.680555*Données1!$Y220*$C$64*Données1!$Y220/(1.292*273.15/($AD$57+273))*(Données1!X220-AC66)*$C$66*VMOIS($H66) -> 19051.24419 | AH66: =(0.622*AH59*Données1!$BP254/100)/(101325-AH59*Données1!$BP254/100) -> 0.01426138485 | AI66: =0.279166*Données1!$AD220*$D$61*Données1!$AD220/(1.292*273.15/($AI$57+273))*(Données1!$Z220-$AI$57)*24*VMOIS($H66)/1000 -> 3095.881643 | AJ66: =0.680555*Données1!$AD220*$D$61*Données1!$AD220/(1.292*273.15/($AI$57+273))*(Données1!$AC220-AH66)*24*VMOIS($H66) -> 17295.56363 | AK66: =0.279166*Données1!$Y220*$C$64*Données1!$Y220/(1.292*273.15/($AI$57+273))*(Données1!$U220-$AI$57)*$C$66*VMOIS($H66)/1000 -> 3076.17136 | AL66: =0.680555*Données1!$Y220*$C$64*Données1!$Y220/(1.292*273.15/($AI$57+273))*(Données1!X220-AH66)*$C$66*VMOIS($H66) -> 17185.44946 | AM66: =(0.622*AM59*Données1!$BQ254/100)/(101325-AM59*Données1!$BQ254/100) -> 0.01491348959 | AN66: =0.279166*Données1!$AD220*$D$61*Données1!$AD220/(1.292*273.15/($AN$57+273))*(Données1!$Z220-$AN$57)*24*VMOIS($H66)/1000 -> 1785.963573 | AO66: =0.680555*Données1!$AD220*$D$61*Données1!$AD220/(1.292*273.15/($AN$57+273))*(Données1!$AC220-AM66)*24*VMOIS($H66) -> 15254.69657 | AP66: =0.279166*Données1!$Y220*$C$64*Données1!$Y220/(1.292*273.15/($AN$57+273))*(Données1!$U220-$AN$57)*$C$66*VMOIS($H66)/1000 -> 1774.593033 | AQ66: =0.680555*Données1!$Y220*$C$64*Données1!$Y220/(1.292*273.15/($AN$57+273))*(Données1!X220-AM66)*$C$66*VMOIS($H66) -> 15157.5758
H67: Août | I67: =(0.622*I59*Données1!$BK255/100)/(101325-I59*Données1!$BK255/100) -> 0.0116365015 | J67: =0.279166*Données1!$AD221*$D$61*Données1!$AD221/(1.292*273.15/($J$57+273))*(Données1!$Z221-$J$57)*24*VMOIS($H67)/1000 -> 10273.76687 | K67: =0.680555*Données1!$AD221*$D$61*Données1!$AD221/(1.292*273.15/($J$57+273))*(Données1!$AC221-I67)*24*VMOIS($H67) -> 26387.36766 | L67: =0.279166*Données1!$Y221*$C$64*Données1!$Y221/(1.292*273.15/($J$57+273))*(Données1!$U221-$J$57)*$C$66*VMOIS($H67)/1000 -> 10208.35776 | M67: =0.680555*Données1!$Y221*$C$64*Données1!$Y221/(1.292*273.15/($J$57+273))*(Données1!$X221-I67)*$C$66*VMOIS($H67) -> 26219.36948 | N67: =(0.622*N59*Données1!$BK255/100)/(101325-N59*Données1!$BK255/100) -> 0.01239224824 | O67: =0.279166*Données1!$AD221*$D$61*Données1!$AD221/(1.292*273.15/($O$57+273))*(Données1!$Z221-$O$57)*24*VMOIS($H67)/1000 -> 9015.953301 | P67: =0.680555*Données1!$AD221*$D$61*Données1!$AD221/(1.292*273.15/($O$57+273))*(Données1!$AC221-N67)*24*VMOIS($H67) -> 24095.46726 | Q67: =0.279166*Données1!$Y221*$C$64*Données1!$Y221/(1.292*273.15/($O$57+273))*(Données1!$U221-$O$57)*$C$66*VMOIS($H67)/1000 -> 8958.552208 | R67: =0.680555*Données1!$Y221*$C$64*Données1!$Y221/(1.292*273.15/($O$57+273))*(Données1!X221-N67)*$C$66*VMOIS($H67) -> 23942.06072 | S67: =(0.622*S59*Données1!$BM255/100)/(101325-S59*Données1!$BM255/100) -> 0.0124802611 | T67: =0.279166*Données1!$AD221*$D$61*Données1!$AD221/(1.292*273.15/($T$57+273))*(Données1!$Z221-$T$57)*24*VMOIS($H67)/1000 -> 7749.34465 | U67: =0.680555*Données1!$AD221*$D$61*Données1!$AD221/(1.292*273.15/($T$57+273))*(Données1!$AC221-S67)*24*VMOIS($H67) -> 23899.08249 | V67: =0.279166*Données1!$Y221*$C$64*Données1!$Y221/(1.292*273.15/($T$57+273))*(Données1!$U221-$T$57)*$C$66*VMOIS($H67)/1000 -> 7700.007565 | W67: =0.680555*Données1!$Y221*$C$64*Données1!$Y221/(1.292*273.15/($T$57+273))*(Données1!X221-S67)*$C$66*VMOIS($H67) -> 23746.92626 | X67: =(0.622*X59*Données1!$BN255/100)/(101325-X59*Données1!$BN255/100) -> 0.01295253936 | Y67: =0.279166*Données1!$AD221*$D$61*Données1!$AD221/(1.292*273.15/($Y$57+273))*(Données1!$Z221-$Y$57)*24*VMOIS($H67)/1000 -> 6473.940914 | Z67: =0.680555*Données1!$AD221*$D$61*Données1!$AD221/(1.292*273.15/($Y$57+273))*(Données1!$AC221-X67)*24*VMOIS($H67) -> 22481.44551 | AA67: =0.279166*Données1!$Y221*$C$64*Données1!$Y221/(1.292*273.15/($Y$57+273))*(Données1!$U221-$Y$57)*$C$66*VMOIS($H67)/1000 -> 6432.723831 | AB67: =0.680555*Données1!$Y221*$C$64*Données1!$Y221/(1.292*273.15/($Y$57+273))*(Données1!X221-X67)*$C$66*VMOIS($H67) -> 22338.31482 | AC67: =(0.622*AC59*Données1!$BO255/100)/(101325-AC59*Données1!$BO255/100) -> 0.01346362465 | AD67: =0.279166*Données1!$AD221*$D$61*Données1!$AD221/(1.292*273.15/($AD$57+273))*(Données1!$Z221-$AD$57)*24*VMOIS($H67)/1000 -> 5189.742091 | AE67: =0.680555*Données1!$AD221*$D$61*Données1!$AD221/(1.292*273.15/($AD$57+273))*(Données1!$AC221-AC67)*24*VMOIS($H67) -> 20930.1226 | AF67: =0.279166*Données1!$Y221*$C$64*Données1!$Y221/(1.292*273.15/($AD$57+273))*(Données1!$U221-$AD$57)*$C$66*VMOIS($H67)/1000 -> 5156.701007 | AG67: =0.680555*Données1!$Y221*$C$64*Données1!$Y221/(1.292*273.15/($AD$57+273))*(Données1!X221-AC67)*$C$66*VMOIS($H67) -> 20796.86859 | AH67: =(0.622*AH59*Données1!$BP255/100)/(101325-AH59*Données1!$BP255/100) -> 0.01401861133 | AI67: =0.279166*Données1!$AD221*$D$61*Données1!$AD221/(1.292*273.15/($AI$57+273))*(Données1!$Z221-$AI$57)*24*VMOIS($H67)/1000 -> 3896.748183 | AJ67: =0.680555*Données1!$AD221*$D$61*Données1!$AD221/(1.292*273.15/($AI$57+273))*(Données1!$AC221-AH67)*24*VMOIS($H67) -> 19227.59079 | AK67: =0.279166*Données1!$Y221*$C$64*Données1!$Y221/(1.292*273.15/($AI$57+273))*(Données1!$U221-$AI$57)*$C$66*VMOIS($H67)/1000 -> 3871.939091 | AL67: =0.680555*Données1!$Y221*$C$64*Données1!$Y221/(1.292*273.15/($AI$57+273))*(Données1!X221-AH67)*$C$66*VMOIS($H67) -> 19105.17615 | AM67: =(0.622*AM59*Données1!$BQ255/100)/(101325-AM59*Données1!$BQ255/100) -> 0.01462108734 | AN67: =0.279166*Données1!$AD221*$D$61*Données1!$AD221/(1.292*273.15/($AN$57+273))*(Données1!$Z221-$AN$57)*24*VMOIS($H67)/1000 -> 2594.959188 | AO67: =0.680555*Données1!$AD221*$D$61*Données1!$AD221/(1.292*273.15/($AN$57+273))*(Données1!$AC221-AM67)*24*VMOIS($H67) -> 17360.93743 | AP67: =0.279166*Données1!$Y221*$C$64*Données1!$Y221/(1.292*273.15/($AN$57+273))*(Données1!$U221-$AN$57)*$C$66*VMOIS($H67)/1000 -> 2578.438085 | AQ67: =0.680555*Données1!$Y221*$C$64*Données1!$Y221/(1.292*273.15/($AN$57+273))*(Données1!X221-AM67)*$C$66*VMOIS($H67) -> 17250.40704
H68: Septembre | I68: =(0.622*I59*Données1!$BK256/100)/(101325-I59*Données1!$BK256/100) -> 0.01165802604 | J68: =0.279166*Données1!$AD222*$D$61*Données1!$AD222/(1.292*273.15/($J$57+273))*(Données1!$Z222-$J$57)*24*VMOIS($H68)/1000 -> 10064.54139 | K68: =0.680555*Données1!$AD222*$D$61*Données1!$AD222/(1.292*273.15/($J$57+273))*(Données1!$AC222-I68)*24*VMOIS($H68) -> 26575.32846 | L68: =0.279166*Données1!$Y222*$C$64*Données1!$Y222/(1.292*273.15/($J$57+273))*(Données1!$U222-$J$57)*$C$66*VMOIS($H68)/1000 -> 10000.46434 | M68: =0.680555*Données1!$Y222*$C$64*Données1!$Y222/(1.292*273.15/($J$57+273))*(Données1!$X222-I68)*$C$66*VMOIS($H68) -> 26406.1336 | N68: =(0.622*N59*Données1!$BK256/100)/(101325-N59*Données1!$BK256/100) -> 0.01241519811 | O68: =0.279166*Données1!$AD222*$D$61*Données1!$AD222/(1.292*273.15/($O$57+273))*(Données1!$Z222-$O$57)*24*VMOIS($H68)/1000 -> 8848.579927 | P68: =0.680555*Données1!$AD222*$D$61*Données1!$AD222/(1.292*273.15/($O$57+273))*(Données1!$AC222-N68)*24*VMOIS($H68) -> 24358.1478 | Q68: =0.279166*Données1!$Y222*$C$64*Données1!$Y222/(1.292*273.15/($O$57+273))*(Données1!$U222-$O$57)*$C$66*VMOIS($H68)/1000 -> 8792.244435 | R68: =0.680555*Données1!$Y222*$C$64*Données1!$Y222/(1.292*273.15/($O$57+273))*(Données1!X222-N68)*$C$66*VMOIS($H68) -> 24203.06888 | S68: =(0.622*S59*Données1!$BM256/100)/(101325-S59*Données1!$BM256/100) -> 0.01250340149 | T68: =0.279166*Données1!$AD222*$D$61*Données1!$AD222/(1.292*273.15/($T$57+273))*(Données1!$Z222-$T$57)*24*VMOIS($H68)/1000 -> 7624.112942 | U68: =0.680555*Données1!$AD222*$D$61*Données1!$AD222/(1.292*273.15/($T$57+273))*(Données1!$AC222-S68)*24*VMOIS($H68) -> 24171.23788 | V68: =0.279166*Données1!$Y222*$C$64*Données1!$Y222/(1.292*273.15/($T$57+273))*(Données1!$U222-$T$57)*$C$66*VMOIS($H68)/1000 -> 7575.573159 | W68: =0.680555*Données1!$Y222*$C$64*Données1!$Y222/(1.292*273.15/($T$57+273))*(Données1!X222-S68)*$C$66*VMOIS($H68) -> 24017.34894 | X68: =(0.622*X59*Données1!$BN256/100)/(101325-X59*Données1!$BN256/100) -> 0.01297696766 | Y68: =0.279166*Données1!$AD222*$D$61*Données1!$AD222/(1.292*273.15/($Y$57+273))*(Données1!$Z222-$Y$57)*24*VMOIS($H68)/1000 -> 6391.140438 | Z68: =0.680555*Données1!$AD222*$D$61*Données1!$AD222/(1.292*273.15/($Y$57+273))*(Données1!$AC222-X68)*24*VMOIS($H68) -> 22799.91213 | AA68: =0.279166*Données1!$Y222*$C$64*Données1!$Y222/(1.292*273.15/($Y$57+273))*(Données1!$U222-$Y$57)*$C$66*VMOIS($H68)/1000 -> 6350.450514 | AB68: =0.680555*Données1!$Y222*$C$64*Données1!$Y222/(1.292*273.15/($Y$57+273))*(Données1!X222-X68)*$C$66*VMOIS($H68) -> 22654.75389 | AC68: =(0.622*AC59*Données1!$BO256/100)/(101325-AC59*Données1!$BO256/100) -> 0.01348928552 | AD68: =0.279166*Données1!$AD222*$D$61*Données1!$AD222/(1.292*273.15/($AD$57+273))*(Données1!$Z222-$AD$57)*24*VMOIS($H68)/1000 -> 5149.662413 | AE68: =0.680555*Données1!$AD222*$D$61*Données1!$AD222/(1.292*273.15/($AD$57+273))*(Données1!$AC222-AC68)*24*VMOIS($H68) -> 21299.44557 | AF68: =0.279166*Données1!$Y222*$C$64*Données1!$Y222/(1.292*273.15/($AD$57+273))*(Données1!$U222-$AD$57)*$C$66*VMOIS($H68)/1000 -> 5116.876501 | AG68: =0.680555*Données1!$Y222*$C$64*Données1!$Y222/(1.292*273.15/($AD$57+273))*(Données1!X222-AC68)*$C$66*VMOIS($H68) -> 21163.84022 | AH68: =(0.622*AH59*Données1!$BP256/100)/(101325-AH59*Données1!$BP256/100) -> 0.01404415236 | AI68: =0.279166*Données1!$AD222*$D$61*Données1!$AD222/(1.292*273.15/($AI$57+273))*(Données1!$Z222-$AI$57)*24*VMOIS($H68)/1000 -> 3899.678869 | AJ68: =0.680555*Données1!$AD222*$D$61*Données1!$AD222/(1.292*273.15/($AI$57+273))*(Données1!$AC222-AH68)*24*VMOIS($H68) -> 19656.90117 | AK68: =0.279166*Données1!$Y222*$C$64*Données1!$Y222/(1.292*273.15/($AI$57+273))*(Données1!$U222-$AI$57)*$C$66*VMOIS($H68)/1000 -> 3874.851119 | AL68: =0.680555*Données1!$Y222*$C$64*Données1!$Y222/(1.292*273.15/($AI$57+273))*(Données1!X222-AH68)*$C$66*VMOIS($H68) -> 19531.75327 | AM68: =(0.622*AM59*Données1!$BQ256/100)/(101325-AM59*Données1!$BQ256/100) -> 0.01464552311 | AN68: =0.279166*Données1!$AD222*$D$61*Données1!$AD222/(1.292*273.15/($AN$57+273))*(Données1!$Z222-$AN$57)*24*VMOIS($H68)/1000 -> 2641.189804 | AO68: =0.680555*Données1!$AD222*$D$61*Données1!$AD222/(1.292*273.15/($AN$57+273))*(Données1!$AC222-AM68)*24*VMOIS($H68) -> 17858.69585 | AP68: =0.279166*Données1!$Y222*$C$64*Données1!$Y222/(1.292*273.15/($AN$57+273))*(Données1!$U222-$AN$57)*$C$66*VMOIS($H68)/1000 -> 2624.374368 | AQ68: =0.680555*Données1!$Y222*$C$64*Données1!$Y222/(1.292*273.15/($AN$57+273))*(Données1!X222-AM68)*$C$66*VMOIS($H68) -> 17744.99643
H69: Octobre | I69: =(0.622*I59*Données1!$BK257/100)/(101325-I59*Données1!$BK257/100) -> 0.01160986535 | J69: =0.279166*Données1!$AD223*$D$61*Données1!$AD223/(1.292*273.15/($J$57+273))*(Données1!$Z223-$J$57)*24*VMOIS($H69)/1000 -> 10808.66743 | K69: =0.680555*Données1!$AD223*$D$61*Données1!$AD223/(1.292*273.15/($J$57+273))*(Données1!$AC223-I69)*24*VMOIS($H69) -> 27552.26218 | L69: =0.279166*Données1!$Y223*$C$64*Données1!$Y223/(1.292*273.15/($J$57+273))*(Données1!$U223-$J$57)*$C$66*VMOIS($H69)/1000 -> 10739.85282 | M69: =0.680555*Données1!$Y223*$C$64*Données1!$Y223/(1.292*273.15/($J$57+273))*(Données1!$X223-I69)*$C$66*VMOIS($H69) -> 27376.84756 | N69: =(0.622*N59*Données1!$BK257/100)/(101325-N59*Données1!$BK257/100) -> 0.01236384842 | O69: =0.279166*Données1!$AD223*$D$61*Données1!$AD223/(1.292*273.15/($O$57+273))*(Données1!$Z223-$O$57)*24*VMOIS($H69)/1000 -> 9556.44852 | P69: =0.680555*Données1!$AD223*$D$61*Données1!$AD223/(1.292*273.15/($O$57+273))*(Données1!$AC223-N69)*24*VMOIS($H69) -> 25276.82406 | Q69: =0.279166*Données1!$Y223*$C$64*Données1!$Y223/(1.292*273.15/($O$57+273))*(Données1!$U223-$O$57)*$C$66*VMOIS($H69)/1000 -> 9495.606302 | R69: =0.680555*Données1!$Y223*$C$64*Données1!$Y223/(1.292*273.15/($O$57+273))*(Données1!X223-N69)*$C$66*VMOIS($H69) -> 25115.89628 | S69: =(0.622*S59*Données1!$BM257/100)/(101325-S59*Données1!$BM257/100) -> 0.0124257078 | T69: =0.279166*Données1!$AD223*$D$61*Données1!$AD223/(1.292*273.15/($T$57+273))*(Données1!$Z223-$T$57)*24*VMOIS($H69)/1000 -> 8295.460163 | U69: =0.680555*Données1!$AD223*$D$61*Données1!$AD223/(1.292*273.15/($T$57+273))*(Données1!$AC223-S69)*24*VMOIS($H69) -> 25167.73866 | V69: =0.279166*Données1!$Y223*$C$64*Données1!$Y223/(1.292*273.15/($T$57+273))*(Données1!$U223-$T$57)*$C$66*VMOIS($H69)/1000 -> 8242.646171 | W69: =0.680555*Données1!$Y223*$C$64*Données1!$Y223/(1.292*273.15/($T$57+273))*(Données1!X223-S69)*$C$66*VMOIS($H69) -> 25007.50538 | X69: =(0.622*X59*Données1!$BN257/100)/(101325-X59*Données1!$BN257/100) -> 0.01288073233 | Y69: =0.279166*Données1!$AD223*$D$61*Données1!$AD223/(1.292*273.15/($Y$57+273))*(Données1!$Z223-$Y$57)*24*VMOIS($H69)/1000 -> 7025.70236 | Z69: =0.680555*Données1!$AD223*$D$61*Données1!$AD223/(1.292*273.15/($Y$57+273))*(Données1!$AC223-X69)*24*VMOIS($H69) -> 23813.3617 | AA69: =0.279166*Données1!$Y223*$C$64*Données1!$Y223/(1.292*273.15/($Y$57+273))*(Données1!$U223-$Y$57)*$C$66*VMOIS($H69)/1000 -> 6980.972426 | AB69: =0.680555*Données1!$Y223*$C$64*Données1!$Y223/(1.292*273.15/($Y$57+273))*(Données1!X223-X69)*$C$66*VMOIS($H69) -> 23661.75122 | AC69: =(0.622*AC59*Données1!$BO257/100)/(101325-AC59*Données1!$BO257/100) -> 0.01337247996 | AD69: =0.279166*Données1!$AD223*$D$61*Données1!$AD223/(1.292*273.15/($AD$57+273))*(Données1!$Z223-$AD$57)*24*VMOIS($H69)/1000 -> 5747.175111 | AE69: =0.680555*Données1!$AD223*$D$61*Données1!$AD223/(1.292*273.15/($AD$57+273))*(Données1!$AC223-AC69)*24*VMOIS($H69) -> 22332.67317 | AF69: =0.279166*Données1!$Y223*$C$64*Données1!$Y223/(1.292*273.15/($AD$57+273))*(Données1!$U223-$AD$57)*$C$66*VMOIS($H69)/1000 -> 5710.585066 | AG69: =0.680555*Données1!$Y223*$C$64*Données1!$Y223/(1.292*273.15/($AD$57+273))*(Données1!X223-AC69)*$C$66*VMOIS($H69) -> 22190.48967 | AH69: =(0.622*AH59*Données1!$BP257/100)/(101325-AH59*Données1!$BP257/100) -> 0.01390479533 | AI69: =0.279166*Données1!$AD223*$D$61*Données1!$AD223/(1.292*273.15/($AI$57+273))*(Données1!$Z223-$AI$57)*24*VMOIS($H69)/1000 -> 4459.878416 | AJ69: =0.680555*Données1!$AD223*$D$61*Données1!$AD223/(1.292*273.15/($AI$57+273))*(Données1!$AC223-AH69)*24*VMOIS($H69) -> 20712.24888 | AK69: =0.279166*Données1!$Y223*$C$64*Données1!$Y223/(1.292*273.15/($AI$57+273))*(Données1!$U223-$AI$57)*$C$66*VMOIS($H69)/1000 -> 4431.484092 | AL69: =0.680555*Données1!$Y223*$C$64*Données1!$Y223/(1.292*273.15/($AI$57+273))*(Données1!X223-AH69)*$C$66*VMOIS($H69) -> 20580.38198 | AM69: =(0.622*AM59*Données1!$BQ257/100)/(101325-AM59*Données1!$BQ257/100) -> 0.01448261668 | AN69: =0.279166*Données1!$AD223*$D$61*Données1!$AD223/(1.292*273.15/($AN$57+273))*(Données1!$Z223-$AN$57)*24*VMOIS($H69)/1000 -> 3163.812275 | AO69: =0.680555*Données1!$AD223*$D$61*Données1!$AD223/(1.292*273.15/($AN$57+273))*(Données1!$AC223-AM69)*24*VMOIS($H69) -> 18935.00506 | AP69: =0.279166*Données1!$Y223*$C$64*Données1!$Y223/(1.292*273.15/($AN$57+273))*(Données1!$U223-$AN$57)*$C$66*VMOIS($H69)/1000 -> 3143.669504 | AQ69: =0.680555*Données1!$Y223*$C$64*Données1!$Y223/(1.292*273.15/($AN$57+273))*(Données1!X223-AM69)*$C$66*VMOIS($H69) -> 18814.45319
H70: Novembre | I70: =(0.622*I59*Données1!$BK258/100)/(101325-I59*Données1!$BK258/100) -> 0.01168953292 | J70: =0.279166*Données1!$AD224*$D$61*Données1!$AD224/(1.292*273.15/($J$57+273))*(Données1!$Z224-$J$57)*24*VMOIS($H70)/1000 -> 9351.613214 | K70: =0.680555*Données1!$AD224*$D$61*Données1!$AD224/(1.292*273.15/($J$57+273))*(Données1!$AC224-I70)*24*VMOIS($H70) -> 25246.13692 | L70: =0.279166*Données1!$Y224*$C$64*Données1!$Y224/(1.292*273.15/($J$57+273))*(Données1!$U224-$J$57)*$C$66*VMOIS($H70)/1000 -> 9292.075103 | M70: =0.680555*Données1!$Y224*$C$64*Données1!$Y224/(1.292*273.15/($J$57+273))*(Données1!$X224-I70)*$C$66*VMOIS($H70) -> 25085.40452 | N70: =(0.622*N59*Données1!$BK258/100)/(101325-N59*Données1!$BK258/100) -> 0.01244879152 | O70: =0.279166*Données1!$AD224*$D$61*Données1!$AD224/(1.292*273.15/($O$57+273))*(Données1!$Z224-$O$57)*24*VMOIS($H70)/1000 -> 8128.202414 | P70: =0.680555*Données1!$AD224*$D$61*Données1!$AD224/(1.292*273.15/($O$57+273))*(Données1!$AC224-N70)*24*VMOIS($H70) -> 23008.77546 | Q70: =0.279166*Données1!$Y224*$C$64*Données1!$Y224/(1.292*273.15/($O$57+273))*(Données1!$U224-$O$57)*$C$66*VMOIS($H70)/1000 -> 8076.453288 | R70: =0.680555*Données1!$Y224*$C$64*Données1!$Y224/(1.292*273.15/($O$57+273))*(Données1!X224-N70)*$C$66*VMOIS($H70) -> 22862.28747 | S70: =(0.622*S59*Données1!$BM258/100)/(101325-S59*Données1!$BM258/100) -> 0.01256177251 | T70: =0.279166*Données1!$AD224*$D$61*Données1!$AD224/(1.292*273.15/($T$57+273))*(Données1!$Z224-$T$57)*24*VMOIS($H70)/1000 -> 6896.251972 | U70: =0.680555*Données1!$AD224*$D$61*Données1!$AD224/(1.292*273.15/($T$57+273))*(Données1!$AC224-S70)*24*VMOIS($H70) -> 22740.10982 | V70: =0.279166*Données1!$Y224*$C$64*Données1!$Y224/(1.292*273.15/($T$57+273))*(Données1!$U224-$T$57)*$C$66*VMOIS($H70)/1000 -> 6852.346198 | W70: =0.680555*Données1!$Y224*$C$64*Données1!$Y224/(1.292*273.15/($T$57+273))*(Données1!X224-S70)*$C$66*VMOIS($H70) -> 22595.33232 | X70: =(0.622*X59*Données1!$BN258/100)/(101325-X59*Données1!$BN258/100) -> 0.01305446267 | Y70: =0.279166*Données1!$AD224*$D$61*Données1!$AD224/(1.292*273.15/($Y$57+273))*(Données1!$Z224-$Y$57)*24*VMOIS($H70)/1000 -> 5655.761886 | Z70: =0.680555*Données1!$AD224*$D$61*Données1!$AD224/(1.292*273.15/($Y$57+273))*(Données1!$AC224-X70)*24*VMOIS($H70) -> 21299.18001 | AA70: =0.279166*Données1!$Y224*$C$64*Données1!$Y224/(1.292*273.15/($Y$57+273))*(Données1!$U224-$Y$57)*$C$66*VMOIS($H70)/1000 -> 5619.753834 | AB70: =0.680555*Données1!$Y224*$C$64*Données1!$Y224/(1.292*273.15/($Y$57+273))*(Données1!X224-X70)*$C$66*VMOIS($H70) -> 21163.57636 | AC70: =(0.622*AC59*Données1!$BO258/100)/(101325-AC59*Données1!$BO258/100) -> 0.01359011195 | AD70: =0.279166*Données1!$AD224*$D$61*Données1!$AD224/(1.292*273.15/($AD$57+273))*(Données1!$Z224-$AD$57)*24*VMOIS($H70)/1000 -> 4406.732157 | AE70: =0.680555*Données1!$AD224*$D$61*Données1!$AD224/(1.292*273.15/($AD$57+273))*(Données1!$AC224-AC70)*24*VMOIS($H70) -> 19715.18595 | AF70: =0.279166*Données1!$Y224*$C$64*Données1!$Y224/(1.292*273.15/($AD$57+273))*(Données1!$U224-$AD$57)*$C$66*VMOIS($H70)/1000 -> 4378.676194 | AG70: =0.680555*Données1!$Y224*$C$64*Données1!$Y224/(1.292*273.15/($AD$57+273))*(Données1!X224-AC70)*$C$66*VMOIS($H70) -> 19589.66697 | AH70: =(0.622*AH59*Données1!$BP258/100)/(101325-AH59*Données1!$BP258/100) -> 0.01417352377 | AI70: =0.279166*Données1!$AD224*$D$61*Données1!$AD224/(1.292*273.15/($AI$57+273))*(Données1!$Z224-$AI$57)*24*VMOIS($H70)/1000 -> 3149.162784 | AJ70: =0.680555*Données1!$AD224*$D$61*Données1!$AD224/(1.292*273.15/($AI$57+273))*(Données1!$AC224-AH70)*24*VMOIS($H70) -> 17971.88645 | AK70: =0.279166*Données1!$Y224*$C$64*Données1!$Y224/(1.292*273.15/($AI$57+273))*(Données1!$U224-$AI$57)*$C$66*VMOIS($H70)/1000 -> 3129.113281 | AL70: =0.680555*Données1!$Y224*$C$64*Données1!$Y224/(1.292*273.15/($AI$57+273))*(Données1!X224-AH70)*$C$66*VMOIS($H70) -> 17857.46639 | AM70: =(0.622*AM59*Données1!$BQ258/100)/(101325-AM59*Données1!$BQ258/100) -> 0.01480578859 | AN70: =0.279166*Données1!$AD224*$D$61*Données1!$AD224/(1.292*273.15/($AN$57+273))*(Données1!$Z224-$AN$57)*24*VMOIS($H70)/1000 -> 1883.053768 | AO70: =0.680555*Données1!$AD224*$D$61*Données1!$AD224/(1.292*273.15/($AN$57+273))*(Données1!$AC224-AM70)*24*VMOIS($H70) -> 16064.39618 | AP70: =0.279166*Données1!$Y224*$C$64*Données1!$Y224/(1.292*273.15/($AN$57+273))*(Données1!$U224-$AN$57)*$C$66*VMOIS($H70)/1000 -> 1871.065092 | AQ70: =0.680555*Données1!$Y224*$C$64*Données1!$Y224/(1.292*273.15/($AN$57+273))*(Données1!X224-AM70)*$C$66*VMOIS($H70) -> 15962.12037
H71: Décembre | I71: =(0.622*I59*Données1!$BK259/100)/(101325-I59*Données1!$BK259/100) -> 0.01180977717 | J71: =0.279166*Données1!$AD225*$D$61*Données1!$AD225/(1.292*273.15/($J$57+273))*(Données1!$Z225-$J$57)*24*VMOIS($H71)/1000 -> 9494.640103 | K71: =0.680555*Données1!$AD225*$D$61*Données1!$AD225/(1.292*273.15/($J$57+273))*(Données1!$AC225-I71)*24*VMOIS($H71) -> 25686.0594 | L71: =0.279166*Données1!$Y225*$C$64*Données1!$Y225/(1.292*273.15/($J$57+273))*(Données1!$U225-$J$57)*$C$66*VMOIS($H71)/1000 -> 9434.191395 | M71: =0.680555*Données1!$Y225*$C$64*Données1!$Y225/(1.292*273.15/($J$57+273))*(Données1!$X225-I71)*$C$66*VMOIS($H71) -> 25522.52618 | N71: =(0.622*N59*Données1!$BK259/100)/(101325-N59*Données1!$BK259/100) -> 0.01257700089 | O71: =0.279166*Données1!$AD225*$D$61*Données1!$AD225/(1.292*273.15/($O$57+273))*(Données1!$Z225-$O$57)*24*VMOIS($H71)/1000 -> 8228.687812 | P71: =0.680555*Données1!$AD225*$D$61*Données1!$AD225/(1.292*273.15/($O$57+273))*(Données1!$AC225-N71)*24*VMOIS($H71) -> 23345.34364 | Q71: =0.279166*Données1!$Y225*$C$64*Données1!$Y225/(1.292*273.15/($O$57+273))*(Données1!$U225-$O$57)*$C$66*VMOIS($H71)/1000 -> 8176.298934 | R71: =0.680555*Données1!$Y225*$C$64*Données1!$Y225/(1.292*273.15/($O$57+273))*(Données1!X225-N71)*$C$66*VMOIS($H71) -> 23196.71285 | S71: =(0.622*S59*Données1!$BM259/100)/(101325-S59*Données1!$BM259/100) -> 0.01277463745 | T71: =0.279166*Données1!$AD225*$D$61*Données1!$AD225/(1.292*273.15/($T$57+273))*(Données1!$Z225-$T$57)*24*VMOIS($H71)/1000 -> 6953.903159 | U71: =0.680555*Données1!$AD225*$D$61*Données1!$AD225/(1.292*273.15/($T$57+273))*(Données1!$AC225-S71)*24*VMOIS($H71) -> 22797.0716 | V71: =0.279166*Données1!$Y225*$C$64*Données1!$Y225/(1.292*273.15/($T$57+273))*(Données1!$U225-$T$57)*$C$66*VMOIS($H71)/1000 -> 6909.630343 | W71: =0.680555*Données1!$Y225*$C$64*Données1!$Y225/(1.292*273.15/($T$57+273))*(Données1!X225-S71)*$C$66*VMOIS($H71) -> 22651.93145 | X71: =(0.622*X59*Données1!$BN259/100)/(101325-X59*Données1!$BN259/100) -> 0.0133209964 | Y71: =0.279166*Données1!$AD225*$D$61*Données1!$AD225/(1.292*273.15/($Y$57+273))*(Données1!$Z225-$Y$57)*24*VMOIS($H71)/1000 -> 5670.286145 | Z71: =0.680555*Données1!$AD225*$D$61*Données1!$AD225/(1.292*273.15/($Y$57+273))*(Données1!$AC225-X71)*24*VMOIS($H71) -> 21133.27539 | AA71: =0.279166*Données1!$Y225*$C$64*Données1!$Y225/(1.292*273.15/($Y$57+273))*(Données1!$U225-$Y$57)*$C$66*VMOIS($H71)/1000 -> 5634.185622 | AB71: =0.680555*Données1!$Y225*$C$64*Données1!$Y225/(1.292*273.15/($Y$57+273))*(Données1!X225-X71)*$C$66*VMOIS($H71) -> 20998.72799 | AC71: =(0.622*AC59*Données1!$BO259/100)/(101325-AC59*Données1!$BO259/100) -> 0.01391606389 | AD71: =0.279166*Données1!$AD225*$D$61*Données1!$AD225/(1.292*273.15/($AD$57+273))*(Données1!$Z225-$AD$57)*24*VMOIS($H71)/1000 -> 4377.836768 | AE71: =0.680555*Données1!$AD225*$D$61*Données1!$AD225/(1.292*273.15/($AD$57+273))*(Données1!$AC225-AC71)*24*VMOIS($H71) -> 19301.97193 | AF71: =0.279166*Données1!$Y225*$C$64*Données1!$Y225/(1.292*273.15/($AD$57+273))*(Données1!$U225-$AD$57)*$C$66*VMOIS($H71)/1000 -> 4349.964772 | AG71: =0.680555*Données1!$Y225*$C$64*Données1!$Y225/(1.292*273.15/($AD$57+273))*(Données1!X225-AC71)*$C$66*VMOIS($H71) -> 19179.08372 | AH71: =(0.622*AH59*Données1!$BP259/100)/(101325-AH59*Données1!$BP259/100) -> 0.01456336103 | AI71: =0.279166*Données1!$AD225*$D$61*Données1!$AD225/(1.292*273.15/($AI$57+273))*(Données1!$Z225-$AI$57)*24*VMOIS($H71)/1000 -> 3076.55503 | AJ71: =0.680555*Données1!$AD225*$D$61*Données1!$AD225/(1.292*273.15/($AI$57+273))*(Données1!$AC225-AH71)*24*VMOIS($H71) -> 17290.29157 | AK71: =0.279166*Données1!$Y225*$C$64*Données1!$Y225/(1.292*273.15/($AI$57+273))*(Données1!$U225-$AI$57)*$C$66*VMOIS($H71)/1000 -> 3056.967792 | AL71: =0.680555*Données1!$Y225*$C$64*Données1!$Y225/(1.292*273.15/($AI$57+273))*(Données1!X225-AH71)*$C$66*VMOIS($H71) -> 17180.21096 | AM71: =(0.622*AM59*Données1!$BQ259/100)/(101325-AM59*Données1!$BQ259/100) -> 0.01526424727 | AN71: =0.279166*Données1!$AD225*$D$61*Données1!$AD225/(1.292*273.15/($AN$57+273))*(Données1!$Z225-$AN$57)*24*VMOIS($H71)/1000 -> 1766.440929 | AO71: =0.680555*Données1!$AD225*$D$61*Données1!$AD225/(1.292*273.15/($AN$57+273))*(Données1!$AC225-AM71)*24*VMOIS($H71) -> 15092.17143 | AP71: =0.279166*Données1!$Y225*$C$64*Données1!$Y225/(1.292*273.15/($AN$57+273))*(Données1!$U225-$AN$57)*$C$66*VMOIS($H71)/1000 -> 1755.194682 | AQ71: =0.680555*Données1!$Y225*$C$64*Données1!$Y225/(1.292*273.15/($AN$57+273))*(Données1!X225-AM71)*$C$66*VMOIS($H71) -> 14996.0854
B72: Apports solaires parois opaques | I72: H spé. Int | N72: H spé. Int | S72: H spé. Int | X72: H spé. Int | AC72: H spé. Int | AH72: H spé. Int | AM72: H spé. Int
F74: MURS
B75: coeff échanges radiatif int et ext | C75: 5.5 | E75: He (W/m².K) | F75: =C76+C75 -> 24.88
B76: coeff échanges convectif ext | C76: =Données1!T187 -> 19.38 | E76: Hi (W/m².K) | F76: =C75+C77 -> 8
B77: coeff échanges convectif int MURS | C77: 2.5 | F77: TOIT
B78: coeff échanges convectif int TOIT | C78: 2.85 | E78: He (W/m².K) | F78: =C76+C75 -> 24.88
E79: Hi (W/m².K) | F79: =C75+C78 -> 8.35
C81: =Calculs!$B$7 -> Est | D81: =Calculs!$C$7 -> Sud | E81: =Calculs!$D$7 -> Ouest | F81: =Calculs!$E$7 -> Nord | G81: Toit
B82: Surf paroi opaque (m²) | C82: =Calculs!B13 -> 188.2671721 | D82: =Calculs!C13 -> 53.79062061 | E82: =Calculs!D13 -> 188.2671721 | F82: =Calculs!E13 -> 53.79062061 | G82: =Calculs!F2 -> 1500
B83: Facteur solaire | C83: =VLOOKUP(C81,$H$2:$I$10,2,FALSE) -> 0.06 | D83: =VLOOKUP(D81,$H$2:$I$10,2,FALSE) -> 0.08 | E83: =VLOOKUP(E81,$H$2:$I$10,2,FALSE) -> 0.06 | F83: 0.08 | G83: =I10 -> 0.015
C85: Brut | D85: Net 1 | E85: Net 2 | F85: Net 3 | G85: 20 | H85: 21 | I85: 22 | J85: 23 | K85: 24 | L85: 25 | M85: 26
B86: Janvier | C86: =(Données1!AK31*$C$82*$C$83+Données1!AL31*$D$82*$D$83+Données1!AM31*$E$82*$E$83+Données1!AN31*$F$82*$F$83+Données1!AO31*$G$82*$G$83)/1000 -> 4642.990312 | D86: =C86*(1-(5.5/8)*($C$47/8)) -> 4020.249546 | E86: =D86-K25-I25 -> 1628.401433 | F86: =E86-(F119+F135)*($C$47/8) -> 972.2549095 | G86: =F86+I42 -> 21825.4805 | H86: =F86+K42 -> 18915.42792 | I86: =F86+M42 -> 16005.37534 | J86: =F86+O42 -> 13095.32275 | K86: =F86+Q42 -> 10185.27017 | L86: =F86+S42 -> 7275.21759 | M86: =F86+U42 -> 4365.165007
B87: Février | C87: =(Données1!AK32*$C$82*$C$83+Données1!AL32*$D$82*$D$83+Données1!AM32*$E$82*$E$83+Données1!AN32*$F$82*$F$83+Données1!AO32*$G$82*$G$83)/1000 -> 4373.723496 | D87: 3787.098124 | E87: 1639.000362 | F87: 1046.35189 | G87: 19711.70882 | H87: 17083.27423 | I87: 14454.83964 | J87: 11826.40504 | K87: 9197.970454 | L87: 6569.535863 | M87: 3941.101273
B88: Mars | C88: =(Données1!AK33*$C$82*$C$83+Données1!AL33*$D$82*$D$83+Données1!AM33*$E$82*$E$83+Données1!AN33*$F$82*$F$83+Données1!AO33*$G$82*$G$83)/1000 -> 5129.07099 | D88: 4441.134686 | E88: 2101.172252 | F88: 1445.025729 | G88: 22192.30233 | H88: 19282.24975 | I88: 16372.19717 | J88: 13462.14458 | K88: 10552.092 | L88: 7642.039418 | M88: 4731.986836
B89: Avril | C89: =(Données1!AK34*$C$82*$C$83+Données1!AL34*$D$82*$D$83+Données1!AM34*$E$82*$E$83+Données1!AN34*$F$82*$F$83+Données1!AO34*$G$82*$G$83)/1000 -> 5108.180207 | D89: 4423.045877 | E89: 2105.728194 | F89: 1470.747688 | G89: 22206.63245 | H89: 19390.45253 | I89: 16574.27261 | J89: 13758.0927 | K89: 10941.91278 | L89: 8125.732858 | M89: 5309.552939
B90: Mai | C90: =(Données1!AK35*$C$82*$C$83+Données1!AL35*$D$82*$D$83+Données1!AM35*$E$82*$E$83+Données1!AN35*$F$82*$F$83+Données1!AO35*$G$82*$G$83)/1000 -> 5133.768436 | D90: 4445.202087 | E90: 2098.215147 | F90: 1442.068624 | G90: 24325.43725 | H90: 21415.38467 | I90: 18505.33209 | J90: 15595.2795 | K90: 12685.22692 | L90: 9775.174339 | M90: 6865.121756
B91: Juin | C91: =(Données1!AK36*$C$82*$C$83+Données1!AL36*$D$82*$D$83+Données1!AM36*$E$82*$E$83+Données1!AN36*$F$82*$F$83+Données1!AO36*$G$82*$G$83)/1000 -> 5266.407055 | D91: 4560.05056 | E91: 2061.049642 | F91: 1426.069136 | G91: 20904.89137 | H91: 18088.71145 | I91: 15272.53153 | J91: 12456.35161 | K91: 9640.171692 | L91: 6823.991773 | M91: 4007.811854
B92: Juillet | C92: =(Données1!AK37*$C$82*$C$83+Données1!AL37*$D$82*$D$83+Données1!AM37*$E$82*$E$83+Données1!AN37*$F$82*$F$83+Données1!AO37*$G$82*$G$83)/1000 -> 6109.711537 | D92: 5290.246885 | E92: 2504.581045 | F92: 1848.434522 | G92: 23245.14373 | H92: 20335.09114 | I92: 17425.03856 | J92: 14514.98598 | K92: 11604.9334 | L92: 8694.880813 | M92: 5784.82823
B93: Août | C93: =(Données1!AK38*$C$82*$C$83+Données1!AL38*$D$82*$D$83+Données1!AM38*$E$82*$E$83+Données1!AN38*$F$82*$F$83+Données1!AO38*$G$82*$G$83)/1000 -> 6601.453282 | D93: 5716.033801 | E93: 2801.445234 | F93: 2145.298711 | G93: 25348.76334 | H93: 22438.71076 | I93: 19528.65818 | J93: 16618.6056 | K93: 13708.55301 | L93: 10798.50043 | M93: 7888.447848
B94: Septembre | C94: =(Données1!AK39*$C$82*$C$83+Données1!AL39*$D$82*$D$83+Données1!AM39*$E$82*$E$83+Données1!AN39*$F$82*$F$83+Données1!AO39*$G$82*$G$83)/1000 -> 6753.382269 | D94: 5847.585322 | E94: 2928.306506 | F94: 2293.326 | G94: 25039.89478 | H94: 22223.71486 | I94: 19407.53494 | J94: 16591.35502 | K94: 13775.1751 | L94: 10958.99518 | M94: 8142.815265
B95: Octobre | C95: =(Données1!AK40*$C$82*$C$83+Données1!AL40*$D$82*$D$83+Données1!AM40*$E$82*$E$83+Données1!AN40*$F$82*$F$83+Données1!AO40*$G$82*$G$83)/1000 -> 6855.456398 | D95: 5935.968766 | E95: 2757.736301 | F95: 2101.589778 | G95: 26584.50948 | H95: 23674.4569 | I95: 20764.40432 | J95: 17854.35174 | K95: 14944.29915 | L95: 12034.24657 | M95: 9124.19399
B96: Novembre | C96: =(Données1!AK41*$C$82*$C$83+Données1!AL41*$D$82*$D$83+Données1!AM41*$E$82*$E$83+Données1!AN41*$F$82*$F$83+Données1!AO41*$G$82*$G$83)/1000 -> 6072.822946 | D96: 5258.305974 | E96: 2187.811479 | F96: 1552.830973 | G96: 22603.67808 | H96: 19787.49816 | I96: 16971.31824 | J96: 14155.13832 | K96: 11338.95841 | L96: 8522.778487 | M96: 5706.598569
B97: Décembre | C97: =(Données1!AK42*$C$82*$C$83+Données1!AL42*$D$82*$D$83+Données1!AM42*$E$82*$E$83+Données1!AN42*$F$82*$F$83+Données1!AO42*$G$82*$G$83)/1000 -> 5114.803769 | D97: 4428.781055 | E97: 1730.785123 | F97: 1074.6386 | G97: 22427.9317 | H97: 19517.87911 | I97: 16607.82653 | J97: 13697.77395 | K97: 10787.72137 | L97: 7877.668784 | M97: 4967.616201
B99: Apports internes - Occupations
F101: Climatisation | I101: Surchauffe
B102: Métabolisme (W) | C102: =Hypothèses!J30 -> 120 | F102: Sensible | G102: Latent | H102: Charge sensible (W) | I102: Sensible | J102: Latent | K102: Charge sensible (W) | L102: Tint
E103: Janvier | F103: =$C$105*($H$103)*$C$106*VMOIS(E103)/1000 -> 3569.745759 | G103: =$C$105*($C$102-$H$103)*$C$106*VMOIS(E103)/1000 -> 3604.539955 | H103: =6.461927+0.946892*C102+0.0000255737*C102*C102+7.139322*TempConsigne-0.0627909*C102*TempConsigne+0.0000589172*TempConsigne*C102*C102-0.19855*TempConsigne*TempConsigne+0.000940018*TempConsigne*TempConsigne*C102-0.00000149532*C102*C102*TempConsigne*TempConsigne -> 59.70900911 | I103: =$C$105*K103*$C$106*VMOIS(E103)/1000 -> 2535.269269 | J103: =$C$105*($C$102-K103)*$C$106*VMOIS(E103)/1000 -> 4639.016445 | K103: =6.461927+0.946892*$C$102+0.0000255737*$C$102*$C$102+7.139322*L103-0.0627909*$C$102*L103+0.0000589172*L103*$C$102*$C$102-0.19855*L103*L103+0.000940018*L103*L103*$C$102-0.00000149532*$C$102*$C$102*L103*L103 -> 42.40593759 | L103: =Données1!H181 -> 29.16592742
B104: Nb d'heures / semaine | C104: =VLOOKUP(Secteur,TableOccupationPD,3,FALSE)+ValeurAjustementOccupation -> 45 | E104: Février | F104: 3224.286492 | G104: 3255.713508 | I104: 2310.148882 | J104: 4169.851118 | K104: 42.78053486 | L104: =Données1!H182 -> 29.10132068
B105: Nombre d'occupants | C105: =Surface/Hypothèses!C16 -> 300 | E105: Mars | F105: 3569.745759 | G105: 3604.539955 | I105: 2547.89646 | J105: 4626.389254 | K105: 42.61714509 | L105: =Données1!H183 -> 29.12951949
B106: Nb H/J | C106: =C104/7 -> 6.428571429 | E106: Avril | F106: 3454.59267 | G106: 3488.264473 | I106: 2387.013577 | J106: 4555.843565 | K106: 41.25702479 | L106: =Données1!H184 -> 29.363125
B107: Surface de plancher (m²) | C107: =Surface -> 3000 | E107: Mai | F107: 3569.745759 | G107: 3604.539955 | I107: 2290.028721 | J107: 4884.256993 | K107: 38.30394515 | L107: =Données1!H185 -> 29.86355847
E108: Juin | F108: 3454.59267 | G108: 3488.264473 | I108: 2536.789416 | J108: 4406.067727 | K108: 43.84574299 | L108: =Données1!H186 -> 28.91675347
B109: Nb d'heures par an | C109: =C104*52.14 -> 2346.3 | E109: Juillet | F109: 3569.745759 | G109: 3604.539955 | I109: 2470.228592 | J109: 4704.057122 | K109: 41.31804096 | L109: =Données1!H187 -> 29.35268817
E110: Août | F110: 3569.745759 | G110: 3604.539955 | I110: 2250.791457 | J110: 4923.494257 | K110: 37.64764683 | L110: =Données1!H188 -> 29.97355511
E111: Septembre | F111: 3454.59267 | G111: 3488.264473 | I111: 2142.303436 | J111: 4800.553707 | K111: 37.02746679 | L111: =Données1!H189 -> 30.07710069
E112: Octobre | F112: 3569.745759 | G112: 3604.539955 | I112: 2092.406243 | J112: 5081.879472 | K112: 34.99843178 | L112: =Données1!H190 -> 30.41322245
E113: Novembre | F113: 3454.59267 | G113: 3488.264473 | I113: 2349.099104 | J113: 4593.758039 | K113: 40.6017129 | L113: =Données1!H191 -> 29.47496528
E114: Décembre | F114: 3569.745759 | G114: 3604.539955 | I114: 2475.4408 | J114: 4698.844914 | K114: 41.40522247 | L114: =Données1!H192 -> 29.33776882
B116: Apports internes - Eclairage
B118: Apports éclairage Wh/jour | C118: =M119*Surface*1000/365 -> 65753.42466 | F118: Radiatif | G118: Convectif | H118: Total | M118: Consommation avec apports | N118: kWh/m².an
E119: Janvier | F119: =$C$120*$C$118*VMOIS(E119)/1000 -> 815.3424658 | G119: =($C$121+$C$122)*$C$118*VMOIS(E119)/1000 -> 1223.013699 | H119: =G119+F119 -> 2038.356164 | L119: Eclairage intérieur | M119: =Interface!L31 -> 8 | Q119: W/m²
B120: Fraction radiative | C120: 0.4 | E120: Février | F120: =$C$120*$C$118*VMOIS(E120)/1000 -> 736.4383562 | G120: 1104.657534 | H120: 1841.09589 | L120: Bureautique | M120: =Interface!L35 -> 20 | P120: Equipements spécifiques avec apports | Q120: =Interface!J43 -> 0
B121: Fraction convective | C121: 0.4 | E121: Mars | F121: 815.3424658 | G121: 1223.013699 | H121: 2038.356164 | L121: Autres | M121: =Interface!L41 -> 0
B122: Fraction lumineuse | C122: =1-C120-C121 -> 0.2 | E122: Avril | F122: 789.0410959 | G122: 1183.561644 | H122: 1972.60274 | L122: Froid alimentaire | M122: =Interface!L37 -> 10
E123: Mai | F123: 815.3424658 | G123: 1223.013699 | H123: 2038.356164 | L123: Chaud alimentaire | M123: =Interface!L39 -> 6
E124: Juin | F124: 789.0410959 | G124: 1183.561644 | H124: 1972.60274 | L124: Brasseurs d'air | M124: =Interface!L25 -> 7
E125: Juillet | F125: 815.3424658 | G125: 1223.013699 | H125: 2038.356164 | L125: Equipements spécifiques sans apports | M125: =Hypothèses!J36*Q120*C109/1000 -> 0
E126: Août | F126: 815.3424658 | G126: 1223.013699 | H126: 2038.356164
E127: Septembre | F127: 789.0410959 | G127: 1183.561644 | H127: 1972.60274 | M127: Consommation sans apports | N127: kWh/m².an
E128: Octobre | F128: 815.3424658 | G128: 1223.013699 | H128: 2038.356164 | Q128: W/m²
E129: Novembre | F129: 789.0410959 | G129: 1183.561644 | H129: 1972.60274 | L129: Eclairage extérieur | M129: =Interface!L33 -> 3 | P129: Equipements spécifiques sans apports | Q129: =Interface!J45 -> 0
E130: Décembre | F130: 815.3424658 | G130: 1223.013699 | H130: 2038.356164 | L130: Ventilation | M130: =Interface!L27 -> 5
H131: =SUM(G119:H130) -> 38400 | L131: Eau chaude sanitaire | M131: =Interface!L29 -> 3
B132: Apports internes - Equipements | L132: Equipements spécifiques sans apports | M132: =Hypothèses!J36*Q129*C109/1000 -> 0
B134: Apports kWh/m².an | C134: =SUM(M120:M123,M125) -> 36 | F134: Radiatif | G134: Convectif | H134: Total | M134: =SUM(M129:M132,M119:M125)*Surface -> 186000 | N134: kWh/an
B135: Apports équipement Wh/jour | C135: =C134*Surface*1000/365 -> 295890.411 | E135: Janvier | F135: =($C$137*$C$135+$C$141*$C$143)*VMOIS(E135)/1000 -> 2547.945205 | G135: =($C$138*$C$135+$C$141*$C$144)*VMOIS(E135)/1000 -> 7338.082192 | H135: =G135+F135 -> 9886.027397
E136: Février | F136: =($C$137*$C$135+$C$141*$C$143)*VMOIS(E136)/1000 -> 2301.369863 | G136: =($C$138*$C$135+$C$141*$C$144)*VMOIS(E136)/1000 -> 6627.945205 | H136: 8929.315068
B137: Fraction radiative | C137: 0.2 | E137: Mars | F137: 2547.945205 | G137: 7338.082192 | H137: 9886.027397
B138: Fraction convective | C138: =1-C137 -> 0.8 | E138: Avril | F138: 2465.753425 | G138: 7101.369863 | H138: 9567.123288
E139: Mai | F139: 2547.945205 | G139: 7338.082192 | H139: 9886.027397
B140: Apports brasseurs d'air kWh/m².an | C140: =M124 -> 7 | E140: Juin | F140: 2465.753425 | G140: 7101.369863 | H140: 9567.123288
B141: Apports brasseurs d'air Wh/jour | C141: =C140*Surface*1000/365 -> 57534.24658 | E141: Juillet | F141: 2547.945205 | G141: 7338.082192 | H141: 9886.027397
E142: Août | F142: 2547.945205 | G142: 7338.082192 | H142: 9886.027397
B143: Fraction radiative | C143: 0.4 | E143: Septembre | F143: 2465.753425 | G143: 7101.369863 | H143: 9567.123288
B144: Fraction convective | C144: 0 | E144: Octobre | F144: 2547.945205 | G144: 7338.082192 | H144: 9886.027397
E145: Novembre | F145: 2465.753425 | G145: 7101.369863 | H145: 9567.123288
E146: Décembre | F146: 2547.945205 | G146: 7338.082192 | H146: 9886.027397
H147: =SUM(G135:H146) -> 202800
B148: Conclusion Climatisation
AF149: Zone climatisée
C150: APPORTS INTERNES | G150: Coeff intermittence | I150: Zone climatisée | K150: BESOIN PAR m² | M150: 20 | O150: 21 | Q150: 22 | S150: 23 | U150: 24 | W150: 25 | Y150: 26 | AA150: 27 | AC150: 28 | AF150: 20 | AH150: 21 | AJ150: 22 | AL150: 23 | AN150: 24 | AP150: 25 | AR150: 26 | AT150: 27 | AV150: 28 | AY150: Choix | BB150: =Surface*SurfaceClimatisée -> 450 | BC150: Surface
C151: Sensible | D151: Latent | E151: Eclairage | F151: Equipement | G151: Sensible | H151: Latent | I151: Sensible | J151: Latent | M151: Sensible | N151: Latent | O151: Sensible | P151: Latent | Q151: Sensible | R151: Latent | S151: Sensible | T151: Latent | U151: Sensible | V151: Latent | W151: Sensible | X151: Latent | Y151: Sensible | Z151: Latent | AA151: Sensible | AB151: Latent | AC151: Sensible | AD151: Latent | AF151: Sensible | AG151: Latent | AH151: Sensible | AI151: Latent | AJ151: Sensible | AK151: Latent | AL151: Sensible | AM151: Latent | AN151: Sensible | AO151: Latent | AP151: Sensible | AQ151: Latent | AR151: Sensible | AS151: Latent | AT151: Sensible | AU151: Latent | AV151: Sensible | AW151: Latent | AY151: Sensible | AZ151: Latent
B152: Janvier | C152: =F103 -> 3569.745759 | D152: =G103 -> 3604.539955 | E152: =H119 -> 2038.356164 | F152: =H135 -> 9886.027397 | G152: =Données2!BD21 -> 0.5519016642 | H152: =Données2!BD134 -> 0.489641146 | I152: =AY152 -> 3702.826474 | J152: =AZ152 -> 2547.793603 | K152: =IF(SurfaceClimatisée=0,0,(I152+J152)/($C$107*SurfaceClimatisée)) -> 13.89026684 | M152: =SUM(J60,G86,G25)*$G152+L60+$C152+$E152+$F152 -> 46286.81479 | N152: =(K60+M60)*$H152+$D152 -> 28167.3493 | O152: =SUM(O60,H86,G25)*$G152+Q60+$C152+$E152+$F152 -> 42720.76319 | P152: =(P60+R60)*$H152+$D152 -> 26721.43044 | Q152: =SUM(T60,I86,G25)*$G152+V60+$C152+$E152+$F152 -> 39141.04524 | R152: =(U60+W60)*$H152+$D152 -> 25131.94176 | S152: =SUM(Y60,J86,G25)*$G152+AA60+$C152+$E152+$F152 -> 35547.66092 | T152: =(Z60+AB60)*$H152+$D152 -> 23381.12389 | U152: =SUM(AD60,K86,G25)*$G152+AF60+$C152+$E152+$F152 -> 31940.61025 | V152: =(AE60+AG60)*$H152+$D152 -> 21451.61876 | W152: =SUM(AI60,L86,G25)*$G152+AK60+$C152+$E152+$F152 -> 28319.89322 | X152: =(AJ60+AL60)*$H152+$D152 -> 19324.48761 | Y152: =SUM(AN60,M86,G25)*$G152+AP60+$C152+$E152+$F152 -> 24685.50983 | Z152: =(AO60+AQ60)*$H152+$D152 -> 16985.29069 | AA152: =((-U152+Y152)*0.5)*(AA$150-23)+(-Y152+3*U152)*0.5 -> 21057.95962 | AB152: =((-V152+Z152)*0.5)*(AA$150-23)+(-Z152+3*V152)*0.5 -> 14752.12666 | AC152: =((-U152+Y152)*0.5)*(AC$150-23)+(-Y152+3*U152)*0.5 -> 17430.40941 | AD152: =((-V152+Z152)*0.5)*(AC$150-23)+(-Z152+3*V152)*0.5 -> 12518.96262 | AF152: =IF(Calculs!$C258=FALSE,0,M152*Calculs!$F258)*SurfaceClimatisée -> 6943.022218 | AG152: =IF(Calculs!$C258=FALSE,0,N152*Calculs!$F258)*SurfaceClimatisée -> 4225.102395 | AH152: =IF(Calculs!$C258=FALSE,0,O152*Calculs!$F258)*SurfaceClimatisée -> 6408.114479 | AI152: =IF(Calculs!$C258=FALSE,0,P152*Calculs!$F258)*SurfaceClimatisée -> 4008.214567 | AJ152: =IF(Calculs!$C258=FALSE,0,Q152*Calculs!$F258)*SurfaceClimatisée -> 5871.156786 | AK152: =IF(Calculs!$C258=FALSE,0,R152*Calculs!$F258)*SurfaceClimatisée -> 3769.791264 | AL152: =IF(Calculs!$C258=FALSE,0,S152*Calculs!$F258)*SurfaceClimatisée -> 5332.149139 | AM152: =IF(Calculs!$C258=FALSE,0,T152*Calculs!$F258)*SurfaceClimatisée -> 3507.168583 | AN152: =IF(Calculs!$C258=FALSE,0,U152*Calculs!$F258)*SurfaceClimatisée -> 4791.091538 | AO152: =IF(Calculs!$C258=FALSE,0,V152*Calculs!$F258)*SurfaceClimatisée -> 3217.742813 | AP152: =IF(Calculs!$C258=FALSE,0,W152*Calculs!$F258)*SurfaceClimatisée -> 4247.983983 | AQ152: =IF(Calculs!$C258=FALSE,0,X152*Calculs!$F258)*SurfaceClimatisée -> 2898.673141 | AR152: =IF(Calculs!$C258=FALSE,0,Y152*Calculs!$F258)*SurfaceClimatisée -> 3702.826474 | AS152: =IF(Calculs!$C258=FALSE,0,Z152*Calculs!$F258)*SurfaceClimatisée -> 2547.793603 | AT152: =IF(Calculs!$C258=FALSE,0,AA152*Calculs!$F258)*SurfaceClimatisée -> 3158.693943 | AU152: =IF(Calculs!$C258=FALSE,0,AB152*Calculs!$F258)*SurfaceClimatisée -> 2212.818999 | AV152: =IF(Calculs!$C258=FALSE,0,AC152*Calculs!$F258)*SurfaceClimatisée -> 2614.561411 | AW152: =IF(Calculs!$C258=FALSE,0,AD152*Calculs!$F258)*SurfaceClimatisée -> 1877.844394 | AY152: =IF(TempConsigne=20,AF152,IF(TempConsigne=21,AH152,IF(TempConsigne=22,AJ152,IF(TempConsigne=23,AL152,IF(TempConsigne=24,AN152,IF(TempConsigne=25,AP152,IF(TempConsigne=26,AR152,IF(TempConsigne=27,AT152,IF(TempConsigne=28,AV152))))))))) -> 3702.826474 | AZ152: =IF(TempConsigne=20,AG152,IF(TempConsigne=21,AI152,IF(TempConsigne=22,AK152,IF(TempConsigne=23,AM152,IF(TempConsigne=24,AO152,IF(TempConsigne=25,AQ152,IF(TempConsigne=26,AS152,IF(TempConsigne=27,AU152,IF(TempConsigne=28,AW152))))))))) -> 2547.793603 | BB152: =SUM(AY164:AZ164) -> 53510.60517 | BC152: Total brut kWh
B153: Février | C153: =F104 -> 3224.286492 | D153: =G104 -> 3255.713508 | E153: 1841.09589 | F153: =H136 -> 8929.315068 | G153: =Données2!BD22 -> 0.5487787737 | H153: =Données2!BD135 -> 0.4911326496 | I153: 1658.69787 | J153: 1128.273175 | K153: 6.193268989 | M153: 41562.77415 | N153: 24567.30533 | O153: 38352.45082 | P153: 22503.09788 | Q153: 35129.80332 | R153: 21971.74909 | S153: 31894.83164 | T153: 20473.30057 | U153: 28647.5358 | V153: 18825.47192 | W153: 25387.91578 | X153: 17017.58955 | Y153: 22115.9716 | Z153: 15043.64234 | AA153: 18850.18949 | AB153: 13152.72755 | AC153: 15584.40739 | AD153: 11261.81276 | AF153: =IF(Calculs!$C259=FALSE,0,M153*Calculs!$F259)*SurfaceClimatisée -> 3117.208061 | AG153: =IF(Calculs!$C259=FALSE,0,N153*Calculs!$F259)*SurfaceClimatisée -> 1842.5479 | AH153: =IF(Calculs!$C259=FALSE,0,O153*Calculs!$F259)*SurfaceClimatisée -> 2876.433812 | AI153: =IF(Calculs!$C259=FALSE,0,P153*Calculs!$F259)*SurfaceClimatisée -> 1687.732341 | AJ153: =IF(Calculs!$C259=FALSE,0,Q153*Calculs!$F259)*SurfaceClimatisée -> 2634.735249 | AK153: =IF(Calculs!$C259=FALSE,0,R153*Calculs!$F259)*SurfaceClimatisée -> 1647.881182 | AL153: =IF(Calculs!$C259=FALSE,0,S153*Calculs!$F259)*SurfaceClimatisée -> 2392.112373 | AM153: =IF(Calculs!$C259=FALSE,0,T153*Calculs!$F259)*SurfaceClimatisée -> 1535.497543 | AN153: =IF(Calculs!$C259=FALSE,0,U153*Calculs!$F259)*SurfaceClimatisée -> 2148.565185 | AO153: =IF(Calculs!$C259=FALSE,0,V153*Calculs!$F259)*SurfaceClimatisée -> 1411.910394 | AP153: =IF(Calculs!$C259=FALSE,0,W153*Calculs!$F259)*SurfaceClimatisée -> 1904.093684 | AQ153: =IF(Calculs!$C259=FALSE,0,X153*Calculs!$F259)*SurfaceClimatisée -> 1276.319216 | AR153: =IF(Calculs!$C259=FALSE,0,Y153*Calculs!$F259)*SurfaceClimatisée -> 1658.69787 | AS153: =IF(Calculs!$C259=FALSE,0,Z153*Calculs!$F259)*SurfaceClimatisée -> 1128.273175 | AT153: =IF(Calculs!$C259=FALSE,0,AA153*Calculs!$F259)*SurfaceClimatisée -> 1413.764212 | AU153: =IF(Calculs!$C259=FALSE,0,AB153*Calculs!$F259)*SurfaceClimatisée -> 986.4545663 | AV153: =IF(Calculs!$C259=FALSE,0,AC153*Calculs!$F259)*SurfaceClimatisée -> 1168.830554 | AW153: =IF(Calculs!$C259=FALSE,0,AD153*Calculs!$F259)*SurfaceClimatisée -> 844.6359572 | AY153: 1658.69787 | AZ153: 1128.273175 | BB153: =BB152/(BB150) -> 118.9124559 | BC153: Besoin/m²
B154: Mars | C154: 3569.745759 | D154: 3604.539955 | E154: 2038.356164 | F154: 9886.027397 | G154: =Données2!BD23 -> 0.532956532 | H154: =Données2!BD136 -> 0.470252783 | I154: 3667.946094 | J154: 2349.221757 | K154: 13.37148411 | M154: 45581.16734 | N154: 26018.49274 | O154: 42093.55706 | P154: 23818.5877 | Q154: 38592.44467 | R154: 23189.79714 | S154: 35077.83016 | T154: 21560.71675 | U154: 31549.71354 | V154: 19771.58347 | W154: 28008.09481 | X154: 17805.10036 | Y154: 24452.97396 | Z154: 15661.47838 | AA154: 20904.60417 | AB154: 13606.42584 | AC154: 17356.23439 | AD154: 11551.37329 | AF154: =IF(Calculs!$C260=FALSE,0,M154*Calculs!$F260)*SurfaceClimatisée -> 6837.175102 | AG154: =IF(Calculs!$C260=FALSE,0,N154*Calculs!$F260)*SurfaceClimatisée -> 3902.773912 | AH154: =IF(Calculs!$C260=FALSE,0,O154*Calculs!$F260)*SurfaceClimatisée -> 6314.033559 | AI154: =IF(Calculs!$C260=FALSE,0,P154*Calculs!$F260)*SurfaceClimatisée -> 3572.788155 | AJ154: =IF(Calculs!$C260=FALSE,0,Q154*Calculs!$F260)*SurfaceClimatisée -> 5788.8667 | AK154: =IF(Calculs!$C260=FALSE,0,R154*Calculs!$F260)*SurfaceClimatisée -> 3478.469572 | AL154: =IF(Calculs!$C260=FALSE,0,S154*Calculs!$F260)*SurfaceClimatisée -> 5261.674524 | AM154: =IF(Calculs!$C260=FALSE,0,T154*Calculs!$F260)*SurfaceClimatisée -> 3234.107513 | AN154: =IF(Calculs!$C260=FALSE,0,U154*Calculs!$F260)*SurfaceClimatisée -> 4732.457031 | AO154: =IF(Calculs!$C260=FALSE,0,V154*Calculs!$F260)*SurfaceClimatisée -> 2965.73752 | AP154: =IF(Calculs!$C260=FALSE,0,W154*Calculs!$F260)*SurfaceClimatisée -> 4201.214221 | AQ154: =IF(Calculs!$C260=FALSE,0,X154*Calculs!$F260)*SurfaceClimatisée -> 2670.765053 | AR154: =IF(Calculs!$C260=FALSE,0,Y154*Calculs!$F260)*SurfaceClimatisée -> 3667.946094 | AS154: =IF(Calculs!$C260=FALSE,0,Z154*Calculs!$F260)*SurfaceClimatisée -> 2349.221757 | AT154: =IF(Calculs!$C260=FALSE,0,AA154*Calculs!$F260)*SurfaceClimatisée -> 3135.690626 | AU154: =IF(Calculs!$C260=FALSE,0,AB154*Calculs!$F260)*SurfaceClimatisée -> 2040.963876 | AV154: =IF(Calculs!$C260=FALSE,0,AC154*Calculs!$F260)*SurfaceClimatisée -> 2603.435158 | AW154: =IF(Calculs!$C260=FALSE,0,AD154*Calculs!$F260)*SurfaceClimatisée -> 1732.705994 | AY154: 3667.946094 | AZ154: 2349.221757
B155: Avril | C155: 3454.59267 | D155: 3488.264473 | E155: 1972.60274 | F155: 9567.123288 | G155: =Données2!BD24 -> 0.6004085251 | H155: =Données2!BD137 -> 0.5061660365 | I155: 1919.701933 | J155: 1395.40883 | K155: 7.366912807 | M155: 47659.81129 | N155: 29395.62165 | O155: 44016.57042 | P155: 27091.32378 | Q155: 40359.70687 | R155: 26451.48429 | S155: 36689.22063 | T155: 24756.80494 | U155: 33005.1117 | V155: 22892.07041 | W155: 29307.38008 | X155: 20845.24352 | Y155: 25596.02577 | Z155: 18605.45107 | AA155: 21891.48281 | AB155: 16462.1414 | AC155: 18186.93985 | AD155: 14318.83172 | AF155: =IF(Calculs!$C261=FALSE,0,M155*Calculs!$F261)*SurfaceClimatisée -> 3574.485846 | AG155: =IF(Calculs!$C261=FALSE,0,N155*Calculs!$F261)*SurfaceClimatisée -> 2204.671624 | AH155: =IF(Calculs!$C261=FALSE,0,O155*Calculs!$F261)*SurfaceClimatisée -> 3301.242782 | AI155: =IF(Calculs!$C261=FALSE,0,P155*Calculs!$F261)*SurfaceClimatisée -> 2031.849283 | AJ155: =IF(Calculs!$C261=FALSE,0,Q155*Calculs!$F261)*SurfaceClimatisée -> 3026.978015 | AK155: =IF(Calculs!$C261=FALSE,0,R155*Calculs!$F261)*SurfaceClimatisée -> 1983.861322 | AL155: =IF(Calculs!$C261=FALSE,0,S155*Calculs!$F261)*SurfaceClimatisée -> 2751.691547 | AM155: =IF(Calculs!$C261=FALSE,0,T155*Calculs!$F261)*SurfaceClimatisée -> 1856.760371 | AN155: =IF(Calculs!$C261=FALSE,0,U155*Calculs!$F261)*SurfaceClimatisée -> 2475.383377 | AO155: =IF(Calculs!$C261=FALSE,0,V155*Calculs!$F261)*SurfaceClimatisée -> 1716.905281 | AP155: =IF(Calculs!$C261=FALSE,0,W155*Calculs!$F261)*SurfaceClimatisée -> 2198.053506 | AQ155: =IF(Calculs!$C261=FALSE,0,X155*Calculs!$F261)*SurfaceClimatisée -> 1563.393264 | AR155: =IF(Calculs!$C261=FALSE,0,Y155*Calculs!$F261)*SurfaceClimatisée -> 1919.701933 | AS155: =IF(Calculs!$C261=FALSE,0,Z155*Calculs!$F261)*SurfaceClimatisée -> 1395.40883 | AT155: =IF(Calculs!$C261=FALSE,0,AA155*Calculs!$F261)*SurfaceClimatisée -> 1641.861211 | AU155: =IF(Calculs!$C261=FALSE,0,AB155*Calculs!$F261)*SurfaceClimatisée -> 1234.660605 | AV155: =IF(Calculs!$C261=FALSE,0,AC155*Calculs!$F261)*SurfaceClimatisée -> 1364.020489 | AW155: =IF(Calculs!$C261=FALSE,0,AD155*Calculs!$F261)*SurfaceClimatisée -> 1073.912379 | AY155: 1919.701933 | AZ155: 1395.40883
B156: Mai | C156: 3569.745759 | D156: 3604.539955 | E156: 2038.356164 | F156: 9886.027397 | G156: =Données2!BD25 -> 0.5619754887 | H156: =Données2!BD138 -> 0.505360931 | I156: 4134.463307 | J156: 3110.278776 | K156: 16.09942685 | M156: 49333.83357 | N156: 32419.57504 | O156: 45739.60539 | P156: 30028.57341 | Q156: 42131.68549 | R156: 29219.13187 | S156: 38510.07388 | T156: 27380.34134 | U156: 34874.77054 | V156: 25367.38644 | W156: 31225.77549 | X156: 23157.96747 | Y156: 27563.08872 | Z156: 20735.19184 | AA156: 23907.2478 | AB156: 18419.09454 | AC156: 20251.40689 | AD156: 16102.99724 | AF156: =IF(Calculs!$C262=FALSE,0,M156*Calculs!$F262)*SurfaceClimatisée -> 7400.075035 | AG156: =IF(Calculs!$C262=FALSE,0,N156*Calculs!$F262)*SurfaceClimatisée -> 4862.936257 | AH156: =IF(Calculs!$C262=FALSE,0,O156*Calculs!$F262)*SurfaceClimatisée -> 6860.940808 | AI156: =IF(Calculs!$C262=FALSE,0,P156*Calculs!$F262)*SurfaceClimatisée -> 4504.286011 | AJ156: =IF(Calculs!$C262=FALSE,0,Q156*Calculs!$F262)*SurfaceClimatisée -> 6319.752824 | AK156: =IF(Calculs!$C262=FALSE,0,R156*Calculs!$F262)*SurfaceClimatisée -> 4382.86978 | AL156: =IF(Calculs!$C262=FALSE,0,S156*Calculs!$F262)*SurfaceClimatisée -> 5776.511082 | AM156: =IF(Calculs!$C262=FALSE,0,T156*Calculs!$F262)*SurfaceClimatisée -> 4107.051201 | AN156: =IF(Calculs!$C262=FALSE,0,U156*Calculs!$F262)*SurfaceClimatisée -> 5231.215582 | AO156: =IF(Calculs!$C262=FALSE,0,V156*Calculs!$F262)*SurfaceClimatisée -> 3805.107967 | AP156: =IF(Calculs!$C262=FALSE,0,W156*Calculs!$F262)*SurfaceClimatisée -> 4683.866323 | AQ156: =IF(Calculs!$C262=FALSE,0,X156*Calculs!$F262)*SurfaceClimatisée -> 3473.69512 | AR156: =IF(Calculs!$C262=FALSE,0,Y156*Calculs!$F262)*SurfaceClimatisée -> 4134.463307 | AS156: =IF(Calculs!$C262=FALSE,0,Z156*Calculs!$F262)*SurfaceClimatisée -> 3110.278776 | AT156: =IF(Calculs!$C262=FALSE,0,AA156*Calculs!$F262)*SurfaceClimatisée -> 3586.08717 | AU156: =IF(Calculs!$C262=FALSE,0,AB156*Calculs!$F262)*SurfaceClimatisée -> 2762.864181 | AV156: =IF(Calculs!$C262=FALSE,0,AC156*Calculs!$F262)*SurfaceClimatisée -> 3037.711033 | AW156: =IF(Calculs!$C262=FALSE,0,AD156*Calculs!$F262)*SurfaceClimatisée -> 2415.449586 | AY156: 4134.463307 | AZ156: 3110.278776 | BB156: =Calculs!BB152*0.001 -> 53.51060517 | BC156: Besoin annuel (MWh/an)
B157: Juin | C157: 3454.59267 | D157: 3488.264473 | E157: 1972.60274 | F157: 9567.123288 | G157: =Données2!BD26 -> 0.5340179718 | H157: =Données2!BD139 -> 0.4757423363 | I157: 3506.616848 | J157: 2599.389398 | K157: 13.56890277 | M157: 43874.583 | N157: 27635.03689 | O157: 40491.12895 | P157: 25456.18181 | Q157: 37094.5807 | R157: 24840.89906 | S157: 33684.93825 | T157: 23225.32323 | U157: 30262.20159 | V157: 21441.21628 | W157: 26826.37072 | X157: 19475.0464 | Y157: 23377.44566 | Z157: 17329.26265 | AA157: 19935.06769 | AB157: 15273.28584 | AC157: 16492.68972 | AD157: 13217.30903 | AF157: =IF(Calculs!$C263=FALSE,0,M157*Calculs!$F263)*SurfaceClimatisée -> 6581.18745 | AG157: =IF(Calculs!$C263=FALSE,0,N157*Calculs!$F263)*SurfaceClimatisée -> 4145.255533 | AH157: =IF(Calculs!$C263=FALSE,0,O157*Calculs!$F263)*SurfaceClimatisée -> 6073.669343 | AI157: =IF(Calculs!$C263=FALSE,0,P157*Calculs!$F263)*SurfaceClimatisée -> 3818.427271 | AJ157: =IF(Calculs!$C263=FALSE,0,Q157*Calculs!$F263)*SurfaceClimatisée -> 5564.187106 | AK157: =IF(Calculs!$C263=FALSE,0,R157*Calculs!$F263)*SurfaceClimatisée -> 3726.134859 | AL157: =IF(Calculs!$C263=FALSE,0,S157*Calculs!$F263)*SurfaceClimatisée -> 5052.740737 | AM157: =IF(Calculs!$C263=FALSE,0,T157*Calculs!$F263)*SurfaceClimatisée -> 3483.798484 | AN157: =IF(Calculs!$C263=FALSE,0,U157*Calculs!$F263)*SurfaceClimatisée -> 4539.330238 | AO157: =IF(Calculs!$C263=FALSE,0,V157*Calculs!$F263)*SurfaceClimatisée -> 3216.182441 | AP157: =IF(Calculs!$C263=FALSE,0,W157*Calculs!$F263)*SurfaceClimatisée -> 4023.955609 | AQ157: =IF(Calculs!$C263=FALSE,0,X157*Calculs!$F263)*SurfaceClimatisée -> 2921.256959 | AR157: =IF(Calculs!$C263=FALSE,0,Y157*Calculs!$F263)*SurfaceClimatisée -> 3506.616848 | AS157: =IF(Calculs!$C263=FALSE,0,Z157*Calculs!$F263)*SurfaceClimatisée -> 2599.389398 | AT157: =IF(Calculs!$C263=FALSE,0,AA157*Calculs!$F263)*SurfaceClimatisée -> 2990.260153 | AU157: =IF(Calculs!$C263=FALSE,0,AB157*Calculs!$F263)*SurfaceClimatisée -> 2290.992877 | AV157: =IF(Calculs!$C263=FALSE,0,AC157*Calculs!$F263)*SurfaceClimatisée -> 2473.903458 | AW157: =IF(Calculs!$C263=FALSE,0,AD157*Calculs!$F263)*SurfaceClimatisée -> 1982.596355 | AY157: 3506.616848 | AZ157: 2599.389398 | BB157: =BB156/BB158 -> 13.61593007 | BC157: Consommation annuelle clim (MWh/an)
B158: Juillet | C158: 3569.745759 | D158: 3604.539955 | E158: 2038.356164 | F158: 9886.027397 | G158: =Données2!BD27 -> 0.5944642646 | H158: =Données2!BD140 -> 0.5016775389 | I158: 0 | J158: 0 | K158: 0 | M158: 49939.90259 | N158: 28761.10813 | O158: 46199.82881 | P158: 26445.99601 | Q158: 42445.72977 | R158: 26056.38387 | S158: 38677.60547 | T158: 24498.94537 | U158: 34895.45591 | V158: 22780.94187 | W158: 31099.28109 | X158: 20902.88974 | Y158: 27289.08102 | Z158: 18861.69391 | AA158: 23485.89357 | AB158: 16902.06993 | AC158: 19682.70612 | AD158: 14942.44595 | AF158: =IF(Calculs!$C264=FALSE,0,M158*Calculs!$F264)*SurfaceClimatisée -> 0 | AG158: =IF(Calculs!$C264=FALSE,0,N158*Calculs!$F264)*SurfaceClimatisée -> 0 | AH158: =IF(Calculs!$C264=FALSE,0,O158*Calculs!$F264)*SurfaceClimatisée -> 0 | AI158: =IF(Calculs!$C264=FALSE,0,P158*Calculs!$F264)*SurfaceClimatisée -> 0 | AJ158: =IF(Calculs!$C264=FALSE,0,Q158*Calculs!$F264)*SurfaceClimatisée -> 0 | AK158: =IF(Calculs!$C264=FALSE,0,R158*Calculs!$F264)*SurfaceClimatisée -> 0 | AL158: =IF(Calculs!$C264=FALSE,0,S158*Calculs!$F264)*SurfaceClimatisée -> 0 | AM158: =IF(Calculs!$C264=FALSE,0,T158*Calculs!$F264)*SurfaceClimatisée -> 0 | AN158: =IF(Calculs!$C264=FALSE,0,U158*Calculs!$F264)*SurfaceClimatisée -> 0 | AO158: =IF(Calculs!$C264=FALSE,0,V158*Calculs!$F264)*SurfaceClimatisée -> 0 | AP158: =IF(Calculs!$C264=FALSE,0,W158*Calculs!$F264)*SurfaceClimatisée -> 0 | AQ158: =IF(Calculs!$C264=FALSE,0,X158*Calculs!$F264)*SurfaceClimatisée -> 0 | AR158: =IF(Calculs!$C264=FALSE,0,Y158*Calculs!$F264)*SurfaceClimatisée -> 0 | AS158: =IF(Calculs!$C264=FALSE,0,Z158*Calculs!$F264)*SurfaceClimatisée -> 0 | AT158: =IF(Calculs!$C264=FALSE,0,AA158*Calculs!$F264)*SurfaceClimatisée -> 0 | AU158: =IF(Calculs!$C264=FALSE,0,AB158*Calculs!$F264)*SurfaceClimatisée -> 0 | AV158: =IF(Calculs!$C264=FALSE,0,AC158*Calculs!$F264)*SurfaceClimatisée -> 0 | AW158: =IF(Calculs!$C264=FALSE,0,AD158*Calculs!$F264)*SurfaceClimatisée -> 0 | AY158: 0 | AZ158: 0 | BB158: =Hypothèses!T47 -> 3.93 | BC158: Coefficient SEER
B159: Août | C159: 3569.745759 | D159: 3604.539955 | E159: 2038.356164 | F159: 9886.027397 | G159: =Données2!BD28 -> 0.5657892376 | H159: =Données2!BD141 -> 0.4845720903 | I159: 0 | J159: 0 | K159: 0 | M159: 51354.0055 | N159: 29096.29653 | O159: 47746.06614 | P159: 26882.1853 | Q159: 44124.41152 | R159: 26692.46601 | S159: 40489.04165 | T159: 25322.94491 | U159: 36839.95652 | V159: 23824.2753 | W159: 33177.15613 | X159: 22179.52896 | Y159: 29500.64049 | Z159: 20376.2315 | AA159: 25830.98248 | AB159: 18652.20959 | AC159: 22161.32447 | AD159: 16928.18769 | AF159: =IF(Calculs!$C265=FALSE,0,M159*Calculs!$F265)*SurfaceClimatisée -> 0 | AG159: =IF(Calculs!$C265=FALSE,0,N159*Calculs!$F265)*SurfaceClimatisée -> 0 | AH159: =IF(Calculs!$C265=FALSE,0,O159*Calculs!$F265)*SurfaceClimatisée -> 0 | AI159: =IF(Calculs!$C265=FALSE,0,P159*Calculs!$F265)*SurfaceClimatisée -> 0 | AJ159: =IF(Calculs!$C265=FALSE,0,Q159*Calculs!$F265)*SurfaceClimatisée -> 0 | AK159: =IF(Calculs!$C265=FALSE,0,R159*Calculs!$F265)*SurfaceClimatisée -> 0 | AL159: =IF(Calculs!$C265=FALSE,0,S159*Calculs!$F265)*SurfaceClimatisée -> 0 | AM159: =IF(Calculs!$C265=FALSE,0,T159*Calculs!$F265)*SurfaceClimatisée -> 0 | AN159: =IF(Calculs!$C265=FALSE,0,U159*Calculs!$F265)*SurfaceClimatisée -> 0 | AO159: =IF(Calculs!$C265=FALSE,0,V159*Calculs!$F265)*SurfaceClimatisée -> 0 | AP159: =IF(Calculs!$C265=FALSE,0,W159*Calculs!$F265)*SurfaceClimatisée -> 0 | AQ159: =IF(Calculs!$C265=FALSE,0,X159*Calculs!$F265)*SurfaceClimatisée -> 0 | AR159: =IF(Calculs!$C265=FALSE,0,Y159*Calculs!$F265)*SurfaceClimatisée -> 0 | AS159: =IF(Calculs!$C265=FALSE,0,Z159*Calculs!$F265)*SurfaceClimatisée -> 0 | AT159: =IF(Calculs!$C265=FALSE,0,AA159*Calculs!$F265)*SurfaceClimatisée -> 0 | AU159: =IF(Calculs!$C265=FALSE,0,AB159*Calculs!$F265)*SurfaceClimatisée -> 0 | AV159: =IF(Calculs!$C265=FALSE,0,AC159*Calculs!$F265)*SurfaceClimatisée -> 0 | AW159: =IF(Calculs!$C265=FALSE,0,AD159*Calculs!$F265)*SurfaceClimatisée -> 0 | AY159: 0 | AZ159: 0 | BB159: =Calculs!BB157+(Calculs!M134/1000) -> 199.6159301 | BC159: Consommation totale estimée (MWh/an)
B160: Septembre | C160: 3454.59267 | D160: 3488.264473 | E160: 1972.60274 | F160: 9567.123288 | G160: =Données2!BD29 -> 0.570825911 | H160: =Données2!BD142 -> 0.4760429737 | I160: 4399.351879 | J160: 3065.572803 | K160: 16.58872152 | M160: 50587.83474 | N160: 28709.71722 | O160: 47077.96405 | P160: 26605.49047 | Q160: 43554.78683 | R160: 26428.10264 | S160: 40018.30306 | T160: 25126.63885 | U160: 36468.51276 | V160: 23702.61331 | W160: 32905.41591 | X160: 22143.74807 | Y160: 29329.01253 | Z160: 20437.15202 | AA160: 25759.26241 | AB160: 18804.42138 | AC160: 22189.5123 | AD160: 17171.69073 | AF160: =IF(Calculs!$C266=FALSE,0,M160*Calculs!$F266)*SurfaceClimatisée -> 7588.175211 | AG160: =IF(Calculs!$C266=FALSE,0,N160*Calculs!$F266)*SurfaceClimatisée -> 4306.457583 | AH160: =IF(Calculs!$C266=FALSE,0,O160*Calculs!$F266)*SurfaceClimatisée -> 7061.694608 | AI160: =IF(Calculs!$C266=FALSE,0,P160*Calculs!$F266)*SurfaceClimatisée -> 3990.82357 | AJ160: =IF(Calculs!$C266=FALSE,0,Q160*Calculs!$F266)*SurfaceClimatisée -> 6533.218024 | AK160: =IF(Calculs!$C266=FALSE,0,R160*Calculs!$F266)*SurfaceClimatisée -> 3964.215396 | AL160: =IF(Calculs!$C266=FALSE,0,S160*Calculs!$F266)*SurfaceClimatisée -> 6002.745459 | AM160: =IF(Calculs!$C266=FALSE,0,T160*Calculs!$F266)*SurfaceClimatisée -> 3768.995828 | AN160: =IF(Calculs!$C266=FALSE,0,U160*Calculs!$F266)*SurfaceClimatisée -> 5470.276913 | AO160: =IF(Calculs!$C266=FALSE,0,V160*Calculs!$F266)*SurfaceClimatisée -> 3555.391997 | AP160: =IF(Calculs!$C266=FALSE,0,W160*Calculs!$F266)*SurfaceClimatisée -> 4935.812387 | AQ160: =IF(Calculs!$C266=FALSE,0,X160*Calculs!$F266)*SurfaceClimatisée -> 3321.562211 | AR160: =IF(Calculs!$C266=FALSE,0,Y160*Calculs!$F266)*SurfaceClimatisée -> 4399.351879 | AS160: =IF(Calculs!$C266=FALSE,0,Z160*Calculs!$F266)*SurfaceClimatisée -> 3065.572803 | AT160: =IF(Calculs!$C266=FALSE,0,AA160*Calculs!$F266)*SurfaceClimatisée -> 3863.889362 | AU160: =IF(Calculs!$C266=FALSE,0,AB160*Calculs!$F266)*SurfaceClimatisée -> 2820.663206 | AV160: =IF(Calculs!$C266=FALSE,0,AC160*Calculs!$F266)*SurfaceClimatisée -> 3328.426844 | AW160: =IF(Calculs!$C266=FALSE,0,AD160*Calculs!$F266)*SurfaceClimatisée -> 2575.75361 | AY160: 4399.351879 | AZ160: 3065.572803
B161: Octobre | C161: 3569.745759 | D161: 3604.539955 | E161: 2038.356164 | F161: 9886.027397 | G161: =Données2!BD30 -> 0.5868359046 | H161: =Données2!BD143 -> 0.4862638804 | I161: 3607.390371 | J161: 2470.583026 | K161: 13.50660755 | M161: 54394.49103 | N161: 30314.582 | O161: 50707.67416 | P161: 28108.69969 | Q161: 47006.99744 | R161: 28002.94882 | S161: 43292.46089 | T161: 26689.97258 | U161: 39564.06449 | V161: 25254.54588 | W161: 35821.80826 | X161: 23683.65487 | Y161: 32065.69219 | Z161: 21960.73801 | AA161: 28316.50603 | AB161: 20313.83407 | AC161: 24567.31988 | AD161: 18666.93013 | AF161: =IF(Calculs!$C267=FALSE,0,M161*Calculs!$F267)*SurfaceClimatisée -> 6119.380241 | AG161: =IF(Calculs!$C267=FALSE,0,N161*Calculs!$F267)*SurfaceClimatisée -> 3410.390476 | AH161: =IF(Calculs!$C267=FALSE,0,O161*Calculs!$F267)*SurfaceClimatisée -> 5704.613343 | AI161: =IF(Calculs!$C267=FALSE,0,P161*Calculs!$F267)*SurfaceClimatisée -> 3162.228715 | AJ161: =IF(Calculs!$C267=FALSE,0,Q161*Calculs!$F267)*SurfaceClimatisée -> 5288.287212 | AK161: =IF(Calculs!$C267=FALSE,0,R161*Calculs!$F267)*SurfaceClimatisée -> 3150.331742 | AL161: =IF(Calculs!$C267=FALSE,0,S161*Calculs!$F267)*SurfaceClimatisée -> 4870.40185 | AM161: =IF(Calculs!$C267=FALSE,0,T161*Calculs!$F267)*SurfaceClimatisée -> 3002.621916 | AN161: =IF(Calculs!$C267=FALSE,0,U161*Calculs!$F267)*SurfaceClimatisée -> 4450.957256 | AO161: =IF(Calculs!$C267=FALSE,0,V161*Calculs!$F267)*SurfaceClimatisée -> 2841.136412 | AP161: =IF(Calculs!$C267=FALSE,0,W161*Calculs!$F267)*SurfaceClimatisée -> 4029.953429 | AQ161: =IF(Calculs!$C267=FALSE,0,X161*Calculs!$F267)*SurfaceClimatisée -> 2664.411173 | AR161: =IF(Calculs!$C267=FALSE,0,Y161*Calculs!$F267)*SurfaceClimatisée -> 3607.390371 | AS161: =IF(Calculs!$C267=FALSE,0,Z161*Calculs!$F267)*SurfaceClimatisée -> 2470.583026 | AT161: =IF(Calculs!$C267=FALSE,0,AA161*Calculs!$F267)*SurfaceClimatisée -> 3185.606929 | AU161: =IF(Calculs!$C267=FALSE,0,AB161*Calculs!$F267)*SurfaceClimatisée -> 2285.306332 | AV161: =IF(Calculs!$C267=FALSE,0,AC161*Calculs!$F267)*SurfaceClimatisée -> 2763.823486 | AW161: =IF(Calculs!$C267=FALSE,0,AD161*Calculs!$F267)*SurfaceClimatisée -> 2100.029639 | AY161: 3607.390371 | AZ161: 2470.583026
B162: Novembre | C162: 3454.59267 | D162: 3488.264473 | E162: 1972.60274 | F162: 9567.123288 | G162: =Données2!BD31 -> 0.5156484062 | H162: =Données2!BD144 -> 0.4644453981 | I162: 2931.356027 | J162: 2065.818679 | K162: 11.10483268 | M162: 46041.61093 | N162: 26864.51727 | O162: 42742.9806 | P162: 24792.86856 | Q162: 39431.46154 | R162: 24544.10195 | S162: 36107.05375 | T162: 23209.89626 | U162: 32769.75724 | V162: 21743.22253 | W162: 29419.57199 | X162: 20129.04251 | Y162: 26056.49802 | Z162: 18362.8327 | AA162: 22699.86841 | AB162: 16672.63779 | AC162: 19343.23881 | AD162: 14982.44287 | AF162: =IF(Calculs!$C268=FALSE,0,M162*Calculs!$F268)*SurfaceClimatisée -> 5179.681229 | AG162: =IF(Calculs!$C268=FALSE,0,N162*Calculs!$F268)*SurfaceClimatisée -> 3022.258193 | AH162: =IF(Calculs!$C268=FALSE,0,O162*Calculs!$F268)*SurfaceClimatisée -> 4808.585317 | AI162: =IF(Calculs!$C268=FALSE,0,P162*Calculs!$F268)*SurfaceClimatisée -> 2789.197713 | AJ162: =IF(Calculs!$C268=FALSE,0,Q162*Calculs!$F268)*SurfaceClimatisée -> 4436.039423 | AK162: =IF(Calculs!$C268=FALSE,0,R162*Calculs!$F268)*SurfaceClimatisée -> 2761.211469 | AL162: =IF(Calculs!$C268=FALSE,0,S162*Calculs!$F268)*SurfaceClimatisée -> 4062.043547 | AM162: =IF(Calculs!$C268=FALSE,0,T162*Calculs!$F268)*SurfaceClimatisée -> 2611.113329 | AN162: =IF(Calculs!$C268=FALSE,0,U162*Calculs!$F268)*SurfaceClimatisée -> 3686.597689 | AO162: =IF(Calculs!$C268=FALSE,0,V162*Calculs!$F268)*SurfaceClimatisée -> 2446.112535 | AP162: =IF(Calculs!$C268=FALSE,0,W162*Calculs!$F268)*SurfaceClimatisée -> 3309.701849 | AQ162: =IF(Calculs!$C268=FALSE,0,X162*Calculs!$F268)*SurfaceClimatisée -> 2264.517283 | AR162: =IF(Calculs!$C268=FALSE,0,Y162*Calculs!$F268)*SurfaceClimatisée -> 2931.356027 | AS162: =IF(Calculs!$C268=FALSE,0,Z162*Calculs!$F268)*SurfaceClimatisée -> 2065.818679 | AT162: =IF(Calculs!$C268=FALSE,0,AA162*Calculs!$F268)*SurfaceClimatisée -> 2553.735197 | AU162: =IF(Calculs!$C268=FALSE,0,AB162*Calculs!$F268)*SurfaceClimatisée -> 1875.671751 | AV162: =IF(Calculs!$C268=FALSE,0,AC162*Calculs!$F268)*SurfaceClimatisée -> 2176.114366 | AW162: =IF(Calculs!$C268=FALSE,0,AD162*Calculs!$F268)*SurfaceClimatisée -> 1685.524823 | AY162: 2931.356027 | AZ162: 2065.818679
B163: Décembre | C163: 3569.745759 | D163: 3604.539955 | E163: 2038.356164 | F163: 9886.027397 | G163: =Données2!BD32 -> 0.5354361338 | H163: =Données2!BD145 -> 0.4672068443 | I163: 1925.265854 | J163: 1324.648461 | K163: 7.222031812 | M163: 46836.04901 | N163: 27529.54163 | O163: 43342.17265 | P163: 25349.30729 | Q163: 39834.79099 | R163: 24838.62525 | S163: 36313.90403 | T163: 23288.9003 | U163: 32779.51178 | V163: 21583.15253 | W163: 29231.61423 | X163: 19709.39466 | Y163: 25670.21139 | Z163: 17661.97948 | AA163: 22115.5612 | AB163: 15701.39296 | AC163: 18560.911 | AD163: 13740.80644 | AF163: =IF(Calculs!$C269=FALSE,0,M163*Calculs!$F269)*SurfaceClimatisée -> 3512.703676 | AG163: =IF(Calculs!$C269=FALSE,0,N163*Calculs!$F269)*SurfaceClimatisée -> 2064.715622 | AH163: =IF(Calculs!$C269=FALSE,0,O163*Calculs!$F269)*SurfaceClimatisée -> 3250.662949 | AI163: =IF(Calculs!$C269=FALSE,0,P163*Calculs!$F269)*SurfaceClimatisée -> 1901.198047 | AJ163: =IF(Calculs!$C269=FALSE,0,Q163*Calculs!$F269)*SurfaceClimatisée -> 2987.609324 | AK163: =IF(Calculs!$C269=FALSE,0,R163*Calculs!$F269)*SurfaceClimatisée -> 1862.896893 | AL163: =IF(Calculs!$C269=FALSE,0,S163*Calculs!$F269)*SurfaceClimatisée -> 2723.542802 | AM163: =IF(Calculs!$C269=FALSE,0,T163*Calculs!$F269)*SurfaceClimatisée -> 1746.667523 | AN163: =IF(Calculs!$C269=FALSE,0,U163*Calculs!$F269)*SurfaceClimatisée -> 2458.463383 | AO163: =IF(Calculs!$C269=FALSE,0,V163*Calculs!$F269)*SurfaceClimatisée -> 1618.73644 | AP163: =IF(Calculs!$C269=FALSE,0,W163*Calculs!$F269)*SurfaceClimatisée -> 2192.371067 | AQ163: =IF(Calculs!$C269=FALSE,0,X163*Calculs!$F269)*SurfaceClimatisée -> 1478.2046 | AR163: =IF(Calculs!$C269=FALSE,0,Y163*Calculs!$F269)*SurfaceClimatisée -> 1925.265854 | AS163: =IF(Calculs!$C269=FALSE,0,Z163*Calculs!$F269)*SurfaceClimatisée -> 1324.648461 | AT163: =IF(Calculs!$C269=FALSE,0,AA163*Calculs!$F269)*SurfaceClimatisée -> 1658.66709 | AU163: =IF(Calculs!$C269=FALSE,0,AB163*Calculs!$F269)*SurfaceClimatisée -> 1177.604472 | AV163: =IF(Calculs!$C269=FALSE,0,AC163*Calculs!$F269)*SurfaceClimatisée -> 1392.068325 | AW163: =IF(Calculs!$C269=FALSE,0,AD163*Calculs!$F269)*SurfaceClimatisée -> 1030.560483 | AY163: 1925.265854 | AZ163: 1324.648461
I164: =SUM(I152:I163) -> 31453.61666 | J164: =SUM(J152:J163) -> 22056.98851 | AF164: =SUM(AF152:AF163) -> 56853.09407 | AG164: 33987.10949 | AH164: 52659.991 | AI164: 31466.74567 | AJ164: 48450.83066 | AK164: 30727.66348 | AL164: 44225.61306 | AM164: 28853.78229 | AN164: 39984.33819 | AO164: 26794.9638 | AP164: 35727.00606 | AQ164: 24532.79802 | AR164: 31453.61666 | AS164: 22056.98851 | AT164: 27188.25589 | AU164: 19688.00086 | AV164: 22922.89512 | AW164: 17319.01322 | AY164: =SUM(AY152:AY163) -> 31453.61666 | AZ164: =SUM(AZ152:AZ163) -> 22056.98851
B165: Conclusion Ventilation
C167: APPORTS INTERNES | H167: Puissance / jour (W) | J167: Nb d'heures d'inconfort (sans clim) | K167: Plage | L167: Pourcentage d'inconfort
C168: Sensible | D168: Latent | E168: Eclairage | F168: Equipement | G168: Sensible | I168: Surchauffe moyenne mensuelle (°C)
B169: Janvier | C169: =I103 -> 2535.269269 | D169: =J103 -> 4639.016445 | E169: =E152 -> 2038.356164 | F169: =F152 -> 9886.027397 | G169: =IF(SUM(G25,F86,$C169,$E169:$F169)>0,SUM(G25,F86,$C169,$E169:$F169),0) -> 23404.53859 | H169: =(G169/(VMOIS($B169)*24))*1000 -> 31457.71316 | I169: =H169/($C$182*$C$183+Données1!AD214*1005/3600*$C$184*$F$182) -> 0.7183738756 | J169: =C249 -> 186 | K169: =C255 -> 15h-20h | L169: =J169/(VMOIS(B169)*24) -> 0.25
B170: Février | C170: 2310.148882 | D170: 4169.851118 | E170: 1841.09589 | F170: 8929.315068 | G170: 21287.0614 | H170: 31677.1747 | I170: =H170/($C$182*$C$183+Données1!AD215*1005/3600*$C$184*$F$182) -> 0.7232437434 | J170: =D249 -> 140 | K170: =D255 -> 15h-19h | L170: =J170/(VMOIS(B170)*24) -> 0.2083333333
B171: Mars | C171: 2547.89646 | D171: 4626.389254 | E171: 2038.356164 | F171: 9886.027397 | G171: 23716.98859 | H171: 31877.67284 | I171: =H171/($C$182*$C$183+Données1!AD216*1005/3600*$C$184*$F$182) -> 0.7278837379 | J171: =E249 -> 155 | K171: =E255 -> 15h-19h | L171: 0.2083333333
B172: Avril | C172: 2387.013577 | D172: 4555.843565 | E172: 1972.60274 | F172: 9567.123288 | G172: 23121.68949 | H172: 32113.45762 | I172: =H172/($C$182*$C$183+Données1!AD217*1005/3600*$C$184*$F$182) -> 0.7337872949 | J172: =F249 -> 210 | K172: =F255 -> 14h-20h | L172: 0.2916666667
B173: Mai | C173: 2290.028721 | D173: 4884.256993 | E173: 2038.356164 | F173: 9886.027397 | G173: 23479.57819 | H173: 31558.57283 | I173: =H173/($C$182*$C$183+Données1!AD218*1005/3600*$C$184*$F$182) -> 0.7222021625 | J173: =G249 -> 248 | K173: =G255 -> 14h-21h | L173: 0.3333333333
B174: Juin | C174: 2536.789416 | D174: 4406.067727 | E174: 1972.60274 | F174: 9567.123288 | G174: 23832.38265 | H174: 33100.53146 | I174: =H174/($C$182*$C$183+Données1!AD219*1005/3600*$C$184*$F$182) -> 0.7553180885 | J174: =H249 -> 180 | K174: =H255 -> 15h-20h | L174: 0.25
B175: Juillet | C175: 2470.228592 | D175: 4704.057122 | E175: 2038.356164 | F175: 9886.027397 | G175: 25528.37097 | H175: 34312.32658 | I175: =H175/($C$182*$C$183+Données1!AD220*1005/3600*$C$184*$F$182) -> 0.7840062855 | J175: =I249 -> 248 | K175: =I255 -> 14h-21h | L175: 0.3333333333
B176: Août | C176: 2250.791457 | D176: 4923.494257 | E176: 2038.356164 | F176: 9886.027397 | G176: 26035.52988 | H176: 34993.99177 | I176: =H176/($C$182*$C$183+Données1!AD221*1005/3600*$C$184*$F$182) -> 0.8010865742 | J176: =J249 -> 310 | K176: =J255 -> 13h-22h | L176: 0.4166666667
B177: Septembre | C177: 2142.303436 | D177: 4800.553707 | E177: 1972.60274 | F177: 9567.123288 | G177: 25706.04539 | H177: 35702.84082 | I177: =H177/($C$182*$C$183+Données1!AD222*1005/3600*$C$184*$F$182) -> 0.8175696299 | J177: =K249 -> 300 | K177: =K255 -> 13h-22h | L177: 0.4166666667
B178: Octobre | C178: 2092.406243 | D178: 5081.879472 | E178: 2038.356164 | F178: 9886.027397 | G178: 26712.2271 | H178: 35903.53104 | I178: =H178/($C$182*$C$183+Données1!AD223*1005/3600*$C$184*$F$182) -> 0.8230008623 | J178: =L249 -> 341 | K178: =L255 -> 12h-22h | L178: 0.4583333333
B179: Novembre | C179: 2349.099104 | D179: 4593.758039 | E179: 1972.60274 | F179: 9567.123288 | G179: 25676.38589 | H179: 35661.64707 | I179: =H179/($C$182*$C$183+Données1!AD224*1005/3600*$C$184*$F$182) -> 0.8151391358 | J179: =M249 -> 270 | K179: =M255 -> 13h-21h | L179: 0.375
B180: Décembre | C180: 2475.4408 | D180: 4698.844914 | E180: 2038.356164 | F180: 9886.027397 | G180: 24467.56143 | H180: 32886.50729 | I180: =H180/($C$182*$C$183+Données1!AD225*1005/3600*$C$184*$F$182) -> 0.7513935873 | J180: =N249 -> 248 | K180: =N255 -> 14h-21h | L180: 0.3333333333
B182: U_bat | C182: =C47 -> 1.560726497 | E182: Renouv Air | F182: =VLOOKUP(PotentielVN,TablePotentielVN,2,FALSE) -> 15
B183: Surf_enveloppe | C183: =SUM(Calculs!C43:C45) -> 2506.115586 | E183: Période omega | F183: =PI()/12 -> 0.2617993878
B184: Volume_bat | C184: =Calculs!C58 -> 8100
B186: Text | C186: Janvier | D186: Février | E186: Mars | F186: Avril | G186: Mai | H186: Juin | I186: Juillet | J186: Août | K186: Septembre | L186: Octobre | M186: Novembre | N186: Décembre
B187: 0 | C187: =IF(Station="Saint-Denis",Données1!C281,Données1!C308) -> 26.24193548 | D187: =IF(Station="Saint-Denis",Données1!D281,Données1!D308) -> 26.23571429 | E187: =IF(Station="Saint-Denis",Données1!E281,Données1!E308) -> 26.42903226 | F187: =IF(Station="Saint-Denis",Données1!F281,Données1!F308) -> 26.3925 | G187: =IF(Station="Saint-Denis",Données1!G281,Données1!G308) -> 26.75403226 | H187: =IF(Station="Saint-Denis",Données1!H281,Données1!H308) -> 25.56833333 | I187: =IF(Station="Saint-Denis",Données1!I281,Données1!I308) -> 26.06209677 | J187: =IF(Station="Saint-Denis",Données1!J281,Données1!J308) -> 26.58790323 | K187: =IF(Station="Saint-Denis",Données1!K281,Données1!K308) -> 26.40333333 | L187: =IF(Station="Saint-Denis",Données1!L281,Données1!L308) -> 26.82177419 | M187: =IF(Station="Saint-Denis",Données1!M281,Données1!M308) -> 26.04333333 | N187: =IF(Station="Saint-Denis",Données1!N281,Données1!N308) -> 26.03387097
B188: 1 | C188: =IF(Station="Saint-Denis",Données1!C282,Données1!C309) -> 25.91532258 | D188: =IF(Station="Saint-Denis",Données1!D282,Données1!D309) -> 25.80892857 | E188: =IF(Station="Saint-Denis",Données1!E282,Données1!E309) -> 25.96854839 | F188: =IF(Station="Saint-Denis",Données1!F282,Données1!F309) -> 25.96 | G188: =IF(Station="Saint-Denis",Données1!G282,Données1!G309) -> 26.29516129 | H188: =IF(Station="Saint-Denis",Données1!H282,Données1!H309) -> 25.15083333 | I188: =IF(Station="Saint-Denis",Données1!I282,Données1!I309) -> 25.47258065 | J188: =IF(Station="Saint-Denis",Données1!J282,Données1!J309) -> 25.89919355 | K188: =IF(Station="Saint-Denis",Données1!K282,Données1!K309) -> 25.91583333 | L188: =IF(Station="Saint-Denis",Données1!L282,Données1!L309) -> 26.13145161 | M188: =IF(Station="Saint-Denis",Données1!M282,Données1!M309) -> 25.5925 | N188: =IF(Station="Saint-Denis",Données1!N282,Données1!N309) -> 25.71209677
B189: 2 | C189: =IF(Station="Saint-Denis",Données1!C283,Données1!C310) -> 25.50483871 | D189: =IF(Station="Saint-Denis",Données1!D283,Données1!D310) -> 25.43035714 | E189: =IF(Station="Saint-Denis",Données1!E283,Données1!E310) -> 25.43870968 | F189: =IF(Station="Saint-Denis",Données1!F283,Données1!F310) -> 25.5775 | G189: =IF(Station="Saint-Denis",Données1!G283,Données1!G310) -> 25.88790323 | H189: =IF(Station="Saint-Denis",Données1!H283,Données1!H310) -> 24.73666667 | I189: =IF(Station="Saint-Denis",Données1!I283,Données1!I310) -> 24.94193548 | J189: =IF(Station="Saint-Denis",Données1!J283,Données1!J310) -> 25.33225806 | K189: =IF(Station="Saint-Denis",Données1!K283,Données1!K310) -> 25.37083333 | L189: =IF(Station="Saint-Denis",Données1!L283,Données1!L310) -> 25.575 | M189: =IF(Station="Saint-Denis",Données1!M283,Données1!M310) -> 25.04583333 | N189: =IF(Station="Saint-Denis",Données1!N283,Données1!N310) -> 25.22096774
B190: 3 | C190: =IF(Station="Saint-Denis",Données1!C284,Données1!C311) -> 25.0983871 | D190: =IF(Station="Saint-Denis",Données1!D284,Données1!D311) -> 25.13214286 | E190: =IF(Station="Saint-Denis",Données1!E284,Données1!E311) -> 25.04435484 | F190: =IF(Station="Saint-Denis",Données1!F284,Données1!F311) -> 25.27833333 | G190: =IF(Station="Saint-Denis",Données1!G284,Données1!G311) -> 25.59596774 | H190: =IF(Station="Saint-Denis",Données1!H284,Données1!H311) -> 24.33166667 | I190: =IF(Station="Saint-Denis",Données1!I284,Données1!I311) -> 24.44193548 | J190: =IF(Station="Saint-Denis",Données1!J284,Données1!J311) -> 24.75887097 | K190: =IF(Station="Saint-Denis",Données1!K284,Données1!K311) -> 24.85083333 | L190: =IF(Station="Saint-Denis",Données1!L284,Données1!L311) -> 25.02016129 | M190: =IF(Station="Saint-Denis",Données1!M284,Données1!M311) -> 24.51083333 | N190: =IF(Station="Saint-Denis",Données1!N284,Données1!N311) -> 24.77983871
B191: 4 | C191: =IF(Station="Saint-Denis",Données1!C285,Données1!C312) -> 24.83790323 | D191: =IF(Station="Saint-Denis",Données1!D285,Données1!D312) -> 24.88392857 | E191: =IF(Station="Saint-Denis",Données1!E285,Données1!E312) -> 24.86935484 | F191: =IF(Station="Saint-Denis",Données1!F285,Données1!F312) -> 24.94916667 | G191: =IF(Station="Saint-Denis",Données1!G285,Données1!G312) -> 25.41129032 | H191: =IF(Station="Saint-Denis",Données1!H285,Données1!H312) -> 23.935 | I191: =IF(Station="Saint-Denis",Données1!I285,Données1!I312) -> 24.10483871 | J191: =IF(Station="Saint-Denis",Données1!J285,Données1!J312) -> 24.39032258 | K191: =IF(Station="Saint-Denis",Données1!K285,Données1!K312) -> 24.54833333 | L191: =IF(Station="Saint-Denis",Données1!L285,Données1!L312) -> 24.69435484 | M191: =IF(Station="Saint-Denis",Données1!M285,Données1!M312) -> 24.125 | N191: =IF(Station="Saint-Denis",Données1!N285,Données1!N312) -> 24.4983871
B192: 5 | C192: =IF(Station="Saint-Denis",Données1!C286,Données1!C313) -> 24.68225806 | D192: =IF(Station="Saint-Denis",Données1!D286,Données1!D313) -> 24.69910714 | E192: =IF(Station="Saint-Denis",Données1!E286,Données1!E313) -> 24.68387097 | F192: =IF(Station="Saint-Denis",Données1!F286,Données1!F313) -> 24.68083333 | G192: =IF(Station="Saint-Denis",Données1!G286,Données1!G313) -> 25.25725806 | H192: =IF(Station="Saint-Denis",Données1!H286,Données1!H313) -> 23.65166667 | I192: =IF(Station="Saint-Denis",Données1!I286,Données1!I313) -> 23.7516129 | J192: =IF(Station="Saint-Denis",Données1!J286,Données1!J313) -> 24.13225806 | K192: =IF(Station="Saint-Denis",Données1!K286,Données1!K313) -> 24.215 | L192: =IF(Station="Saint-Denis",Données1!L286,Données1!L313) -> 24.42177419 | M192: =IF(Station="Saint-Denis",Données1!M286,Données1!M313) -> 23.805 | N192: =IF(Station="Saint-Denis",Données1!N286,Données1!N313) -> 24.24516129
B193: 6 | C193: =IF(Station="Saint-Denis",Données1!C287,Données1!C314) -> 24.59032258 | D193: =IF(Station="Saint-Denis",Données1!D287,Données1!D314) -> 24.52857143 | E193: =IF(Station="Saint-Denis",Données1!E287,Données1!E314) -> 24.53790323 | F193: =IF(Station="Saint-Denis",Données1!F287,Données1!F314) -> 24.54 | G193: =IF(Station="Saint-Denis",Données1!G287,Données1!G314) -> 25.06451613 | H193: =IF(Station="Saint-Denis",Données1!H287,Données1!H314) -> 23.46 | I193: =IF(Station="Saint-Denis",Données1!I287,Données1!I314) -> 23.43790323 | J193: =IF(Station="Saint-Denis",Données1!J287,Données1!J314) -> 23.99596774 | K193: =IF(Station="Saint-Denis",Données1!K287,Données1!K314) -> 23.94333333 | L193: =IF(Station="Saint-Denis",Données1!L287,Données1!L314) -> 24.18467742 | M193: =IF(Station="Saint-Denis",Données1!M287,Données1!M314) -> 23.56166667 | N193: =IF(Station="Saint-Denis",Données1!N287,Données1!N314) -> 24.05725806
B194: 7 | C194: =IF(Station="Saint-Denis",Données1!C288,Données1!C315) -> 24.53709677 | D194: =IF(Station="Saint-Denis",Données1!D288,Données1!D315) -> 24.475 | E194: =IF(Station="Saint-Denis",Données1!E288,Données1!E315) -> 24.57903226 | F194: =IF(Station="Saint-Denis",Données1!F288,Données1!F315) -> 24.53083333 | G194: =IF(Station="Saint-Denis",Données1!G288,Données1!G315) -> 25.06854839 | H194: =IF(Station="Saint-Denis",Données1!H288,Données1!H315) -> 23.47666667 | I194: =IF(Station="Saint-Denis",Données1!I288,Données1!I315) -> 23.41048387 | J194: =IF(Station="Saint-Denis",Données1!J288,Données1!J315) -> 23.99274194 | K194: =IF(Station="Saint-Denis",Données1!K288,Données1!K315) -> 23.91583333 | L194: =IF(Station="Saint-Denis",Données1!L288,Données1!L315) -> 24.24274194 | M194: =IF(Station="Saint-Denis",Données1!M288,Données1!M315) -> 23.61666667 | N194: =IF(Station="Saint-Denis",Données1!N288,Données1!N315) -> 24.05967742
B195: 8 | C195: =IF(Station="Saint-Denis",Données1!C289,Données1!C316) -> 24.99516129 | D195: =IF(Station="Saint-Denis",Données1!D289,Données1!D316) -> 24.90267857 | E195: =IF(Station="Saint-Denis",Données1!E289,Données1!E316) -> 24.98064516 | F195: =IF(Station="Saint-Denis",Données1!F289,Données1!F316) -> 25.15166667 | G195: =IF(Station="Saint-Denis",Données1!G289,Données1!G316) -> 25.78870968 | H195: =IF(Station="Saint-Denis",Données1!H289,Données1!H316) -> 24.47166667 | I195: =IF(Station="Saint-Denis",Données1!I289,Données1!I316) -> 24.31612903 | J195: =IF(Station="Saint-Denis",Données1!J289,Données1!J316) -> 24.78145161 | K195: =IF(Station="Saint-Denis",Données1!K289,Données1!K316) -> 24.92916667 | L195: =IF(Station="Saint-Denis",Données1!L289,Données1!L316) -> 25.37177419 | M195: =IF(Station="Saint-Denis",Données1!M289,Données1!M316) -> 24.58083333 | N195: =IF(Station="Saint-Denis",Données1!N289,Données1!N316) -> 24.76370968
B196: 9 | C196: =IF(Station="Saint-Denis",Données1!C290,Données1!C317) -> 25.86290323 | D196: =IF(Station="Saint-Denis",Données1!D290,Données1!D317) -> 25.66785714 | E196: =IF(Station="Saint-Denis",Données1!E290,Données1!E317) -> 25.81048387 | F196: =IF(Station="Saint-Denis",Données1!F290,Données1!F317) -> 26.14416667 | G196: =IF(Station="Saint-Denis",Données1!G290,Données1!G317) -> 26.78951613 | H196: =IF(Station="Saint-Denis",Données1!H290,Données1!H317) -> 25.69166667 | I196: =IF(Station="Saint-Denis",Données1!I290,Données1!I317) -> 25.60241935 | J196: =IF(Station="Saint-Denis",Données1!J290,Données1!J317) -> 26.15967742 | K196: =IF(Station="Saint-Denis",Données1!K290,Données1!K317) -> 26.44833333 | L196: =IF(Station="Saint-Denis",Données1!L290,Données1!L317) -> 26.9016129 | M196: =IF(Station="Saint-Denis",Données1!M290,Données1!M317) -> 25.9825 | N196: =IF(Station="Saint-Denis",Données1!N290,Données1!N317) -> 25.93709677
B197: 10 | C197: =IF(Station="Saint-Denis",Données1!C291,Données1!C318) -> 26.86451613 | D197: =IF(Station="Saint-Denis",Données1!D291,Données1!D318) -> 26.68125 | E197: =IF(Station="Saint-Denis",Données1!E291,Données1!E318) -> 26.8 | F197: =IF(Station="Saint-Denis",Données1!F291,Données1!F318) -> 27.15166667 | G197: =IF(Station="Saint-Denis",Données1!G291,Données1!G318) -> 27.81693548 | H197: =IF(Station="Saint-Denis",Données1!H291,Données1!H318) -> 26.9725 | I197: =IF(Station="Saint-Denis",Données1!I291,Données1!I318) -> 26.91935484 | J197: =IF(Station="Saint-Denis",Données1!J291,Données1!J318) -> 27.70564516 | K197: =IF(Station="Saint-Denis",Données1!K291,Données1!K318) -> 28.03583333 | L197: =IF(Station="Saint-Denis",Données1!L291,Données1!L318) -> 28.40806452 | M197: =IF(Station="Saint-Denis",Données1!M291,Données1!M318) -> 27.39166667 | N197: =IF(Station="Saint-Denis",Données1!N291,Données1!N318) -> 27.2266129
B198: 11 | C198: =IF(Station="Saint-Denis",Données1!C292,Données1!C319) -> 27.88387097 | D198: =IF(Station="Saint-Denis",Données1!D292,Données1!D319) -> 27.69464286 | E198: =IF(Station="Saint-Denis",Données1!E292,Données1!E319) -> 27.73629032 | F198: =IF(Station="Saint-Denis",Données1!F292,Données1!F319) -> 28.175 | G198: =IF(Station="Saint-Denis",Données1!G292,Données1!G319) -> 28.84596774 | H198: =IF(Station="Saint-Denis",Données1!H292,Données1!H319) -> 28.1475 | I198: =IF(Station="Saint-Denis",Données1!I292,Données1!I319) -> 28.30564516 | J198: =IF(Station="Saint-Denis",Données1!J292,Données1!J319) -> 29.1516129 | K198: =IF(Station="Saint-Denis",Données1!K292,Données1!K319) -> 29.50333333 | L198: =IF(Station="Saint-Denis",Données1!L292,Données1!L319) -> 29.85967742 | M198: =IF(Station="Saint-Denis",Données1!M292,Données1!M319) -> 28.715 | N198: =IF(Station="Saint-Denis",Données1!N292,Données1!N319) -> 28.35241935
B199: 12 | C199: =IF(Station="Saint-Denis",Données1!C293,Données1!C320) -> 28.71209677 | D199: =IF(Station="Saint-Denis",Données1!D293,Données1!D320) -> 28.52142857 | E199: =IF(Station="Saint-Denis",Données1!E293,Données1!E320) -> 28.55 | F199: =IF(Station="Saint-Denis",Données1!F293,Données1!F320) -> 28.92083333 | G199: =IF(Station="Saint-Denis",Données1!G293,Données1!G320) -> 29.6766129 | H199: =IF(Station="Saint-Denis",Données1!H293,Données1!H320) -> 29.155 | I199: =IF(Station="Saint-Denis",Données1!I293,Données1!I320) -> 29.47822581 | J199: =IF(Station="Saint-Denis",Données1!J293,Données1!J320) -> 30.35483871 | K199: =IF(Station="Saint-Denis",Données1!K293,Données1!K320) -> 30.69 | L199: =IF(Station="Saint-Denis",Données1!L293,Données1!L320) -> 31.06370968 | M199: =IF(Station="Saint-Denis",Données1!M293,Données1!M320) -> 29.8375 | N199: =IF(Station="Saint-Denis",Données1!N293,Données1!N320) -> 29.30403226
B200: 13 | C200: =IF(Station="Saint-Denis",Données1!C294,Données1!C321) -> 29.37741935 | D200: =IF(Station="Saint-Denis",Données1!D294,Données1!D321) -> 29.19107143 | E200: =IF(Station="Saint-Denis",Données1!E294,Données1!E321) -> 29.13951613 | F200: =IF(Station="Saint-Denis",Données1!F294,Données1!F321) -> 29.58583333 | G200: =IF(Station="Saint-Denis",Données1!G294,Données1!G321) -> 30.29112903 | H200: =IF(Station="Saint-Denis",Données1!H294,Données1!H321) -> 29.79916667 | I200: =IF(Station="Saint-Denis",Données1!I294,Données1!I321) -> 30.34677419 | J200: =IF(Station="Saint-Denis",Données1!J294,Données1!J321) -> 31.33306452 | K200: =IF(Station="Saint-Denis",Données1!K294,Données1!K321) -> 31.60916667 | L200: =IF(Station="Saint-Denis",Données1!L294,Données1!L321) -> 32.01048387 | M200: =IF(Station="Saint-Denis",Données1!M294,Données1!M321) -> 30.76083333 | N200: =IF(Station="Saint-Denis",Données1!N294,Données1!N321) -> 29.96290323
B201: 14 | C201: =IF(Station="Saint-Denis",Données1!C295,Données1!C322) -> 29.87419355 | D201: =IF(Station="Saint-Denis",Données1!D295,Données1!D322) -> 29.64464286 | E201: =IF(Station="Saint-Denis",Données1!E295,Données1!E322) -> 29.49596774 | F201: =IF(Station="Saint-Denis",Données1!F295,Données1!F322) -> 30.06833333 | G201: =IF(Station="Saint-Denis",Données1!G295,Données1!G322) -> 30.69596774 | H201: =IF(Station="Saint-Denis",Données1!H295,Données1!H322) -> 30.18583333 | I201: =IF(Station="Saint-Denis",Données1!I295,Données1!I322) -> 30.94435484 | J201: =IF(Station="Saint-Denis",Données1!J295,Données1!J322) -> 31.98064516 | K201: =IF(Station="Saint-Denis",Données1!K295,Données1!K322) -> 32.23833333 | L201: =IF(Station="Saint-Denis",Données1!L295,Données1!L322) -> 32.66532258 | M201: =IF(Station="Saint-Denis",Données1!M295,Données1!M322) -> 31.3825 | N201: =IF(Station="Saint-Denis",Données1!N295,Données1!N322) -> 30.53951613
B202: 15 | C202: =IF(Station="Saint-Denis",Données1!C296,Données1!C323) -> 30.0766129 | D202: =IF(Station="Saint-Denis",Données1!D296,Données1!D323) -> 29.83660714 | E202: =IF(Station="Saint-Denis",Données1!E296,Données1!E323) -> 29.69919355 | F202: =IF(Station="Saint-Denis",Données1!F296,Données1!F323) -> 30.27333333 | G202: =IF(Station="Saint-Denis",Données1!G296,Données1!G323) -> 30.83951613 | H202: =IF(Station="Saint-Denis",Données1!H296,Données1!H323) -> 30.4225 | I202: =IF(Station="Saint-Denis",Données1!I296,Données1!I323) -> 31.39919355 | J202: =IF(Station="Saint-Denis",Données1!J296,Données1!J323) -> 32.28145161 | K202: =IF(Station="Saint-Denis",Données1!K296,Données1!K323) -> 32.54666667 | L202: =IF(Station="Saint-Denis",Données1!L296,Données1!L323) -> 32.99112903 | M202: =IF(Station="Saint-Denis",Données1!M296,Données1!M323) -> 31.63916667 | N202: =IF(Station="Saint-Denis",Données1!N296,Données1!N323) -> 30.92096774
B203: 16 | C203: =IF(Station="Saint-Denis",Données1!C297,Données1!C324) -> 30.06774194 | D203: =IF(Station="Saint-Denis",Données1!D297,Données1!D324) -> 29.90267857 | E203: =IF(Station="Saint-Denis",Données1!E297,Données1!E324) -> 29.82177419 | F203: =IF(Station="Saint-Denis",Données1!F297,Données1!F324) -> 30.33166667 | G203: =IF(Station="Saint-Denis",Données1!G297,Données1!G324) -> 30.79032258 | H203: =IF(Station="Saint-Denis",Données1!H297,Données1!H324) -> 30.41583333 | I203: =IF(Station="Saint-Denis",Données1!I297,Données1!I324) -> 31.43629032 | J203: =IF(Station="Saint-Denis",Données1!J297,Données1!J324) -> 32.29193548 | K203: =IF(Station="Saint-Denis",Données1!K297,Données1!K324) -> 32.52333333 | L203: =IF(Station="Saint-Denis",Données1!L297,Données1!L324) -> 32.95483871 | M203: =IF(Station="Saint-Denis",Données1!M297,Données1!M324) -> 31.55 | N203: =IF(Station="Saint-Denis",Données1!N297,Données1!N324) -> 30.9516129
B204: 17 | C204: =IF(Station="Saint-Denis",Données1!C298,Données1!C325) -> 29.75483871 | D204: =IF(Station="Saint-Denis",Données1!D298,Données1!D325) -> 29.69196429 | E204: =IF(Station="Saint-Denis",Données1!E298,Données1!E325) -> 29.68870968 | F204: =IF(Station="Saint-Denis",Données1!F298,Données1!F325) -> 30.0975 | G204: =IF(Station="Saint-Denis",Données1!G298,Données1!G325) -> 30.53790323 | H204: =IF(Station="Saint-Denis",Données1!H298,Données1!H325) -> 30.07416667 | I204: =IF(Station="Saint-Denis",Données1!I298,Données1!I325) -> 31.10322581 | J204: =IF(Station="Saint-Denis",Données1!J298,Données1!J325) -> 31.83709677 | K204: =IF(Station="Saint-Denis",Données1!K298,Données1!K325) -> 32.04666667 | L204: =IF(Station="Saint-Denis",Données1!L298,Données1!L325) -> 32.43145161 | M204: =IF(Station="Saint-Denis",Données1!M298,Données1!M325) -> 31.10916667 | N204: =IF(Station="Saint-Denis",Données1!N298,Données1!N325) -> 30.54354839
B205: 18 | C205: =IF(Station="Saint-Denis",Données1!C299,Données1!C326) -> 29.21209677 | D205: =IF(Station="Saint-Denis",Données1!D299,Données1!D326) -> 29.21339286 | E205: =IF(Station="Saint-Denis",Données1!E299,Données1!E326) -> 29.25564516 | F205: =IF(Station="Saint-Denis",Données1!F299,Données1!F326) -> 29.56416667 | G205: =IF(Station="Saint-Denis",Données1!G299,Données1!G326) -> 29.96774194 | H205: =IF(Station="Saint-Denis",Données1!H299,Données1!H326) -> 29.47166667 | I205: =IF(Station="Saint-Denis",Données1!I299,Données1!I326) -> 30.46048387 | J205: =IF(Station="Saint-Denis",Données1!J299,Données1!J326) -> 31.05645161 | K205: =IF(Station="Saint-Denis",Données1!K299,Données1!K326) -> 31.17666667 | L205: =IF(Station="Saint-Denis",Données1!L299,Données1!L326) -> 31.49354839 | M205: =IF(Station="Saint-Denis",Données1!M299,Données1!M326) -> 30.29166667 | N205: =IF(Station="Saint-Denis",Données1!N299,Données1!N326) -> 29.77177419
B206: 19 | C206: =IF(Station="Saint-Denis",Données1!C300,Données1!C327) -> 28.52258065 | D206: =IF(Station="Saint-Denis",Données1!D300,Données1!D327) -> 28.62053571 | E206: =IF(Station="Saint-Denis",Données1!E300,Données1!E327) -> 28.63064516 | F206: =IF(Station="Saint-Denis",Données1!F300,Données1!F327) -> 28.91083333 | G206: =IF(Station="Saint-Denis",Données1!G300,Données1!G327) -> 29.28306452 | H206: =IF(Station="Saint-Denis",Données1!H300,Données1!H327) -> 28.59666667 | I206: =IF(Station="Saint-Denis",Données1!I300,Données1!I327) -> 29.50645161 | J206: =IF(Station="Saint-Denis",Données1!J300,Données1!J327) -> 30.1 | K206: =IF(Station="Saint-Denis",Données1!K300,Données1!K327) -> 30.10416667 | L206: =IF(Station="Saint-Denis",Données1!L300,Données1!L327) -> 30.41048387 | M206: =IF(Station="Saint-Denis",Données1!M300,Données1!M327) -> 29.31833333 | N206: =IF(Station="Saint-Denis",Données1!N300,Données1!N327) -> 29.00645161
B207: 20 | C207: =IF(Station="Saint-Denis",Données1!C301,Données1!C328) -> 27.99596774 | D207: =IF(Station="Saint-Denis",Données1!D301,Données1!D328) -> 28.08214286 | E207: =IF(Station="Saint-Denis",Données1!E301,Données1!E328) -> 28.17903226 | F207: =IF(Station="Saint-Denis",Données1!F301,Données1!F328) -> 28.29583333 | G207: =IF(Station="Saint-Denis",Données1!G301,Données1!G328) -> 28.72983871 | H207: =IF(Station="Saint-Denis",Données1!H301,Données1!H328) -> 27.9425 | I207: =IF(Station="Saint-Denis",Données1!I301,Données1!I328) -> 28.77903226 | J207: =IF(Station="Saint-Denis",Données1!J301,Données1!J328) -> 29.33629032 | K207: =IF(Station="Saint-Denis",Données1!K301,Données1!K328) -> 29.28666667 | L207: =IF(Station="Saint-Denis",Données1!L301,Données1!L328) -> 29.625 | M207: =IF(Station="Saint-Denis",Données1!M301,Données1!M328) -> 28.6 | N207: =IF(Station="Saint-Denis",Données1!N301,Données1!N328) -> 28.41854839
B208: 21 | C208: =IF(Station="Saint-Denis",Données1!C302,Données1!C329) -> 27.54435484 | D208: =IF(Station="Saint-Denis",Données1!D302,Données1!D329) -> 27.64821429 | E208: =IF(Station="Saint-Denis",Données1!E302,Données1!E329) -> 27.73548387 | F208: =IF(Station="Saint-Denis",Données1!F302,Données1!F329) -> 27.89416667 | G208: =IF(Station="Saint-Denis",Données1!G302,Données1!G329) -> 28.25 | H208: =IF(Station="Saint-Denis",Données1!H302,Données1!H329) -> 27.36333333 | I208: =IF(Station="Saint-Denis",Données1!I302,Données1!I329) -> 28.10241935 | J208: =IF(Station="Saint-Denis",Données1!J302,Données1!J329) -> 28.65645161 | K208: =IF(Station="Saint-Denis",Données1!K302,Données1!K329) -> 28.57166667 | L208: =IF(Station="Saint-Denis",Données1!L302,Données1!L329) -> 28.91532258 | M208: =IF(Station="Saint-Denis",Données1!M302,Données1!M329) -> 27.94833333 | N208: =IF(Station="Saint-Denis",Données1!N302,Données1!N329) -> 27.8483871
B209: 22 | C209: =IF(Station="Saint-Denis",Données1!C303,Données1!C330) -> 27.13951613 | D209: =IF(Station="Saint-Denis",Données1!D303,Données1!D330) -> 27.20625 | E209: =IF(Station="Saint-Denis",Données1!E303,Données1!E330) -> 27.22983871 | F209: =IF(Station="Saint-Denis",Données1!F303,Données1!F330) -> 27.3825 | G209: =IF(Station="Saint-Denis",Données1!G303,Données1!G330) -> 27.7983871 | H209: =IF(Station="Saint-Denis",Données1!H303,Données1!H330) -> 26.79166667 | I209: =IF(Station="Saint-Denis",Données1!I303,Données1!I330) -> 27.41129032 | J209: =IF(Station="Saint-Denis",Données1!J303,Données1!J330) -> 27.96935484 | K209: =IF(Station="Saint-Denis",Données1!K303,Données1!K330) -> 27.84333333 | L209: =IF(Station="Saint-Denis",Données1!L303,Données1!L330) -> 28.21532258 | M209: =IF(Station="Saint-Denis",Données1!M303,Données1!M330) -> 27.31583333 | N209: =IF(Station="Saint-Denis",Données1!N303,Données1!N330) -> 27.27741935
B210: 23 | C210: =IF(Station="Saint-Denis",Données1!C304,Données1!C331) -> 26.68870968 | D210: =IF(Station="Saint-Denis",Données1!D304,Données1!D331) -> 26.72321429 | E210: =IF(Station="Saint-Denis",Données1!E304,Données1!E331) -> 26.81451613 | F210: =IF(Station="Saint-Denis",Données1!F304,Données1!F331) -> 26.85 | G210: =IF(Station="Saint-Denis",Données1!G304,Données1!G331) -> 27.29032258 | H210: =IF(Station="Saint-Denis",Données1!H304,Données1!H331) -> 26.18 | I210: =IF(Station="Saint-Denis",Données1!I304,Données1!I331) -> 26.74274194 | J210: =IF(Station="Saint-Denis",Données1!J304,Données1!J331) -> 27.28387097 | K210: =IF(Station="Saint-Denis",Données1!K304,Données1!K331) -> 27.1225 | L210: =IF(Station="Saint-Denis",Données1!L304,Données1!L331) -> 27.51693548 | M210: =IF(Station="Saint-Denis",Données1!M304,Données1!M331) -> 26.6675 | N210: =IF(Station="Saint-Denis",Données1!N304,Données1!N331) -> 26.66129032
B212: Tint | C212: Janvier | D212: Février | E212: Mars | F212: Avril | G212: Mai | H212: Juin | I212: Juillet | J212: Août | K212: Septembre | L212: Octobre | M212: Novembre | N212: Décembre
B213: 0 | C213: =IF($B213<C$241,C$247+C$248+C$245*SIN($F$183*$B213+$C$243),C$247+C$248+C$246*SIN($F$183*$B213+$C$243)) -> 27.38740406 | D213: =IF($B213<D$241,D$247+D$248+D$245*SIN($F$183*$B213+$C$243),D$247+D$248+D$246*SIN($F$183*$B213+$C$243)) -> 27.32787928 | E213: 27.36793457 | F213: 27.56133432 | G213: 28.05678917 | H213: 27.01842955 | I213: 27.39206326 | J213: 28.02241373 | K213: 28.10782055 | L213: 28.43735176 | M213: 27.55024686 | N213: 27.46871766 | O213: 1
B214: 1 | C214: 26.7362211 | D214: 26.67739819 | E214: 26.72584946 | F214: 26.85982047 | G214: 27.36341317 | H214: 26.16224032 | I214: 26.4153887 | J214: 27.03626676 | K214: 27.07713018 | L214: 27.3897839 | M214: 26.58094325 | N214: 26.65622059 | O214: 1
B215: 2 | C215: 26.16327333 | D215: 26.10506796 | E215: 26.16090649 | F215: 26.24258872 | G215: 26.75334155 | H215: 25.40891639 | I215: 25.55605493 | J215: 26.16859861 | K215: 26.17027023 | L215: 26.46807416 | M215: 25.72809486 | N215: 25.94133949 | O215: 1
... 53 more rows

Sheet Données1 (hidden)
AB1: Poste de consommation
AB2: Climatisation
AB3: Brasseurs d'air
B4: Jan | C4: Orientation des plus grandes façades | E4: U | G4: Installation | H4: consigne clim | J4: Localisation | K4: correspondance pour nom tableaux | M4: % vitrage | O4: Facteur solaire murs | Q4: TempInconfort | X4: VMC | Z4: Typologie | AA4: Niveau de consommation | AB4: Ventilation
B5: Fév | C5: Nord / Sud | E5: 0.5 | G5: Centralisée Eau-Glacée | H5: 28 | J5: Cayenne | K5: Cayenne | M5: 0 | O5: Base | Q5: 28 | X5: Jamais | Z5: Logement | AA5: Sans objet | AB5: Eau chaude sanitaire
B6: Mars | C6: Est / Ouest | E6: 1 | G6: Centralisée VRV | H6: 27 | M6: 0.05 | O6: RTAA DOM 2016 | Q6: 29 | X6: Permanent | Z6: Commerces | AA6: Niveau de base | AB6: Eclairage intérieur
B7: Avril | C7: Nord-Est / Sud-Ouest | E7: 1.5 | G7: Individuelle | H7: 26 | M7: 0.1 | O7: Ecodom | Q7: 30 | X7: Occupation | Z7: Bureaux | AA7: Performant | AB7: Eclairage extérieur
B8: Mai | C8: Nord-Ouest / Sud-Est | E8: 2 | H8: 25 | M8: 0.15 | O8: NF Habitat HQE | Q8: 31 | X8: Nuit | Z8: Enseignement | AA8: Très performant | AB8: Bureautique
B9: Juin | E9: 3 | H9: 24 | M9: 0.2 | O9: LEKOL LOJIK | Z9: Santé | AB9: Froid alimentaire
B10: Juil | C10: Orientation | H10: 23 | M10: 0.25 | Z10: Hôtellerie | AB10: Chaud alimentaire
B11: Août | C11: Nord | E11: coeff d'absorption solaire | H11: 22 | J11: PLANNING RENOUV. AIR | M11: 0.3 | O11: Niveau ventilation | AB11: Autres
B12: Sept | C12: Sud | E12: Couleur claire | F12: 0.4 | H12: 21 | J12: Type | M12: 0.35 | O12: Base (5 vol/h) | P12: 5 | AB12: Equipements spécifiques avec apports
B13: Oct | C13: Est | E13: Couleur moyenne | F13: 0.6 | H13: 20 | J13: Permanent | M13: 0.4 | O13: Décharge (15 vol/h) | P13: 15 | AB13: Equipements spécifiques sans apports
B14: Nov | C14: Ouest | E14: couleur sombre | F14: 0.8 | J14: Jour-calé sur l'occupation | M14: 0.45 | O14: Confort (50 vol/h) | P14: 50
B15: Déc | J15: Nuit | M15: 0.5
M16: 0.55
C17: Type de vitrage | E17: exposition au vent | J17: Attention, si chgt de formulation dans ce tableau, modifier à la main les formules (apports renouv. Air et peut être d'autre) | M17: 0.6 | O17: Facteur solaire murs
C18: SV | E18: Type | F18: K_vent | M18: 0.65 | O18: Léger
C19: DV | E19: Zone littorale au vent | F19: 1.15 | M19: 0.7 | O19: Moyen
C20: Attention, si chgt de formulation dans ce tableau, modifier à la main les formules (apports par clo transmis vitrage)) | E20: Zone au vent | F20: 1 | M20: 0.75 | O20: Lourd | AR20: Valeurs limites
E21: Zone continentale | F21: 0.9 | M21: 0.8 | AR21: Centralisée Eau Glacée | AS21: Centralisée DRV | AT21: Climatisation individuelle
E22: Zone sous le vent | F22: 0.65 | M22: 0.85 | AR22: 2.9 | AS22: 5.6 | AT22: 5.6
M23: 0.9 | AR23: 3.1 | AS23: 6.1 | AT23: 7
M24: 0.95 | AR24: 3.4 | AS24: 7 | AT24: 8.5
M25: 1
AR26: Valeurs hypothétiques
B27: APPORT SOLAIRE CLO INCIDENT (Wh/m² de paroi) | AR27: Centralisée Eau Glacée | AS27: Centralisée DRV | AT27: Climatisation individuelle
AR28: 3 | AS28: 5.75 | AT28: 6.3
B29: CAYENNE (Wh/m² de paroi) | M29: CAYENNE (Wh/m² de paroi) | X29: CAYENNE (Wh/m² de paroi) | AJ29: (Wh/m² de paroi) | AR29: 3.25 | AS29: 6.55 | AT29: 7.75
B30: RDC | C30: NORD | D30: NORD-EST | E30: EST | F30: SUD-EST | G30: SUD | H30: SUD-OUEST | I30: OUEST | J30: NORD-OUEST | K30: TOIT | M30: Etage | N30: NORD | O30: NORD-EST | P30: EST | Q30: SUD-EST | R30: SUD | S30: SUD-OUEST | T30: OUEST | U30: NORD-OUEST | V30: TOIT | X30: MOYEN | Y30: NORD | Z30: NORD-EST | AA30: EST | AB30: SUD-EST | AC30: SUD | AD30: SUD-OUEST | AE30: OUEST | AF30: NORD-OUEST | AG30: TOIT | AJ30: Tampon 1 | AK30: =Calculs!B7 -> Est | AL30: =Calculs!C7 -> Sud | AM30: =Calculs!D7 -> Ouest | AN30: =Calculs!E7 -> Nord | AO30: TOIT | AR30: 3.6 | AS30: 7.5 | AT30: 9.25
B31: Janvier | C31: 38722.33711 | D31: 46302.73292 | E31: 66796.87513 | F31: 76592.17891 | G31: 79597.47416 | H31: 72860.15026 | I31: 63476.19683 | J31: 45340.29283 | K31: 118322.7579 | M31: Janvier | N31: 38722.33711 | O31: 46302.73292 | P31: 66796.87513 | Q31: 76592.17891 | R31: 79597.47416 | S31: 72860.15026 | T31: 63476.19683 | U31: 45340.29283 | V31: 118322.7579 | X31: Janvier | Y31: =(C31+(NombreNiveaux-1)*N31)/NombreNiveaux -> 38722.33711 | Z31: =(D31+(NombreNiveaux-1)*O31)/NombreNiveaux -> 46302.73292 | AA31: =(E31+(NombreNiveaux-1)*P31)/NombreNiveaux -> 66796.87513 | AB31: =(F31+(NombreNiveaux-1)*Q31)/NombreNiveaux -> 76592.17891 | AC31: =(G31+(NombreNiveaux-1)*R31)/NombreNiveaux -> 79597.47416 | AD31: =(H31+(NombreNiveaux-1)*S31)/NombreNiveaux -> 72860.15026 | AE31: =(I31+(NombreNiveaux-1)*T31)/NombreNiveaux -> 63476.19683 | AF31: =(J31+(NombreNiveaux-1)*U31)/NombreNiveaux -> 45340.29283 | AG31: =(K31+(NombreNiveaux-1)*V31)/NombreNiveaux -> 118322.7579 | AJ31: Janvier | AK31: =HLOOKUP(AK30,INDIRECT(VLOOKUP(Station,$J$5:$K$8,2,FALSE)&1),2,FALSE) -> 66796.87513 | AL31: =HLOOKUP(AL30,INDIRECT(VLOOKUP(Station,$J$5:$K$8,2,FALSE)&1),2,FALSE) -> 79597.47416 | AM31: =HLOOKUP(AM30,INDIRECT(VLOOKUP(Station,$J$5:$K$8,2,FALSE)&1),2,FALSE) -> 63476.19683 | AN31: =HLOOKUP(AN30,INDIRECT(VLOOKUP(Station,$J$5:$K$8,2,FALSE)&1),2,FALSE) -> 38722.33711 | AO31: =HLOOKUP(AO30,INDIRECT(VLOOKUP(Station,$J$5:$K$8,2,FALSE)&1),2,FALSE) -> 118322.7579
B32: Février | C32: 36751.52542 | D32: 47290.59489 | E32: 63580.59282 | F32: 66799.17155 | G32: 62626.03458 | H32: 62846.30485 | I32: 59701.89532 | J32: 45755.84229 | K32: 113487.7476 | M32: Février | N32: 36751.52542 | O32: 47290.59489 | P32: 63580.59282 | Q32: 66799.17155 | R32: 62626.03458 | S32: 62846.30485 | T32: 59701.89532 | U32: 45755.84229 | V32: 113487.7476 | X32: Février | Y32: 36751.52542 | Z32: 47290.59489 | AA32: 63580.59282 | AB32: 66799.17155 | AC32: 62626.03458 | AD32: 62846.30485 | AE32: 59701.89532 | AF32: 45755.84229 | AG32: 113487.7476 | AJ32: Février | AK32: =HLOOKUP(AK30,INDIRECT(VLOOKUP(Station,$J$5:$K$8,2,FALSE)&1),3,FALSE) -> 63580.59282 | AL32: =HLOOKUP(AL30,INDIRECT(VLOOKUP(Station,$J$5:$K$8,2,FALSE)&1),3,FALSE) -> 62626.03458 | AM32: =HLOOKUP(AM30,INDIRECT(VLOOKUP(Station,$J$5:$K$8,2,FALSE)&1),3,FALSE) -> 59701.89532 | AN32: =HLOOKUP(AN30,INDIRECT(VLOOKUP(Station,$J$5:$K$8,2,FALSE)&1),3,FALSE) -> 36751.52542 | AO32: =HLOOKUP(AO30,INDIRECT(VLOOKUP(Station,$J$5:$K$8,2,FALSE)&1),3,FALSE) -> 113487.7476
B33: Mars | C33: 40358.52189 | D33: 62190.5464 | E33: 74379.22767 | F33: 66390.3173 | G33: 45949.6597 | H33: 66066.91729 | I33: 74171.79527 | J33: 62220.99515 | K33: 136872.3768 | M33: Mars | N33: 40358.52189 | O33: 62190.5464 | P33: 74379.22767 | Q33: 66390.3173 | R33: 45949.6597 | S33: 66066.91729 | T33: 74171.79527 | U33: 62220.99515 | V33: 136872.3768 | X33: Mars | Y33: 40358.52189 | Z33: 62190.5464 | AA33: 74379.22767 | AB33: 66390.3173 | AC33: 45949.6597 | AD33: 66066.91729 | AE33: 74171.79527 | AF33: 62220.99515 | AG33: 136872.3768 | AJ33: Mars | AK33: =HLOOKUP(AK30,INDIRECT(VLOOKUP(Station,$J$5:$K$8,2,FALSE)&1),4,FALSE) -> 74379.22767 | AL33: =HLOOKUP(AL30,INDIRECT(VLOOKUP(Station,$J$5:$K$8,2,FALSE)&1),4,FALSE) -> 45949.6597 | AM33: =HLOOKUP(AM30,INDIRECT(VLOOKUP(Station,$J$5:$K$8,2,FALSE)&1),4,FALSE) -> 74171.79527 | AN33: =HLOOKUP(AN30,INDIRECT(VLOOKUP(Station,$J$5:$K$8,2,FALSE)&1),4,FALSE) -> 40358.52189 | AO33: =HLOOKUP(AO30,INDIRECT(VLOOKUP(Station,$J$5:$K$8,2,FALSE)&1),4,FALSE) -> 136872.3768
B34: Avril | C34: 51259.02013 | D34: 65994.24687 | E34: 71079.65996 | F34: 58904.58332 | G34: 41239.41946 | H34: 61012.41173 | I34: 74284.53726 | J34: 68408.85852 | K34: 136359.9088 | M34: Avril | N34: 51259.02013 | O34: 65994.24687 | P34: 71079.65996 | Q34: 58904.58332 | R34: 41239.41946 | S34: 61012.41173 | T34: 74284.53726 | U34: 68408.85852 | V34: 136359.9088 | X34: Avril | Y34: 51259.02013 | Z34: 65994.24687 | AA34: 71079.65996 | AB34: 58904.58332 | AC34: 41239.41946 | AD34: 61012.41173 | AE34: 74284.53726 | AF34: 68408.85852 | AG34: 136359.9088 | AJ34: Avril | AK34: =HLOOKUP(AK30,INDIRECT(VLOOKUP(Station,$J$5:$K$8,2,FALSE)&1),5,FALSE) -> 71079.65996 | AL34: =HLOOKUP(AL30,INDIRECT(VLOOKUP(Station,$J$5:$K$8,2,FALSE)&1),5,FALSE) -> 41239.41946 | AM34: =HLOOKUP(AM30,INDIRECT(VLOOKUP(Station,$J$5:$K$8,2,FALSE)&1),5,FALSE) -> 74284.53726 | AN34: =HLOOKUP(AN30,INDIRECT(VLOOKUP(Station,$J$5:$K$8,2,FALSE)&1),5,FALSE) -> 51259.02013 | AO34: =HLOOKUP(AO30,INDIRECT(VLOOKUP(Station,$J$5:$K$8,2,FALSE)&1),5,FALSE) -> 136359.9088
B35: Mai | C35: 71923.87933 | D35: 75376.20873 | E35: 72127.36542 | F35: 51046.12044 | G35: 37598.70916 | H35: 50843.55166 | I35: 71760.37306 | J35: 75055.83413 | K35: 134982.4505 | M35: Mai | N35: 71923.87933 | O35: 75376.20873 | P35: 72127.36542 | Q35: 51046.12044 | R35: 37598.70916 | S35: 50843.55166 | T35: 71760.37306 | U35: 75055.83413 | V35: 134982.4505 | X35: Mai | Y35: 71923.87933 | Z35: 75376.20873 | AA35: 72127.36542 | AB35: 51046.12044 | AC35: 37598.70916 | AD35: 50843.55166 | AE35: 71760.37306 | AF35: 75055.83413 | AG35: 134982.4505 | AJ35: Mai | AK35: =HLOOKUP(AK30,INDIRECT(VLOOKUP(Station,$J$5:$K$8,2,FALSE)&1),6,FALSE) -> 72127.36542 | AL35: =HLOOKUP(AL30,INDIRECT(VLOOKUP(Station,$J$5:$K$8,2,FALSE)&1),6,FALSE) -> 37598.70916 | AM35: =HLOOKUP(AM30,INDIRECT(VLOOKUP(Station,$J$5:$K$8,2,FALSE)&1),6,FALSE) -> 71760.37306 | AN35: =HLOOKUP(AN30,INDIRECT(VLOOKUP(Station,$J$5:$K$8,2,FALSE)&1),6,FALSE) -> 71923.87933 | AO35: =HLOOKUP(AO30,INDIRECT(VLOOKUP(Station,$J$5:$K$8,2,FALSE)&1),6,FALSE) -> 134982.4505
B36: Juin | C36: 82725.1063 | D36: 83373.09092 | E36: 76128.67947 | F36: 51441.15444 | G36: 39936.1279 | H36: 49907.22587 | I36: 71588.24628 | J36: 78487.12236 | K36: 136442.2341 | M36: Juin | N36: 82725.1063 | O36: 83373.09092 | P36: 76128.67947 | Q36: 51441.15444 | R36: 39936.1279 | S36: 49907.22587 | T36: 71588.24628 | U36: 78487.12236 | V36: 136442.2341 | X36: Juin | Y36: 82725.1063 | Z36: 83373.09092 | AA36: 76128.67947 | AB36: 51441.15444 | AC36: 39936.1279 | AD36: 49907.22587 | AE36: 71588.24628 | AF36: 78487.12236 | AG36: 136442.2341 | AJ36: Juin | AK36: =HLOOKUP(AK30,INDIRECT(VLOOKUP(Station,$J$5:$K$8,2,FALSE)&1),7,FALSE) -> 76128.67947 | AL36: =HLOOKUP(AL30,INDIRECT(VLOOKUP(Station,$J$5:$K$8,2,FALSE)&1),7,FALSE) -> 39936.1279 | AM36: =HLOOKUP(AM30,INDIRECT(VLOOKUP(Station,$J$5:$K$8,2,FALSE)&1),7,FALSE) -> 71588.24628 | AN36: =HLOOKUP(AN30,INDIRECT(VLOOKUP(Station,$J$5:$K$8,2,FALSE)&1),7,FALSE) -> 82725.1063 | AO36: =HLOOKUP(AO30,INDIRECT(VLOOKUP(Station,$J$5:$K$8,2,FALSE)&1),7,FALSE) -> 136442.2341
B37: Juillet | C37: 90644.23813 | D37: 92641.81191 | E37: 86061.59079 | F37: 57591.67468 | G37: 41836.20802 | H37: 56788.18852 | I37: 84164.93706 | J37: 90760.55662 | K37: 160743.6037 | M37: Juillet | N37: 90644.23813 | O37: 92641.81191 | P37: 86061.59079 | Q37: 57591.67468 | R37: 41836.20802 | S37: 56788.18852 | T37: 84164.93706 | U37: 90760.55662 | V37: 160743.6037 | X37: Juillet | Y37: 90644.23813 | Z37: 92641.81191 | AA37: 86061.59079 | AB37: 57591.67468 | AC37: 41836.20802 | AD37: 56788.18852 | AE37: 84164.93706 | AF37: 90760.55662 | AG37: 160743.6037 | AJ37: Juillet | AK37: =HLOOKUP(AK30,INDIRECT(VLOOKUP(Station,$J$5:$K$8,2,FALSE)&1),8,FALSE) -> 86061.59079 | AL37: =HLOOKUP(AL30,INDIRECT(VLOOKUP(Station,$J$5:$K$8,2,FALSE)&1),8,FALSE) -> 41836.20802 | AM37: =HLOOKUP(AM30,INDIRECT(VLOOKUP(Station,$J$5:$K$8,2,FALSE)&1),8,FALSE) -> 84164.93706 | AN37: =HLOOKUP(AN30,INDIRECT(VLOOKUP(Station,$J$5:$K$8,2,FALSE)&1),8,FALSE) -> 90644.23813 | AO37: =HLOOKUP(AO30,INDIRECT(VLOOKUP(Station,$J$5:$K$8,2,FALSE)&1),8,FALSE) -> 160743.6037
B38: Août | C38: 76385.31534 | D38: 93981.62876 | E38: 96455.88002 | F38: 70184.69797 | G38: 44821.45321 | H38: 67494.10552 | I38: 90564.64979 | J38: 88345.24648 | K38: 176323.5876 | M38: Août | N38: 76385.31534 | O38: 93981.62876 | P38: 96455.88002 | Q38: 70184.69797 | R38: 44821.45321 | S38: 67494.10552 | T38: 90564.64979 | U38: 88345.24648 | V38: 176323.5876 | X38: Août | Y38: 76385.31534 | Z38: 93981.62876 | AA38: 96455.88002 | AB38: 70184.69797 | AC38: 44821.45321 | AD38: 67494.10552 | AE38: 90564.64979 | AF38: 88345.24648 | AG38: 176323.5876 | AJ38: Août | AK38: =HLOOKUP(AK30,INDIRECT(VLOOKUP(Station,$J$5:$K$8,2,FALSE)&1),9,FALSE) -> 96455.88002 | AL38: =HLOOKUP(AL30,INDIRECT(VLOOKUP(Station,$J$5:$K$8,2,FALSE)&1),9,FALSE) -> 44821.45321 | AM38: =HLOOKUP(AM30,INDIRECT(VLOOKUP(Station,$J$5:$K$8,2,FALSE)&1),9,FALSE) -> 90564.64979 | AN38: =HLOOKUP(AN30,INDIRECT(VLOOKUP(Station,$J$5:$K$8,2,FALSE)&1),9,FALSE) -> 76385.31534 | AO38: =HLOOKUP(AO30,INDIRECT(VLOOKUP(Station,$J$5:$K$8,2,FALSE)&1),9,FALSE) -> 176323.5876
B39: Septembre | C39: 47731.87862 | D39: 81307.04634 | E39: 98307.57385 | F39: 83145.45236 | G39: 50152.17635 | H39: 82426.48835 | I39: 97364.17249 | J39: 80682.7235 | K39: 183193.2783 | M39: Septembre | N39: 47731.87862 | O39: 81307.04634 | P39: 98307.57385 | Q39: 83145.45236 | R39: 50152.17635 | S39: 82426.48835 | T39: 97364.17249 | U39: 80682.7235 | V39: 183193.2783 | X39: Septembre | Y39: 47731.87862 | Z39: 81307.04634 | AA39: 98307.57385 | AB39: 83145.45236 | AC39: 50152.17635 | AD39: 82426.48835 | AE39: 97364.17249 | AF39: 80682.7235 | AG39: 183193.2783 | AJ39: Septembre | AK39: =HLOOKUP(AK30,INDIRECT(VLOOKUP(Station,$J$5:$K$8,2,FALSE)&1),10,FALSE) -> 98307.57385 | AL39: =HLOOKUP(AL30,INDIRECT(VLOOKUP(Station,$J$5:$K$8,2,FALSE)&1),10,FALSE) -> 50152.17635 | AM39: =HLOOKUP(AM30,INDIRECT(VLOOKUP(Station,$J$5:$K$8,2,FALSE)&1),10,FALSE) -> 97364.17249 | AN39: =HLOOKUP(AN30,INDIRECT(VLOOKUP(Station,$J$5:$K$8,2,FALSE)&1),10,FALSE) -> 47731.87862 | AO39: =HLOOKUP(AO30,INDIRECT(VLOOKUP(Station,$J$5:$K$8,2,FALSE)&1),10,FALSE) -> 183193.2783
B40: Octobre | C40: 44773.44318 | D40: 67995.85705 | E40: 93603.92517 | F40: 93765.57981 | G40: 84545.33346 | H40: 102973.018 | I40: 103307.179 | J40: 72508.90823 | K40: 181095.6272 | M40: Octobre | N40: 44773.44318 | O40: 67995.85705 | P40: 93603.92517 | Q40: 93765.57981 | R40: 84545.33346 | S40: 102973.018 | T40: 103307.179 | U40: 72508.90823 | V40: 181095.6272 | X40: Octobre | Y40: 44773.44318 | Z40: 67995.85705 | AA40: 93603.92517 | AB40: 93765.57981 | AC40: 84545.33346 | AD40: 102973.018 | AE40: 103307.179 | AF40: 72508.90823 | AG40: 181095.6272 | AJ40: Octobre | AK40: =HLOOKUP(AK30,INDIRECT(VLOOKUP(Station,$J$5:$K$8,2,FALSE)&1),11,FALSE) -> 93603.92517 | AL40: =HLOOKUP(AL30,INDIRECT(VLOOKUP(Station,$J$5:$K$8,2,FALSE)&1),11,FALSE) -> 84545.33346 | AM40: =HLOOKUP(AM30,INDIRECT(VLOOKUP(Station,$J$5:$K$8,2,FALSE)&1),11,FALSE) -> 103307.179 | AN40: =HLOOKUP(AN30,INDIRECT(VLOOKUP(Station,$J$5:$K$8,2,FALSE)&1),11,FALSE) -> 44773.44318 | AO40: =HLOOKUP(AO30,INDIRECT(VLOOKUP(Station,$J$5:$K$8,2,FALSE)&1),11,FALSE) -> 181095.6272
B41: Novembre | C41: 40266.20239 | D41: 52461.94298 | E41: 81611.93544 | F41: 94507.40803 | G41: 104203.6197 | H41: 104893.4576 | I41: 91825.23362 | J41: 56518.92567 | K41: 155199.1873 | M41: Novembre | N41: 40266.20239 | O41: 52461.94298 | P41: 81611.93544 | Q41: 94507.40803 | R41: 104203.6197 | S41: 104893.4576 | T41: 91825.23362 | U41: 56518.92567 | V41: 155199.1873 | X41: Novembre | Y41: 40266.20239 | Z41: 52461.94298 | AA41: 81611.93544 | AB41: 94507.40803 | AC41: 104203.6197 | AD41: 104893.4576 | AE41: 91825.23362 | AF41: 56518.92567 | AG41: 155199.1873 | AJ41: Novembre | AK41: =HLOOKUP(AK30,INDIRECT(VLOOKUP(Station,$J$5:$K$8,2,FALSE)&1),12,FALSE) -> 81611.93544 | AL41: =HLOOKUP(AL30,INDIRECT(VLOOKUP(Station,$J$5:$K$8,2,FALSE)&1),12,FALSE) -> 104203.6197 | AM41: =HLOOKUP(AM30,INDIRECT(VLOOKUP(Station,$J$5:$K$8,2,FALSE)&1),12,FALSE) -> 91825.23362 | AN41: =HLOOKUP(AN30,INDIRECT(VLOOKUP(Station,$J$5:$K$8,2,FALSE)&1),12,FALSE) -> 40266.20239 | AO41: =HLOOKUP(AO30,INDIRECT(VLOOKUP(Station,$J$5:$K$8,2,FALSE)&1),12,FALSE) -> 155199.1873
B42: Décembre | C42: 39822.60023 | D42: 47139.5226 | E42: 71854.82732 | F42: 85803.98102 | G42: 95282.54937 | H42: 87171.10044 | I42: 73008.38958 | J42: 47403.86321 | K42: 128757.0351 | M42: Décembre | N42: 39822.60023 | O42: 47139.5226 | P42: 71854.82732 | Q42: 85803.98102 | R42: 95282.54937 | S42: 87171.10044 | T42: 73008.38958 | U42: 47403.86321 | V42: 128757.0351 | X42: Décembre | Y42: 39822.60023 | Z42: 47139.5226 | AA42: 71854.82732 | AB42: 85803.98102 | AC42: 95282.54937 | AD42: 87171.10044 | AE42: 73008.38958 | AF42: 47403.86321 | AG42: 128757.0351 | AJ42: Décembre | AK42: =HLOOKUP(AK30,INDIRECT(VLOOKUP(Station,$J$5:$K$8,2,FALSE)&1),13,FALSE) -> 71854.82732 | AL42: =HLOOKUP(AL30,INDIRECT(VLOOKUP(Station,$J$5:$K$8,2,FALSE)&1),13,FALSE) -> 95282.54937 | AM42: =HLOOKUP(AM30,INDIRECT(VLOOKUP(Station,$J$5:$K$8,2,FALSE)&1),13,FALSE) -> 73008.38958 | AN42: =HLOOKUP(AN30,INDIRECT(VLOOKUP(Station,$J$5:$K$8,2,FALSE)&1),13,FALSE) -> 39822.60023 | AO42: =HLOOKUP(AO30,INDIRECT(VLOOKUP(Station,$J$5:$K$8,2,FALSE)&1),13,FALSE) -> 128757.0351
B45: APPORT SOLAIRE CLO TRANSMIS FENETRE
D46: CGCS = x
D47: % solaire transmis = a * x² + b*x+c | AB47: CGCS = | AC47: =Hypothèses!J26 -> 0.7
B48: CAYENNE
B49: DV | C49: ORIENTATION | AR49: Tampon 1 | AS49: ORIENTATION
C50: NORD | H50: NORD-EST | M50: EST | R50: SUD-EST | W50: SUD | AB50: SUD-OUEST | AG50: OUEST | AL50: NORD-OUEST | AS50: NORD | AX50: NORD-EST | BC50: EST | BH50: SUD-EST | BM50: SUD | BR50: SUD-OUEST | BW50: OUEST | CB50: NORD-OUEST
C51: a | D51: b | E51: c | F51: d | G51: e | H51: a | I51: b | J51: c | K51: d | L51: e | M51: a | N51: b | O51: c | P51: d | Q51: e | R51: a | S51: b | T51: c | U51: d | V51: e | W51: a | X51: b | Y51: c | Z51: d | AA51: e | AB51: a | AC51: b | AD51: c | AE51: d | AF51: e | AG51: a | AH51: b | AI51: c | AJ51: d | AK51: e | AL51: a | AM51: b | AN51: c | AO51: d | AP51: e | AS51: a | AT51: b | AU51: c | AV51: d | AW51: e | AX51: a | AY51: b | AZ51: c | BA51: d | BB51: e | BC51: a | BD51: b | BE51: c | BF51: d | BG51: e | BH51: a | BI51: b | BJ51: c | BK51: d | BL51: e | BM51: a | BN51: b | BO51: c | BP51: d | BQ51: e | BR51: a | BS51: b | BT51: c | BU51: d | BV51: e | BW51: a | BX51: b | BY51: c | BZ51: d | CA51: e | CB51: a | CC51: b | CD51: c | CE51: d | CF51: e
B52: Janvier | C52: 0.2335817163 | D52: -0.9475665732 | E52: 1.239937104 | F52: 0.2989787095 | G52: -0.008044505861 | H52: 0.1277617825 | I52: -0.7372410259 | J52: 1.098209193 | K52: 0.2952082244 | L52: -0.008115769125 | M52: 0.245262125 | N52: -0.9743296218 | O52: 1.262401821 | P52: 0.3015999081 | Q52: -0.008098417229 | R52: 0.245262125 | S52: -0.9743296218 | T52: 1.262401821 | U52: 0.3015999081 | V52: -0.008098417229 | W52: -0.03267721573 | X52: -0.4478609816 | Y52: 0.9400064252 | Z52: 0.3075898781 | AA52: -0.008732323355 | AB52: 0.2490785116 | AC52: -0.9793965892 | AD52: 1.262672093 | AE52: 0.3001760793 | AF52: -0.008052112417 | AG52: 0.2490785116 | AH52: -0.9793965892 | AI52: 1.262672093 | AJ52: 0.3001760793 | AK52: -0.008052112417 | AL52: 0.1344834234 | AM52: -0.7505885223 | AN52: 1.10718644 | AO52: 0.2954329795 | AP52: -0.008110871972 | AR52: Janvier | AS52: =IF(Hypothèses!$J$24="SV",Données1!C68,Données1!C52) -> -2.47533954 | AT52: =IF(Hypothèses!$J$24="SV",Données1!D68,Données1!D52) -> 4.305793994 | AU52: =IF(Hypothèses!$J$24="SV",Données1!E68,Données1!E52) -> -1.640066459 | AV52: =IF(Hypothèses!$J$24="SV",Données1!F68,Données1!F52) -> 0.7012263985 | AW52: =IF(Hypothèses!$J$24="SV",Données1!G68,Données1!G52) -> -0.03305070754 | AX52: =IF(Hypothèses!$J$24="SV",Données1!H68,Données1!H52) -> -2.545155165 | AY52: =IF(Hypothèses!$J$24="SV",Données1!I68,Données1!I52) -> 4.467502026 | AZ52: =IF(Hypothèses!$J$24="SV",Données1!J68,Données1!J52) -> -1.778286653 | BA52: =IF(Hypothèses!$J$24="SV",Données1!K68,Données1!K52) -> 0.7198615746 | BB52: =IF(Hypothèses!$J$24="SV",Données1!L68,Données1!L52) -> -0.03472755316 | BC52: =IF(Hypothèses!$J$24="SV",Données1!M68,Données1!M52) -> -2.479354477 | BD52: =IF(Hypothèses!$J$24="SV",Données1!N68,Données1!N52) -> 4.308377697 | BE52: =IF(Hypothèses!$J$24="SV",Données1!O68,Données1!O52) -> -1.632500479 | BF52: =IF(Hypothèses!$J$24="SV",Données1!P68,Données1!P52) -> 0.7027677097 | BG52: =IF(Hypothèses!$J$24="SV",Données1!Q68,Données1!Q52) -> -0.03303376723 | BH52: =IF(Hypothèses!$J$24="SV",Données1!R68,Données1!R52) -> -2.479354477 | BI52: =IF(Hypothèses!$J$24="SV",Données1!S68,Données1!S52) -> 4.308377697 | BJ52: =IF(Hypothèses!$J$24="SV",Données1!T68,Données1!T52) -> -1.632500479 | BK52: =IF(Hypothèses!$J$24="SV",Données1!U68,Données1!U52) -> 0.7027677097 | BL52: =IF(Hypothèses!$J$24="SV",Données1!V68,Données1!V52) -> -0.03303376723 | BM52: =IF(Hypothèses!$J$24="SV",Données1!W68,Données1!W52) -> -2.777785029 | BN52: =IF(Hypothèses!$J$24="SV",Données1!X68,Données1!X52) -> 4.935337324 | BO52: =IF(Hypothèses!$J$24="SV",Données1!Y68,Données1!Y52) -> -2.076849472 | BP52: =IF(Hypothèses!$J$24="SV",Données1!Z68,Données1!Z52) -> 0.7837633561 | BQ52: =IF(Hypothèses!$J$24="SV",Données1!AA68,Données1!AA52) -> -0.03899410464 | BR52: =IF(Hypothèses!$J$24="SV",Données1!AB68,Données1!AB52) -> -2.46817316 | BS52: =IF(Hypothèses!$J$24="SV",Données1!AC68,Données1!AC52) -> 4.287459605 | BT52: =IF(Hypothèses!$J$24="SV",Données1!AD68,Données1!AD52) -> -1.621760554 | BU52: =IF(Hypothèses!$J$24="SV",Données1!AE68,Données1!AE52) -> 0.6996067107 | BV52: =IF(Hypothèses!$J$24="SV",Données1!AF68,Données1!AF52) -> -0.03285595213 | BW52: =IF(Hypothèses!$J$24="SV",Données1!AG68,Données1!AG52) -> -2.46817316 | BX52: =IF(Hypothèses!$J$24="SV",Données1!AH68,Données1!AH52) -> 4.287459605 | BY52: =IF(Hypothèses!$J$24="SV",Données1!AI68,Données1!AI52) -> -1.621760554 | BZ52: =IF(Hypothèses!$J$24="SV",Données1!AJ68,Données1!AJ52) -> 0.6996067107 | CA52: =IF(Hypothèses!$J$24="SV",Données1!AK68,Données1!AK52) -> -0.03285595213 | CB52: =IF(Hypothèses!$J$24="SV",Données1!AL68,Données1!AL52) -> -2.541236893 | CC52: =IF(Hypothèses!$J$24="SV",Données1!AM68,Données1!AM52) -> 4.45818349 | CD52: =IF(Hypothèses!$J$24="SV",Données1!AN68,Données1!AN52) -> -1.769975886 | CE52: =IF(Hypothèses!$J$24="SV",Données1!AO68,Données1!AO52) -> 0.7188202082 | CF52: =IF(Hypothèses!$J$24="SV",Données1!AP68,Données1!AP52) -> -0.0346288568
B53: Février | C53: 0.2335817163 | D53: -0.9475665732 | E53: 1.239937104 | F53: 0.2989787095 | G53: -0.008044505861 | H53: 0.109884515 | I53: -0.7084420227 | J53: 1.087207845 | K53: 0.2987347907 | L53: -0.008244589751 | M53: 0.199927076 | N53: -0.891079911 | O53: 1.214867095 | P53: 0.3042410037 | Q53: -0.008248235823 | R53: 0.199927076 | S53: -0.891079911 | T53: 1.214867095 | U53: 0.3042410037 | V53: -0.008248235823 | W53: -0.03412738298 | X53: -0.4181975744 | Y53: 0.8865894471 | Z53: 0.2909800932 | AA53: -0.008268860462 | AB53: 0.2040477569 | AC53: -0.8961939408 | AD53: 1.214473402 | AE53: 0.3024854113 | AF53: -0.008192102835 | AG53: 0.2040477569 | AH53: -0.8961939408 | AI53: 1.214473402 | AJ53: 0.3024854113 | AK53: -0.008192102835 | AL53: 0.1249351539 | AM53: -0.7375043503 | AN53: 1.10572617 | AO53: 0.2987361411 | AP53: -0.008219499097 | AR53: Février | AS53: =IF(Hypothèses!$J$24="SV",Données1!C69,Données1!C53) -> -2.47533954 | AT53: =IF(Hypothèses!$J$24="SV",Données1!D69,Données1!D53) -> 4.305793994 | AU53: =IF(Hypothèses!$J$24="SV",Données1!E69,Données1!E53) -> -1.640066459 | AV53: =IF(Hypothèses!$J$24="SV",Données1!F69,Données1!F53) -> 0.7012263985 | AW53: =IF(Hypothèses!$J$24="SV",Données1!G69,Données1!G53) -> -0.03305070754 | AX53: =IF(Hypothèses!$J$24="SV",Données1!H69,Données1!H53) -> -2.582952392 | AY53: =IF(Hypothèses!$J$24="SV",Données1!I69,Données1!I53) -> 4.54027025 | AZ53: =IF(Hypothèses!$J$24="SV",Données1!J69,Données1!J53) -> -1.81937305 | BA53: =IF(Hypothèses!$J$24="SV",Données1!K69,Données1!K53) -> 0.7303565855 | BB53: =IF(Hypothèses!$J$24="SV",Données1!L69,Données1!L53) -> -0.03536155438 | BC53: =IF(Hypothèses!$J$24="SV",Données1!M69,Données1!M53) -> -2.531721967 | BD53: =IF(Hypothèses!$J$24="SV",Données1!N69,Données1!N53) -> 4.416645811 | BE53: =IF(Hypothèses!$J$24="SV",Données1!O69,Données1!O53) -> -1.706402563 | BF53: =IF(Hypothèses!$J$24="SV",Données1!P69,Données1!P53) -> 0.717152439 | BG53: =IF(Hypothèses!$J$24="SV",Données1!Q69,Données1!Q53) -> -0.0340520751 | BH53: =IF(Hypothèses!$J$24="SV",Données1!R69,Données1!R53) -> -2.531721967 | BI53: =IF(Hypothèses!$J$24="SV",Données1!S69,Données1!S53) -> 4.416645811 | BJ53: =IF(Hypothèses!$J$24="SV",Données1!T69,Données1!T53) -> -1.706402563 | BK53: =IF(Hypothèses!$J$24="SV",Données1!U69,Données1!U53) -> 0.717152439 | BL53: =IF(Hypothèses!$J$24="SV",Données1!V69,Données1!V53) -> -0.0340520751 | BM53: =IF(Hypothèses!$J$24="SV",Données1!W69,Données1!W53) -> -2.673818433 | BN53: =IF(Hypothèses!$J$24="SV",Données1!X69,Données1!X53) -> 4.754115295 | BO53: =IF(Hypothèses!$J$24="SV",Données1!Y69,Données1!Y53) -> -2.007006598 | BP53: =IF(Hypothèses!$J$24="SV",Données1!Z69,Données1!Z53) -> 0.7544846174 | BQ53: =IF(Hypothèses!$J$24="SV",Données1!AA69,Données1!AA53) -> -0.0376053327 | BR53: =IF(Hypothèses!$J$24="SV",Données1!AB69,Données1!AB53) -> -2.5177469 | BS53: =IF(Hypothèses!$J$24="SV",Données1!AC69,Données1!AC53) -> 4.390700124 | BT53: =IF(Hypothèses!$J$24="SV",Données1!AD69,Données1!AD53) -> -1.693424342 | BU53: =IF(Hypothèses!$J$24="SV",Données1!AE69,Données1!AE53) -> 0.7132106626 | BV53: =IF(Hypothèses!$J$24="SV",Données1!AF69,Données1!AF53) -> -0.03383408049 | BW53: =IF(Hypothèses!$J$24="SV",Données1!AG69,Données1!AG53) -> -2.5177469 | BX53: =IF(Hypothèses!$J$24="SV",Données1!AH69,Données1!AH53) -> 4.390700124 | BY53: =IF(Hypothèses!$J$24="SV",Données1!AI69,Données1!AI53) -> -1.693424342 | BZ53: =IF(Hypothèses!$J$24="SV",Données1!AJ69,Données1!AJ53) -> 0.7132106626 | CA53: =IF(Hypothèses!$J$24="SV",Données1!AK69,Données1!AK53) -> -0.03383408049 | CB53: =IF(Hypothèses!$J$24="SV",Données1!AL69,Données1!AL53) -> -2.570454289 | CC53: =IF(Hypothèses!$J$24="SV",Données1!AM69,Données1!AM53) -> 4.512841864 | CD53: =IF(Hypothèses!$J$24="SV",Données1!AN69,Données1!AN53) -> -1.798104444 | CE53: =IF(Hypothèses!$J$24="SV",Données1!AO69,Données1!AO53) -> 0.7269717102 | CF53: =IF(Hypothèses!$J$24="SV",Données1!AP69,Données1!AP53) -> -0.03508925836
B54: Mars | C54: 0.2237495999 | D54: -0.9199649932 | E54: 1.211307533 | F54: 0.2937765134 | G54: -0.007914246614 | H54: 0.1158541347 | I54: -0.7286274037 | J54: 1.111202513 | K54: 0.3041241366 | L54: -0.008385574173 | M54: 0.1187855871 | N54: -0.7365319384 | O54: 1.119124873 | P54: 0.3055225438 | Q54: -0.008419839098 | R54: 0.1187855871 | S54: -0.7365319384 | T54: 1.119124873 | U54: 0.3055225438 | V54: -0.008419839098 | W54: 0.166951184 | X54: -0.7983128093 | Y54: 1.1184154 | Z54: 0.2864179945 | AA54: -0.007802369316 | AB54: 0.1194922661 | AC54: -0.737889971 | AD54: 1.119982023 | AE54: 0.3055195675 | AF54: -0.008418569683 | AG54: 0.1194922661 | AH54: -0.737889971 | AI54: 1.119982023 | AJ54: 0.3055195675 | AK54: -0.008418569683 | AL54: 0.1198693878 | AM54: -0.7369475317 | AN54: 1.117233915 | AO54: 0.304482086 | AP54: -0.00838886734 | AR54: Mars | AS54: =IF(Hypothèses!$J$24="SV",Données1!C70,Données1!C54) -> -2.439167806 | AT54: =IF(Hypothèses!$J$24="SV",Données1!D70,Données1!D54) -> 4.245242863 | AU54: =IF(Hypothèses!$J$24="SV",Données1!E70,Données1!E54) -> -1.621489691 | AV54: =IF(Hypothèses!$J$24="SV",Données1!F70,Données1!F54) -> 0.6909450914 | AW54: =IF(Hypothèses!$J$24="SV",Données1!G70,Données1!G54) -> -0.03261282354 | AX54: =IF(Hypothèses!$J$24="SV",Données1!H70,Données1!H54) -> -2.605671539 | AY54: =IF(Hypothèses!$J$24="SV",Données1!I70,Données1!I54) -> 4.577390662 | AZ54: =IF(Hypothèses!$J$24="SV",Données1!J70,Données1!J54) -> -1.82885818 | BA54: =IF(Hypothèses!$J$24="SV",Données1!K70,Données1!K54) -> 0.7370007611 | BB54: =IF(Hypothèses!$J$24="SV",Données1!L70,Données1!L54) -> -0.0356259698 | BC54: =IF(Hypothèses!$J$24="SV",Données1!M70,Données1!M54) -> -2.61063476 | BD54: =IF(Hypothèses!$J$24="SV",Données1!N70,Données1!N54) -> 4.584884268 | BE54: =IF(Hypothèses!$J$24="SV",Données1!O70,Données1!O54) -> -1.829533122 | BF54: =IF(Hypothèses!$J$24="SV",Données1!P70,Données1!P54) -> 0.7384553886 | BG54: =IF(Hypothèses!$J$24="SV",Données1!Q70,Données1!Q54) -> -0.03567179097 | BH54: =IF(Hypothèses!$J$24="SV",Données1!R70,Données1!R54) -> -2.61063476 | BI54: =IF(Hypothèses!$J$24="SV",Données1!S70,Données1!S54) -> 4.584884268 | BJ54: =IF(Hypothèses!$J$24="SV",Données1!T70,Données1!T54) -> -1.829533122 | BK54: =IF(Hypothèses!$J$24="SV",Données1!U70,Données1!U54) -> 0.7384553886 | BL54: =IF(Hypothèses!$J$24="SV",Données1!V70,Données1!V54) -> -0.03567179097 | BM54: =IF(Hypothèses!$J$24="SV",Données1!W70,Données1!W54) -> -2.436807361 | BN54: =IF(Hypothèses!$J$24="SV",Données1!X70,Données1!X54) -> 4.261895659 | BO54: =IF(Hypothèses!$J$24="SV",Données1!Y70,Données1!Y54) -> -1.667263041 | BP54: =IF(Hypothèses!$J$24="SV",Données1!Z70,Données1!Z54) -> 0.6898044118 | BQ54: =IF(Hypothèses!$J$24="SV",Données1!AA70,Données1!AA54) -> -0.03296975982 | BR54: =IF(Hypothèses!$J$24="SV",Données1!AB70,Données1!AB54) -> -2.609916336 | BS54: =IF(Hypothèses!$J$24="SV",Données1!AC70,Données1!AC54) -> 4.583358215 | BT54: =IF(Hypothèses!$J$24="SV",Données1!AD70,Données1!AD54) -> -1.828425318 | BU54: =IF(Hypothèses!$J$24="SV",Données1!AE70,Données1!AE54) -> 0.7382606476 | BV54: =IF(Hypothèses!$J$24="SV",Données1!AF70,Données1!AF54) -> -0.03565712365 | BW54: =IF(Hypothèses!$J$24="SV",Données1!AG70,Données1!AG54) -> -2.609916336 | BX54: =IF(Hypothèses!$J$24="SV",Données1!AH70,Données1!AH54) -> 4.583358215 | BY54: =IF(Hypothèses!$J$24="SV",Données1!AI70,Données1!AI54) -> -1.828425318 | BZ54: =IF(Hypothèses!$J$24="SV",Données1!AJ70,Données1!AJ54) -> 0.7382606476 | CA54: =IF(Hypothèses!$J$24="SV",Données1!AK70,Données1!AK54) -> -0.03565712365 | CB54: =IF(Hypothèses!$J$24="SV",Données1!AL70,Données1!AL54) -> -2.60374304 | CC54: =IF(Hypothèses!$J$24="SV",Données1!AM70,Données1!AM54) -> 4.572470188 | CD54: =IF(Hypothèses!$J$24="SV",Données1!AN70,Données1!AN54) -> -1.823998253 | CE54: =IF(Hypothèses!$J$24="SV",Données1!AO70,Données1!AO54) -> 0.7365080461 | CF54: =IF(Hypothèses!$J$24="SV",Données1!AP70,Données1!AP54) -> -0.03557161656
B55: Avril | C55: 0.1136124775 | D55: -0.6835473581 | E55: 1.030178285 | F55: 0.2791959885 | G55: -0.007688491995 | H55: 0.1556414434 | I55: -0.8046564521 | J55: 1.158625961 | K55: 0.3036553215 | L55: -0.008305865045 | M55: 0.1044169877 | N55: -0.7034253723 | O55: 1.091133987 | P55: 0.3021748799 | Q55: -0.008350120847 | R55: 0.1044169877 | S55: -0.7034253723 | T55: 1.091133987 | U55: 0.3021748799 | V55: -0.008350120847 | W55: 0.2326134406 | X55: -0.9442375182 | Y55: 1.235946002 | Z55: 0.2980993801 | AA55: -0.008021319281 | AB55: 0.09923305045 | AC55: -0.694807398 | AD55: 1.08743207 | AE55: 0.3030386541 | AF55: -0.008382982498 | AG55: 0.09923305045 | AH55: -0.694807398 | AI55: 1.08743207 | AJ55: 0.3030386541 | AK55: -0.008382982498 | AL55: 0.1577118133 | AM55: -0.8092022792 | AN55: 1.162227467 | AO55: 0.3039979689 | AP55: -0.008311997338 | AR55: Avril | AS55: =IF(Hypothèses!$J$24="SV",Données1!C71,Données1!C55) -> -2.431233818 | AT55: =IF(Hypothèses!$J$24="SV",Données1!D71,Données1!D55) -> 4.271550048 | AU55: =IF(Hypothèses!$J$24="SV",Données1!E71,Données1!E55) -> -1.707701276 | AV55: =IF(Hypothèses!$J$24="SV",Données1!F71,Données1!F55) -> 0.6877737462 | AW55: =IF(Hypothèses!$J$24="SV",Données1!G71,Données1!G55) -> -0.03325696482 | AX55: =IF(Hypothèses!$J$24="SV",Données1!H71,Données1!H55) -> -2.567158063 | AY55: =IF(Hypothèses!$J$24="SV",Données1!I71,Données1!I55) -> 4.495145136 | AZ55: =IF(Hypothèses!$J$24="SV",Données1!J71,Données1!J55) -> -1.768461775 | BA55: =IF(Hypothèses!$J$24="SV",Données1!K71,Données1!K55) -> 0.7265926951 | BB55: =IF(Hypothèses!$J$24="SV",Données1!L71,Données1!L55) -> -0.0348323576 | BC55: =IF(Hypothèses!$J$24="SV",Données1!M71,Données1!M55) -> -2.606846061 | BD55: =IF(Hypothèses!$J$24="SV",Données1!N71,Données1!N55) -> 4.583919918 | BE55: =IF(Hypothèses!$J$24="SV",Données1!O71,Données1!O55) -> -1.839948833 | BF55: =IF(Hypothèses!$J$24="SV",Données1!P71,Données1!P55) -> 0.737101284 | BG55: =IF(Hypothèses!$J$24="SV",Données1!Q71,Données1!Q55) -> -0.03572054919 | BH55: =IF(Hypothèses!$J$24="SV",Données1!R71,Données1!R55) -> -2.606846061 | BI55: =IF(Hypothèses!$J$24="SV",Données1!S71,Données1!S55) -> 4.583919918 | BJ55: =IF(Hypothèses!$J$24="SV",Données1!T71,Données1!T55) -> -1.839948833 | BK55: =IF(Hypothèses!$J$24="SV",Données1!U71,Données1!U55) -> 0.737101284 | BL55: =IF(Hypothèses!$J$24="SV",Données1!V71,Données1!V55) -> -0.03572054919 | BM55: =IF(Hypothèses!$J$24="SV",Données1!W71,Données1!W55) -> -2.468398614 | BN55: =IF(Hypothèses!$J$24="SV",Données1!X71,Données1!X55) -> 4.293836132 | BO55: =IF(Hypothèses!$J$24="SV",Données1!Y71,Données1!Y55) -> -1.635730682 | BP55: =IF(Hypothèses!$J$24="SV",Données1!Z71,Données1!Z55) -> 0.699258848 | BQ55: =IF(Hypothèses!$J$24="SV",Données1!AA71,Données1!AA55) -> -0.03296024967 | BR55: =IF(Hypothèses!$J$24="SV",Données1!AB71,Données1!AB55) -> -2.616009516 | BS55: =IF(Hypothèses!$J$24="SV",Données1!AC71,Données1!AC55) -> 4.601824591 | BT55: =IF(Hypothèses!$J$24="SV",Données1!AD71,Données1!AD55) -> -1.850500859 | BU55: =IF(Hypothèses!$J$24="SV",Données1!AE71,Données1!AE55) -> 0.7396530625 | BV55: =IF(Hypothèses!$J$24="SV",Données1!AF71,Données1!AF55) -> -0.03587969417 | BW55: =IF(Hypothèses!$J$24="SV",Données1!AG71,Données1!AG55) -> -2.616009516 | BX55: =IF(Hypothèses!$J$24="SV",Données1!AH71,Données1!AH55) -> 4.601824591 | BY55: =IF(Hypothèses!$J$24="SV",Données1!AI71,Données1!AI55) -> -1.850500859 | BZ55: =IF(Hypothèses!$J$24="SV",Données1!AJ71,Données1!AJ55) -> 0.7396530625 | CA55: =IF(Hypothèses!$J$24="SV",Données1!AK71,Données1!AK55) -> -0.03587969417 | CB55: =IF(Hypothèses!$J$24="SV",Données1!AL71,Données1!AL55) -> -2.56691997 | CC55: =IF(Hypothèses!$J$24="SV",Données1!AM71,Données1!AM55) -> 4.493923981 | CD55: =IF(Hypothèses!$J$24="SV",Données1!AN71,Données1!AN55) -> -1.766443128 | CE55: =IF(Hypothèses!$J$24="SV",Données1!AO71,Données1!AO55) -> 0.7265762573 | CF55: =IF(Hypothèses!$J$24="SV",Données1!AP71,Données1!AP55) -> -0.03481534476
B56: Mai | C56: -0.1287776787 | D56: -0.2287258762 | E56: 0.757222098 | F56: 0.2867269219 | G56: -0.008308189191 | H56: 0.1961728187 | I56: -0.8827642791 | J56: 1.20819857 | K56: 0.3035821122 | L56: -0.008236018434 | M56: 0.05660805635 | N56: -0.6013885432 | O56: 1.013613661 | P56: 0.2960938977 | Q56: -0.008259783764 | R56: 0.05660805635 | S56: -0.6013885432 | T56: 1.013613661 | U56: 0.2960938977 | V56: -0.008259783764 | W56: 0.2335817163 | X56: -0.9475665732 | Y56: 1.239937104 | Z56: 0.2989787095 | AA56: -0.008044505861 | AB56: 0.06029059554 | AC56: -0.6088069283 | AD56: 1.018735762 | AE56: 0.2962845427 | AF56: -0.008258981689 | AG56: 0.06029059554 | AH56: -0.6088069283 | AI56: 1.018735762 | AJ56: 0.2962845427 | AK56: -0.008258981689 | AL56: 0.2092459325 | AM56: -0.9065482472 | AN56: 1.221478341 | AO56: 0.3026826919 | AP56: -0.008188951759 | AR56: Mai | AS56: =IF(Hypothèses!$J$24="SV",Données1!C72,Données1!C56) -> -2.73470675 | AT56: =IF(Hypothèses!$J$24="SV",Données1!D72,Données1!D56) -> 4.89636809 | AU56: =IF(Hypothèses!$J$24="SV",Données1!E72,Données1!E56) -> -2.13034432 | AV56: =IF(Hypothèses!$J$24="SV",Données1!F72,Données1!F56) -> 0.7707022273 | AW56: =IF(Hypothèses!$J$24="SV",Données1!G72,Données1!G56) -> -0.039090366 | AX56: =IF(Hypothèses!$J$24="SV",Données1!H72,Données1!H56) -> -2.531345917 | AY56: =IF(Hypothèses!$J$24="SV",Données1!I72,Données1!I56) -> 4.417426153 | AZ56: =IF(Hypothèses!$J$24="SV",Données1!J72,Données1!J56) -> -1.709407787 | BA56: =IF(Hypothèses!$J$24="SV",Données1!K72,Données1!K56) -> 0.7170397517 | BB56: =IF(Hypothèses!$J$24="SV",Données1!L72,Données1!L56) -> -0.03407492368 | BC56: =IF(Hypothèses!$J$24="SV",Données1!M72,Données1!M56) -> -2.615743548 | BD56: =IF(Hypothèses!$J$24="SV",Données1!N72,Données1!N56) -> 4.617739012 | BE56: =IF(Hypothèses!$J$24="SV",Données1!O72,Données1!O56) -> -1.887771703 | BF56: =IF(Hypothèses!$J$24="SV",Données1!P72,Données1!P56) -> 0.7390447592 | BG56: =IF(Hypothèses!$J$24="SV",Données1!Q72,Données1!Q56) -> -0.03617637165 | BH56: =IF(Hypothèses!$J$24="SV",Données1!R72,Données1!R56) -> -2.615743548 | BI56: =IF(Hypothèses!$J$24="SV",Données1!S72,Données1!S56) -> 4.617739012 | BJ56: =IF(Hypothèses!$J$24="SV",Données1!T72,Données1!T56) -> -1.887771703 | BK56: =IF(Hypothèses!$J$24="SV",Données1!U72,Données1!U56) -> 0.7390447592 | BL56: =IF(Hypothèses!$J$24="SV",Données1!V72,Données1!V56) -> -0.03617637165 | BM56: =IF(Hypothèses!$J$24="SV",Données1!W72,Données1!W56) -> -2.47533954 | BN56: =IF(Hypothèses!$J$24="SV",Données1!X72,Données1!X56) -> 4.305793994 | BO56: =IF(Hypothèses!$J$24="SV",Données1!Y72,Données1!Y56) -> -1.640066459 | BP56: =IF(Hypothèses!$J$24="SV",Données1!Z72,Données1!Z56) -> 0.7012263985 | BQ56: =IF(Hypothèses!$J$24="SV",Données1!AA72,Données1!AA56) -> -0.03305070754 | BR56: =IF(Hypothèses!$J$24="SV",Données1!AB72,Données1!AB56) -> -2.613829412 | BS56: =IF(Hypothèses!$J$24="SV",Données1!AC72,Données1!AC56) -> 4.613023795 | BT56: =IF(Hypothèses!$J$24="SV",Données1!AD72,Données1!AD56) -> -1.883340561 | BU56: =IF(Hypothèses!$J$24="SV",Données1!AE72,Données1!AE56) -> 0.7385390713 | BV56: =IF(Hypothèses!$J$24="SV",Données1!AF72,Données1!AF56) -> -0.03612508136 | BW56: =IF(Hypothèses!$J$24="SV",Données1!AG72,Données1!AG56) -> -2.613829412 | BX56: =IF(Hypothèses!$J$24="SV",Données1!AH72,Données1!AH56) -> 4.613023795 | BY56: =IF(Hypothèses!$J$24="SV",Données1!AI72,Données1!AI56) -> -1.883340561 | BZ56: =IF(Hypothèses!$J$24="SV",Données1!AJ72,Données1!AJ56) -> 0.7385390713 | CA56: =IF(Hypothèses!$J$24="SV",Données1!AK72,Données1!AK56) -> -0.03612508136 | CB56: =IF(Hypothèses!$J$24="SV",Données1!AL72,Données1!AL56) -> -2.515281638 | CC56: =IF(Hypothèses!$J$24="SV",Données1!AM72,Données1!AM56) -> 4.384517196 | CD56: =IF(Hypothèses!$J$24="SV",Données1!AN72,Données1!AN56) -> -1.687427437 | CE56: =IF(Hypothèses!$J$24="SV",Données1!AO72,Données1!AO56) -> 0.7126233894 | CF56: =IF(Hypothèses!$J$24="SV",Données1!AP72,Données1!AP56) -> -0.03376834927
B57: Juin | C57: -0.1056811351 | D57: -0.2927999045 | E57: 0.8230595169 | F57: 0.2987116716 | G57: -0.008606140437 | H57: 0.2325834052 | I57: -0.9508433241 | J57: 1.248715635 | K57: 0.3022123253 | L57: -0.008136776612 | M57: 0.07827987907 | N57: -0.6389057672 | O57: 1.031958616 | P57: 0.2934326255 | Q57: -0.008148868898 | R57: 0.07827987907 | S57: -0.6389057672 | T57: 1.031958616 | U57: 0.2934326255 | V57: -0.008148868898 | W57: 0.2335817163 | X57: -0.9475665732 | Y57: 1.239937104 | Z57: 0.2989787095 | AA57: -0.008044505861 | AB57: 0.09653852194 | AC57: -0.6747647665 | AD57: 1.055585222 | AE57: 0.2938235915 | AF57: -0.008129247711 | AG57: 0.09653852194 | AH57: -0.6747647665 | AI57: 1.055585222 | AJ57: 0.2938235915 | AK57: -0.008129247711 | AL57: 0.226104797 | AM57: -0.9373113379 | AN57: 1.238780612 | AO57: 0.3015824668 | AP57: -0.008129910709 | AR57: Juin | AS57: =IF(Hypothèses!$J$24="SV",Données1!C73,Données1!C57) -> -2.795981715 | AT57: =IF(Hypothèses!$J$24="SV",Données1!D73,Données1!D57) -> 4.995304665 | AU57: =IF(Hypothèses!$J$24="SV",Données1!E73,Données1!E57) -> -2.153583212 | AV57: =IF(Hypothèses!$J$24="SV",Données1!F73,Données1!F57) -> 0.7881006492 | AW57: =IF(Hypothèses!$J$24="SV",Données1!G73,Données1!G57) -> -0.03976016927 | AX57: =IF(Hypothèses!$J$24="SV",Données1!H73,Données1!H57) -> -2.493540039 | AY57: =IF(Hypothèses!$J$24="SV",Données1!I73,Données1!I57) -> 4.33787826 | AZ57: =IF(Hypothèses!$J$24="SV",Données1!J73,Données1!J57) -> -1.652900973 | BA57: =IF(Hypothèses!$J$24="SV",Données1!K73,Données1!K57) -> 0.7066786178 | BB57: =IF(Hypothèses!$J$24="SV",Données1!L73,Données1!L57) -> -0.03331354395 | BC57: =IF(Hypothèses!$J$24="SV",Données1!M73,Données1!M57) -> -2.579487583 | BD57: =IF(Hypothèses!$J$24="SV",Données1!N73,Données1!N57) -> 4.546210778 | BE57: =IF(Hypothèses!$J$24="SV",Données1!O73,Données1!O57) -> -1.844408307 | BF57: =IF(Hypothèses!$J$24="SV",Données1!P73,Données1!P57) -> 0.7290384159 | BG57: =IF(Hypothèses!$J$24="SV",Données1!Q73,Données1!Q57) -> -0.0355367327 | BH57: =IF(Hypothèses!$J$24="SV",Données1!R73,Données1!R57) -> -2.579487583 | BI57: =IF(Hypothèses!$J$24="SV",Données1!S73,Données1!S57) -> 4.546210778 | BJ57: =IF(Hypothèses!$J$24="SV",Données1!T73,Données1!T57) -> -1.844408307 | BK57: =IF(Hypothèses!$J$24="SV",Données1!U73,Données1!U57) -> 0.7290384159 | BL57: =IF(Hypothèses!$J$24="SV",Données1!V73,Données1!V57) -> -0.0355367327 | BM57: =IF(Hypothèses!$J$24="SV",Données1!W73,Données1!W57) -> -2.47533954 | BN57: =IF(Hypothèses!$J$24="SV",Données1!X73,Données1!X57) -> 4.305793994 | BO57: =IF(Hypothèses!$J$24="SV",Données1!Y73,Données1!Y57) -> -1.640066459 | BP57: =IF(Hypothèses!$J$24="SV",Données1!Z73,Données1!Z57) -> 0.7012263985 | BQ57: =IF(Hypothèses!$J$24="SV",Données1!AA73,Données1!AA57) -> -0.03305070754 | BR57: =IF(Hypothèses!$J$24="SV",Données1!AB73,Données1!AB57) -> -2.565188673 | BS57: =IF(Hypothèses!$J$24="SV",Données1!AC73,Données1!AC57) -> 4.514320327 | BT57: =IF(Hypothèses!$J$24="SV",Données1!AD73,Données1!AD57) -> -1.818903167 | BU57: =IF(Hypothèses!$J$24="SV",Données1!AE73,Données1!AE57) -> 0.7251916911 | BV57: =IF(Hypothèses!$J$24="SV",Données1!AF73,Données1!AF57) -> -0.03521621257 | BW57: =IF(Hypothèses!$J$24="SV",Données1!AG73,Données1!AG57) -> -2.565188673 | BX57: =IF(Hypothèses!$J$24="SV",Données1!AH73,Données1!AH57) -> 4.514320327 | BY57: =IF(Hypothèses!$J$24="SV",Données1!AI73,Données1!AI57) -> -1.818903167 | BZ57: =IF(Hypothèses!$J$24="SV",Données1!AJ73,Données1!AJ57) -> 0.7251916911 | CA57: =IF(Hypothèses!$J$24="SV",Données1!AK73,Données1!AK57) -> -0.03521621257 | CB57: =IF(Hypothèses!$J$24="SV",Données1!AL73,Données1!AL57) -> -2.494854405 | CC57: =IF(Hypothèses!$J$24="SV",Données1!AM73,Données1!AM57) -> 4.342556841 | CD57: =IF(Hypothèses!$J$24="SV",Données1!AN73,Données1!AN57) -> -1.659249357 | CE57: =IF(Hypothèses!$J$24="SV",Données1!AO73,Données1!AO57) -> 0.7069612877 | CF57: =IF(Hypothèses!$J$24="SV",Données1!AP73,Données1!AP57) -> -0.03337449052
B58: Juillet | C58: -0.1492368799 | D58: -0.196108962 | E58: 0.745273426 | F58: 0.2909091103 | G58: -0.008460108757 | H58: 0.2023655415 | I58: -0.8934295689 | J58: 1.213333644 | K58: 0.3027839862 | L58: -0.008203289098 | M58: 0.05085441079 | N58: -0.5877900147 | O58: 1.001751792 | P58: 0.2945561486 | Q58: -0.008226249828 | R58: 0.05085441079 | S58: -0.5877900147 | T58: 1.001751792 | U58: 0.2945561486 | V58: -0.008226249828 | W58: 0.2335817163 | X58: -0.9475665732 | Y58: 1.239937104 | Z58: 0.2989787095 | AA58: -0.008044505861 | AB58: 0.0558763784 | AC58: -0.5975792824 | AD58: 1.008107354 | AE58: 0.2946121364 | AF58: -0.008219443664 | AG58: 0.0558763784 | AH58: -0.5975792824 | AI58: 1.008107354 | AJ58: 0.2946121364 | AK58: -0.008219443664 | AL58: 0.2024192199 | AM58: -0.8931461586 | AN58: 1.212655834 | AO58: 0.3025451158 | AP58: -0.008196496757 | AR58: Juillet | AS58: =IF(Hypothèses!$J$24="SV",Données1!C74,Données1!C58) -> -2.784535594 | AT58: =IF(Hypothèses!$J$24="SV",Données1!D74,Données1!D58) -> 4.991577124 | AU58: =IF(Hypothèses!$J$24="SV",Données1!E74,Données1!E58) -> -2.182904127 | AV58: =IF(Hypothèses!$J$24="SV",Données1!F74,Données1!F58) -> 0.784486472 | AW58: =IF(Hypothèses!$J$24="SV",Données1!G74,Données1!G58) -> -0.03991001982 | AX58: =IF(Hypothèses!$J$24="SV",Données1!H74,Données1!H58) -> -2.521847463 | AY58: =IF(Hypothèses!$J$24="SV",Données1!I74,Données1!I58) -> 4.398560615 | AZ58: =IF(Hypothèses!$J$24="SV",Données1!J74,Données1!J58) -> -1.697767693 | BA58: =IF(Hypothèses!$J$24="SV",Données1!K74,Données1!K58) -> 0.7144076957 | BB58: =IF(Hypothèses!$J$24="SV",Données1!L74,Données1!L58) -> -0.03390446348 | BC58: =IF(Hypothèses!$J$24="SV",Données1!M74,Données1!M58) -> -2.610735773 | BD58: =IF(Hypothèses!$J$24="SV",Données1!N74,Données1!N58) -> 4.611106721 | BE58: =IF(Hypothèses!$J$24="SV",Données1!O74,Données1!O58) -> -1.889195881 | BF58: =IF(Hypothèses!$J$24="SV",Données1!P74,Données1!P58) -> 0.7375754486 | BG58: =IF(Hypothèses!$J$24="SV",Données1!Q74,Données1!Q58) -> -0.03614827172 | BH58: =IF(Hypothèses!$J$24="SV",Données1!R74,Données1!R58) -> -2.610735773 | BI58: =IF(Hypothèses!$J$24="SV",Données1!S74,Données1!S58) -> 4.611106721 | BJ58: =IF(Hypothèses!$J$24="SV",Données1!T74,Données1!T58) -> -1.889195881 | BK58: =IF(Hypothèses!$J$24="SV",Données1!U74,Données1!U58) -> 0.7375754486 | BL58: =IF(Hypothèses!$J$24="SV",Données1!V74,Données1!V58) -> -0.03614827172 | BM58: =IF(Hypothèses!$J$24="SV",Données1!W74,Données1!W58) -> -2.47533954 | BN58: =IF(Hypothèses!$J$24="SV",Données1!X74,Données1!X58) -> 4.305793994 | BO58: =IF(Hypothèses!$J$24="SV",Données1!Y74,Données1!Y58) -> -1.640066459 | BP58: =IF(Hypothèses!$J$24="SV",Données1!Z74,Données1!Z58) -> 0.7012263985 | BQ58: =IF(Hypothèses!$J$24="SV",Données1!AA74,Données1!AA58) -> -0.03305070754 | BR58: =IF(Hypothèses!$J$24="SV",Données1!AB74,Données1!AB58) -> -2.606980259 | BS58: =IF(Hypothèses!$J$24="SV",Données1!AC74,Données1!AC58) -> 4.602686763 | BT58: =IF(Hypothèses!$J$24="SV",Données1!AD74,Données1!AD58) -> -1.882397955 | BU58: =IF(Hypothèses!$J$24="SV",Données1!AE74,Données1!AE58) -> 0.7365637812 | BV58: =IF(Hypothèses!$J$24="SV",Données1!AF74,Données1!AF58) -> -0.03606317186 | BW58: =IF(Hypothèses!$J$24="SV",Données1!AG74,Données1!AG58) -> -2.606980259 | BX58: =IF(Hypothèses!$J$24="SV",Données1!AH74,Données1!AH58) -> 4.602686763 | BY58: =IF(Hypothèses!$J$24="SV",Données1!AI74,Données1!AI58) -> -1.882397955 | BZ58: =IF(Hypothèses!$J$24="SV",Données1!AJ74,Données1!AJ58) -> 0.7365637812 | CA58: =IF(Hypothèses!$J$24="SV",Données1!AK74,Données1!AK58) -> -0.03606317186 | CB58: =IF(Hypothèses!$J$24="SV",Données1!AL74,Données1!AL58) -> -2.520191059 | CC58: =IF(Hypothèses!$J$24="SV",Données1!AM74,Données1!AM58) -> 4.395638274 | CD58: =IF(Hypothèses!$J$24="SV",Données1!AN74,Données1!AN58) -> -1.696574099 | CE58: =IF(Hypothèses!$J$24="SV",Données1!AO74,Données1!AO58) -> 0.7139433154 | CF58: =IF(Hypothèses!$J$24="SV",Données1!AP74,Données1!AP58) -> -0.03388173086
B59: Août | C59: -0.05253757259 | D59: -0.3487834945 | E59: 0.7989294044 | F59: 0.2704011997 | G59: -0.007720207045 | H59: 0.1632436858 | I59: -0.8213324832 | J59: 1.17181973 | K59: 0.3049031268 | L59: -0.008328094726 | M59: 0.04033143089 | N59: -0.5768615735 | O59: 1.006857569 | P59: 0.3003748952 | Q59: -0.00840694866 | R59: 0.04033143089 | S59: -0.5768615735 | T59: 1.006857569 | U59: 0.3003748952 | V59: -0.00840694866 | W59: 0.2335817163 | X59: -0.9475665732 | Y59: 1.239937104 | Z59: 0.2989787095 | AA59: -0.008044505861 | AB59: 0.05832729862 | AC59: -0.6117714484 | AD59: 1.029311532 | AE59: 0.3004912924 | AF59: -0.00838007351 | AG59: 0.05832729862 | AH59: -0.6117714484 | AI59: 1.029311532 | AJ59: 0.3004912924 | AK59: -0.00838007351 | AL59: 0.1589846354 | AM59: -0.8117019631 | AN59: 1.163875426 | AO59: 0.3040299084 | AP59: -0.008310732439 | AR59: Août | AS59: =IF(Hypothèses!$J$24="SV",Données1!C75,Données1!C59) -> -2.529698289 | AT59: =IF(Hypothèses!$J$24="SV",Données1!D75,Données1!D59) -> 4.506550528 | AU59: =IF(Hypothèses!$J$24="SV",Données1!E75,Données1!E59) -> -1.918436925 | AV59: =IF(Hypothèses!$J$24="SV",Données1!F75,Données1!F59) -> 0.7139277844 | AW59: =IF(Hypothèses!$J$24="SV",Données1!G75,Données1!G59) -> -0.03575283637 | AX59: =IF(Hypothèses!$J$24="SV",Données1!H75,Données1!H59) -> -2.566430447 | AY59: =IF(Hypothèses!$J$24="SV",Données1!I75,Données1!I59) -> 4.490944512 | AZ59: =IF(Hypothèses!$J$24="SV",Données1!J75,Données1!J59) -> -1.761183698 | BA59: =IF(Hypothèses!$J$24="SV",Données1!K75,Données1!K59) -> 0.7266166041 | BB59: =IF(Hypothèses!$J$24="SV",Données1!L75,Données1!L59) -> -0.03477405788 | BC59: =IF(Hypothèses!$J$24="SV",Données1!M75,Données1!M59) -> -2.654551679 | BD59: =IF(Hypothèses!$J$24="SV",Données1!N75,Données1!N59) -> 4.691499518 | BE59: =IF(Hypothèses!$J$24="SV",Données1!O75,Données1!O59) -> -1.927762221 | BF59: =IF(Hypothèses!$J$24="SV",Données1!P75,Données1!P59) -> 0.7498728942 | BG59: =IF(Hypothèses!$J$24="SV",Données1!Q75,Données1!Q59) -> -0.03681067154 | BH59: =IF(Hypothèses!$J$24="SV",Données1!R75,Données1!R59) -> -2.654551679 | BI59: =IF(Hypothèses!$J$24="SV",Données1!S75,Données1!S59) -> 4.691499518 | BJ59: =IF(Hypothèses!$J$24="SV",Données1!T75,Données1!T59) -> -1.927762221 | BK59: =IF(Hypothèses!$J$24="SV",Données1!U75,Données1!U59) -> 0.7498728942 | BL59: =IF(Hypothèses!$J$24="SV",Données1!V75,Données1!V59) -> -0.03681067154 | BM59: =IF(Hypothèses!$J$24="SV",Données1!W75,Données1!W59) -> -2.47533954 | BN59: =IF(Hypothèses!$J$24="SV",Données1!X75,Données1!X59) -> 4.305793994 | BO59: =IF(Hypothèses!$J$24="SV",Données1!Y75,Données1!Y59) -> -1.640066459 | BP59: =IF(Hypothèses!$J$24="SV",Données1!Z75,Données1!Z59) -> 0.7012263985 | BQ59: =IF(Hypothèses!$J$24="SV",Données1!AA75,Données1!AA59) -> -0.03305070754 | BR59: =IF(Hypothèses!$J$24="SV",Données1!AB75,Données1!AB59) -> -2.638910458 | BS59: =IF(Hypothèses!$J$24="SV",Données1!AC75,Données1!AC59) -> 4.657370958 | BT59: =IF(Hypothèses!$J$24="SV",Données1!AD75,Données1!AD59) -> -1.901590721 | BU59: =IF(Hypothèses!$J$24="SV",Données1!AE75,Données1!AE59) -> 0.7456401579 | BV59: =IF(Hypothèses!$J$24="SV",Données1!AF75,Données1!AF59) -> -0.03647390254 | BW59: =IF(Hypothèses!$J$24="SV",Données1!AG75,Données1!AG59) -> -2.638910458 | BX59: =IF(Hypothèses!$J$24="SV",Données1!AH75,Données1!AH59) -> 4.657370958 | BY59: =IF(Hypothèses!$J$24="SV",Données1!AI75,Données1!AI59) -> -1.901590721 | BZ59: =IF(Hypothèses!$J$24="SV",Données1!AJ75,Données1!AJ59) -> 0.7456401579 | CA59: =IF(Hypothèses!$J$24="SV",Données1!AK75,Données1!AK59) -> -0.03647390254 | CB59: =IF(Hypothèses!$J$24="SV",Données1!AL75,Données1!AL59) -> -2.565013913 | CC59: =IF(Hypothèses!$J$24="SV",Données1!AM75,Données1!AM59) -> 4.490074244 | CD59: =IF(Hypothèses!$J$24="SV",Données1!AN75,Données1!AN59) -> -1.763903107 | CE59: =IF(Hypothèses!$J$24="SV",Données1!AO75,Données1!AO59) -> 0.7261417345 | CF59: =IF(Hypothèses!$J$24="SV",Données1!AP75,Données1!AP59) -> -0.03478351869
B60: Septembre | C60: 0.1867611331 | D60: -0.8264642648 | E60: 1.123428926 | F60: 0.2804132898 | G60: -0.007599429529 | H60: 0.08256512349 | I60: -0.6672146605 | J60: 1.075754737 | K60: 0.3058935171 | L60: -0.00849078555 | M60: 0.06556613263 | N60: -0.6360410842 | O60: 1.05801113 | P60: 0.3069071474 | Q60: -0.008547632145 | R60: 0.06556613263 | S60: -0.6360410842 | T60: 1.05801113 | U60: 0.3069071474 | V60: -0.008547632145 | W60: 0.1450435663 | X60: -0.7406050227 | Y60: 1.061899567 | Z60: 0.2771052656 | AA60: -0.007576444954 | AB60: 0.07256579493 | AC60: -0.6491507609 | AD60: 1.065843498 | AE60: 0.3066618336 | AF60: -0.008529032371 | AG60: 0.07256579493 | AH60: -0.6491507609 | AI60: 1.065843498 | AJ60: 0.3066618336 | AK60: -0.008529032371 | AL60: 0.09105392443 | AM60: -0.6833558242 | AN60: 1.08571959 | AO60: 0.3057465393 | AP60: -0.008472447209 | AR60: Septembre | AS60: =IF(Hypothèses!$J$24="SV",Données1!C76,Données1!C60) -> -2.360005923 | AT60: =IF(Hypothèses!$J$24="SV",Données1!D76,Données1!D60) -> 4.118424107 | AU60: =IF(Hypothèses!$J$24="SV",Données1!E76,Données1!E60) -> -1.593813464 | AV60: =IF(Hypothèses!$J$24="SV",Données1!F76,Données1!F60) -> 0.6683357657 | AW60: =IF(Hypothèses!$J$24="SV",Données1!G76,Données1!G60) -> -0.03176193911 | AX60: =IF(Hypothèses!$J$24="SV",Données1!H76,Données1!H60) -> -2.643342599 | AY60: =IF(Hypothèses!$J$24="SV",Données1!I76,Données1!I60) -> 4.655542381 | AZ60: =IF(Hypothèses!$J$24="SV",Données1!J76,Données1!J60) -> -1.882607871 | BA60: =IF(Hypothèses!$J$24="SV",Données1!K76,Données1!K60) -> 0.7473798428 | BB60: =IF(Hypothèses!$J$24="SV",Données1!L76,Données1!L60) -> -0.03636496503 | BC60: =IF(Hypothèses!$J$24="SV",Données1!M76,Données1!M60) -> -2.664647863 | BD60: =IF(Hypothèses!$J$24="SV",Données1!N76,Données1!N60) -> 4.699138479 | BE60: =IF(Hypothèses!$J$24="SV",Données1!O76,Données1!O60) -> -1.91167268 | BF60: =IF(Hypothèses!$J$24="SV",Données1!P76,Données1!P60) -> 0.7531969208 | BG60: =IF(Hypothèses!$J$24="SV",Données1!Q76,Données1!Q60) -> -0.0367690339 | BH60: =IF(Hypothèses!$J$24="SV",Données1!R76,Données1!R60) -> -2.664647863 | BI60: =IF(Hypothèses!$J$24="SV",Données1!S76,Données1!S60) -> 4.699138479 | BJ60: =IF(Hypothèses!$J$24="SV",Données1!T76,Données1!T60) -> -1.91167268 | BK60: =IF(Hypothèses!$J$24="SV",Données1!U76,Données1!U60) -> 0.7531969208 | BL60: =IF(Hypothèses!$J$24="SV",Données1!V76,Données1!V60) -> -0.0367690339 | BM60: =IF(Hypothèses!$J$24="SV",Données1!W76,Données1!W60) -> -2.37800007 | BN60: =IF(Hypothèses!$J$24="SV",Données1!X76,Données1!X60) -> 4.165682018 | BO60: =IF(Hypothèses!$J$24="SV",Données1!Y76,Données1!Y60) -> -1.642114741 | BP60: =IF(Hypothèses!$J$24="SV",Données1!Z76,Données1!Z60) -> 0.6730858796 | BQ60: =IF(Hypothèses!$J$24="SV",Données1!AA76,Données1!AA60) -> -0.03230140635 | BR60: =IF(Hypothèses!$J$24="SV",Données1!AB76,Données1!AB60) -> -2.656664546 | BS60: =IF(Hypothèses!$J$24="SV",Données1!AC76,Données1!AC60) -> 4.682543374 | BT60: =IF(Hypothèses!$J$24="SV",Données1!AD76,Données1!AD60) -> -1.900190447 | BU60: =IF(Hypothèses!$J$24="SV",Données1!AE76,Données1!AE60) -> 0.7510236205 | BV60: =IF(Hypothèses!$J$24="SV",Données1!AF76,Données1!AF60) -> -0.03661279567 | BW60: =IF(Hypothèses!$J$24="SV",Données1!AG76,Données1!AG60) -> -2.656664546 | BX60: =IF(Hypothèses!$J$24="SV",Données1!AH76,Données1!AH60) -> 4.682543374 | BY60: =IF(Hypothèses!$J$24="SV",Données1!AI76,Données1!AI60) -> -1.900190447 | BZ60: =IF(Hypothèses!$J$24="SV",Données1!AJ76,Données1!AJ60) -> 0.7510236205 | CA60: =IF(Hypothèses!$J$24="SV",Données1!AK76,Données1!AK60) -> -0.03661279567 | CB60: =IF(Hypothèses!$J$24="SV",Données1!AL76,Données1!AL60) -> -2.634525077 | CC60: =IF(Hypothèses!$J$24="SV",Données1!AM76,Données1!AM60) -> 4.636921846 | CD60: =IF(Hypothèses!$J$24="SV",Données1!AN76,Données1!AN60) -> -1.86925928 | CE60: =IF(Hypothèses!$J$24="SV",Données1!AO76,Données1!AO60) -> 0.7449894912 | CF60: =IF(Hypothèses!$J$24="SV",Données1!AP76,Données1!AP60) -> -0.03618708172
B61: Octobre | C61: 0.2335817163 | D61: -0.9475665732 | E61: 1.239937104 | F61: 0.2989787095 | G61: -0.008044505861 | H61: 0.0647380415 | I61: -0.6243592775 | J61: 1.037604742 | K61: 0.30063848 | L61: -0.008373393324 | M61: 0.1386255932 | N61: -0.7749276986 | O61: 1.14370339 | P61: 0.3055920208 | Q61: -0.008388572881 | R61: 0.1386255932 | S61: -0.7749276986 | T61: 1.14370339 | U61: 0.3055920208 | V61: -0.008388572881 | W61: -0.09599440057 | X61: -0.2734166662 | Y61: 0.7618486164 | Z61: 0.2755080467 | AA61: -0.007937051512 | AB61: 0.1692228386 | AC61: -0.8349836077 | AD61: 1.183225037 | AE61: 0.306212313 | AF61: -0.008354792206 | AG61: 0.1692228386 | AH61: -0.8349836077 | AI61: 1.183225037 | AJ61: 0.306212313 | AK61: -0.008354792206 | AL61: 0.04632750657 | AM61: -0.5908978405 | AN61: 1.018965245 | AO61: 0.3019201047 | AP61: -0.00844012901 | AR61: Octobre | AS61: =IF(Hypothèses!$J$24="SV",Données1!C77,Données1!C61) -> -2.47533954 | AT61: =IF(Hypothèses!$J$24="SV",Données1!D77,Données1!D61) -> 4.305793994 | AU61: =IF(Hypothèses!$J$24="SV",Données1!E77,Données1!E61) -> -1.640066459 | AV61: =IF(Hypothèses!$J$24="SV",Données1!F77,Données1!F61) -> 0.7012263985 | AW61: =IF(Hypothèses!$J$24="SV",Données1!G77,Données1!G61) -> -0.03305070754 | AX61: =IF(Hypothèses!$J$24="SV",Données1!H77,Données1!H61) -> -2.632337267 | AY61: =IF(Hypothèses!$J$24="SV",Données1!I77,Données1!I61) -> 4.643351376 | AZ61: =IF(Hypothèses!$J$24="SV",Données1!J77,Données1!J61) -> -1.891308528 | BA61: =IF(Hypothèses!$J$24="SV",Données1!K77,Données1!K61) -> 0.7438855629 | BB61: =IF(Hypothèses!$J$24="SV",Données1!L77,Données1!L61) -> -0.03633964199 | BC61: =IF(Hypothèses!$J$24="SV",Données1!M77,Données1!M61) -> -2.591442924 | BD61: =IF(Hypothèses!$J$24="SV",Données1!N77,Données1!N61) -> 4.543818442 | BE61: =IF(Hypothèses!$J$24="SV",Données1!O77,Données1!O61) -> -1.799163198 | BF61: =IF(Hypothèses!$J$24="SV",Données1!P77,Données1!P61) -> 0.7334087964 | BG61: =IF(Hypothèses!$J$24="SV",Données1!Q77,Données1!Q61) -> -0.03528015066 | BH61: =IF(Hypothèses!$J$24="SV",Données1!R77,Données1!R61) -> -2.591442924 | BI61: =IF(Hypothèses!$J$24="SV",Données1!S77,Données1!S61) -> 4.543818442 | BJ61: =IF(Hypothèses!$J$24="SV",Données1!T77,Données1!T61) -> -1.799163198 | BK61: =IF(Hypothèses!$J$24="SV",Données1!U77,Données1!U61) -> 0.7334087964 | BL61: =IF(Hypothèses!$J$24="SV",Données1!V77,Données1!V61) -> -0.03528015066 | BM61: =IF(Hypothèses!$J$24="SV",Données1!W77,Données1!W61) -> -2.612447191 | BN61: =IF(Hypothèses!$J$24="SV",Données1!X77,Données1!X61) -> 4.668495175 | BO61: =IF(Hypothèses!$J$24="SV",Données1!Y77,Données1!Y61) -> -2.014474146 | BP61: =IF(Hypothèses!$J$24="SV",Données1!Z77,Données1!Z61) -> 0.7367174061 | BQ61: =IF(Hypothèses!$J$24="SV",Données1!AA77,Données1!AA61) -> -0.03718521007 | BR61: =IF(Hypothèses!$J$24="SV",Données1!AB77,Données1!AB61) -> -2.567926191 | BS61: =IF(Hypothèses!$J$24="SV",Données1!AC77,Données1!AC61) -> 4.491248221 | BT61: =IF(Hypothèses!$J$24="SV",Données1!AD77,Données1!AD61) -> -1.756884758 | BU61: =IF(Hypothèses!$J$24="SV",Données1!AE77,Données1!AE61) -> 0.7271708255 | BV61: =IF(Hypothèses!$J$24="SV",Données1!AF77,Données1!AF61) -> -0.03475406143 | BW61: =IF(Hypothèses!$J$24="SV",Données1!AG77,Données1!AG61) -> -2.567926191 | BX61: =IF(Hypothèses!$J$24="SV",Données1!AH77,Données1!AH61) -> 4.491248221 | BY61: =IF(Hypothèses!$J$24="SV",Données1!AI77,Données1!AI61) -> -1.756884758 | BZ61: =IF(Hypothèses!$J$24="SV",Données1!AJ77,Données1!AJ61) -> 0.7271708255 | CA61: =IF(Hypothèses!$J$24="SV",Données1!AK77,Données1!AK61) -> -0.03475406143 | CB61: =IF(Hypothèses!$J$24="SV",Données1!AL77,Données1!AL61) -> -2.656233494 | CC61: =IF(Hypothèses!$J$24="SV",Données1!AM77,Données1!AM61) -> 4.69200176 | CD61: =IF(Hypothèses!$J$24="SV",Données1!AN77,Données1!AN61) -> -1.923316697 | CE61: =IF(Hypothèses!$J$24="SV",Données1!AO77,Données1!AO61) -> 0.7504581848 | CF61: =IF(Hypothèses!$J$24="SV",Données1!AP77,Données1!AP61) -> -0.03678986773
B62: Novembre | C62: 0.2335817163 | D62: -0.9475665732 | E62: 1.239937104 | F62: 0.2989787095 | G62: -0.008044505861 | H62: 0.0747292863 | I62: -0.6329261078 | J62: 1.029278343 | K62: 0.2939911715 | L62: -0.008170361245 | M62: 0.2172374315 | N62: -0.9222042008 | O62: 1.231744337 | P62: 0.3028290529 | Q62: -0.008179673627 | R62: 0.2172374315 | S62: -0.9222042008 | T62: 1.231744337 | U62: 0.3028290529 | V62: -0.008179673627 | W62: -0.15230082 | X62: -0.2133567036 | Y62: 0.786026283 | Z62: 0.3052307499 | AA62: -0.008866932286 | AB62: 0.2560102556 | AC62: -0.9963961506 | AD62: 1.278151018 | AE62: 0.302423404 | AF62: -0.008103502813 | AG62: 0.2560102556 | AH62: -0.9963961506 | AI62: 1.278151018 | AJ62: 0.302423404 | AK62: -0.008103502813 | AL62: 0.03753602556 | AM62: -0.5627453622 | AN62: 0.9866570321 | AO62: 0.2949671046 | AP62: -0.008260035977 | AR62: Novembre | AS62: =IF(Hypothèses!$J$24="SV",Données1!C78,Données1!C62) -> -2.47533954 | AT62: =IF(Hypothèses!$J$24="SV",Données1!D78,Données1!D62) -> 4.305793994 | AU62: =IF(Hypothèses!$J$24="SV",Données1!E78,Données1!E62) -> -1.640066459 | AV62: =IF(Hypothèses!$J$24="SV",Données1!F78,Données1!F62) -> 0.7012263985 | AW62: =IF(Hypothèses!$J$24="SV",Données1!G78,Données1!G62) -> -0.03305070754 | AX62: =IF(Hypothèses!$J$24="SV",Données1!H78,Données1!H62) -> -2.584578608 | AY62: =IF(Hypothèses!$J$24="SV",Données1!I78,Données1!I62) -> 4.5563122 | AZ62: =IF(Hypothèses!$J$24="SV",Données1!J78,Données1!J62) -> -1.850623531 | BA62: =IF(Hypothèses!$J$24="SV",Données1!K78,Données1!K62) -> 0.7304500081 | BB62: =IF(Hypothèses!$J$24="SV",Données1!L78,Données1!L62) -> -0.03562792957 | BC62: =IF(Hypothèses!$J$24="SV",Données1!M78,Données1!M62) -> -2.508859474 | BD62: =IF(Hypothèses!$J$24="SV",Données1!N78,Données1!N62) -> 4.37028623 | BE62: =IF(Hypothèses!$J$24="SV",Données1!O78,Données1!O62) -> -1.676158277 | BF62: =IF(Hypothèses!$J$24="SV",Données1!P78,Données1!P62) -> 0.7109317405 | BG62: =IF(Hypothèses!$J$24="SV",Données1!Q78,Données1!Q62) -> -0.03362759774 | BH62: =IF(Hypothèses!$J$24="SV",Données1!R78,Données1!R62) -> -2.508859474 | BI62: =IF(Hypothèses!$J$24="SV",Données1!S78,Données1!S62) -> 4.37028623 | BJ62: =IF(Hypothèses!$J$24="SV",Données1!T78,Données1!T62) -> -1.676158277 | BK62: =IF(Hypothèses!$J$24="SV",Données1!U78,Données1!U62) -> 0.7109317405 | BL62: =IF(Hypothèses!$J$24="SV",Données1!V78,Données1!V62) -> -0.03362759774 | BM62: =IF(Hypothèses!$J$24="SV",Données1!W78,Données1!W62) -> -2.878023752 | BN62: =IF(Hypothèses!$J$24="SV",Données1!X78,Données1!X62) -> 5.156166643 | BO62: =IF(Hypothèses!$J$24="SV",Données1!Y78,Données1!Y62) -> -2.24943588 | BP62: =IF(Hypothèses!$J$24="SV",Données1!Z78,Données1!Z62) -> 0.8107676762 | BQ62: =IF(Hypothèses!$J$24="SV",Données1!AA78,Données1!AA62) -> -0.04118899655 | BR62: =IF(Hypothèses!$J$24="SV",Données1!AB78,Données1!AB62) -> -2.474089479 | BS62: =IF(Hypothèses!$J$24="SV",Données1!AC78,Données1!AC62) -> 4.295125387 | BT62: =IF(Hypothèses!$J$24="SV",Données1!AD78,Données1!AD62) -> -1.619569502 | BU62: =IF(Hypothèses!$J$24="SV",Données1!AE78,Données1!AE62) -> 0.7015383385 | BV62: =IF(Hypothèses!$J$24="SV",Données1!AF78,Données1!AF62) -> -0.0328934187 | BW62: =IF(Hypothèses!$J$24="SV",Données1!AG78,Données1!AG62) -> -2.474089479 | BX62: =IF(Hypothèses!$J$24="SV",Données1!AH78,Données1!AH62) -> 4.295125387 | BY62: =IF(Hypothèses!$J$24="SV",Données1!AI78,Données1!AI62) -> -1.619569502 | BZ62: =IF(Hypothèses!$J$24="SV",Données1!AJ78,Données1!AJ62) -> 0.7015383385 | CA62: =IF(Hypothèses!$J$24="SV",Données1!AK78,Données1!AK62) -> -0.0328934187 | CB62: =IF(Hypothèses!$J$24="SV",Données1!AL78,Données1!AL62) -> -2.624786209 | CC62: =IF(Hypothèses!$J$24="SV",Données1!AM78,Données1!AM62) -> 4.640637217 | CD62: =IF(Hypothèses!$J$24="SV",Données1!AN78,Données1!AN62) -> -1.910130811 | CE62: =IF(Hypothèses!$J$24="SV",Données1!AO78,Données1!AO62) -> 0.7414108773 | CF62: =IF(Hypothèses!$J$24="SV",Données1!AP78,Données1!AP62) -> -0.03642999309
B63: Décembre | C63: 0.2335817163 | D63: -0.9475665732 | E63: 1.239937104 | F63: 0.2989787095 | G63: -0.008044505861 | H63: 0.1242786855 | I63: -0.7267789743 | J63: 1.086745065 | K63: 0.2929104516 | L63: -0.008057058166 | M63: 0.2650341387 | N63: -1.010776816 | O63: 1.283402227 | P63: 0.3005389379 | Q63: -0.008035597923 | R63: 0.2650341387 | S63: -1.010776816 | T63: 1.283402227 | U63: 0.3005389379 | V63: -0.008035597923 | W63: -0.03597697437 | X63: -0.4501895349 | Y63: 0.9526819731 | Z63: 0.3130269291 | AA63: -0.008889986195 | AB63: 0.2648167469 | AC63: -1.010361743 | AD63: 1.283143091 | AE63: 0.3005387362 | AF63: -0.008035973852 | AG63: 0.2648167469 | AH63: -1.010361743 | AI63: 1.283143091 | AJ63: 0.3005387362 | AK63: -0.008035973852 | AL63: 0.1249886098 | AM63: -0.7288021049 | AN63: 1.088871824 | AO63: 0.2933117444 | AP63: -0.008067141212 | AR63: Décembre | AS63: =IF(Hypothèses!$J$24="SV",Données1!C79,Données1!C63) -> -2.47533954 | AT63: =IF(Hypothèses!$J$24="SV",Données1!D79,Données1!D63) -> 4.305793994 | AU63: =IF(Hypothèses!$J$24="SV",Données1!E79,Données1!E63) -> -1.640066459 | AV63: =IF(Hypothèses!$J$24="SV",Données1!F79,Données1!F63) -> 0.7012263985 | AW63: =IF(Hypothèses!$J$24="SV",Données1!G79,Données1!G63) -> -0.03305070754 | AX63: =IF(Hypothèses!$J$24="SV",Données1!H79,Données1!H63) -> -2.532460277 | AY63: =IF(Hypothèses!$J$24="SV",Données1!I79,Données1!I63) -> 4.446510768 | AZ63: =IF(Hypothèses!$J$24="SV",Données1!J79,Données1!J63) -> -1.772352026 | BA63: =IF(Hypothèses!$J$24="SV",Données1!K79,Données1!K63) -> 0.7162591422 | BB63: =IF(Hypothèses!$J$24="SV",Données1!L79,Données1!L63) -> -0.03457919408 | BC63: =IF(Hypothèses!$J$24="SV",Données1!M79,Données1!M63) -> -2.456362694 | BD63: =IF(Hypothèses!$J$24="SV",Données1!N79,Données1!N63) -> 4.260841957 | BE63: =IF(Hypothèses!$J$24="SV",Données1!O79,Données1!O63) -> -1.60004661 | BF63: =IF(Hypothèses!$J$24="SV",Données1!P79,Données1!P63) -> 0.6964603719 | BG63: =IF(Hypothèses!$J$24="SV",Données1!Q79,Données1!Q63) -> -0.03258698291 | BH63: =IF(Hypothèses!$J$24="SV",Données1!R79,Données1!R63) -> -2.456362694 | BI63: =IF(Hypothèses!$J$24="SV",Données1!S79,Données1!S63) -> 4.260841957 | BJ63: =IF(Hypothèses!$J$24="SV",Données1!T79,Données1!T63) -> -1.60004661 | BK63: =IF(Hypothèses!$J$24="SV",Données1!U79,Données1!U63) -> 0.6964603719 | BL63: =IF(Hypothèses!$J$24="SV",Données1!V79,Données1!V63) -> -0.03258698291 | BM63: =IF(Hypothèses!$J$24="SV",Données1!W79,Données1!W63) -> -2.809842333 | BN63: =IF(Hypothèses!$J$24="SV",Données1!X79,Données1!X63) -> 4.992207603 | BO63: =IF(Hypothèses!$J$24="SV",Données1!Y79,Données1!Y63) -> -2.100609698 | BP63: =IF(Hypothèses!$J$24="SV",Données1!Z79,Données1!Z63) -> 0.7928273052 | BQ63: =IF(Hypothèses!$J$24="SV",Données1!AA79,Données1!AA63) -> -0.03944315701 | BR63: =IF(Hypothèses!$J$24="SV",Données1!AB79,Données1!AB63) -> -2.457125949 | BS63: =IF(Hypothèses!$J$24="SV",Données1!AC79,Données1!AC63) -> 4.262288928 | BT63: =IF(Hypothèses!$J$24="SV",Données1!AD79,Données1!AD63) -> -1.600842811 | BU63: =IF(Hypothèses!$J$24="SV",Données1!AE79,Données1!AE63) -> 0.6966447246 | BV63: =IF(Hypothèses!$J$24="SV",Données1!AF79,Données1!AF63) -> -0.03259827524 | BW63: =IF(Hypothèses!$J$24="SV",Données1!AG79,Données1!AG63) -> -2.457125949 | BX63: =IF(Hypothèses!$J$24="SV",Données1!AH79,Données1!AH63) -> 4.262288928 | BY63: =IF(Hypothèses!$J$24="SV",Données1!AI79,Données1!AI63) -> -1.600842811 | BZ63: =IF(Hypothèses!$J$24="SV",Données1!AJ79,Données1!AJ63) -> 0.6966447246 | CA63: =IF(Hypothèses!$J$24="SV",Données1!AK79,Données1!AK63) -> -0.03259827524 | CB63: =IF(Hypothèses!$J$24="SV",Données1!AL79,Données1!AL63) -> -2.534567708 | CC63: =IF(Hypothèses!$J$24="SV",Données1!AM79,Données1!AM63) -> 4.449945002 | CD63: =IF(Hypothèses!$J$24="SV",Données1!AN79,Données1!AN63) -> -1.773222941 | CE63: =IF(Hypothèses!$J$24="SV",Données1!AO79,Données1!AO63) -> 0.7168571041 | CF63: =IF(Hypothèses!$J$24="SV",Données1!AP79,Données1!AP63) -> -0.03460283162
B65: SV | C65: ORIENTATION | AR65: Tampon 1 | AS65: ORIENTATION
C66: NORD | H66: NORD-EST | M66: EST | R66: SUD-EST | W66: SUD | AB66: SUD-OUEST | AG66: OUEST | AL66: NORD-OUEST | AS66: NORD | AX66: NORD-EST | BC66: EST | BH66: SUD-EST | BM66: SUD | BR66: SUD-OUEST | BW66: OUEST | CB66: NORD-OUEST
C67: a | D67: b | E67: c | F67: d | G67: e | H67: a | I67: b | J67: c | K67: d | L67: e | M67: a | N67: b | O67: c | P67: d | Q67: e | R67: a | S67: b | T67: c | U67: d | V67: e | W67: a | X67: b | Y67: c | Z67: d | AA67: e | AB67: a | AC67: b | AD67: c | AE67: d | AF67: e | AG67: a | AH67: b | AI67: c | AJ67: d | AK67: e | AL67: a | AM67: b | AN67: c | AO67: d | AP67: e | AS67: a | AT67: b | AU67: c | AV67: d | AW67: e | AX67: a | AY67: b | AZ67: c | BA67: d | BB67: e | BC67: a | BD67: b | BE67: c | BF67: d | BG67: e | BH67: a | BI67: b | BJ67: c | BK67: d | BL67: e | BM67: a | BN67: b | BO67: c | BP67: d | BQ67: e | BR67: a | BS67: b | BT67: c | BU67: d | BV67: e | BW67: a | BX67: b | BY67: c | BZ67: d | CA67: e | CB67: a | CC67: b | CD67: c | CE67: d | CF67: e
B68: Janvier | C68: -2.47533954 | D68: 4.305793994 | E68: -1.640066459 | F68: 0.7012263985 | G68: -0.03305070754 | H68: -2.545155165 | I68: 4.467502026 | J68: -1.778286653 | K68: 0.7198615746 | L68: -0.03472755316 | M68: -2.479354477 | N68: 4.308377697 | O68: -1.632500479 | P68: 0.7027677097 | Q68: -0.03303376723 | R68: -2.479354477 | S68: 4.308377697 | T68: -1.632500479 | U68: 0.7027677097 | V68: -0.03303376723 | W68: -2.777785029 | X68: 4.935337324 | Y68: -2.076849472 | Z68: 0.7837633561 | AA68: -0.03899410464 | AB68: -2.46817316 | AC68: 4.287459605 | AD68: -1.621760554 | AE68: 0.6996067107 | AF68: -0.03285595213 | AG68: -2.46817316 | AH68: 4.287459605 | AI68: -1.621760554 | AJ68: 0.6996067107 | AK68: -0.03285595213 | AL68: -2.541236893 | AM68: 4.45818349 | AN68: -1.769975886 | AO68: 0.7188202082 | AP68: -0.0346288568 | AR68: Janvier | AS68: =IF(Hypothèses!$J$24="SV",Données1!C101,Données1!C85) -> 0 | AT68: =IF(Hypothèses!$J$24="SV",Données1!D101,Données1!D85) -> 0 | AU68: =IF(Hypothèses!$J$24="SV",Données1!E101,Données1!E85) -> 0 | AV68: =IF(Hypothèses!$J$24="SV",Données1!F101,Données1!F85) -> 0 | AW68: =IF(Hypothèses!$J$24="SV",Données1!G101,Données1!G85) -> 0 | AX68: =IF(Hypothèses!$J$24="SV",Données1!H101,Données1!H85) -> 0 | AY68: =IF(Hypothèses!$J$24="SV",Données1!I101,Données1!I85) -> 0 | AZ68: =IF(Hypothèses!$J$24="SV",Données1!J101,Données1!J85) -> 0 | BA68: =IF(Hypothèses!$J$24="SV",Données1!K101,Données1!K85) -> 0 | BB68: =IF(Hypothèses!$J$24="SV",Données1!L101,Données1!L85) -> 0 | BC68: =IF(Hypothèses!$J$24="SV",Données1!M101,Données1!M85) -> 0 | BD68: =IF(Hypothèses!$J$24="SV",Données1!N101,Données1!N85) -> 0 | BE68: =IF(Hypothèses!$J$24="SV",Données1!O101,Données1!O85) -> 0 | BF68: =IF(Hypothèses!$J$24="SV",Données1!P101,Données1!P85) -> 0 | BG68: =IF(Hypothèses!$J$24="SV",Données1!Q101,Données1!Q85) -> 0 | BH68: =IF(Hypothèses!$J$24="SV",Données1!R101,Données1!R85) -> 0 | BI68: =IF(Hypothèses!$J$24="SV",Données1!S101,Données1!S85) -> 0 | BJ68: =IF(Hypothèses!$J$24="SV",Données1!T101,Données1!T85) -> 0 | BK68: =IF(Hypothèses!$J$24="SV",Données1!U101,Données1!U85) -> 0 | BL68: =IF(Hypothèses!$J$24="SV",Données1!V101,Données1!V85) -> 0 | BM68: =IF(Hypothèses!$J$24="SV",Données1!W101,Données1!W85) -> 0 | BN68: =IF(Hypothèses!$J$24="SV",Données1!X101,Données1!X85) -> 0 | BO68: =IF(Hypothèses!$J$24="SV",Données1!Y101,Données1!Y85) -> 0 | BP68: =IF(Hypothèses!$J$24="SV",Données1!Z101,Données1!Z85) -> 0 | BQ68: =IF(Hypothèses!$J$24="SV",Données1!AA101,Données1!AA85) -> 0 | BR68: =IF(Hypothèses!$J$24="SV",Données1!AB101,Données1!AB85) -> 0 | BS68: =IF(Hypothèses!$J$24="SV",Données1!AC101,Données1!AC85) -> 0 | BT68: =IF(Hypothèses!$J$24="SV",Données1!AD101,Données1!AD85) -> 0 | BU68: =IF(Hypothèses!$J$24="SV",Données1!AE101,Données1!AE85) -> 0 | BV68: =IF(Hypothèses!$J$24="SV",Données1!AF101,Données1!AF85) -> 0 | BW68: =IF(Hypothèses!$J$24="SV",Données1!AG101,Données1!AG85) -> 0 | BX68: =IF(Hypothèses!$J$24="SV",Données1!AH101,Données1!AH85) -> 0 | BY68: =IF(Hypothèses!$J$24="SV",Données1!AI101,Données1!AI85) -> 0 | BZ68: =IF(Hypothèses!$J$24="SV",Données1!AJ101,Données1!AJ85) -> 0 | CA68: =IF(Hypothèses!$J$24="SV",Données1!AK101,Données1!AK85) -> 0 | CB68: =IF(Hypothèses!$J$24="SV",Données1!AL101,Données1!AL85) -> 0 | CC68: =IF(Hypothèses!$J$24="SV",Données1!AM101,Données1!AM85) -> 0 | CD68: =IF(Hypothèses!$J$24="SV",Données1!AN101,Données1!AN85) -> 0 | CE68: =IF(Hypothèses!$J$24="SV",Données1!AO101,Données1!AO85) -> 0 | CF68: =IF(Hypothèses!$J$24="SV",Données1!AP101,Données1!AP85) -> 0
B69: Février | C69: -2.47533954 | D69: 4.305793994 | E69: -1.640066459 | F69: 0.7012263985 | G69: -0.03305070754 | H69: -2.582952392 | I69: 4.54027025 | J69: -1.81937305 | K69: 0.7303565855 | L69: -0.03536155438 | M69: -2.531721967 | N69: 4.416645811 | O69: -1.706402563 | P69: 0.717152439 | Q69: -0.0340520751 | R69: -2.531721967 | S69: 4.416645811 | T69: -1.706402563 | U69: 0.717152439 | V69: -0.0340520751 | W69: -2.673818433 | X69: 4.754115295 | Y69: -2.007006598 | Z69: 0.7544846174 | AA69: -0.0376053327 | AB69: -2.5177469 | AC69: 4.390700124 | AD69: -1.693424342 | AE69: 0.7132106626 | AF69: -0.03383408049 | AG69: -2.5177469 | AH69: 4.390700124 | AI69: -1.693424342 | AJ69: 0.7132106626 | AK69: -0.03383408049 | AL69: -2.570454289 | AM69: 4.512841864 | AN69: -1.798104444 | AO69: 0.7269717102 | AP69: -0.03508925836 | AR69: Février | AS69: =IF(Hypothèses!$J$24="SV",Données1!C102,Données1!C86) -> 0 | AT69: =IF(Hypothèses!$J$24="SV",Données1!D102,Données1!D86) -> 0 | AU69: =IF(Hypothèses!$J$24="SV",Données1!E102,Données1!E86) -> 0 | AV69: =IF(Hypothèses!$J$24="SV",Données1!F102,Données1!F86) -> 0 | AW69: =IF(Hypothèses!$J$24="SV",Données1!G102,Données1!G86) -> 0 | AX69: =IF(Hypothèses!$J$24="SV",Données1!H102,Données1!H86) -> 0 | AY69: =IF(Hypothèses!$J$24="SV",Données1!I102,Données1!I86) -> 0 | AZ69: =IF(Hypothèses!$J$24="SV",Données1!J102,Données1!J86) -> 0 | BA69: =IF(Hypothèses!$J$24="SV",Données1!K102,Données1!K86) -> 0 | BB69: =IF(Hypothèses!$J$24="SV",Données1!L102,Données1!L86) -> 0 | BC69: =IF(Hypothèses!$J$24="SV",Données1!M102,Données1!M86) -> 0 | BD69: =IF(Hypothèses!$J$24="SV",Données1!N102,Données1!N86) -> 0 | BE69: =IF(Hypothèses!$J$24="SV",Données1!O102,Données1!O86) -> 0 | BF69: =IF(Hypothèses!$J$24="SV",Données1!P102,Données1!P86) -> 0 | BG69: =IF(Hypothèses!$J$24="SV",Données1!Q102,Données1!Q86) -> 0 | BH69: =IF(Hypothèses!$J$24="SV",Données1!R102,Données1!R86) -> 0 | BI69: =IF(Hypothèses!$J$24="SV",Données1!S102,Données1!S86) -> 0 | BJ69: =IF(Hypothèses!$J$24="SV",Données1!T102,Données1!T86) -> 0 | BK69: =IF(Hypothèses!$J$24="SV",Données1!U102,Données1!U86) -> 0 | BL69: =IF(Hypothèses!$J$24="SV",Données1!V102,Données1!V86) -> 0 | BM69: =IF(Hypothèses!$J$24="SV",Données1!W102,Données1!W86) -> 0 | BN69: =IF(Hypothèses!$J$24="SV",Données1!X102,Données1!X86) -> 0 | BO69: =IF(Hypothèses!$J$24="SV",Données1!Y102,Données1!Y86) -> 0 | BP69: =IF(Hypothèses!$J$24="SV",Données1!Z102,Données1!Z86) -> 0 | BQ69: =IF(Hypothèses!$J$24="SV",Données1!AA102,Données1!AA86) -> 0 | BR69: =IF(Hypothèses!$J$24="SV",Données1!AB102,Données1!AB86) -> 0 | BS69: =IF(Hypothèses!$J$24="SV",Données1!AC102,Données1!AC86) -> 0 | BT69: =IF(Hypothèses!$J$24="SV",Données1!AD102,Données1!AD86) -> 0 | BU69: =IF(Hypothèses!$J$24="SV",Données1!AE102,Données1!AE86) -> 0 | BV69: =IF(Hypothèses!$J$24="SV",Données1!AF102,Données1!AF86) -> 0 | BW69: =IF(Hypothèses!$J$24="SV",Données1!AG102,Données1!AG86) -> 0 | BX69: =IF(Hypothèses!$J$24="SV",Données1!AH102,Données1!AH86) -> 0 | BY69: =IF(Hypothèses!$J$24="SV",Données1!AI102,Données1!AI86) -> 0 | BZ69: =IF(Hypothèses!$J$24="SV",Données1!AJ102,Données1!AJ86) -> 0 | CA69: =IF(Hypothèses!$J$24="SV",Données1!AK102,Données1!AK86) -> 0 | CB69: =IF(Hypothèses!$J$24="SV",Données1!AL102,Données1!AL86) -> 0 | CC69: =IF(Hypothèses!$J$24="SV",Données1!AM102,Données1!AM86) -> 0 | CD69: =IF(Hypothèses!$J$24="SV",Données1!AN102,Données1!AN86) -> 0 | CE69: =IF(Hypothèses!$J$24="SV",Données1!AO102,Données1!AO86) -> 0 | CF69: =IF(Hypothèses!$J$24="SV",Données1!AP102,Données1!AP86) -> 0
B70: Mars | C70: -2.439167806 | D70: 4.245242863 | E70: -1.621489691 | F70: 0.6909450914 | G70: -0.03261282354 | H70: -2.605671539 | I70: 4.577390662 | J70: -1.82885818 | K70: 0.7370007611 | L70: -0.0356259698 | M70: -2.61063476 | N70: 4.584884268 | O70: -1.829533122 | P70: 0.7384553886 | Q70: -0.03567179097 | R70: -2.61063476 | S70: 4.584884268 | T70: -1.829533122 | U70: 0.7384553886 | V70: -0.03567179097 | W70: -2.436807361 | X70: 4.261895659 | Y70: -1.667263041 | Z70: 0.6898044118 | AA70: -0.03296975982 | AB70: -2.609916336 | AC70: 4.583358215 | AD70: -1.828425318 | AE70: 0.7382606476 | AF70: -0.03565712365 | AG70: -2.609916336 | AH70: 4.583358215 | AI70: -1.828425318 | AJ70: 0.7382606476 | AK70: -0.03565712365 | AL70: -2.60374304 | AM70: 4.572470188 | AN70: -1.823998253 | AO70: 0.7365080461 | AP70: -0.03557161656 | AR70: Mars | AS70: =IF(Hypothèses!$J$24="SV",Données1!C103,Données1!C87) -> 0 | AT70: =IF(Hypothèses!$J$24="SV",Données1!D103,Données1!D87) -> 0 | AU70: =IF(Hypothèses!$J$24="SV",Données1!E103,Données1!E87) -> 0 | AV70: =IF(Hypothèses!$J$24="SV",Données1!F103,Données1!F87) -> 0 | AW70: =IF(Hypothèses!$J$24="SV",Données1!G103,Données1!G87) -> 0 | AX70: =IF(Hypothèses!$J$24="SV",Données1!H103,Données1!H87) -> 0 | AY70: =IF(Hypothèses!$J$24="SV",Données1!I103,Données1!I87) -> 0 | AZ70: =IF(Hypothèses!$J$24="SV",Données1!J103,Données1!J87) -> 0 | BA70: =IF(Hypothèses!$J$24="SV",Données1!K103,Données1!K87) -> 0 | BB70: =IF(Hypothèses!$J$24="SV",Données1!L103,Données1!L87) -> 0 | BC70: =IF(Hypothèses!$J$24="SV",Données1!M103,Données1!M87) -> 0 | BD70: =IF(Hypothèses!$J$24="SV",Données1!N103,Données1!N87) -> 0 | BE70: =IF(Hypothèses!$J$24="SV",Données1!O103,Données1!O87) -> 0 | BF70: =IF(Hypothèses!$J$24="SV",Données1!P103,Données1!P87) -> 0 | BG70: =IF(Hypothèses!$J$24="SV",Données1!Q103,Données1!Q87) -> 0 | BH70: =IF(Hypothèses!$J$24="SV",Données1!R103,Données1!R87) -> 0 | BI70: =IF(Hypothèses!$J$24="SV",Données1!S103,Données1!S87) -> 0 | BJ70: =IF(Hypothèses!$J$24="SV",Données1!T103,Données1!T87) -> 0 | BK70: =IF(Hypothèses!$J$24="SV",Données1!U103,Données1!U87) -> 0 | BL70: =IF(Hypothèses!$J$24="SV",Données1!V103,Données1!V87) -> 0 | BM70: =IF(Hypothèses!$J$24="SV",Données1!W103,Données1!W87) -> 0 | BN70: =IF(Hypothèses!$J$24="SV",Données1!X103,Données1!X87) -> 0 | BO70: =IF(Hypothèses!$J$24="SV",Données1!Y103,Données1!Y87) -> 0 | BP70: =IF(Hypothèses!$J$24="SV",Données1!Z103,Données1!Z87) -> 0 | BQ70: =IF(Hypothèses!$J$24="SV",Données1!AA103,Données1!AA87) -> 0 | BR70: =IF(Hypothèses!$J$24="SV",Données1!AB103,Données1!AB87) -> 0 | BS70: =IF(Hypothèses!$J$24="SV",Données1!AC103,Données1!AC87) -> 0 | BT70: =IF(Hypothèses!$J$24="SV",Données1!AD103,Données1!AD87) -> 0 | BU70: =IF(Hypothèses!$J$24="SV",Données1!AE103,Données1!AE87) -> 0 | BV70: =IF(Hypothèses!$J$24="SV",Données1!AF103,Données1!AF87) -> 0 | BW70: =IF(Hypothèses!$J$24="SV",Données1!AG103,Données1!AG87) -> 0 | BX70: =IF(Hypothèses!$J$24="SV",Données1!AH103,Données1!AH87) -> 0 | BY70: =IF(Hypothèses!$J$24="SV",Données1!AI103,Données1!AI87) -> 0 | BZ70: =IF(Hypothèses!$J$24="SV",Données1!AJ103,Données1!AJ87) -> 0 | CA70: =IF(Hypothèses!$J$24="SV",Données1!AK103,Données1!AK87) -> 0 | CB70: =IF(Hypothèses!$J$24="SV",Données1!AL103,Données1!AL87) -> 0 | CC70: =IF(Hypothèses!$J$24="SV",Données1!AM103,Données1!AM87) -> 0 | CD70: =IF(Hypothèses!$J$24="SV",Données1!AN103,Données1!AN87) -> 0 | CE70: =IF(Hypothèses!$J$24="SV",Données1!AO103,Données1!AO87) -> 0 | CF70: =IF(Hypothèses!$J$24="SV",Données1!AP103,Données1!AP87) -> 0
B71: Avril | C71: -2.431233818 | D71: 4.271550048 | E71: -1.707701276 | F71: 0.6877737462 | G71: -0.03325696482 | H71: -2.567158063 | I71: 4.495145136 | J71: -1.768461775 | K71: 0.7265926951 | L71: -0.0348323576 | M71: -2.606846061 | N71: 4.583919918 | O71: -1.839948833 | P71: 0.737101284 | Q71: -0.03572054919 | R71: -2.606846061 | S71: 4.583919918 | T71: -1.839948833 | U71: 0.737101284 | V71: -0.03572054919 | W71: -2.468398614 | X71: 4.293836132 | Y71: -1.635730682 | Z71: 0.699258848 | AA71: -0.03296024967 | AB71: -2.616009516 | AC71: 4.601824591 | AD71: -1.850500859 | AE71: 0.7396530625 | AF71: -0.03587969417 | AG71: -2.616009516 | AH71: 4.601824591 | AI71: -1.850500859 | AJ71: 0.7396530625 | AK71: -0.03587969417 | AL71: -2.56691997 | AM71: 4.493923981 | AN71: -1.766443128 | AO71: 0.7265762573 | AP71: -0.03481534476 | AR71: Avril | AS71: =IF(Hypothèses!$J$24="SV",Données1!C104,Données1!C88) -> 0 | AT71: =IF(Hypothèses!$J$24="SV",Données1!D104,Données1!D88) -> 0 | AU71: =IF(Hypothèses!$J$24="SV",Données1!E104,Données1!E88) -> 0 | AV71: =IF(Hypothèses!$J$24="SV",Données1!F104,Données1!F88) -> 0 | AW71: =IF(Hypothèses!$J$24="SV",Données1!G104,Données1!G88) -> 0 | AX71: =IF(Hypothèses!$J$24="SV",Données1!H104,Données1!H88) -> 0 | AY71: =IF(Hypothèses!$J$24="SV",Données1!I104,Données1!I88) -> 0 | AZ71: =IF(Hypothèses!$J$24="SV",Données1!J104,Données1!J88) -> 0 | BA71: =IF(Hypothèses!$J$24="SV",Données1!K104,Données1!K88) -> 0 | BB71: =IF(Hypothèses!$J$24="SV",Données1!L104,Données1!L88) -> 0 | BC71: =IF(Hypothèses!$J$24="SV",Données1!M104,Données1!M88) -> 0 | BD71: =IF(Hypothèses!$J$24="SV",Données1!N104,Données1!N88) -> 0 | BE71: =IF(Hypothèses!$J$24="SV",Données1!O104,Données1!O88) -> 0 | BF71: =IF(Hypothèses!$J$24="SV",Données1!P104,Données1!P88) -> 0 | BG71: =IF(Hypothèses!$J$24="SV",Données1!Q104,Données1!Q88) -> 0 | BH71: =IF(Hypothèses!$J$24="SV",Données1!R104,Données1!R88) -> 0 | BI71: =IF(Hypothèses!$J$24="SV",Données1!S104,Données1!S88) -> 0 | BJ71: =IF(Hypothèses!$J$24="SV",Données1!T104,Données1!T88) -> 0 | BK71: =IF(Hypothèses!$J$24="SV",Données1!U104,Données1!U88) -> 0 | BL71: =IF(Hypothèses!$J$24="SV",Données1!V104,Données1!V88) -> 0 | BM71: =IF(Hypothèses!$J$24="SV",Données1!W104,Données1!W88) -> 0 | BN71: =IF(Hypothèses!$J$24="SV",Données1!X104,Données1!X88) -> 0 | BO71: =IF(Hypothèses!$J$24="SV",Données1!Y104,Données1!Y88) -> 0 | BP71: =IF(Hypothèses!$J$24="SV",Données1!Z104,Données1!Z88) -> 0 | BQ71: =IF(Hypothèses!$J$24="SV",Données1!AA104,Données1!AA88) -> 0 | BR71: =IF(Hypothèses!$J$24="SV",Données1!AB104,Données1!AB88) -> 0 | BS71: =IF(Hypothèses!$J$24="SV",Données1!AC104,Données1!AC88) -> 0 | BT71: =IF(Hypothèses!$J$24="SV",Données1!AD104,Données1!AD88) -> 0 | BU71: =IF(Hypothèses!$J$24="SV",Données1!AE104,Données1!AE88) -> 0 | BV71: =IF(Hypothèses!$J$24="SV",Données1!AF104,Données1!AF88) -> 0 | BW71: =IF(Hypothèses!$J$24="SV",Données1!AG104,Données1!AG88) -> 0 | BX71: =IF(Hypothèses!$J$24="SV",Données1!AH104,Données1!AH88) -> 0 | BY71: =IF(Hypothèses!$J$24="SV",Données1!AI104,Données1!AI88) -> 0 | BZ71: =IF(Hypothèses!$J$24="SV",Données1!AJ104,Données1!AJ88) -> 0 | CA71: =IF(Hypothèses!$J$24="SV",Données1!AK104,Données1!AK88) -> 0 | CB71: =IF(Hypothèses!$J$24="SV",Données1!AL104,Données1!AL88) -> 0 | CC71: =IF(Hypothèses!$J$24="SV",Données1!AM104,Données1!AM88) -> 0 | CD71: =IF(Hypothèses!$J$24="SV",Données1!AN104,Données1!AN88) -> 0 | CE71: =IF(Hypothèses!$J$24="SV",Données1!AO104,Données1!AO88) -> 0 | CF71: =IF(Hypothèses!$J$24="SV",Données1!AP104,Données1!AP88) -> 0
B72: Mai | C72: -2.73470675 | D72: 4.89636809 | E72: -2.13034432 | F72: 0.7707022273 | G72: -0.039090366 | H72: -2.531345917 | I72: 4.417426153 | J72: -1.709407787 | K72: 0.7170397517 | L72: -0.03407492368 | M72: -2.615743548 | N72: 4.617739012 | O72: -1.887771703 | P72: 0.7390447592 | Q72: -0.03617637165 | R72: -2.615743548 | S72: 4.617739012 | T72: -1.887771703 | U72: 0.7390447592 | V72: -0.03617637165 | W72: -2.47533954 | X72: 4.305793994 | Y72: -1.640066459 | Z72: 0.7012263985 | AA72: -0.03305070754 | AB72: -2.613829412 | AC72: 4.613023795 | AD72: -1.883340561 | AE72: 0.7385390713 | AF72: -0.03612508136 | AG72: -2.613829412 | AH72: 4.613023795 | AI72: -1.883340561 | AJ72: 0.7385390713 | AK72: -0.03612508136 | AL72: -2.515281638 | AM72: 4.384517196 | AN72: -1.687427437 | AO72: 0.7126233894 | AP72: -0.03376834927 | AR72: Mai | AS72: =IF(Hypothèses!$J$24="SV",Données1!C105,Données1!C89) -> 0 | AT72: =IF(Hypothèses!$J$24="SV",Données1!D105,Données1!D89) -> 0 | AU72: =IF(Hypothèses!$J$24="SV",Données1!E105,Données1!E89) -> 0 | AV72: =IF(Hypothèses!$J$24="SV",Données1!F105,Données1!F89) -> 0 | AW72: =IF(Hypothèses!$J$24="SV",Données1!G105,Données1!G89) -> 0 | AX72: =IF(Hypothèses!$J$24="SV",Données1!H105,Données1!H89) -> 0 | AY72: =IF(Hypothèses!$J$24="SV",Données1!I105,Données1!I89) -> 0 | AZ72: =IF(Hypothèses!$J$24="SV",Données1!J105,Données1!J89) -> 0 | BA72: =IF(Hypothèses!$J$24="SV",Données1!K105,Données1!K89) -> 0 | BB72: =IF(Hypothèses!$J$24="SV",Données1!L105,Données1!L89) -> 0 | BC72: =IF(Hypothèses!$J$24="SV",Données1!M105,Données1!M89) -> 0 | BD72: =IF(Hypothèses!$J$24="SV",Données1!N105,Données1!N89) -> 0 | BE72: =IF(Hypothèses!$J$24="SV",Données1!O105,Données1!O89) -> 0 | BF72: =IF(Hypothèses!$J$24="SV",Données1!P105,Données1!P89) -> 0 | BG72: =IF(Hypothèses!$J$24="SV",Données1!Q105,Données1!Q89) -> 0 | BH72: =IF(Hypothèses!$J$24="SV",Données1!R105,Données1!R89) -> 0 | BI72: =IF(Hypothèses!$J$24="SV",Données1!S105,Données1!S89) -> 0 | BJ72: =IF(Hypothèses!$J$24="SV",Données1!T105,Données1!T89) -> 0 | BK72: =IF(Hypothèses!$J$24="SV",Données1!U105,Données1!U89) -> 0 | BL72: =IF(Hypothèses!$J$24="SV",Données1!V105,Données1!V89) -> 0 | BM72: =IF(Hypothèses!$J$24="SV",Données1!W105,Données1!W89) -> 0 | BN72: =IF(Hypothèses!$J$24="SV",Données1!X105,Données1!X89) -> 0 | BO72: =IF(Hypothèses!$J$24="SV",Données1!Y105,Données1!Y89) -> 0 | BP72: =IF(Hypothèses!$J$24="SV",Données1!Z105,Données1!Z89) -> 0 | BQ72: =IF(Hypothèses!$J$24="SV",Données1!AA105,Données1!AA89) -> 0 | BR72: =IF(Hypothèses!$J$24="SV",Données1!AB105,Données1!AB89) -> 0 | BS72: =IF(Hypothèses!$J$24="SV",Données1!AC105,Données1!AC89) -> 0 | BT72: =IF(Hypothèses!$J$24="SV",Données1!AD105,Données1!AD89) -> 0 | BU72: =IF(Hypothèses!$J$24="SV",Données1!AE105,Données1!AE89) -> 0 | BV72: =IF(Hypothèses!$J$24="SV",Données1!AF105,Données1!AF89) -> 0 | BW72: =IF(Hypothèses!$J$24="SV",Données1!AG105,Données1!AG89) -> 0 | BX72: =IF(Hypothèses!$J$24="SV",Données1!AH105,Données1!AH89) -> 0 | BY72: =IF(Hypothèses!$J$24="SV",Données1!AI105,Données1!AI89) -> 0 | BZ72: =IF(Hypothèses!$J$24="SV",Données1!AJ105,Données1!AJ89) -> 0 | CA72: =IF(Hypothèses!$J$24="SV",Données1!AK105,Données1!AK89) -> 0 | CB72: =IF(Hypothèses!$J$24="SV",Données1!AL105,Données1!AL89) -> 0 | CC72: =IF(Hypothèses!$J$24="SV",Données1!AM105,Données1!AM89) -> 0 | CD72: =IF(Hypothèses!$J$24="SV",Données1!AN105,Données1!AN89) -> 0 | CE72: =IF(Hypothèses!$J$24="SV",Données1!AO105,Données1!AO89) -> 0 | CF72: =IF(Hypothèses!$J$24="SV",Données1!AP105,Données1!AP89) -> 0
B73: Juin | C73: -2.795981715 | D73: 4.995304665 | E73: -2.153583212 | F73: 0.7881006492 | G73: -0.03976016927 | H73: -2.493540039 | I73: 4.33787826 | J73: -1.652900973 | K73: 0.7066786178 | L73: -0.03331354395 | M73: -2.579487583 | N73: 4.546210778 | O73: -1.844408307 | P73: 0.7290384159 | Q73: -0.0355367327 | R73: -2.579487583 | S73: 4.546210778 | T73: -1.844408307 | U73: 0.7290384159 | V73: -0.0355367327 | W73: -2.47533954 | X73: 4.305793994 | Y73: -1.640066459 | Z73: 0.7012263985 | AA73: -0.03305070754 | AB73: -2.565188673 | AC73: 4.514320327 | AD73: -1.818903167 | AE73: 0.7251916911 | AF73: -0.03521621257 | AG73: -2.565188673 | AH73: 4.514320327 | AI73: -1.818903167 | AJ73: 0.7251916911 | AK73: -0.03521621257 | AL73: -2.494854405 | AM73: 4.342556841 | AN73: -1.659249357 | AO73: 0.7069612877 | AP73: -0.03337449052 | AR73: Juin | AS73: =IF(Hypothèses!$J$24="SV",Données1!C106,Données1!C90) -> 0 | AT73: =IF(Hypothèses!$J$24="SV",Données1!D106,Données1!D90) -> 0 | AU73: =IF(Hypothèses!$J$24="SV",Données1!E106,Données1!E90) -> 0 | AV73: =IF(Hypothèses!$J$24="SV",Données1!F106,Données1!F90) -> 0 | AW73: =IF(Hypothèses!$J$24="SV",Données1!G106,Données1!G90) -> 0 | AX73: =IF(Hypothèses!$J$24="SV",Données1!H106,Données1!H90) -> 0 | AY73: =IF(Hypothèses!$J$24="SV",Données1!I106,Données1!I90) -> 0 | AZ73: =IF(Hypothèses!$J$24="SV",Données1!J106,Données1!J90) -> 0 | BA73: =IF(Hypothèses!$J$24="SV",Données1!K106,Données1!K90) -> 0 | BB73: =IF(Hypothèses!$J$24="SV",Données1!L106,Données1!L90) -> 0 | BC73: =IF(Hypothèses!$J$24="SV",Données1!M106,Données1!M90) -> 0 | BD73: =IF(Hypothèses!$J$24="SV",Données1!N106,Données1!N90) -> 0 | BE73: =IF(Hypothèses!$J$24="SV",Données1!O106,Données1!O90) -> 0 | BF73: =IF(Hypothèses!$J$24="SV",Données1!P106,Données1!P90) -> 0 | BG73: =IF(Hypothèses!$J$24="SV",Données1!Q106,Données1!Q90) -> 0 | BH73: =IF(Hypothèses!$J$24="SV",Données1!R106,Données1!R90) -> 0 | BI73: =IF(Hypothèses!$J$24="SV",Données1!S106,Données1!S90) -> 0 | BJ73: =IF(Hypothèses!$J$24="SV",Données1!T106,Données1!T90) -> 0 | BK73: =IF(Hypothèses!$J$24="SV",Données1!U106,Données1!U90) -> 0 | BL73: =IF(Hypothèses!$J$24="SV",Données1!V106,Données1!V90) -> 0 | BM73: =IF(Hypothèses!$J$24="SV",Données1!W106,Données1!W90) -> 0 | BN73: =IF(Hypothèses!$J$24="SV",Données1!X106,Données1!X90) -> 0 | BO73: =IF(Hypothèses!$J$24="SV",Données1!Y106,Données1!Y90) -> 0 | BP73: =IF(Hypothèses!$J$24="SV",Données1!Z106,Données1!Z90) -> 0 | BQ73: =IF(Hypothèses!$J$24="SV",Données1!AA106,Données1!AA90) -> 0 | BR73: =IF(Hypothèses!$J$24="SV",Données1!AB106,Données1!AB90) -> 0 | BS73: =IF(Hypothèses!$J$24="SV",Données1!AC106,Données1!AC90) -> 0 | BT73: =IF(Hypothèses!$J$24="SV",Données1!AD106,Données1!AD90) -> 0 | BU73: =IF(Hypothèses!$J$24="SV",Données1!AE106,Données1!AE90) -> 0 | BV73: =IF(Hypothèses!$J$24="SV",Données1!AF106,Données1!AF90) -> 0 | BW73: =IF(Hypothèses!$J$24="SV",Données1!AG106,Données1!AG90) -> 0 | BX73: =IF(Hypothèses!$J$24="SV",Données1!AH106,Données1!AH90) -> 0 | BY73: =IF(Hypothèses!$J$24="SV",Données1!AI106,Données1!AI90) -> 0 | BZ73: =IF(Hypothèses!$J$24="SV",Données1!AJ106,Données1!AJ90) -> 0 | CA73: =IF(Hypothèses!$J$24="SV",Données1!AK106,Données1!AK90) -> 0 | CB73: =IF(Hypothèses!$J$24="SV",Données1!AL106,Données1!AL90) -> 0 | CC73: =IF(Hypothèses!$J$24="SV",Données1!AM106,Données1!AM90) -> 0 | CD73: =IF(Hypothèses!$J$24="SV",Données1!AN106,Données1!AN90) -> 0 | CE73: =IF(Hypothèses!$J$24="SV",Données1!AO106,Données1!AO90) -> 0 | CF73: =IF(Hypothèses!$J$24="SV",Données1!AP106,Données1!AP90) -> 0
B74: Juillet | C74: -2.784535594 | D74: 4.991577124 | E74: -2.182904127 | F74: 0.784486472 | G74: -0.03991001982 | H74: -2.521847463 | I74: 4.398560615 | J74: -1.697767693 | K74: 0.7144076957 | L74: -0.03390446348 | M74: -2.610735773 | N74: 4.611106721 | O74: -1.889195881 | P74: 0.7375754486 | Q74: -0.03614827172 | R74: -2.610735773 | S74: 4.611106721 | T74: -1.889195881 | U74: 0.7375754486 | V74: -0.03614827172 | W74: -2.47533954 | X74: 4.305793994 | Y74: -1.640066459 | Z74: 0.7012263985 | AA74: -0.03305070754 | AB74: -2.606980259 | AC74: 4.602686763 | AD74: -1.882397955 | AE74: 0.7365637812 | AF74: -0.03606317186 | AG74: -2.606980259 | AH74: 4.602686763 | AI74: -1.882397955 | AJ74: 0.7365637812 | AK74: -0.03606317186 | AL74: -2.520191059 | AM74: 4.395638274 | AN74: -1.696574099 | AO74: 0.7139433154 | AP74: -0.03388173086 | AR74: Juillet | AS74: =IF(Hypothèses!$J$24="SV",Données1!C107,Données1!C91) -> 0 | AT74: =IF(Hypothèses!$J$24="SV",Données1!D107,Données1!D91) -> 0 | AU74: =IF(Hypothèses!$J$24="SV",Données1!E107,Données1!E91) -> 0 | AV74: =IF(Hypothèses!$J$24="SV",Données1!F107,Données1!F91) -> 0 | AW74: =IF(Hypothèses!$J$24="SV",Données1!G107,Données1!G91) -> 0 | AX74: =IF(Hypothèses!$J$24="SV",Données1!H107,Données1!H91) -> 0 | AY74: =IF(Hypothèses!$J$24="SV",Données1!I107,Données1!I91) -> 0 | AZ74: =IF(Hypothèses!$J$24="SV",Données1!J107,Données1!J91) -> 0 | BA74: =IF(Hypothèses!$J$24="SV",Données1!K107,Données1!K91) -> 0 | BB74: =IF(Hypothèses!$J$24="SV",Données1!L107,Données1!L91) -> 0 | BC74: =IF(Hypothèses!$J$24="SV",Données1!M107,Données1!M91) -> 0 | BD74: =IF(Hypothèses!$J$24="SV",Données1!N107,Données1!N91) -> 0 | BE74: =IF(Hypothèses!$J$24="SV",Données1!O107,Données1!O91) -> 0 | BF74: =IF(Hypothèses!$J$24="SV",Données1!P107,Données1!P91) -> 0 | BG74: =IF(Hypothèses!$J$24="SV",Données1!Q107,Données1!Q91) -> 0 | BH74: =IF(Hypothèses!$J$24="SV",Données1!R107,Données1!R91) -> 0 | BI74: =IF(Hypothèses!$J$24="SV",Données1!S107,Données1!S91) -> 0 | BJ74: =IF(Hypothèses!$J$24="SV",Données1!T107,Données1!T91) -> 0 | BK74: =IF(Hypothèses!$J$24="SV",Données1!U107,Données1!U91) -> 0 | BL74: =IF(Hypothèses!$J$24="SV",Données1!V107,Données1!V91) -> 0 | BM74: =IF(Hypothèses!$J$24="SV",Données1!W107,Données1!W91) -> 0 | BN74: =IF(Hypothèses!$J$24="SV",Données1!X107,Données1!X91) -> 0 | BO74: =IF(Hypothèses!$J$24="SV",Données1!Y107,Données1!Y91) -> 0 | BP74: =IF(Hypothèses!$J$24="SV",Données1!Z107,Données1!Z91) -> 0 | BQ74: =IF(Hypothèses!$J$24="SV",Données1!AA107,Données1!AA91) -> 0 | BR74: =IF(Hypothèses!$J$24="SV",Données1!AB107,Données1!AB91) -> 0 | BS74: =IF(Hypothèses!$J$24="SV",Données1!AC107,Données1!AC91) -> 0 | BT74: =IF(Hypothèses!$J$24="SV",Données1!AD107,Données1!AD91) -> 0 | BU74: =IF(Hypothèses!$J$24="SV",Données1!AE107,Données1!AE91) -> 0 | BV74: =IF(Hypothèses!$J$24="SV",Données1!AF107,Données1!AF91) -> 0 | BW74: =IF(Hypothèses!$J$24="SV",Données1!AG107,Données1!AG91) -> 0 | BX74: =IF(Hypothèses!$J$24="SV",Données1!AH107,Données1!AH91) -> 0 | BY74: =IF(Hypothèses!$J$24="SV",Données1!AI107,Données1!AI91) -> 0 | BZ74: =IF(Hypothèses!$J$24="SV",Données1!AJ107,Données1!AJ91) -> 0 | CA74: =IF(Hypothèses!$J$24="SV",Données1!AK107,Données1!AK91) -> 0 | CB74: =IF(Hypothèses!$J$24="SV",Données1!AL107,Données1!AL91) -> 0 | CC74: =IF(Hypothèses!$J$24="SV",Données1!AM107,Données1!AM91) -> 0 | CD74: =IF(Hypothèses!$J$24="SV",Données1!AN107,Données1!AN91) -> 0 | CE74: =IF(Hypothèses!$J$24="SV",Données1!AO107,Données1!AO91) -> 0 | CF74: =IF(Hypothèses!$J$24="SV",Données1!AP107,Données1!AP91) -> 0
B75: Août | C75: -2.529698289 | D75: 4.506550528 | E75: -1.918436925 | F75: 0.7139277844 | G75: -0.03575283637 | H75: -2.566430447 | I75: 4.490944512 | J75: -1.761183698 | K75: 0.7266166041 | L75: -0.03477405788 | M75: -2.654551679 | N75: 4.691499518 | O75: -1.927762221 | P75: 0.7498728942 | Q75: -0.03681067154 | R75: -2.654551679 | S75: 4.691499518 | T75: -1.927762221 | U75: 0.7498728942 | V75: -0.03681067154 | W75: -2.47533954 | X75: 4.305793994 | Y75: -1.640066459 | Z75: 0.7012263985 | AA75: -0.03305070754 | AB75: -2.638910458 | AC75: 4.657370958 | AD75: -1.901590721 | AE75: 0.7456401579 | AF75: -0.03647390254 | AG75: -2.638910458 | AH75: 4.657370958 | AI75: -1.901590721 | AJ75: 0.7456401579 | AK75: -0.03647390254 | AL75: -2.565013913 | AM75: 4.490074244 | AN75: -1.763903107 | AO75: 0.7261417345 | AP75: -0.03478351869 | AR75: Août | AS75: =IF(Hypothèses!$J$24="SV",Données1!C108,Données1!C92) -> 0 | AT75: =IF(Hypothèses!$J$24="SV",Données1!D108,Données1!D92) -> 0 | AU75: =IF(Hypothèses!$J$24="SV",Données1!E108,Données1!E92) -> 0 | AV75: =IF(Hypothèses!$J$24="SV",Données1!F108,Données1!F92) -> 0 | AW75: =IF(Hypothèses!$J$24="SV",Données1!G108,Données1!G92) -> 0 | AX75: =IF(Hypothèses!$J$24="SV",Données1!H108,Données1!H92) -> 0 | AY75: =IF(Hypothèses!$J$24="SV",Données1!I108,Données1!I92) -> 0 | AZ75: =IF(Hypothèses!$J$24="SV",Données1!J108,Données1!J92) -> 0 | BA75: =IF(Hypothèses!$J$24="SV",Données1!K108,Données1!K92) -> 0 | BB75: =IF(Hypothèses!$J$24="SV",Données1!L108,Données1!L92) -> 0 | BC75: =IF(Hypothèses!$J$24="SV",Données1!M108,Données1!M92) -> 0 | BD75: =IF(Hypothèses!$J$24="SV",Données1!N108,Données1!N92) -> 0 | BE75: =IF(Hypothèses!$J$24="SV",Données1!O108,Données1!O92) -> 0 | BF75: =IF(Hypothèses!$J$24="SV",Données1!P108,Données1!P92) -> 0 | BG75: =IF(Hypothèses!$J$24="SV",Données1!Q108,Données1!Q92) -> 0 | BH75: =IF(Hypothèses!$J$24="SV",Données1!R108,Données1!R92) -> 0 | BI75: =IF(Hypothèses!$J$24="SV",Données1!S108,Données1!S92) -> 0 | BJ75: =IF(Hypothèses!$J$24="SV",Données1!T108,Données1!T92) -> 0 | BK75: =IF(Hypothèses!$J$24="SV",Données1!U108,Données1!U92) -> 0 | BL75: =IF(Hypothèses!$J$24="SV",Données1!V108,Données1!V92) -> 0 | BM75: =IF(Hypothèses!$J$24="SV",Données1!W108,Données1!W92) -> 0 | BN75: =IF(Hypothèses!$J$24="SV",Données1!X108,Données1!X92) -> 0 | BO75: =IF(Hypothèses!$J$24="SV",Données1!Y108,Données1!Y92) -> 0 | BP75: =IF(Hypothèses!$J$24="SV",Données1!Z108,Données1!Z92) -> 0 | BQ75: =IF(Hypothèses!$J$24="SV",Données1!AA108,Données1!AA92) -> 0 | BR75: =IF(Hypothèses!$J$24="SV",Données1!AB108,Données1!AB92) -> 0 | BS75: =IF(Hypothèses!$J$24="SV",Données1!AC108,Données1!AC92) -> 0 | BT75: =IF(Hypothèses!$J$24="SV",Données1!AD108,Données1!AD92) -> 0 | BU75: =IF(Hypothèses!$J$24="SV",Données1!AE108,Données1!AE92) -> 0 | BV75: =IF(Hypothèses!$J$24="SV",Données1!AF108,Données1!AF92) -> 0 | BW75: =IF(Hypothèses!$J$24="SV",Données1!AG108,Données1!AG92) -> 0 | BX75: =IF(Hypothèses!$J$24="SV",Données1!AH108,Données1!AH92) -> 0 | BY75: =IF(Hypothèses!$J$24="SV",Données1!AI108,Données1!AI92) -> 0 | BZ75: =IF(Hypothèses!$J$24="SV",Données1!AJ108,Données1!AJ92) -> 0 | CA75: =IF(Hypothèses!$J$24="SV",Données1!AK108,Données1!AK92) -> 0 | CB75: =IF(Hypothèses!$J$24="SV",Données1!AL108,Données1!AL92) -> 0 | CC75: =IF(Hypothèses!$J$24="SV",Données1!AM108,Données1!AM92) -> 0 | CD75: =IF(Hypothèses!$J$24="SV",Données1!AN108,Données1!AN92) -> 0 | CE75: =IF(Hypothèses!$J$24="SV",Données1!AO108,Données1!AO92) -> 0 | CF75: =IF(Hypothèses!$J$24="SV",Données1!AP108,Données1!AP92) -> 0
B76: Septembre | C76: -2.360005923 | D76: 4.118424107 | E76: -1.593813464 | F76: 0.6683357657 | G76: -0.03176193911 | H76: -2.643342599 | I76: 4.655542381 | J76: -1.882607871 | K76: 0.7473798428 | L76: -0.03636496503 | M76: -2.664647863 | N76: 4.699138479 | O76: -1.91167268 | P76: 0.7531969208 | Q76: -0.0367690339 | R76: -2.664647863 | S76: 4.699138479 | T76: -1.91167268 | U76: 0.7531969208 | V76: -0.0367690339 | W76: -2.37800007 | X76: 4.165682018 | Y76: -1.642114741 | Z76: 0.6730858796 | AA76: -0.03230140635 | AB76: -2.656664546 | AC76: 4.682543374 | AD76: -1.900190447 | AE76: 0.7510236205 | AF76: -0.03661279567 | AG76: -2.656664546 | AH76: 4.682543374 | AI76: -1.900190447 | AJ76: 0.7510236205 | AK76: -0.03661279567 | AL76: -2.634525077 | AM76: 4.636921846 | AN76: -1.86925928 | AO76: 0.7449894912 | AP76: -0.03618708172 | AR76: Septembre | AS76: =IF(Hypothèses!$J$24="SV",Données1!C109,Données1!C93) -> 0 | AT76: =IF(Hypothèses!$J$24="SV",Données1!D109,Données1!D93) -> 0 | AU76: =IF(Hypothèses!$J$24="SV",Données1!E109,Données1!E93) -> 0 | AV76: =IF(Hypothèses!$J$24="SV",Données1!F109,Données1!F93) -> 0 | AW76: =IF(Hypothèses!$J$24="SV",Données1!G109,Données1!G93) -> 0 | AX76: =IF(Hypothèses!$J$24="SV",Données1!H109,Données1!H93) -> 0 | AY76: =IF(Hypothèses!$J$24="SV",Données1!I109,Données1!I93) -> 0 | AZ76: =IF(Hypothèses!$J$24="SV",Données1!J109,Données1!J93) -> 0 | BA76: =IF(Hypothèses!$J$24="SV",Données1!K109,Données1!K93) -> 0 | BB76: =IF(Hypothèses!$J$24="SV",Données1!L109,Données1!L93) -> 0 | BC76: =IF(Hypothèses!$J$24="SV",Données1!M109,Données1!M93) -> 0 | BD76: =IF(Hypothèses!$J$24="SV",Données1!N109,Données1!N93) -> 0 | BE76: =IF(Hypothèses!$J$24="SV",Données1!O109,Données1!O93) -> 0 | BF76: =IF(Hypothèses!$J$24="SV",Données1!P109,Données1!P93) -> 0 | BG76: =IF(Hypothèses!$J$24="SV",Données1!Q109,Données1!Q93) -> 0 | BH76: =IF(Hypothèses!$J$24="SV",Données1!R109,Données1!R93) -> 0 | BI76: =IF(Hypothèses!$J$24="SV",Données1!S109,Données1!S93) -> 0 | BJ76: =IF(Hypothèses!$J$24="SV",Données1!T109,Données1!T93) -> 0 | BK76: =IF(Hypothèses!$J$24="SV",Données1!U109,Données1!U93) -> 0 | BL76: =IF(Hypothèses!$J$24="SV",Données1!V109,Données1!V93) -> 0 | BM76: =IF(Hypothèses!$J$24="SV",Données1!W109,Données1!W93) -> 0 | BN76: =IF(Hypothèses!$J$24="SV",Données1!X109,Données1!X93) -> 0 | BO76: =IF(Hypothèses!$J$24="SV",Données1!Y109,Données1!Y93) -> 0 | BP76: =IF(Hypothèses!$J$24="SV",Données1!Z109,Données1!Z93) -> 0 | BQ76: =IF(Hypothèses!$J$24="SV",Données1!AA109,Données1!AA93) -> 0 | BR76: =IF(Hypothèses!$J$24="SV",Données1!AB109,Données1!AB93) -> 0 | BS76: =IF(Hypothèses!$J$24="SV",Données1!AC109,Données1!AC93) -> 0 | BT76: =IF(Hypothèses!$J$24="SV",Données1!AD109,Données1!AD93) -> 0 | BU76: =IF(Hypothèses!$J$24="SV",Données1!AE109,Données1!AE93) -> 0 | BV76: =IF(Hypothèses!$J$24="SV",Données1!AF109,Données1!AF93) -> 0 | BW76: =IF(Hypothèses!$J$24="SV",Données1!AG109,Données1!AG93) -> 0 | BX76: =IF(Hypothèses!$J$24="SV",Données1!AH109,Données1!AH93) -> 0 | BY76: =IF(Hypothèses!$J$24="SV",Données1!AI109,Données1!AI93) -> 0 | BZ76: =IF(Hypothèses!$J$24="SV",Données1!AJ109,Données1!AJ93) -> 0 | CA76: =IF(Hypothèses!$J$24="SV",Données1!AK109,Données1!AK93) -> 0 | CB76: =IF(Hypothèses!$J$24="SV",Données1!AL109,Données1!AL93) -> 0 | CC76: =IF(Hypothèses!$J$24="SV",Données1!AM109,Données1!AM93) -> 0 | CD76: =IF(Hypothèses!$J$24="SV",Données1!AN109,Données1!AN93) -> 0 | CE76: =IF(Hypothèses!$J$24="SV",Données1!AO109,Données1!AO93) -> 0 | CF76: =IF(Hypothèses!$J$24="SV",Données1!AP109,Données1!AP93) -> 0
B77: Octobre | C77: -2.47533954 | D77: 4.305793994 | E77: -1.640066459 | F77: 0.7012263985 | G77: -0.03305070754 | H77: -2.632337267 | I77: 4.643351376 | J77: -1.891308528 | K77: 0.7438855629 | L77: -0.03633964199 | M77: -2.591442924 | N77: 4.543818442 | O77: -1.799163198 | P77: 0.7334087964 | Q77: -0.03528015066 | R77: -2.591442924 | S77: 4.543818442 | T77: -1.799163198 | U77: 0.7334087964 | V77: -0.03528015066 | W77: -2.612447191 | X77: 4.668495175 | Y77: -2.014474146 | Z77: 0.7367174061 | AA77: -0.03718521007 | AB77: -2.567926191 | AC77: 4.491248221 | AD77: -1.756884758 | AE77: 0.7271708255 | AF77: -0.03475406143 | AG77: -2.567926191 | AH77: 4.491248221 | AI77: -1.756884758 | AJ77: 0.7271708255 | AK77: -0.03475406143 | AL77: -2.656233494 | AM77: 4.69200176 | AN77: -1.923316697 | AO77: 0.7504581848 | AP77: -0.03678986773 | AR77: Octobre | AS77: =IF(Hypothèses!$J$24="SV",Données1!C110,Données1!C94) -> 0 | AT77: =IF(Hypothèses!$J$24="SV",Données1!D110,Données1!D94) -> 0 | AU77: =IF(Hypothèses!$J$24="SV",Données1!E110,Données1!E94) -> 0 | AV77: =IF(Hypothèses!$J$24="SV",Données1!F110,Données1!F94) -> 0 | AW77: =IF(Hypothèses!$J$24="SV",Données1!G110,Données1!G94) -> 0 | AX77: =IF(Hypothèses!$J$24="SV",Données1!H110,Données1!H94) -> 0 | AY77: =IF(Hypothèses!$J$24="SV",Données1!I110,Données1!I94) -> 0 | AZ77: =IF(Hypothèses!$J$24="SV",Données1!J110,Données1!J94) -> 0 | BA77: =IF(Hypothèses!$J$24="SV",Données1!K110,Données1!K94) -> 0 | BB77: =IF(Hypothèses!$J$24="SV",Données1!L110,Données1!L94) -> 0 | BC77: =IF(Hypothèses!$J$24="SV",Données1!M110,Données1!M94) -> 0 | BD77: =IF(Hypothèses!$J$24="SV",Données1!N110,Données1!N94) -> 0 | BE77: =IF(Hypothèses!$J$24="SV",Données1!O110,Données1!O94) -> 0 | BF77: =IF(Hypothèses!$J$24="SV",Données1!P110,Données1!P94) -> 0 | BG77: =IF(Hypothèses!$J$24="SV",Données1!Q110,Données1!Q94) -> 0 | BH77: =IF(Hypothèses!$J$24="SV",Données1!R110,Données1!R94) -> 0 | BI77: =IF(Hypothèses!$J$24="SV",Données1!S110,Données1!S94) -> 0 | BJ77: =IF(Hypothèses!$J$24="SV",Données1!T110,Données1!T94) -> 0 | BK77: =IF(Hypothèses!$J$24="SV",Données1!U110,Données1!U94) -> 0 | BL77: =IF(Hypothèses!$J$24="SV",Données1!V110,Données1!V94) -> 0 | BM77: =IF(Hypothèses!$J$24="SV",Données1!W110,Données1!W94) -> 0 | BN77: =IF(Hypothèses!$J$24="SV",Données1!X110,Données1!X94) -> 0 | BO77: =IF(Hypothèses!$J$24="SV",Données1!Y110,Données1!Y94) -> 0 | BP77: =IF(Hypothèses!$J$24="SV",Données1!Z110,Données1!Z94) -> 0 | BQ77: =IF(Hypothèses!$J$24="SV",Données1!AA110,Données1!AA94) -> 0 | BR77: =IF(Hypothèses!$J$24="SV",Données1!AB110,Données1!AB94) -> 0 | BS77: =IF(Hypothèses!$J$24="SV",Données1!AC110,Données1!AC94) -> 0 | BT77: =IF(Hypothèses!$J$24="SV",Données1!AD110,Données1!AD94) -> 0 | BU77: =IF(Hypothèses!$J$24="SV",Données1!AE110,Données1!AE94) -> 0 | BV77: =IF(Hypothèses!$J$24="SV",Données1!AF110,Données1!AF94) -> 0 | BW77: =IF(Hypothèses!$J$24="SV",Données1!AG110,Données1!AG94) -> 0 | BX77: =IF(Hypothèses!$J$24="SV",Données1!AH110,Données1!AH94) -> 0 | BY77: =IF(Hypothèses!$J$24="SV",Données1!AI110,Données1!AI94) -> 0 | BZ77: =IF(Hypothèses!$J$24="SV",Données1!AJ110,Données1!AJ94) -> 0 | CA77: =IF(Hypothèses!$J$24="SV",Données1!AK110,Données1!AK94) -> 0 | CB77: =IF(Hypothèses!$J$24="SV",Données1!AL110,Données1!AL94) -> 0 | CC77: =IF(Hypothèses!$J$24="SV",Données1!AM110,Données1!AM94) -> 0 | CD77: =IF(Hypothèses!$J$24="SV",Données1!AN110,Données1!AN94) -> 0 | CE77: =IF(Hypothèses!$J$24="SV",Données1!AO110,Données1!AO94) -> 0 | CF77: =IF(Hypothèses!$J$24="SV",Données1!AP110,Données1!AP94) -> 0
B78: Novembre | C78: -2.47533954 | D78: 4.305793994 | E78: -1.640066459 | F78: 0.7012263985 | G78: -0.03305070754 | H78: -2.584578608 | I78: 4.5563122 | J78: -1.850623531 | K78: 0.7304500081 | L78: -0.03562792957 | M78: -2.508859474 | N78: 4.37028623 | O78: -1.676158277 | P78: 0.7109317405 | Q78: -0.03362759774 | R78: -2.508859474 | S78: 4.37028623 | T78: -1.676158277 | U78: 0.7109317405 | V78: -0.03362759774 | W78: -2.878023752 | X78: 5.156166643 | Y78: -2.24943588 | Z78: 0.8107676762 | AA78: -0.04118899655 | AB78: -2.474089479 | AC78: 4.295125387 | AD78: -1.619569502 | AE78: 0.7015383385 | AF78: -0.0328934187 | AG78: -2.474089479 | AH78: 4.295125387 | AI78: -1.619569502 | AJ78: 0.7015383385 | AK78: -0.0328934187 | AL78: -2.624786209 | AM78: 4.640637217 | AN78: -1.910130811 | AO78: 0.7414108773 | AP78: -0.03642999309 | AR78: Novembre | AS78: =IF(Hypothèses!$J$24="SV",Données1!C111,Données1!C95) -> 0 | AT78: =IF(Hypothèses!$J$24="SV",Données1!D111,Données1!D95) -> 0 | AU78: =IF(Hypothèses!$J$24="SV",Données1!E111,Données1!E95) -> 0 | AV78: =IF(Hypothèses!$J$24="SV",Données1!F111,Données1!F95) -> 0 | AW78: =IF(Hypothèses!$J$24="SV",Données1!G111,Données1!G95) -> 0 | AX78: =IF(Hypothèses!$J$24="SV",Données1!H111,Données1!H95) -> 0 | AY78: =IF(Hypothèses!$J$24="SV",Données1!I111,Données1!I95) -> 0 | AZ78: =IF(Hypothèses!$J$24="SV",Données1!J111,Données1!J95) -> 0 | BA78: =IF(Hypothèses!$J$24="SV",Données1!K111,Données1!K95) -> 0 | BB78: =IF(Hypothèses!$J$24="SV",Données1!L111,Données1!L95) -> 0 | BC78: =IF(Hypothèses!$J$24="SV",Données1!M111,Données1!M95) -> 0 | BD78: =IF(Hypothèses!$J$24="SV",Données1!N111,Données1!N95) -> 0 | BE78: =IF(Hypothèses!$J$24="SV",Données1!O111,Données1!O95) -> 0 | BF78: =IF(Hypothèses!$J$24="SV",Données1!P111,Données1!P95) -> 0 | BG78: =IF(Hypothèses!$J$24="SV",Données1!Q111,Données1!Q95) -> 0 | BH78: =IF(Hypothèses!$J$24="SV",Données1!R111,Données1!R95) -> 0 | BI78: =IF(Hypothèses!$J$24="SV",Données1!S111,Données1!S95) -> 0 | BJ78: =IF(Hypothèses!$J$24="SV",Données1!T111,Données1!T95) -> 0 | BK78: =IF(Hypothèses!$J$24="SV",Données1!U111,Données1!U95) -> 0 | BL78: =IF(Hypothèses!$J$24="SV",Données1!V111,Données1!V95) -> 0 | BM78: =IF(Hypothèses!$J$24="SV",Données1!W111,Données1!W95) -> 0 | BN78: =IF(Hypothèses!$J$24="SV",Données1!X111,Données1!X95) -> 0 | BO78: =IF(Hypothèses!$J$24="SV",Données1!Y111,Données1!Y95) -> 0 | BP78: =IF(Hypothèses!$J$24="SV",Données1!Z111,Données1!Z95) -> 0 | BQ78: =IF(Hypothèses!$J$24="SV",Données1!AA111,Données1!AA95) -> 0 | BR78: =IF(Hypothèses!$J$24="SV",Données1!AB111,Données1!AB95) -> 0 | BS78: =IF(Hypothèses!$J$24="SV",Données1!AC111,Données1!AC95) -> 0 | BT78: =IF(Hypothèses!$J$24="SV",Données1!AD111,Données1!AD95) -> 0 | BU78: =IF(Hypothèses!$J$24="SV",Données1!AE111,Données1!AE95) -> 0 | BV78: =IF(Hypothèses!$J$24="SV",Données1!AF111,Données1!AF95) -> 0 | BW78: =IF(Hypothèses!$J$24="SV",Données1!AG111,Données1!AG95) -> 0 | BX78: =IF(Hypothèses!$J$24="SV",Données1!AH111,Données1!AH95) -> 0 | BY78: =IF(Hypothèses!$J$24="SV",Données1!AI111,Données1!AI95) -> 0 | BZ78: =IF(Hypothèses!$J$24="SV",Données1!AJ111,Données1!AJ95) -> 0 | CA78: =IF(Hypothèses!$J$24="SV",Données1!AK111,Données1!AK95) -> 0 | CB78: =IF(Hypothèses!$J$24="SV",Données1!AL111,Données1!AL95) -> 0 | CC78: =IF(Hypothèses!$J$24="SV",Données1!AM111,Données1!AM95) -> 0 | CD78: =IF(Hypothèses!$J$24="SV",Données1!AN111,Données1!AN95) -> 0 | CE78: =IF(Hypothèses!$J$24="SV",Données1!AO111,Données1!AO95) -> 0 | CF78: =IF(Hypothèses!$J$24="SV",Données1!AP111,Données1!AP95) -> 0
B79: Décembre | C79: -2.47533954 | D79: 4.305793994 | E79: -1.640066459 | F79: 0.7012263985 | G79: -0.03305070754 | H79: -2.532460277 | I79: 4.446510768 | J79: -1.772352026 | K79: 0.7162591422 | L79: -0.03457919408 | M79: -2.456362694 | N79: 4.260841957 | O79: -1.60004661 | P79: 0.6964603719 | Q79: -0.03258698291 | R79: -2.456362694 | S79: 4.260841957 | T79: -1.60004661 | U79: 0.6964603719 | V79: -0.03258698291 | W79: -2.809842333 | X79: 4.992207603 | Y79: -2.100609698 | Z79: 0.7928273052 | AA79: -0.03944315701 | AB79: -2.457125949 | AC79: 4.262288928 | AD79: -1.600842811 | AE79: 0.6966447246 | AF79: -0.03259827524 | AG79: -2.457125949 | AH79: 4.262288928 | AI79: -1.600842811 | AJ79: 0.6966447246 | AK79: -0.03259827524 | AL79: -2.534567708 | AM79: 4.449945002 | AN79: -1.773222941 | AO79: 0.7168571041 | AP79: -0.03460283162 | AR79: Décembre | AS79: =IF(Hypothèses!$J$24="SV",Données1!C112,Données1!C96) -> 0 | AT79: =IF(Hypothèses!$J$24="SV",Données1!D112,Données1!D96) -> 0 | AU79: =IF(Hypothèses!$J$24="SV",Données1!E112,Données1!E96) -> 0 | AV79: =IF(Hypothèses!$J$24="SV",Données1!F112,Données1!F96) -> 0 | AW79: =IF(Hypothèses!$J$24="SV",Données1!G112,Données1!G96) -> 0 | AX79: =IF(Hypothèses!$J$24="SV",Données1!H112,Données1!H96) -> 0 | AY79: =IF(Hypothèses!$J$24="SV",Données1!I112,Données1!I96) -> 0 | AZ79: =IF(Hypothèses!$J$24="SV",Données1!J112,Données1!J96) -> 0 | BA79: =IF(Hypothèses!$J$24="SV",Données1!K112,Données1!K96) -> 0 | BB79: =IF(Hypothèses!$J$24="SV",Données1!L112,Données1!L96) -> 0 | BC79: =IF(Hypothèses!$J$24="SV",Données1!M112,Données1!M96) -> 0 | BD79: =IF(Hypothèses!$J$24="SV",Données1!N112,Données1!N96) -> 0 | BE79: =IF(Hypothèses!$J$24="SV",Données1!O112,Données1!O96) -> 0 | BF79: =IF(Hypothèses!$J$24="SV",Données1!P112,Données1!P96) -> 0 | BG79: =IF(Hypothèses!$J$24="SV",Données1!Q112,Données1!Q96) -> 0 | BH79: =IF(Hypothèses!$J$24="SV",Données1!R112,Données1!R96) -> 0 | BI79: =IF(Hypothèses!$J$24="SV",Données1!S112,Données1!S96) -> 0 | BJ79: =IF(Hypothèses!$J$24="SV",Données1!T112,Données1!T96) -> 0 | BK79: =IF(Hypothèses!$J$24="SV",Données1!U112,Données1!U96) -> 0 | BL79: =IF(Hypothèses!$J$24="SV",Données1!V112,Données1!V96) -> 0 | BM79: =IF(Hypothèses!$J$24="SV",Données1!W112,Données1!W96) -> 0 | BN79: =IF(Hypothèses!$J$24="SV",Données1!X112,Données1!X96) -> 0 | BO79: =IF(Hypothèses!$J$24="SV",Données1!Y112,Données1!Y96) -> 0 | BP79: =IF(Hypothèses!$J$24="SV",Données1!Z112,Données1!Z96) -> 0 | BQ79: =IF(Hypothèses!$J$24="SV",Données1!AA112,Données1!AA96) -> 0 | BR79: =IF(Hypothèses!$J$24="SV",Données1!AB112,Données1!AB96) -> 0 | BS79: =IF(Hypothèses!$J$24="SV",Données1!AC112,Données1!AC96) -> 0 | BT79: =IF(Hypothèses!$J$24="SV",Données1!AD112,Données1!AD96) -> 0 | BU79: =IF(Hypothèses!$J$24="SV",Données1!AE112,Données1!AE96) -> 0 | BV79: =IF(Hypothèses!$J$24="SV",Données1!AF112,Données1!AF96) -> 0 | BW79: =IF(Hypothèses!$J$24="SV",Données1!AG112,Données1!AG96) -> 0 | BX79: =IF(Hypothèses!$J$24="SV",Données1!AH112,Données1!AH96) -> 0 | BY79: =IF(Hypothèses!$J$24="SV",Données1!AI112,Données1!AI96) -> 0 | BZ79: =IF(Hypothèses!$J$24="SV",Données1!AJ112,Données1!AJ96) -> 0 | CA79: =IF(Hypothèses!$J$24="SV",Données1!AK112,Données1!AK96) -> 0 | CB79: =IF(Hypothèses!$J$24="SV",Données1!AL112,Données1!AL96) -> 0 | CC79: =IF(Hypothèses!$J$24="SV",Données1!AM112,Données1!AM96) -> 0 | CD79: =IF(Hypothèses!$J$24="SV",Données1!AN112,Données1!AN96) -> 0 | CE79: =IF(Hypothèses!$J$24="SV",Données1!AO112,Données1!AO96) -> 0 | CF79: =IF(Hypothèses!$J$24="SV",Données1!AP112,Données1!AP96) -> 0
AR82: Final | AS82: ORIENTATION
AS83: NORD | AX83: NORD-EST | BC83: EST | BH83: SUD-EST | BM83: SUD | BR83: SUD-OUEST | BW83: OUEST | CB83: NORD-OUEST
AS84: a | AT84: b | AU84: c | AV84: d | AW84: e | AX84: a | AY84: b | AZ84: c | BA84: d | BB84: e | BC84: a | BD84: b | BE84: c | BF84: d | BG84: e | BH84: a | BI84: b | BJ84: c | BK84: d | BL84: e | BM84: a | BN84: b | BO84: c | BP84: d | BQ84: e | BR84: a | BS84: b | BT84: c | BU84: d | BV84: e | BW84: a | BX84: b | BY84: c | BZ84: d | CA84: e | CB84: a | CC84: b | CD84: c | CE84: d | CF84: e
AR85: Janvier | AS85: =IF(Station=Données1!$J$5,AS52,AS68) -> -2.47533954 | AT85: =IF(Station=Données1!$J$5,AT52,AT68) -> 4.305793994 | AU85: =IF(Station=Données1!$J$5,AU52,AU68) -> -1.640066459 | AV85: =IF(Station=Données1!$J$5,AV52,AV68) -> 0.7012263985 | AW85: =IF(Station=Données1!$J$5,AW52,AW68) -> -0.03305070754 | AX85: =IF(Station=Données1!$J$5,AX52,AX68) -> -2.545155165 | AY85: =IF(Station=Données1!$J$5,AY52,AY68) -> 4.467502026 | AZ85: =IF(Station=Données1!$J$5,AZ52,AZ68) -> -1.778286653 | BA85: =IF(Station=Données1!$J$5,BA52,BA68) -> 0.7198615746 | BB85: =IF(Station=Données1!$J$5,BB52,BB68) -> -0.03472755316 | BC85: =IF(Station=Données1!$J$5,BC52,BC68) -> -2.479354477 | BD85: =IF(Station=Données1!$J$5,BD52,BD68) -> 4.308377697 | BE85: =IF(Station=Données1!$J$5,BE52,BE68) -> -1.632500479 | BF85: =IF(Station=Données1!$J$5,BF52,BF68) -> 0.7027677097 | BG85: =IF(Station=Données1!$J$5,BG52,BG68) -> -0.03303376723 | BH85: =IF(Station=Données1!$J$5,BH52,BH68) -> -2.479354477 | BI85: =IF(Station=Données1!$J$5,BI52,BI68) -> 4.308377697 | BJ85: =IF(Station=Données1!$J$5,BJ52,BJ68) -> -1.632500479 | BK85: =IF(Station=Données1!$J$5,BK52,BK68) -> 0.7027677097 | BL85: =IF(Station=Données1!$J$5,BL52,BL68) -> -0.03303376723 | BM85: =IF(Station=Données1!$J$5,BM52,BM68) -> -2.777785029 | BN85: =IF(Station=Données1!$J$5,BN52,BN68) -> 4.935337324 | BO85: =IF(Station=Données1!$J$5,BO52,BO68) -> -2.076849472 | BP85: =IF(Station=Données1!$J$5,BP52,BP68) -> 0.7837633561 | BQ85: =IF(Station=Données1!$J$5,BQ52,BQ68) -> -0.03899410464 | BR85: =IF(Station=Données1!$J$5,BR52,BR68) -> -2.46817316 | BS85: =IF(Station=Données1!$J$5,BS52,BS68) -> 4.287459605 | BT85: =IF(Station=Données1!$J$5,BT52,BT68) -> -1.621760554 | BU85: =IF(Station=Données1!$J$5,BU52,BU68) -> 0.6996067107 | BV85: =IF(Station=Données1!$J$5,BV52,BV68) -> -0.03285595213 | BW85: =IF(Station=Données1!$J$5,BW52,BW68) -> -2.46817316 | BX85: =IF(Station=Données1!$J$5,BX52,BX68) -> 4.287459605 | BY85: =IF(Station=Données1!$J$5,BY52,BY68) -> -1.621760554 | BZ85: =IF(Station=Données1!$J$5,BZ52,BZ68) -> 0.6996067107 | CA85: =IF(Station=Données1!$J$5,CA52,CA68) -> -0.03285595213 | CB85: =IF(Station=Données1!$J$5,CB52,CB68) -> -2.541236893 | CC85: =IF(Station=Données1!$J$5,CC52,CC68) -> 4.45818349 | CD85: =IF(Station=Données1!$J$5,CD52,CD68) -> -1.769975886 | CE85: =IF(Station=Données1!$J$5,CE52,CE68) -> 0.7188202082 | CF85: =IF(Station=Données1!$J$5,CF52,CF68) -> -0.0346288568
AR86: Février | AS86: =IF(Station=Données1!$J$5,AS53,AS69) -> -2.47533954 | AT86: =IF(Station=Données1!$J$5,AT53,AT69) -> 4.305793994 | AU86: =IF(Station=Données1!$J$5,AU53,AU69) -> -1.640066459 | AV86: =IF(Station=Données1!$J$5,AV53,AV69) -> 0.7012263985 | AW86: =IF(Station=Données1!$J$5,AW53,AW69) -> -0.03305070754 | AX86: =IF(Station=Données1!$J$5,AX53,AX69) -> -2.582952392 | AY86: =IF(Station=Données1!$J$5,AY53,AY69) -> 4.54027025 | AZ86: =IF(Station=Données1!$J$5,AZ53,AZ69) -> -1.81937305 | BA86: =IF(Station=Données1!$J$5,BA53,BA69) -> 0.7303565855 | BB86: =IF(Station=Données1!$J$5,BB53,BB69) -> -0.03536155438 | BC86: =IF(Station=Données1!$J$5,BC53,BC69) -> -2.531721967 | BD86: =IF(Station=Données1!$J$5,BD53,BD69) -> 4.416645811 | BE86: =IF(Station=Données1!$J$5,BE53,BE69) -> -1.706402563 | BF86: =IF(Station=Données1!$J$5,BF53,BF69) -> 0.717152439 | BG86: =IF(Station=Données1!$J$5,BG53,BG69) -> -0.0340520751 | BH86: =IF(Station=Données1!$J$5,BH53,BH69) -> -2.531721967 | BI86: =IF(Station=Données1!$J$5,BI53,BI69) -> 4.416645811 | BJ86: =IF(Station=Données1!$J$5,BJ53,BJ69) -> -1.706402563 | BK86: =IF(Station=Données1!$J$5,BK53,BK69) -> 0.717152439 | BL86: =IF(Station=Données1!$J$5,BL53,BL69) -> -0.0340520751 | BM86: =IF(Station=Données1!$J$5,BM53,BM69) -> -2.673818433 | BN86: =IF(Station=Données1!$J$5,BN53,BN69) -> 4.754115295 | BO86: =IF(Station=Données1!$J$5,BO53,BO69) -> -2.007006598 | BP86: =IF(Station=Données1!$J$5,BP53,BP69) -> 0.7544846174 | BQ86: =IF(Station=Données1!$J$5,BQ53,BQ69) -> -0.0376053327 | BR86: =IF(Station=Données1!$J$5,BR53,BR69) -> -2.5177469 | BS86: =IF(Station=Données1!$J$5,BS53,BS69) -> 4.390700124 | BT86: =IF(Station=Données1!$J$5,BT53,BT69) -> -1.693424342 | BU86: =IF(Station=Données1!$J$5,BU53,BU69) -> 0.7132106626 | BV86: =IF(Station=Données1!$J$5,BV53,BV69) -> -0.03383408049 | BW86: =IF(Station=Données1!$J$5,BW53,BW69) -> -2.5177469 | BX86: =IF(Station=Données1!$J$5,BX53,BX69) -> 4.390700124 | BY86: =IF(Station=Données1!$J$5,BY53,BY69) -> -1.693424342 | BZ86: =IF(Station=Données1!$J$5,BZ53,BZ69) -> 0.7132106626 | CA86: =IF(Station=Données1!$J$5,CA53,CA69) -> -0.03383408049 | CB86: =IF(Station=Données1!$J$5,CB53,CB69) -> -2.570454289 | CC86: =IF(Station=Données1!$J$5,CC53,CC69) -> 4.512841864 | CD86: =IF(Station=Données1!$J$5,CD53,CD69) -> -1.798104444 | CE86: =IF(Station=Données1!$J$5,CE53,CE69) -> 0.7269717102 | CF86: =IF(Station=Données1!$J$5,CF53,CF69) -> -0.03508925836
AR87: Mars | AS87: =IF(Station=Données1!$J$5,AS54,AS70) -> -2.439167806 | AT87: =IF(Station=Données1!$J$5,AT54,AT70) -> 4.245242863 | AU87: =IF(Station=Données1!$J$5,AU54,AU70) -> -1.621489691 | AV87: =IF(Station=Données1!$J$5,AV54,AV70) -> 0.6909450914 | AW87: =IF(Station=Données1!$J$5,AW54,AW70) -> -0.03261282354 | AX87: =IF(Station=Données1!$J$5,AX54,AX70) -> -2.605671539 | AY87: =IF(Station=Données1!$J$5,AY54,AY70) -> 4.577390662 | AZ87: =IF(Station=Données1!$J$5,AZ54,AZ70) -> -1.82885818 | BA87: =IF(Station=Données1!$J$5,BA54,BA70) -> 0.7370007611 | BB87: =IF(Station=Données1!$J$5,BB54,BB70) -> -0.0356259698 | BC87: =IF(Station=Données1!$J$5,BC54,BC70) -> -2.61063476 | BD87: =IF(Station=Données1!$J$5,BD54,BD70) -> 4.584884268 | BE87: =IF(Station=Données1!$J$5,BE54,BE70) -> -1.829533122 | BF87: =IF(Station=Données1!$J$5,BF54,BF70) -> 0.7384553886 | BG87: =IF(Station=Données1!$J$5,BG54,BG70) -> -0.03567179097 | BH87: =IF(Station=Données1!$J$5,BH54,BH70) -> -2.61063476 | BI87: =IF(Station=Données1!$J$5,BI54,BI70) -> 4.584884268 | BJ87: =IF(Station=Données1!$J$5,BJ54,BJ70) -> -1.829533122 | BK87: =IF(Station=Données1!$J$5,BK54,BK70) -> 0.7384553886 | BL87: =IF(Station=Données1!$J$5,BL54,BL70) -> -0.03567179097 | BM87: =IF(Station=Données1!$J$5,BM54,BM70) -> -2.436807361 | BN87: =IF(Station=Données1!$J$5,BN54,BN70) -> 4.261895659 | BO87: =IF(Station=Données1!$J$5,BO54,BO70) -> -1.667263041 | BP87: =IF(Station=Données1!$J$5,BP54,BP70) -> 0.6898044118 | BQ87: =IF(Station=Données1!$J$5,BQ54,BQ70) -> -0.03296975982 | BR87: =IF(Station=Données1!$J$5,BR54,BR70) -> -2.609916336 | BS87: =IF(Station=Données1!$J$5,BS54,BS70) -> 4.583358215 | BT87: =IF(Station=Données1!$J$5,BT54,BT70) -> -1.828425318 | BU87: =IF(Station=Données1!$J$5,BU54,BU70) -> 0.7382606476 | BV87: =IF(Station=Données1!$J$5,BV54,BV70) -> -0.03565712365 | BW87: =IF(Station=Données1!$J$5,BW54,BW70) -> -2.609916336 | BX87: =IF(Station=Données1!$J$5,BX54,BX70) -> 4.583358215 | BY87: =IF(Station=Données1!$J$5,BY54,BY70) -> -1.828425318 | BZ87: =IF(Station=Données1!$J$5,BZ54,BZ70) -> 0.7382606476 | CA87: =IF(Station=Données1!$J$5,CA54,CA70) -> -0.03565712365 | CB87: =IF(Station=Données1!$J$5,CB54,CB70) -> -2.60374304 | CC87: =IF(Station=Données1!$J$5,CC54,CC70) -> 4.572470188 | CD87: =IF(Station=Données1!$J$5,CD54,CD70) -> -1.823998253 | CE87: =IF(Station=Données1!$J$5,CE54,CE70) -> 0.7365080461 | CF87: =IF(Station=Données1!$J$5,CF54,CF70) -> -0.03557161656
AR88: Avril | AS88: =IF(Station=Données1!$J$5,AS55,AS71) -> -2.431233818 | AT88: =IF(Station=Données1!$J$5,AT55,AT71) -> 4.271550048 | AU88: =IF(Station=Données1!$J$5,AU55,AU71) -> -1.707701276 | AV88: =IF(Station=Données1!$J$5,AV55,AV71) -> 0.6877737462 | AW88: =IF(Station=Données1!$J$5,AW55,AW71) -> -0.03325696482 | AX88: =IF(Station=Données1!$J$5,AX55,AX71) -> -2.567158063 | AY88: =IF(Station=Données1!$J$5,AY55,AY71) -> 4.495145136 | AZ88: =IF(Station=Données1!$J$5,AZ55,AZ71) -> -1.768461775 | BA88: =IF(Station=Données1!$J$5,BA55,BA71) -> 0.7265926951 | BB88: =IF(Station=Données1!$J$5,BB55,BB71) -> -0.0348323576 | BC88: =IF(Station=Données1!$J$5,BC55,BC71) -> -2.606846061 | BD88: =IF(Station=Données1!$J$5,BD55,BD71) -> 4.583919918 | BE88: =IF(Station=Données1!$J$5,BE55,BE71) -> -1.839948833 | BF88: =IF(Station=Données1!$J$5,BF55,BF71) -> 0.737101284 | BG88: =IF(Station=Données1!$J$5,BG55,BG71) -> -0.03572054919 | BH88: =IF(Station=Données1!$J$5,BH55,BH71) -> -2.606846061 | BI88: =IF(Station=Données1!$J$5,BI55,BI71) -> 4.583919918 | BJ88: =IF(Station=Données1!$J$5,BJ55,BJ71) -> -1.839948833 | BK88: =IF(Station=Données1!$J$5,BK55,BK71) -> 0.737101284 | BL88: =IF(Station=Données1!$J$5,BL55,BL71) -> -0.03572054919 | BM88: =IF(Station=Données1!$J$5,BM55,BM71) -> -2.468398614 | BN88: =IF(Station=Données1!$J$5,BN55,BN71) -> 4.293836132 | BO88: =IF(Station=Données1!$J$5,BO55,BO71) -> -1.635730682 | BP88: =IF(Station=Données1!$J$5,BP55,BP71) -> 0.699258848 | BQ88: =IF(Station=Données1!$J$5,BQ55,BQ71) -> -0.03296024967 | BR88: =IF(Station=Données1!$J$5,BR55,BR71) -> -2.616009516 | BS88: =IF(Station=Données1!$J$5,BS55,BS71) -> 4.601824591 | BT88: =IF(Station=Données1!$J$5,BT55,BT71) -> -1.850500859 | BU88: =IF(Station=Données1!$J$5,BU55,BU71) -> 0.7396530625 | BV88: =IF(Station=Données1!$J$5,BV55,BV71) -> -0.03587969417 | BW88: =IF(Station=Données1!$J$5,BW55,BW71) -> -2.616009516 | BX88: =IF(Station=Données1!$J$5,BX55,BX71) -> 4.601824591 | BY88: =IF(Station=Données1!$J$5,BY55,BY71) -> -1.850500859 | BZ88: =IF(Station=Données1!$J$5,BZ55,BZ71) -> 0.7396530625 | CA88: =IF(Station=Données1!$J$5,CA55,CA71) -> -0.03587969417 | CB88: =IF(Station=Données1!$J$5,CB55,CB71) -> -2.56691997 | CC88: =IF(Station=Données1!$J$5,CC55,CC71) -> 4.493923981 | CD88: =IF(Station=Données1!$J$5,CD55,CD71) -> -1.766443128 | CE88: =IF(Station=Données1!$J$5,CE55,CE71) -> 0.7265762573 | CF88: =IF(Station=Données1!$J$5,CF55,CF71) -> -0.03481534476
AR89: Mai | AS89: =IF(Station=Données1!$J$5,AS56,AS72) -> -2.73470675 | AT89: =IF(Station=Données1!$J$5,AT56,AT72) -> 4.89636809 | AU89: =IF(Station=Données1!$J$5,AU56,AU72) -> -2.13034432 | AV89: =IF(Station=Données1!$J$5,AV56,AV72) -> 0.7707022273 | AW89: =IF(Station=Données1!$J$5,AW56,AW72) -> -0.039090366 | AX89: =IF(Station=Données1!$J$5,AX56,AX72) -> -2.531345917 | AY89: =IF(Station=Données1!$J$5,AY56,AY72) -> 4.417426153 | AZ89: =IF(Station=Données1!$J$5,AZ56,AZ72) -> -1.709407787 | BA89: =IF(Station=Données1!$J$5,BA56,BA72) -> 0.7170397517 | BB89: =IF(Station=Données1!$J$5,BB56,BB72) -> -0.03407492368 | BC89: =IF(Station=Données1!$J$5,BC56,BC72) -> -2.615743548 | BD89: =IF(Station=Données1!$J$5,BD56,BD72) -> 4.617739012 | BE89: =IF(Station=Données1!$J$5,BE56,BE72) -> -1.887771703 | BF89: =IF(Station=Données1!$J$5,BF56,BF72) -> 0.7390447592 | BG89: =IF(Station=Données1!$J$5,BG56,BG72) -> -0.03617637165 | BH89: =IF(Station=Données1!$J$5,BH56,BH72) -> -2.615743548 | BI89: =IF(Station=Données1!$J$5,BI56,BI72) -> 4.617739012 | BJ89: =IF(Station=Données1!$J$5,BJ56,BJ72) -> -1.887771703 | BK89: =IF(Station=Données1!$J$5,BK56,BK72) -> 0.7390447592 | BL89: =IF(Station=Données1!$J$5,BL56,BL72) -> -0.03617637165 | BM89: =IF(Station=Données1!$J$5,BM56,BM72) -> -2.47533954 | BN89: =IF(Station=Données1!$J$5,BN56,BN72) -> 4.305793994 | BO89: =IF(Station=Données1!$J$5,BO56,BO72) -> -1.640066459 | BP89: =IF(Station=Données1!$J$5,BP56,BP72) -> 0.7012263985 | BQ89: =IF(Station=Données1!$J$5,BQ56,BQ72) -> -0.03305070754 | BR89: =IF(Station=Données1!$J$5,BR56,BR72) -> -2.613829412 | BS89: =IF(Station=Données1!$J$5,BS56,BS72) -> 4.613023795 | BT89: =IF(Station=Données1!$J$5,BT56,BT72) -> -1.883340561 | BU89: =IF(Station=Données1!$J$5,BU56,BU72) -> 0.7385390713 | BV89: =IF(Station=Données1!$J$5,BV56,BV72) -> -0.03612508136 | BW89: =IF(Station=Données1!$J$5,BW56,BW72) -> -2.613829412 | BX89: =IF(Station=Données1!$J$5,BX56,BX72) -> 4.613023795 | BY89: =IF(Station=Données1!$J$5,BY56,BY72) -> -1.883340561 | BZ89: =IF(Station=Données1!$J$5,BZ56,BZ72) -> 0.7385390713 | CA89: =IF(Station=Données1!$J$5,CA56,CA72) -> -0.03612508136 | CB89: =IF(Station=Données1!$J$5,CB56,CB72) -> -2.515281638 | CC89: =IF(Station=Données1!$J$5,CC56,CC72) -> 4.384517196 | CD89: =IF(Station=Données1!$J$5,CD56,CD72) -> -1.687427437 | CE89: =IF(Station=Données1!$J$5,CE56,CE72) -> 0.7126233894 | CF89: =IF(Station=Données1!$J$5,CF56,CF72) -> -0.03376834927
AR90: Juin | AS90: =IF(Station=Données1!$J$5,AS57,AS73) -> -2.795981715 | AT90: =IF(Station=Données1!$J$5,AT57,AT73) -> 4.995304665 | AU90: =IF(Station=Données1!$J$5,AU57,AU73) -> -2.153583212 | AV90: =IF(Station=Données1!$J$5,AV57,AV73) -> 0.7881006492 | AW90: =IF(Station=Données1!$J$5,AW57,AW73) -> -0.03976016927 | AX90: =IF(Station=Données1!$J$5,AX57,AX73) -> -2.493540039 | AY90: =IF(Station=Données1!$J$5,AY57,AY73) -> 4.33787826 | AZ90: =IF(Station=Données1!$J$5,AZ57,AZ73) -> -1.652900973 | BA90: =IF(Station=Données1!$J$5,BA57,BA73) -> 0.7066786178 | BB90: =IF(Station=Données1!$J$5,BB57,BB73) -> -0.03331354395 | BC90: =IF(Station=Données1!$J$5,BC57,BC73) -> -2.579487583 | BD90: =IF(Station=Données1!$J$5,BD57,BD73) -> 4.546210778 | BE90: =IF(Station=Données1!$J$5,BE57,BE73) -> -1.844408307 | BF90: =IF(Station=Données1!$J$5,BF57,BF73) -> 0.7290384159 | BG90: =IF(Station=Données1!$J$5,BG57,BG73) -> -0.0355367327 | BH90: =IF(Station=Données1!$J$5,BH57,BH73) -> -2.579487583 | BI90: =IF(Station=Données1!$J$5,BI57,BI73) -> 4.546210778 | BJ90: =IF(Station=Données1!$J$5,BJ57,BJ73) -> -1.844408307 | BK90: =IF(Station=Données1!$J$5,BK57,BK73) -> 0.7290384159 | BL90: =IF(Station=Données1!$J$5,BL57,BL73) -> -0.0355367327 | BM90: =IF(Station=Données1!$J$5,BM57,BM73) -> -2.47533954 | BN90: =IF(Station=Données1!$J$5,BN57,BN73) -> 4.305793994 | BO90: =IF(Station=Données1!$J$5,BO57,BO73) -> -1.640066459 | BP90: =IF(Station=Données1!$J$5,BP57,BP73) -> 0.7012263985 | BQ90: =IF(Station=Données1!$J$5,BQ57,BQ73) -> -0.03305070754 | BR90: =IF(Station=Données1!$J$5,BR57,BR73) -> -2.565188673 | BS90: =IF(Station=Données1!$J$5,BS57,BS73) -> 4.514320327 | BT90: =IF(Station=Données1!$J$5,BT57,BT73) -> -1.818903167 | BU90: =IF(Station=Données1!$J$5,BU57,BU73) -> 0.7251916911 | BV90: =IF(Station=Données1!$J$5,BV57,BV73) -> -0.03521621257 | BW90: =IF(Station=Données1!$J$5,BW57,BW73) -> -2.565188673 | BX90: =IF(Station=Données1!$J$5,BX57,BX73) -> 4.514320327 | BY90: =IF(Station=Données1!$J$5,BY57,BY73) -> -1.818903167 | BZ90: =IF(Station=Données1!$J$5,BZ57,BZ73) -> 0.7251916911 | CA90: =IF(Station=Données1!$J$5,CA57,CA73) -> -0.03521621257 | CB90: =IF(Station=Données1!$J$5,CB57,CB73) -> -2.494854405 | CC90: =IF(Station=Données1!$J$5,CC57,CC73) -> 4.342556841 | CD90: =IF(Station=Données1!$J$5,CD57,CD73) -> -1.659249357 | CE90: =IF(Station=Données1!$J$5,CE57,CE73) -> 0.7069612877 | CF90: =IF(Station=Données1!$J$5,CF57,CF73) -> -0.03337449052
AR91: Juillet | AS91: =IF(Station=Données1!$J$5,AS58,AS74) -> -2.784535594 | AT91: =IF(Station=Données1!$J$5,AT58,AT74) -> 4.991577124 | AU91: =IF(Station=Données1!$J$5,AU58,AU74) -> -2.182904127 | AV91: =IF(Station=Données1!$J$5,AV58,AV74) -> 0.784486472 | AW91: =IF(Station=Données1!$J$5,AW58,AW74) -> -0.03991001982 | AX91: =IF(Station=Données1!$J$5,AX58,AX74) -> -2.521847463 | AY91: =IF(Station=Données1!$J$5,AY58,AY74) -> 4.398560615 | AZ91: =IF(Station=Données1!$J$5,AZ58,AZ74) -> -1.697767693 | BA91: =IF(Station=Données1!$J$5,BA58,BA74) -> 0.7144076957 | BB91: =IF(Station=Données1!$J$5,BB58,BB74) -> -0.03390446348 | BC91: =IF(Station=Données1!$J$5,BC58,BC74) -> -2.610735773 | BD91: =IF(Station=Données1!$J$5,BD58,BD74) -> 4.611106721 | BE91: =IF(Station=Données1!$J$5,BE58,BE74) -> -1.889195881 | BF91: =IF(Station=Données1!$J$5,BF58,BF74) -> 0.7375754486 | BG91: =IF(Station=Données1!$J$5,BG58,BG74) -> -0.03614827172 | BH91: =IF(Station=Données1!$J$5,BH58,BH74) -> -2.610735773 | BI91: =IF(Station=Données1!$J$5,BI58,BI74) -> 4.611106721 | BJ91: =IF(Station=Données1!$J$5,BJ58,BJ74) -> -1.889195881 | BK91: =IF(Station=Données1!$J$5,BK58,BK74) -> 0.7375754486 | BL91: =IF(Station=Données1!$J$5,BL58,BL74) -> -0.03614827172 | BM91: =IF(Station=Données1!$J$5,BM58,BM74) -> -2.47533954 | BN91: =IF(Station=Données1!$J$5,BN58,BN74) -> 4.305793994 | BO91: =IF(Station=Données1!$J$5,BO58,BO74) -> -1.640066459 | BP91: =IF(Station=Données1!$J$5,BP58,BP74) -> 0.7012263985 | BQ91: =IF(Station=Données1!$J$5,BQ58,BQ74) -> -0.03305070754 | BR91: =IF(Station=Données1!$J$5,BR58,BR74) -> -2.606980259 | BS91: =IF(Station=Données1!$J$5,BS58,BS74) -> 4.602686763 | BT91: =IF(Station=Données1!$J$5,BT58,BT74) -> -1.882397955 | BU91: =IF(Station=Données1!$J$5,BU58,BU74) -> 0.7365637812 | BV91: =IF(Station=Données1!$J$5,BV58,BV74) -> -0.03606317186 | BW91: =IF(Station=Données1!$J$5,BW58,BW74) -> -2.606980259 | BX91: =IF(Station=Données1!$J$5,BX58,BX74) -> 4.602686763 | BY91: =IF(Station=Données1!$J$5,BY58,BY74) -> -1.882397955 | BZ91: =IF(Station=Données1!$J$5,BZ58,BZ74) -> 0.7365637812 | CA91: =IF(Station=Données1!$J$5,CA58,CA74) -> -0.03606317186 | CB91: =IF(Station=Données1!$J$5,CB58,CB74) -> -2.520191059 | CC91: =IF(Station=Données1!$J$5,CC58,CC74) -> 4.395638274 | CD91: =IF(Station=Données1!$J$5,CD58,CD74) -> -1.696574099 | CE91: =IF(Station=Données1!$J$5,CE58,CE74) -> 0.7139433154 | CF91: =IF(Station=Données1!$J$5,CF58,CF74) -> -0.03388173086
AR92: Août | AS92: =IF(Station=Données1!$J$5,AS59,AS75) -> -2.529698289 | AT92: =IF(Station=Données1!$J$5,AT59,AT75) -> 4.506550528 | AU92: =IF(Station=Données1!$J$5,AU59,AU75) -> -1.918436925 | AV92: =IF(Station=Données1!$J$5,AV59,AV75) -> 0.7139277844 | AW92: =IF(Station=Données1!$J$5,AW59,AW75) -> -0.03575283637 | AX92: =IF(Station=Données1!$J$5,AX59,AX75) -> -2.566430447 | AY92: =IF(Station=Données1!$J$5,AY59,AY75) -> 4.490944512 | AZ92: =IF(Station=Données1!$J$5,AZ59,AZ75) -> -1.761183698 | BA92: =IF(Station=Données1!$J$5,BA59,BA75) -> 0.7266166041 | BB92: =IF(Station=Données1!$J$5,BB59,BB75) -> -0.03477405788 | BC92: =IF(Station=Données1!$J$5,BC59,BC75) -> -2.654551679 | BD92: =IF(Station=Données1!$J$5,BD59,BD75) -> 4.691499518 | BE92: =IF(Station=Données1!$J$5,BE59,BE75) -> -1.927762221 | BF92: =IF(Station=Données1!$J$5,BF59,BF75) -> 0.7498728942 | BG92: =IF(Station=Données1!$J$5,BG59,BG75) -> -0.03681067154 | BH92: =IF(Station=Données1!$J$5,BH59,BH75) -> -2.654551679 | BI92: =IF(Station=Données1!$J$5,BI59,BI75) -> 4.691499518 | BJ92: =IF(Station=Données1!$J$5,BJ59,BJ75) -> -1.927762221 | BK92: =IF(Station=Données1!$J$5,BK59,BK75) -> 0.7498728942 | BL92: =IF(Station=Données1!$J$5,BL59,BL75) -> -0.03681067154 | BM92: =IF(Station=Données1!$J$5,BM59,BM75) -> -2.47533954 | BN92: =IF(Station=Données1!$J$5,BN59,BN75) -> 4.305793994 | BO92: =IF(Station=Données1!$J$5,BO59,BO75) -> -1.640066459 | BP92: =IF(Station=Données1!$J$5,BP59,BP75) -> 0.7012263985 | BQ92: =IF(Station=Données1!$J$5,BQ59,BQ75) -> -0.03305070754 | BR92: =IF(Station=Données1!$J$5,BR59,BR75) -> -2.638910458 | BS92: =IF(Station=Données1!$J$5,BS59,BS75) -> 4.657370958 | BT92: =IF(Station=Données1!$J$5,BT59,BT75) -> -1.901590721 | BU92: =IF(Station=Données1!$J$5,BU59,BU75) -> 0.7456401579 | BV92: =IF(Station=Données1!$J$5,BV59,BV75) -> -0.03647390254 | BW92: =IF(Station=Données1!$J$5,BW59,BW75) -> -2.638910458 | BX92: =IF(Station=Données1!$J$5,BX59,BX75) -> 4.657370958 | BY92: =IF(Station=Données1!$J$5,BY59,BY75) -> -1.901590721 | BZ92: =IF(Station=Données1!$J$5,BZ59,BZ75) -> 0.7456401579 | CA92: =IF(Station=Données1!$J$5,CA59,CA75) -> -0.03647390254 | CB92: =IF(Station=Données1!$J$5,CB59,CB75) -> -2.565013913 | CC92: =IF(Station=Données1!$J$5,CC59,CC75) -> 4.490074244 | CD92: =IF(Station=Données1!$J$5,CD59,CD75) -> -1.763903107 | CE92: =IF(Station=Données1!$J$5,CE59,CE75) -> 0.7261417345 | CF92: =IF(Station=Données1!$J$5,CF59,CF75) -> -0.03478351869
